Workbook

Sheet Trabajo
A2: VEEDURIA DISTRITAL - RENDICION DE CUENTAS DE LA GESTION CONTRACTUAL EN EL DISTRITO CAPITAL (Acuerdo 380 de 2009)
A3: INFORMACION GENERAL DE CONTRATACION ENTIDADES DISTRITALES - ENERO 1 A 31 DICIEMBRE DE 2019
A5: 1. Entidad: | D5: ALCALDÍA LOCAL DE SUBA | G5: 2. Sector | H5: Publico
A6: 3. Presupuesto Disponible Inversión Directa PREDIS | D6: 75762275000 | G6: 5. Presupuesto Disponible Funcionamiento PREDIS | H6: 3515287000 | U6: 9. Nombre de quien diligencia el formato | W6: ANDRES SANTOS PETREL
A7: 4. Presupuesto Comprometido de Inversión Directa según PREDIS | D7: 73912731141 | G7: 6. Presupuesto Comprometido Funcionamiento según PREDIS | H7: 3081025229 | U7: Cargo | W7: CONTRATISTA PLANEACIÓN
U8: Dependencia | W8: PLANEACIÓN
A9: 7. Presupuesto Disponible Operación (Regimen Privado) | U9: Teléfono | W9: 3173752110
A10: 8. Presupuesto Comprometido Operación mediante contratos | U10: Correo Electrónico
A11: 1- INFORMACION GENERAL | O11: 2- INFORMACION FINANCIERA | V11: 3 - PLAZOS | AA11: 4 - ESTADO | AF11: 5. % Avance y/o cumplimiento
A12: 1 | B12: 2 | C12: 3 | D12: 4 | E12: 5 | F12: 6 | G12: 7 | H12: 8 | L12: 9 | M12: 10 | O12: 11 | P12: 12 | Q12: 13 | R12: 14 | S12: 15 | T12: 16 | U12: 17 | V12: 18 | W12: 19 | X12: 43851 | Y12: 21 | Z12: 22 | AA12: 23 | AF12: 24
A13: Número Contrato | B13: Año | C13: Número de proceso contractual | D13: Tipo de contrato | E13: Modalidad de Selección | F13: Procedimiento o causal | G13: Objeto | H13: Afectación | I13: Número Programa | J13: Equivalencia número de programa | K13: Eje / Pilar | L13: Número Proyecto | M13: Número de Identificación del contratista (NIT con digito de verificación) | N13: Nombre del contratista | O13: Valor Inicial del contrato | P13: Número de reducciones | Q13: Valor total reducciones (En valor negativo) | R13: Número de adiciones | S13: Valor total de adiciones | T13: Valor Final | U13: Giros (Valor en pesos) | V13: Fecha de suscripción (DD/MM/AAAA) | W13: Fecha de inicio (DD/MM/AAAA) | X13: Fecha de terminación (DD/MM/AAAA) | Y13: Plazo en días | Z13: Prorroga en días | AA13: Anulado | AB13: Celebrado o por iniciar | AC13: En Ejecución | AD13: Terminado | AE13: Liquidado | AF13: % Avance y/o Cumplimiento | AG13: Total Contratos | AH13: Anulado1 | AI13: Celebrado 1 | AJ13: En Ejecución 1 | AK13: Terminado 1 | AL13: Liquidado 1 | AM13: Validación Tipo | AN13: Validación Modalidad | AO13: Validación procedimiento | AP13: Validación afectación | AQ13: Validación programa
B14: 2019 | D14: Otros gastos | G14: PAGO HONORARIOS EDILES LOCALIDAD DE SUBA, VIGENCIA 2019. | H14: Funcionamiento | I14: No aplica | J14: =IF(ISERROR(VLOOKUP(I14,[1]Eje_Pilar!$C$2:$E$47,2,FALSE))," ",VLOOKUP(I14,[1]Eje_Pilar!$C$2:$E$47,2,FALSE)) ->  | K14: =IF(ISERROR(VLOOKUP(I14,[1]Eje_Pilar!$C$2:$E$47,3,FALSE))," ",VLOOKUP(I14,[1]Eje_Pilar!$C$2:$E$47,3,FALSE)) ->  | L14: 3-1-1-04-01-02-0000-000 | N14: HUGO BARAJAS GARCIA | O14: 85116732 | Q14: 0 | T14: =+O14+Q14+S14 -> 85116732 | U14: 84793628 | V14: 2019-01-17 | W14: 2019-01-17 | X14: 2019-12-31 | AF14: =(IF(ISERROR(U14/T14),"-",(U14/T14)))*100 -> 99.62039896 | AG14: =IF(SUMPRODUCT((A$14:A14=A14)*(B$14:B14=B14)*(C$14:C14=C14))>1,0,1) -> 1 | AH14: =IF(AND(AA14="X",AG14=1 ),1,0) -> 0 | AI14: =IF(AND(AB14="X",AG14=1 ),1,0) -> 0 | AJ14: =IF(AND(AC14="X",AG14=1 ),1,0) -> 0 | AK14: =IF(AND(AD14="X",AG14=1 ),1,0) -> 0 | AL14: =IF(AND(AE14="X",AG14=1 ),1,0) -> 0 | AM14: =IFERROR(VLOOKUP(D14,tipo,1,FALSE),"NO") -> Otros gastos | AN14: =IFERROR(VLOOKUP(E14,modal,1,FALSE),"NO") -> NO | AO14: =IFERROR(VLOOKUP(F14,[1]Tipo!$C$12:$C$27,1,FALSE),"NO") -> NO | AP14: =IFERROR(VLOOKUP(H14,afectacion,1,FALSE),"NO") -> Funcionamiento | AQ14: =IFERROR(VLOOKUP(I14,programa,1,FALSE),"NO") -> NO
B15: 2019 | D15: Otros gastos | G15: PAGO HONORARIOS EDILES LOCALIDAD DE SUBA, VIGENCIA 2019. | H15: Funcionamiento | I15: No aplica | J15: =IF(ISERROR(VLOOKUP(I15,[1]Eje_Pilar!$C$2:$E$47,2,FALSE))," ",VLOOKUP(I15,[1]Eje_Pilar!$C$2:$E$47,2,FALSE)) ->  | K15: =IF(ISERROR(VLOOKUP(I15,[1]Eje_Pilar!$C$2:$E$47,3,FALSE))," ",VLOOKUP(I15,[1]Eje_Pilar!$C$2:$E$47,3,FALSE)) ->  | L15: 3-1-1-04-01-02-0000-000 | N15: WILLIAM ALFONSO DIAZ SANCHEZ | O15: 85116732 | Q15: 0 | T15: 85116732 | U15: 84793645 | V15: 2019-01-17 | W15: 2019-01-17 | X15: 2019-12-31 | AF15: =(IF(ISERROR(U15/T15),"-",(U15/T15)))*100 -> 99.62041893 | AG15: =IF(SUMPRODUCT((A$14:A15=A15)*(B$14:B15=B15)*(C$14:C15=C15))>1,0,1) -> 0 | AH15: =IF(AND(AA15="X",AG15=1 ),1,0) -> 0 | AI15: =IF(AND(AB15="X",AG15=1 ),1,0) -> 0 | AJ15: =IF(AND(AC15="X",AG15=1 ),1,0) -> 0 | AK15: =IF(AND(AD15="X",AG15=1 ),1,0) -> 0 | AL15: =IF(AND(AE15="X",AG15=1 ),1,0) -> 0 | AM15: Otros gastos | AN15: NO | AO15: =IFERROR(VLOOKUP(F15,[1]Tipo!$C$12:$C$27,1,FALSE),"NO") -> NO | AP15: Funcionamiento | AQ15: NO
B16: 2019 | D16: Otros gastos | G16: PAGO HONORARIOS EDILES LOCALIDAD DE SUBA, VIGENCIA 2019. | H16: Funcionamiento | I16: No aplica | J16: =IF(ISERROR(VLOOKUP(I16,[1]Eje_Pilar!$C$2:$E$47,2,FALSE))," ",VLOOKUP(I16,[1]Eje_Pilar!$C$2:$E$47,2,FALSE)) ->  | K16: =IF(ISERROR(VLOOKUP(I16,[1]Eje_Pilar!$C$2:$E$47,3,FALSE))," ",VLOOKUP(I16,[1]Eje_Pilar!$C$2:$E$47,3,FALSE)) ->  | L16: 3-1-1-04-01-02-0000-000 | N16: LUZ AMPARO GARCIA QUINTERO | O16: 85116732 | Q16: 0 | T16: 85116732 | U16: 85116732 | V16: 2019-01-17 | W16: 2019-01-17 | X16: 2019-12-31 | AF16: 100 | AG16: =IF(SUMPRODUCT((A$14:A16=A16)*(B$14:B16=B16)*(C$14:C16=C16))>1,0,1) -> 0 | AH16: 0 | AI16: 0 | AJ16: 0 | AK16: 0 | AL16: 0 | AM16: Otros gastos | AN16: NO | AO16: =IFERROR(VLOOKUP(F16,[1]Tipo!$C$12:$C$27,1,FALSE),"NO") -> NO | AP16: Funcionamiento | AQ16: NO
B17: 2019 | D17: Otros gastos | G17: PAGO HONORARIOS EDILES LOCALIDAD DE SUBA, VIGENCIA 2019. | H17: Funcionamiento | I17: No aplica | J17: =IF(ISERROR(VLOOKUP(I17,[1]Eje_Pilar!$C$2:$E$47,2,FALSE))," ",VLOOKUP(I17,[1]Eje_Pilar!$C$2:$E$47,2,FALSE)) ->  | K17: =IF(ISERROR(VLOOKUP(I17,[1]Eje_Pilar!$C$2:$E$47,3,FALSE))," ",VLOOKUP(I17,[1]Eje_Pilar!$C$2:$E$47,3,FALSE)) ->  | L17: 3-1-1-04-01-02-0000-000 | N17: JAIME RAFAEL MORON BARROS | O17: 85116732 | Q17: 0 | T17: 85116732 | U17: 85116732 | V17: 2019-01-17 | W17: 2019-01-17 | X17: 2019-12-31 | AF17: 100 | AG17: =IF(SUMPRODUCT((A$14:A17=A17)*(B$14:B17=B17)*(C$14:C17=C17))>1,0,1) -> 0 | AH17: 0 | AI17: 0 | AJ17: 0 | AK17: 0 | AL17: 0 | AM17: Otros gastos | AN17: NO | AO17: =IFERROR(VLOOKUP(F17,[1]Tipo!$C$12:$C$27,1,FALSE),"NO") -> NO | AP17: Funcionamiento | AQ17: NO
B18: 2019 | D18: Otros gastos | G18: PAGO HONORARIOS EDILES LOCALIDAD DE SUBA, VIGENCIA 2019. | H18: Funcionamiento | I18: No aplica | J18: =IF(ISERROR(VLOOKUP(I18,[1]Eje_Pilar!$C$2:$E$47,2,FALSE))," ",VLOOKUP(I18,[1]Eje_Pilar!$C$2:$E$47,2,FALSE)) ->  | K18: =IF(ISERROR(VLOOKUP(I18,[1]Eje_Pilar!$C$2:$E$47,3,FALSE))," ",VLOOKUP(I18,[1]Eje_Pilar!$C$2:$E$47,3,FALSE)) ->  | L18: 3-1-1-04-01-02-0000-000 | N18: OSPINA GOMEZ MARCELA | O18: 85116732 | Q18: 0 | T18: 85116732 | U18: 85116732 | V18: 2019-01-17 | W18: 2019-01-17 | X18: 2019-12-31 | AF18: 100 | AG18: =IF(SUMPRODUCT((A$14:A18=A18)*(B$14:B18=B18)*(C$14:C18=C18))>1,0,1) -> 0 | AH18: 0 | AI18: 0 | AJ18: 0 | AK18: 0 | AL18: 0 | AM18: Otros gastos | AN18: NO | AO18: =IFERROR(VLOOKUP(F18,[1]Tipo!$C$12:$C$27,1,FALSE),"NO") -> NO | AP18: Funcionamiento | AQ18: NO
B19: 2019 | D19: Otros gastos | G19: PAGO HONORARIOS EDILES LOCALIDAD DE SUBA, VIGENCIA 2019. | H19: Funcionamiento | I19: No aplica | J19: =IF(ISERROR(VLOOKUP(I19,[1]Eje_Pilar!$C$2:$E$47,2,FALSE))," ",VLOOKUP(I19,[1]Eje_Pilar!$C$2:$E$47,2,FALSE)) ->  | K19: =IF(ISERROR(VLOOKUP(I19,[1]Eje_Pilar!$C$2:$E$47,3,FALSE))," ",VLOOKUP(I19,[1]Eje_Pilar!$C$2:$E$47,3,FALSE)) ->  | L19: 3-1-1-04-01-02-0000-000 | N19: JUAN ALBERTO OVIEDO SABOGAL | O19: 85116732 | Q19: 0 | T19: 85116732 | U19: 85116732 | V19: 2019-01-17 | W19: 2019-01-17 | X19: 2019-12-31 | AF19: 100 | AG19: =IF(SUMPRODUCT((A$14:A19=A19)*(B$14:B19=B19)*(C$14:C19=C19))>1,0,1) -> 0 | AH19: 0 | AI19: 0 | AJ19: 0 | AK19: 0 | AL19: 0 | AM19: Otros gastos | AN19: NO | AO19: =IFERROR(VLOOKUP(F19,[1]Tipo!$C$12:$C$27,1,FALSE),"NO") -> NO | AP19: Funcionamiento | AQ19: NO
B20: 2019 | D20: Otros gastos | G20: PAGO HONORARIOS EDILES LOCALIDAD DE SUBA, VIGENCIA 2019. | H20: Funcionamiento | I20: No aplica | J20: =IF(ISERROR(VLOOKUP(I20,[1]Eje_Pilar!$C$2:$E$47,2,FALSE))," ",VLOOKUP(I20,[1]Eje_Pilar!$C$2:$E$47,2,FALSE)) ->  | K20: =IF(ISERROR(VLOOKUP(I20,[1]Eje_Pilar!$C$2:$E$47,3,FALSE))," ",VLOOKUP(I20,[1]Eje_Pilar!$C$2:$E$47,3,FALSE)) ->  | L20: 3-1-1-04-01-02-0000-000 | N20: JUAN JOSE RAMIREZ CIFUENTES | O20: 85116732 | Q20: 0 | T20: 85116732 | U20: 85116732 | V20: 2019-01-17 | W20: 2019-01-17 | X20: 2019-12-31 | AF20: 100 | AG20: =IF(SUMPRODUCT((A$14:A20=A20)*(B$14:B20=B20)*(C$14:C20=C20))>1,0,1) -> 0 | AH20: 0 | AI20: 0 | AJ20: 0 | AK20: 0 | AL20: 0 | AM20: Otros gastos | AN20: NO | AO20: =IFERROR(VLOOKUP(F20,[1]Tipo!$C$12:$C$27,1,FALSE),"NO") -> NO | AP20: Funcionamiento | AQ20: NO
B21: 2019 | D21: Otros gastos | G21: PAGO HONORARIOS EDILES LOCALIDAD DE SUBA, VIGENCIA 2019. | H21: Funcionamiento | I21: No aplica | J21: =IF(ISERROR(VLOOKUP(I21,[1]Eje_Pilar!$C$2:$E$47,2,FALSE))," ",VLOOKUP(I21,[1]Eje_Pilar!$C$2:$E$47,2,FALSE)) ->  | K21: =IF(ISERROR(VLOOKUP(I21,[1]Eje_Pilar!$C$2:$E$47,3,FALSE))," ",VLOOKUP(I21,[1]Eje_Pilar!$C$2:$E$47,3,FALSE)) ->  | L21: 3-1-1-04-01-02-0000-000 | N21: JOSE GUSTAVO ROJAS PINILLA | O21: 85116732 | Q21: 0 | T21: 85116732 | U21: 84617344 | V21: 2019-01-17 | W21: 2019-01-17 | X21: 2019-12-31 | AF21: 99.41329044 | AG21: =IF(SUMPRODUCT((A$14:A21=A21)*(B$14:B21=B21)*(C$14:C21=C21))>1,0,1) -> 0 | AH21: 0 | AI21: 0 | AJ21: 0 | AK21: 0 | AL21: 0
B22: 2019 | D22: Otros gastos | G22: PAGO HONORARIOS EDILES LOCALIDAD DE SUBA, VIGENCIA 2019. | H22: Funcionamiento | I22: No aplica | J22: =IF(ISERROR(VLOOKUP(I22,[1]Eje_Pilar!$C$2:$E$47,2,FALSE))," ",VLOOKUP(I22,[1]Eje_Pilar!$C$2:$E$47,2,FALSE)) ->  | K22: =IF(ISERROR(VLOOKUP(I22,[1]Eje_Pilar!$C$2:$E$47,3,FALSE))," ",VLOOKUP(I22,[1]Eje_Pilar!$C$2:$E$47,3,FALSE)) ->  | L22: 3-1-1-04-01-02-0000-000 | N22: CESAR AUGUSTO SALAMANCA ROJAS | O22: 85116732 | Q22: 0 | T22: 85116732 | U22: 85116732 | V22: 2019-01-17 | W22: 2019-01-17 | X22: 2019-12-31 | AF22: 100 | AG22: =IF(SUMPRODUCT((A$14:A22=A22)*(B$14:B22=B22)*(C$14:C22=C22))>1,0,1) -> 0 | AH22: 0 | AI22: 0 | AJ22: 0 | AK22: 0 | AL22: 0
B23: 2019 | D23: Otros gastos | G23: PAGO HONORARIOS EDILES LOCALIDAD DE SUBA, VIGENCIA 2019. | H23: Funcionamiento | I23: No aplica | J23: =IF(ISERROR(VLOOKUP(I23,[1]Eje_Pilar!$C$2:$E$47,2,FALSE))," ",VLOOKUP(I23,[1]Eje_Pilar!$C$2:$E$47,2,FALSE)) ->  | K23: =IF(ISERROR(VLOOKUP(I23,[1]Eje_Pilar!$C$2:$E$47,3,FALSE))," ",VLOOKUP(I23,[1]Eje_Pilar!$C$2:$E$47,3,FALSE)) ->  | L23: 3-1-1-04-01-02-0000-000 | N23: YEISON JAVIER SEPULVEDA RINCON | O23: 85116732 | Q23: 0 | T23: 85116732 | U23: 85116732 | V23: 2019-01-17 | W23: 2019-01-17 | X23: 2019-12-31 | AF23: 100 | AG23: =IF(SUMPRODUCT((A$14:A23=A23)*(B$14:B23=B23)*(C$14:C23=C23))>1,0,1) -> 0 | AH23: 0 | AI23: 0 | AJ23: 0 | AK23: 0 | AL23: 0 | AM23: Otros gastos | AN23: NO | AO23: =IFERROR(VLOOKUP(F23,[1]Tipo!$C$12:$C$27,1,FALSE),"NO") -> NO | AP23: Funcionamiento | AQ23: NO
B24: 2019 | D24: Otros gastos | G24: PAGO HONORARIOS EDILES LOCALIDAD DE SUBA, VIGENCIA 2019. | H24: Funcionamiento | I24: No aplica | J24: =IF(ISERROR(VLOOKUP(I24,[1]Eje_Pilar!$C$2:$E$47,2,FALSE))," ",VLOOKUP(I24,[1]Eje_Pilar!$C$2:$E$47,2,FALSE)) ->  | K24: =IF(ISERROR(VLOOKUP(I24,[1]Eje_Pilar!$C$2:$E$47,3,FALSE))," ",VLOOKUP(I24,[1]Eje_Pilar!$C$2:$E$47,3,FALSE)) ->  | L24: 3-1-1-04-01-02-0000-000 | N24: MARIA CAROLINA VILLAMARIN JIMENEZ | O24: 85116732 | Q24: 0 | T24: 85116732 | U24: 85116732 | V24: 2019-01-17 | W24: 2019-01-17 | X24: 2019-12-31 | AF24: 100 | AG24: =IF(SUMPRODUCT((A$14:A24=A24)*(B$14:B24=B24)*(C$14:C24=C24))>1,0,1) -> 0 | AH24: 0 | AI24: 0 | AJ24: 0 | AK24: 0 | AL24: 0 | AM24: Otros gastos | AN24: NO | AO24: =IFERROR(VLOOKUP(F24,[1]Tipo!$C$12:$C$27,1,FALSE),"NO") -> NO | AP24: Funcionamiento | AQ24: NO
A25: 1 | B25: 2019 | C25: FDLSUBA-CPS-001-2019 | D25: Contratos de prestación de servicios profesionales y de apoyo a la gestión | E25: Contratación directa | F25: Prestación de servicios profesionales y de apoyo a la gestión, o para la ejecución de trabajos artísticos que sólo puedan encomendarse a determinadas personas naturales; | G25: PRESTAR LOS SERVICIOS PROFESIONALES COMO ABOGADO (A) PARA APOYAR LA GESTION CONTRACTUAL DEL AREA GESTION DEL DESARROLLO LOCAL DE LA ALCALDIA LOCAL DE SUBA, EN LOS DIFERENTES PROCESOS DE SELECCION EN SUS ETAPAS PRECONTRACTUAL, CONTRACTUAL Y POSTCONTRACTUAL. NO HAY 14669. | H25: Inversión | I25: 45 | J25: =IF(ISERROR(VLOOKUP(I25,[1]Eje_Pilar!$C$2:$E$47,2,FALSE))," ",VLOOKUP(I25,[1]Eje_Pilar!$C$2:$E$47,2,FALSE)) -> Gobernanza e influencia local, regional e internacional | K25: =IF(ISERROR(VLOOKUP(I25,[1]Eje_Pilar!$C$2:$E$47,3,FALSE))," ",VLOOKUP(I25,[1]Eje_Pilar!$C$2:$E$47,3,FALSE)) -> Eje Transversal 4 Gobierno Legitimo, Fortalecimiento Local y Eficiencia | L25: 3-3-1-15-07-45-1478-000 | M25: 80491498 | N25: CARLOS ALBERTO DIAZ AGUDELO | O25: 72450000 | Q25: 0 | R25: 1 | S25: 3780000 | T25: 76230000 | U25: 64680000 | V25: 2019-01-22 | W25: 2019-01-22 | X25: 2020-01-21 | Y25: 345 | Z25: 21 | AD25: X | AF25: 84.84848485 | AG25: =IF(SUMPRODUCT((A$14:A25=A25)*(B$14:B25=B25)*(C$14:C25=C25))>1,0,1) -> 1 | AH25: 0 | AI25: 0 | AJ25: 0 | AK25: 1 | AL25: 0 | AM25: Contratos de prestación de servicios profesionales y de apoyo a la gestión | AN25: Contratación directa | AO25: =IFERROR(VLOOKUP(F25,[1]Tipo!$C$12:$C$27,1,FALSE),"NO") -> Prestación de servicios profesionales y de apoyo a la gestión, o para la ejecución de trabajos artísticos que sólo puedan encomendarse a determinadas personas naturales; | AP25: Inversión | AQ25: 45
B26: 2019 | D26: Otros gastos | G26: PAGO DEL SERVICIO DE ENERGIA DE LOS INMUEBLES A CARGO DEL FDL SUBA | H26: Funcionamiento | I26: No aplica | J26: =IF(ISERROR(VLOOKUP(I26,[1]Eje_Pilar!$C$2:$E$47,2,FALSE))," ",VLOOKUP(I26,[1]Eje_Pilar!$C$2:$E$47,2,FALSE)) ->  | K26: =IF(ISERROR(VLOOKUP(I26,[1]Eje_Pilar!$C$2:$E$47,3,FALSE))," ",VLOOKUP(I26,[1]Eje_Pilar!$C$2:$E$47,3,FALSE)) ->  | L26: 3-1-2-02-02-04-0001-001 | N26: CODENSA S. A. ESP | O26: 65000000 | Q26: 0 | S26: 0 | T26: 65000000 | U26: 65000000 | V26: 2019-01-17 | W26: 2019-01-17 | X26: 2019-12-31 | AF26: 100 | AG26: =IF(SUMPRODUCT((A$14:A26=A26)*(B$14:B26=B26)*(C$14:C26=C26))>1,0,1) -> 0 | AH26: 0 | AI26: 0 | AJ26: 0 | AK26: 0 | AL26: 0 | AM26: Otros gastos | AN26: NO | AO26: =IFERROR(VLOOKUP(F26,[1]Tipo!$C$12:$C$27,1,FALSE),"NO") -> NO | AP26: Funcionamiento | AQ26: NO
A27: 2 | B27: 2019 | C27: FDLSUBA-CPS-002-2019 | D27: Contratos de prestación de servicios profesionales y de apoyo a la gestión | E27: Contratación directa | F27: Prestación de servicios profesionales y de apoyo a la gestión, o para la ejecución de trabajos artísticos que sólo puedan encomendarse a determinadas personas naturales; | G27: PRESTAR SERVICIOS PROFESIONALES PARA LA OPERACION, PRESTACION Y SEGUIMIENTO Y CUMPLIMIENTO DE LOS PROCEDIMIENTOS ADMINISTRATIVOS, OPERATIVOS Y PROGRAMATICOS DE LOS SERVICIOS SOCIALES DEL PROYECTO DE SUBSIDIO / APOYO ECONOMICO TIPO C, QUE CONTRIBUYAN A LA GARANTIA DE LOS DERECHOS DE LA POBLACION MAYOR EN EL MARCO DE LA POLITICA PUBLICA SOCIAL PARA EL ENVEJECIMIENTO Y LA VEJEZ EN EL DISTRITO CAPITAL A CARGO DE LA ALCALDIA LOCAL DE SUBA. NO HAY 14803. | H27: Inversión | I27: 3 | J27: =IF(ISERROR(VLOOKUP(I27,[1]Eje_Pilar!$C$2:$E$47,2,FALSE))," ",VLOOKUP(I27,[1]Eje_Pilar!$C$2:$E$47,2,FALSE)) -> Igualdad y autonomía para una Bogotá incluyente | K27: =IF(ISERROR(VLOOKUP(I27,[1]Eje_Pilar!$C$2:$E$47,3,FALSE))," ",VLOOKUP(I27,[1]Eje_Pilar!$C$2:$E$47,3,FALSE)) -> Pilar 1 Igualdad de Calidad de Vida | L27: 3-3-1-15-01-03-1427-000 | M27: 1098682528 | N27: KAREN DAYANA NIZ PABUENA | O27: 52900000 | Q27: 0 | S27: 0 | T27: 52900000 | U27: 46460000 | V27: 2019-01-22 | W27: 2019-01-22 | X27: 2019-12-31 | Y27: 345 | AD27: X | AF27: 87.82608696 | AG27: =IF(SUMPRODUCT((A$14:A27=A27)*(B$14:B27=B27)*(C$14:C27=C27))>1,0,1) -> 1 | AH27: 0 | AI27: 0 | AJ27: 0 | AK27: 1 | AL27: 0 | AM27: Contratos de prestación de servicios profesionales y de apoyo a la gestión | AN27: Contratación directa | AO27: =IFERROR(VLOOKUP(F27,[1]Tipo!$C$12:$C$27,1,FALSE),"NO") -> Prestación de servicios profesionales y de apoyo a la gestión, o para la ejecución de trabajos artísticos que sólo puedan encomendarse a determinadas personas naturales; | AP27: Inversión | AQ27: 3
B28: 2019 | D28: Otros gastos | G28: PAGO DEL SERVICIO TELEFONICO DE LAS LINEAS A CARGO DEL FONDO DE DESARROLLO LOCAL DE SUBA. | H28: Funcionamiento | I28: No aplica | J28: =IF(ISERROR(VLOOKUP(I28,[1]Eje_Pilar!$C$2:$E$47,2,FALSE))," ",VLOOKUP(I28,[1]Eje_Pilar!$C$2:$E$47,2,FALSE)) ->  | K28: =IF(ISERROR(VLOOKUP(I28,[1]Eje_Pilar!$C$2:$E$47,3,FALSE))," ",VLOOKUP(I28,[1]Eje_Pilar!$C$2:$E$47,3,FALSE)) ->  | L28: 3-1-2-02-02-03-0004-001 | N28: EMPRESA DE TELECOMUNICACIONES DE BOGOTA SA ESP | O28: 40000000 | Q28: 0 | S28: 0 | T28: 40000000 | U28: 26527820 | V28: 2019-01-21 | W28: 2019-01-21 | X28: 2019-12-31 | AF28: 66.31955 | AG28: =IF(SUMPRODUCT((A$14:A28=A28)*(B$14:B28=B28)*(C$14:C28=C28))>1,0,1) -> 0 | AH28: 0 | AI28: 0 | AJ28: 0 | AK28: 0 | AL28: 0 | AM28: Otros gastos | AN28: NO | AO28: =IFERROR(VLOOKUP(F28,[1]Tipo!$C$12:$C$27,1,FALSE),"NO") -> NO | AP28: Funcionamiento | AQ28: NO
A29: 3 | B29: 2019 | C29: FDLSUBA-CPS-003-2019 | D29: Contratos de prestación de servicios profesionales y de apoyo a la gestión | E29: Contratación directa | F29: Prestación de servicios profesionales y de apoyo a la gestión, o para la ejecución de trabajos artísticos que sólo puedan encomendarse a determinadas personas naturales; | G29: PRESTAR SERVICIOS PROFESIONALES PARA LA OPERACION, PRESTACION Y SEGUIMIENTO Y CUMPLIMIENTO DE LOS PROCEDIMIENTOS ADMINISTRATIVOS, OPERATIVOS Y PROGRAMATICOS DE LOS SERVICIOS SOCIALES DEL PROYECTO DE SUBSIDIO / APOYO ECONOMICO TIPO C, QUE CONTRIBUYAN A LA GARANTIA DE LOS DERECHOS DE LA POBLACION MAYOR EN EL MARCO DE LA POLITICA PUBLICA SOCIAL PARA EL ENVEJECIMIENTO Y LA VEJEZ EN EL DISTRITO CAPITAL A CARGO DE LA ALCALDIA LOCAL DE SUBA. NO HAY 14803. | H29: Inversión | I29: 3 | J29: =IF(ISERROR(VLOOKUP(I29,[1]Eje_Pilar!$C$2:$E$47,2,FALSE))," ",VLOOKUP(I29,[1]Eje_Pilar!$C$2:$E$47,2,FALSE)) -> Igualdad y autonomía para una Bogotá incluyente | K29: =IF(ISERROR(VLOOKUP(I29,[1]Eje_Pilar!$C$2:$E$47,3,FALSE))," ",VLOOKUP(I29,[1]Eje_Pilar!$C$2:$E$47,3,FALSE)) -> Pilar 1 Igualdad de Calidad de Vida | L29: 3-3-1-15-01-03-1427-000 | M29: 1019084310 | N29: GILMA VIVIANA MEJIA PRADA | O29: 52900000 | Q29: 0 | R29: 1 | S29: 2453333 | T29: 55353333 | U29: 42320000 | V29: 2019-01-22 | W29: 2019-01-22 | X29: 2020-01-21 | Y29: 345 | Z29: 21 | AD29: X | AF29: 76.45429409 | AG29: =IF(SUMPRODUCT((A$14:A29=A29)*(B$14:B29=B29)*(C$14:C29=C29))>1,0,1) -> 1 | AH29: 0 | AI29: 0 | AJ29: 0 | AK29: 1 | AL29: 0 | AM29: Contratos de prestación de servicios profesionales y de apoyo a la gestión | AN29: Contratación directa | AO29: =IFERROR(VLOOKUP(F29,[1]Tipo!$C$12:$C$27,1,FALSE),"NO") -> Prestación de servicios profesionales y de apoyo a la gestión, o para la ejecución de trabajos artísticos que sólo puedan encomendarse a determinadas personas naturales; | AP29: Inversión | AQ29: 3
A30: 4 | B30: 2019 | C30: FDLSUBA-CPS-004-2019 | D30: Contratos de prestación de servicios profesionales y de apoyo a la gestión | E30: Contratación directa | F30: Prestación de servicios profesionales y de apoyo a la gestión, o para la ejecución de trabajos artísticos que sólo puedan encomendarse a determinadas personas naturales; | G30: ¿Apoyar al equipo de prensa y comunicaciones de la Alcaldía Local en la realización y publicación de contenidos de redes sociales y canales de divulgación digital (sitio web) de la Alcaldía local". NO HAY 14588. | H30: Inversión | I30: 45 | J30: =IF(ISERROR(VLOOKUP(I30,[1]Eje_Pilar!$C$2:$E$47,2,FALSE))," ",VLOOKUP(I30,[1]Eje_Pilar!$C$2:$E$47,2,FALSE)) -> Gobernanza e influencia local, regional e internacional | K30: =IF(ISERROR(VLOOKUP(I30,[1]Eje_Pilar!$C$2:$E$47,3,FALSE))," ",VLOOKUP(I30,[1]Eje_Pilar!$C$2:$E$47,3,FALSE)) -> Eje Transversal 4 Gobierno Legitimo, Fortalecimiento Local y Eficiencia | L30: 3-3-1-15-07-45-1478-000 | M30: 52975107 | N30: CATHERINE GONZALEZ RAMOS | O30: 52900000 | Q30: 0 | S30: 0 | T30: 52900000 | U30: 37720000 | V30: 2019-01-22 | W30: 2019-01-22 | X30: 2020-05-01 | Y30: 345 | Z30: 60 | AC30: X | AF30: 71.30434783 | AG30: =IF(SUMPRODUCT((A$14:A30=A30)*(B$14:B30=B30)*(C$14:C30=C30))>1,0,1) -> 1 | AH30: 0 | AI30: 0 | AJ30: 1 | AK30: 0 | AL30: 0 | AM30: Contratos de prestación de servicios profesionales y de apoyo a la gestión | AN30: Contratación directa | AO30: =IFERROR(VLOOKUP(F30,[1]Tipo!$C$12:$C$27,1,FALSE),"NO") -> Prestación de servicios profesionales y de apoyo a la gestión, o para la ejecución de trabajos artísticos que sólo puedan encomendarse a determinadas personas naturales; | AP30: Inversión | AQ30: 45
A31: 5 | B31: 2019 | C31: FDLSUBA-CPS-005-2019 | D31: Contratos de prestación de servicios profesionales y de apoyo a la gestión | E31: Contratación directa | F31: Prestación de servicios profesionales y de apoyo a la gestión, o para la ejecución de trabajos artísticos que sólo puedan encomendarse a determinadas personas naturales; | G31: PRESTAR EL SERVICIO COMO CONDUCTOR DE LOS VEHICULOS LIVIANOS DEL DESPACHO DE LA ALCALDIA LOCAL DE SUBA. NO HAY 14600. | H31: Inversión | I31: 45 | J31: =IF(ISERROR(VLOOKUP(I31,[1]Eje_Pilar!$C$2:$E$47,2,FALSE))," ",VLOOKUP(I31,[1]Eje_Pilar!$C$2:$E$47,2,FALSE)) -> Gobernanza e influencia local, regional e internacional | K31: =IF(ISERROR(VLOOKUP(I31,[1]Eje_Pilar!$C$2:$E$47,3,FALSE))," ",VLOOKUP(I31,[1]Eje_Pilar!$C$2:$E$47,3,FALSE)) -> Eje Transversal 4 Gobierno Legitimo, Fortalecimiento Local y Eficiencia | L31: 3-3-1-15-07-45-1478-000 | M31: 80179342 | N31: EDWIN ANDRES MAYORGA TIBAQUIRA | O31: 26450000 | Q31: 0 | R31: 1 | S31: 1226666 | T31: 27676666 | U31: 23460000 | V31: 2019-01-22 | W31: 2019-01-22 | X31: 2020-01-21 | Y31: 345 | Z31: 21 | AD31: X | AF31: 84.76454498 | AG31: =IF(SUMPRODUCT((A$14:A31=A31)*(B$14:B31=B31)*(C$14:C31=C31))>1,0,1) -> 1 | AH31: 0 | AI31: 0 | AJ31: 0 | AK31: 1 | AL31: 0 | AM31: Contratos de prestación de servicios profesionales y de apoyo a la gestión | AN31: Contratación directa | AO31: =IFERROR(VLOOKUP(F31,[1]Tipo!$C$12:$C$27,1,FALSE),"NO") -> Prestación de servicios profesionales y de apoyo a la gestión, o para la ejecución de trabajos artísticos que sólo puedan encomendarse a determinadas personas naturales; | AP31: Inversión | AQ31: 45
A32: 6 | B32: 2019 | C32: FDLSUBA-CPS-006-2019 | D32: Contratos de prestación de servicios profesionales y de apoyo a la gestión | E32: Contratación directa | F32: Prestación de servicios profesionales y de apoyo a la gestión, o para la ejecución de trabajos artísticos que sólo puedan encomendarse a determinadas personas naturales; | G32: APOYAR JURIDICAMENTE LA EJECUCION DE LAS ACCIONES REQUERIDAS PARA LA DEPURACION DE LAS ACTUACIONES ADMINISTRATIVAS QUE CURSAN EN LA ALCALDIA LOCAL. NO HAY 14658. | H32: Inversión | I32: 45 | J32: =IF(ISERROR(VLOOKUP(I32,[1]Eje_Pilar!$C$2:$E$47,2,FALSE))," ",VLOOKUP(I32,[1]Eje_Pilar!$C$2:$E$47,2,FALSE)) -> Gobernanza e influencia local, regional e internacional | K32: =IF(ISERROR(VLOOKUP(I32,[1]Eje_Pilar!$C$2:$E$47,3,FALSE))," ",VLOOKUP(I32,[1]Eje_Pilar!$C$2:$E$47,3,FALSE)) -> Eje Transversal 4 Gobierno Legitimo, Fortalecimiento Local y Eficiencia | L32: 3-3-1-15-07-45-1478-000 | M32: 52989234 | N32: JENNY ALEXANDRA NORIEGA GOMEZ | O32: 52900000 | Q32: 0 | R32: 1 | S32: 1840000 | T32: 54740000 | U32: 46306667 | V32: 2019-01-29 | W32: 2019-01-29 | X32: 2020-01-21 | Y32: 345 | Z32: 21 | AD32: X | AF32: 84.59383814 | AG32: =IF(SUMPRODUCT((A$14:A32=A32)*(B$14:B32=B32)*(C$14:C32=C32))>1,0,1) -> 1 | AH32: 0 | AI32: 0 | AJ32: 0 | AK32: 1 | AL32: 0 | AM32: Contratos de prestación de servicios profesionales y de apoyo a la gestión | AN32: Contratación directa | AO32: =IFERROR(VLOOKUP(F32,[1]Tipo!$C$12:$C$27,1,FALSE),"NO") -> Prestación de servicios profesionales y de apoyo a la gestión, o para la ejecución de trabajos artísticos que sólo puedan encomendarse a determinadas personas naturales; | AP32: Inversión | AQ32: 45
A33: 7 | B33: 2019 | C33: FDLSUBA-CPS-007-2019 | D33: Contratos de prestación de servicios profesionales y de apoyo a la gestión | E33: Contratación directa | F33: Prestación de servicios profesionales y de apoyo a la gestión, o para la ejecución de trabajos artísticos que sólo puedan encomendarse a determinadas personas naturales; | G33: PRESTAR LOS SERVICIOS PROFESIONALES COMO ABOGADO (A) PARA APOYAR LA GESTION CONTRACTUAL DEL AREA GESTION DEL DESARROLLO LOCAL DE LA ALCALDIA LOCAL DE SUBA, EN LOS DIFERENTES PROCESOS DE SELECCION EN SUS ETAPAS PRECONTRACTUAL, CONTRACTUAL Y POSTCONTRACTUAL. NO HAY 14669. | H33: Inversión | I33: 45 | J33: =IF(ISERROR(VLOOKUP(I33,[1]Eje_Pilar!$C$2:$E$47,2,FALSE))," ",VLOOKUP(I33,[1]Eje_Pilar!$C$2:$E$47,2,FALSE)) -> Gobernanza e influencia local, regional e internacional | K33: =IF(ISERROR(VLOOKUP(I33,[1]Eje_Pilar!$C$2:$E$47,3,FALSE))," ",VLOOKUP(I33,[1]Eje_Pilar!$C$2:$E$47,3,FALSE)) -> Eje Transversal 4 Gobierno Legitimo, Fortalecimiento Local y Eficiencia | L33: 3-3-1-15-07-45-1478-000 | M33: 52898025 | N33: LILIA ZAMBRANO DURAN | O33: 72450000 | Q33: 0 | S33: 0 | T33: 72450000 | U33: 64470000 | V33: 2019-01-24 | W33: 2019-01-24 | X33: 2019-12-31 | Y33: 345 | AD33: X | AF33: 88.98550725 | AG33: =IF(SUMPRODUCT((A$14:A33=A33)*(B$14:B33=B33)*(C$14:C33=C33))>1,0,1) -> 1 | AH33: 0 | AI33: 0 | AJ33: 0 | AK33: 1 | AL33: 0 | AM33: Contratos de prestación de servicios profesionales y de apoyo a la gestión | AN33: Contratación directa | AO33: =IFERROR(VLOOKUP(F33,[1]Tipo!$C$12:$C$27,1,FALSE),"NO") -> Prestación de servicios profesionales y de apoyo a la gestión, o para la ejecución de trabajos artísticos que sólo puedan encomendarse a determinadas personas naturales; | AP33: Inversión | AQ33: 45
A34: 8 | B34: 2019 | C34: FDLSUBA-CPS-008-2019 | D34: Contratos de prestación de servicios profesionales y de apoyo a la gestión | E34: Contratación directa | F34: Prestación de servicios profesionales y de apoyo a la gestión, o para la ejecución de trabajos artísticos que sólo puedan encomendarse a determinadas personas naturales; | G34: PRESTAR LOS SERVICIOS PROFESIONALES COMO ABOGADO (A) PARA APOYAR LA GESTION CONTRACTUAL DEL AREA GESTION DEL DESARROLLO LOCAL DE LA ALCALDIA LOCAL DE SUBA, EN LOS DIFERENTES PROCESOS DE SELECCION EN SUS ETAPAS PRECONTRACTUAL, CONTRACTUAL Y POSTCONTRACTUAL. NO HAY 14669. | H34: Inversión | I34: 45 | J34: =IF(ISERROR(VLOOKUP(I34,[1]Eje_Pilar!$C$2:$E$47,2,FALSE))," ",VLOOKUP(I34,[1]Eje_Pilar!$C$2:$E$47,2,FALSE)) -> Gobernanza e influencia local, regional e internacional | K34: =IF(ISERROR(VLOOKUP(I34,[1]Eje_Pilar!$C$2:$E$47,3,FALSE))," ",VLOOKUP(I34,[1]Eje_Pilar!$C$2:$E$47,3,FALSE)) -> Eje Transversal 4 Gobierno Legitimo, Fortalecimiento Local y Eficiencia | L34: 3-3-1-15-07-45-1478-000 | M34: 1110471820 | N34: DIANA MARIA BOLAÑOS LOPEZ | O34: 72450000 | Q34: 0 | R34: 1 | S34: 3570000 | T34: 76020000 | U34: 64470000 | V34: 2019-01-24 | W34: 2019-01-24 | X34: 2020-01-21 | Y34: 345 | Z34: 21 | AD34: X | AF34: 84.80662983 | AG34: =IF(SUMPRODUCT((A$14:A34=A34)*(B$14:B34=B34)*(C$14:C34=C34))>1,0,1) -> 1 | AH34: 0 | AI34: 0 | AJ34: 0 | AK34: 1 | AL34: 0 | AM34: Contratos de prestación de servicios profesionales y de apoyo a la gestión | AN34: Contratación directa | AO34: =IFERROR(VLOOKUP(F34,[1]Tipo!$C$12:$C$27,1,FALSE),"NO") -> Prestación de servicios profesionales y de apoyo a la gestión, o para la ejecución de trabajos artísticos que sólo puedan encomendarse a determinadas personas naturales; | AP34: Inversión | AQ34: 45
B35: 2019 | D35: Otros gastos | G35: OBJETO: PAGO DEL SERVICIO PUBLICO DE ACUEDUCTO DE LOS INMUEBLES A CARGO DEL FDL SUBA VIGENCIA 2018. | H35: Funcionamiento | I35: No aplica | J35: =IF(ISERROR(VLOOKUP(I35,[1]Eje_Pilar!$C$2:$E$47,2,FALSE))," ",VLOOKUP(I35,[1]Eje_Pilar!$C$2:$E$47,2,FALSE)) ->  | K35: =IF(ISERROR(VLOOKUP(I35,[1]Eje_Pilar!$C$2:$E$47,3,FALSE))," ",VLOOKUP(I35,[1]Eje_Pilar!$C$2:$E$47,3,FALSE)) ->  | L35: 3-1-2-02-02-04-0001-002 | N35: EMPRESA DE ACUEDUCTO Y ALCANTARILLADO DE BOGOTA ESP | O35: 20000000 | Q35: 0 | S35: 0 | T35: 20000000 | U35: 9837448 | V35: 2019-01-23 | W35: 2019-01-23 | X35: 2019-12-31 | AF35: 49.18724 | AG35: =IF(SUMPRODUCT((A$14:A35=A35)*(B$14:B35=B35)*(C$14:C35=C35))>1,0,1) -> 0 | AH35: 0 | AI35: 0 | AJ35: 0 | AK35: 0 | AL35: 0 | AM35: Otros gastos | AN35: NO | AO35: =IFERROR(VLOOKUP(F35,[1]Tipo!$C$12:$C$27,1,FALSE),"NO") -> NO | AP35: Funcionamiento | AQ35: NO
B36: 2019 | D36: Otros gastos | G36: PAGO SEGURIDAD SOCIAL EDILES LOCALIDAD DE SUBA, VIGENCIA 2019. EDIL JUAN JOSÉ RAMIREZ CIFUENTES DADO EL CAMBIO DE EPS DE MEDIMAS A SURAAMERICANA S.A. DESDE EL 1 DE AGOSTO DE 2019. | H36: Funcionamiento | I36: No aplica | J36: =IF(ISERROR(VLOOKUP(I36,[1]Eje_Pilar!$C$2:$E$47,2,FALSE))," ",VLOOKUP(I36,[1]Eje_Pilar!$C$2:$E$47,2,FALSE)) ->  | K36: =IF(ISERROR(VLOOKUP(I36,[1]Eje_Pilar!$C$2:$E$47,3,FALSE))," ",VLOOKUP(I36,[1]Eje_Pilar!$C$2:$E$47,3,FALSE)) ->  | L36: 3-1-2-02-02-02-0001-006 | N36: EPS Y MEDICINA PREPAGADA SURAMERICANA S.A. | O36: 4450000 | Q36: 0 | S36: 0 | T36: 4450000 | U36: 3559600 | V36: 2019-09-02 | W36: 2019-09-02 | X36: 2019-12-31 | AF36: 79.99101124 | AG36: =IF(SUMPRODUCT((A$14:A36=A36)*(B$14:B36=B36)*(C$14:C36=C36))>1,0,1) -> 0 | AH36: 0 | AI36: 0 | AJ36: 0 | AK36: 0 | AL36: 0 | AM36: Otros gastos | AN36: NO | AO36: =IFERROR(VLOOKUP(F36,[1]Tipo!$C$12:$C$27,1,FALSE),"NO") -> NO | AP36: Funcionamiento | AQ36: NO
A37: 9 | B37: 2019 | C37: FDLSUBA-CPS-009-2019 | D37: Contratos de prestación de servicios profesionales y de apoyo a la gestión | E37: Contratación directa | F37: Prestación de servicios profesionales y de apoyo a la gestión, o para la ejecución de trabajos artísticos que sólo puedan encomendarse a determinadas personas naturales; | G37: PRESTAR LOS SERVICIOS PROFESIONALES COMO ABOGADO (A) PARA APOYAR LA GESTION CONTRACTUAL DEL AREA GESTION DEL DESARROLLO LOCAL DE LA ALCALDIA LOCAL DE SUBA, EN LOS DIFERENTES PROCESOS DE SELECCION EN SUS ETAPAS PRECONTRACTUAL, CONTRACTUAL Y POSTCONTRACTUAL. NO HAY 14669. | H37: Inversión | I37: 45 | J37: =IF(ISERROR(VLOOKUP(I37,[1]Eje_Pilar!$C$2:$E$47,2,FALSE))," ",VLOOKUP(I37,[1]Eje_Pilar!$C$2:$E$47,2,FALSE)) -> Gobernanza e influencia local, regional e internacional | K37: =IF(ISERROR(VLOOKUP(I37,[1]Eje_Pilar!$C$2:$E$47,3,FALSE))," ",VLOOKUP(I37,[1]Eje_Pilar!$C$2:$E$47,3,FALSE)) -> Eje Transversal 4 Gobierno Legitimo, Fortalecimiento Local y Eficiencia | L37: 3-3-1-15-07-45-1478-000 | M37: 52715599 | N37: LYDA ENITH SOLANO GUTIERREZ | O37: 72450000 | Q37: 0 | R37: 1 | S37: 3360000 | T37: 75810000 | U37: 64260000 | V37: 2019-01-24 | W37: 2019-01-24 | X37: 2020-01-21 | Y37: 345 | Z37: 21 | AD37: X | AF37: 84.76454294 | AG37: =IF(SUMPRODUCT((A$14:A37=A37)*(B$14:B37=B37)*(C$14:C37=C37))>1,0,1) -> 1 | AH37: 0 | AI37: 0 | AJ37: 0 | AK37: 1 | AL37: 0 | AM37: Contratos de prestación de servicios profesionales y de apoyo a la gestión | AN37: Contratación directa | AO37: =IFERROR(VLOOKUP(F37,[1]Tipo!$C$12:$C$27,1,FALSE),"NO") -> Prestación de servicios profesionales y de apoyo a la gestión, o para la ejecución de trabajos artísticos que sólo puedan encomendarse a determinadas personas naturales; | AP37: Inversión | AQ37: 45
B38: 2019 | D38: Otros gastos | G38: PAGO SERVICIO DE GAS VIGENCIA 2019. PARA LOS PREDIOS EN DONDE FUNCIONAN DEPENDENCIAS DE LA ALCALDIA LOCAL DE SUBA, CALLE 146 C BIS NO. 90 - 57 LOC. 1 Y CALLE 147 NO. 90 62. | H38: Funcionamiento | I38: No aplica | J38: =IF(ISERROR(VLOOKUP(I38,[1]Eje_Pilar!$C$2:$E$47,2,FALSE))," ",VLOOKUP(I38,[1]Eje_Pilar!$C$2:$E$47,2,FALSE)) ->  | K38: =IF(ISERROR(VLOOKUP(I38,[1]Eje_Pilar!$C$2:$E$47,3,FALSE))," ",VLOOKUP(I38,[1]Eje_Pilar!$C$2:$E$47,3,FALSE)) ->  | L38: 3-1-2-02-02-04-0001-004 | N38: GAS NATURAL S A E S P | O38: 4000000 | Q38: 0 | S38: 0 | T38: 4000000 | U38: 2114220 | V38: 2019-01-23 | W38: 2019-01-23 | X38: 2019-12-31 | AF38: 52.8555 | AG38: =IF(SUMPRODUCT((A$14:A38=A38)*(B$14:B38=B38)*(C$14:C38=C38))>1,0,1) -> 0 | AH38: 0 | AI38: 0 | AJ38: 0 | AK38: 0 | AL38: 0 | AM38: Otros gastos | AN38: NO | AO38: =IFERROR(VLOOKUP(F38,[1]Tipo!$C$12:$C$27,1,FALSE),"NO") -> NO | AP38: Funcionamiento | AQ38: NO
A39: 10 | B39: 2019 | C39: FDLSUBA-CPS-010-2019 | D39: Contratos de prestación de servicios profesionales y de apoyo a la gestión | E39: Contratación directa | F39: Prestación de servicios profesionales y de apoyo a la gestión, o para la ejecución de trabajos artísticos que sólo puedan encomendarse a determinadas personas naturales; | G39: PRESTAR LOS SERVICIOS PROFESIONALES COMO ABOGADO EN LA ALCALDIA LOCAL DE SUBA, PRINCIPALMENTE EN LA REVISION DE LOS IMPULSOS Y PROYECTOS DE ACTOS ADMINISTRATIVOS QUE SE PRODUZCAN DENTRO DE LAS ACTUACIONES ADMINISTRATIVAS QUE CURSAN EN LA ALCALDIA LOCAL. NO HAY 14844. | H39: Inversión | I39: 45 | J39: =IF(ISERROR(VLOOKUP(I39,[1]Eje_Pilar!$C$2:$E$47,2,FALSE))," ",VLOOKUP(I39,[1]Eje_Pilar!$C$2:$E$47,2,FALSE)) -> Gobernanza e influencia local, regional e internacional | K39: =IF(ISERROR(VLOOKUP(I39,[1]Eje_Pilar!$C$2:$E$47,3,FALSE))," ",VLOOKUP(I39,[1]Eje_Pilar!$C$2:$E$47,3,FALSE)) -> Eje Transversal 4 Gobierno Legitimo, Fortalecimiento Local y Eficiencia | L39: 3-3-1-15-07-45-1481-000 | M39: 1052395871 | N39: ARLID JOHANA ALVAREZ RINCON | O39: 52900000 | Q39: 0 | S39: 0 | T39: 52900000 | U39: 28520000 | V39: 2019-01-24 | W39: 2019-01-24 | X39: 2020-04-12 | Y39: 345 | Z39: 102 | AC39: X | AF39: 53.91304348 | AG39: =IF(SUMPRODUCT((A$14:A39=A39)*(B$14:B39=B39)*(C$14:C39=C39))>1,0,1) -> 1 | AH39: 0 | AI39: 0 | AJ39: 1 | AK39: 0 | AL39: 0 | AM39: Contratos de prestación de servicios profesionales y de apoyo a la gestión | AN39: Contratación directa | AO39: =IFERROR(VLOOKUP(F39,[1]Tipo!$C$12:$C$27,1,FALSE),"NO") -> Prestación de servicios profesionales y de apoyo a la gestión, o para la ejecución de trabajos artísticos que sólo puedan encomendarse a determinadas personas naturales; | AP39: Inversión | AQ39: 45
B40: 2019 | D40: Otros gastos | G40: PAGO HONORARIOS EDILES LOCALIDAD DE SUBA, VIGENCIA 2019, PAGO MES DE NOVIEMBRE DE 2019. | H40: Funcionamiento | I40: No aplica | J40: =IF(ISERROR(VLOOKUP(I40,[1]Eje_Pilar!$C$2:$E$47,2,FALSE))," ",VLOOKUP(I40,[1]Eje_Pilar!$C$2:$E$47,2,FALSE)) ->  | K40: =IF(ISERROR(VLOOKUP(I40,[1]Eje_Pilar!$C$2:$E$47,3,FALSE))," ",VLOOKUP(I40,[1]Eje_Pilar!$C$2:$E$47,3,FALSE)) ->  | L40: 3-1-1-04-01-02-0000-000 | N40: JAIME RAFAEL MORON BARROS | O40: 32861 | Q40: 0 | S40: 0 | T40: 32861 | U40: 32861 | V40: 2019-11-29 | W40: 2019-11-29 | X40: 2019-12-31 | AF40: 100 | AG40: =IF(SUMPRODUCT((A$14:A40=A40)*(B$14:B40=B40)*(C$14:C40=C40))>1,0,1) -> 0 | AH40: 0 | AI40: 0 | AJ40: 0 | AK40: 0 | AL40: 0 | AM40: Otros gastos | AN40: NO | AO40: =IFERROR(VLOOKUP(F40,[1]Tipo!$C$12:$C$27,1,FALSE),"NO") -> NO | AP40: Funcionamiento | AQ40: NO
B41: 2019 | D41: Otros gastos | G41: PAGO HONORARIOS EDILES LOCALIDAD DE SUBA, VIGENCIA 2019. | H41: Funcionamiento | I41: No aplica | J41: =IF(ISERROR(VLOOKUP(I41,[1]Eje_Pilar!$C$2:$E$47,2,FALSE))," ",VLOOKUP(I41,[1]Eje_Pilar!$C$2:$E$47,2,FALSE)) ->  | K41: =IF(ISERROR(VLOOKUP(I41,[1]Eje_Pilar!$C$2:$E$47,3,FALSE))," ",VLOOKUP(I41,[1]Eje_Pilar!$C$2:$E$47,3,FALSE)) ->  | L41: 3-1-1-04-01-02-0000-000 | N41: LUZ AMPARO GARCIA QUINTERO | O41: 32845 | Q41: 0 | S41: 0 | T41: 32845 | U41: 32845 | V41: 2019-11-29 | W41: 2019-11-29 | X41: 2019-12-31 | AF41: 100 | AG41: =IF(SUMPRODUCT((A$14:A41=A41)*(B$14:B41=B41)*(C$14:C41=C41))>1,0,1) -> 0 | AH41: 0 | AI41: 0 | AJ41: 0 | AK41: 0 | AL41: 0 | AM41: Otros gastos | AN41: NO | AO41: =IFERROR(VLOOKUP(F41,[1]Tipo!$C$12:$C$27,1,FALSE),"NO") -> NO | AP41: Funcionamiento | AQ41: NO
B42: 2019 | D42: Otros gastos | G42: PAGO HONORARIOS EDILES LOCALIDAD DE SUBA, VIGENCIA 2019, NOVIEMBRE 2019 | H42: Funcionamiento | I42: No aplica | J42: =IF(ISERROR(VLOOKUP(I42,[1]Eje_Pilar!$C$2:$E$47,2,FALSE))," ",VLOOKUP(I42,[1]Eje_Pilar!$C$2:$E$47,2,FALSE)) ->  | K42: =IF(ISERROR(VLOOKUP(I42,[1]Eje_Pilar!$C$2:$E$47,3,FALSE))," ",VLOOKUP(I42,[1]Eje_Pilar!$C$2:$E$47,3,FALSE)) ->  | L42: 3-1-1-04-01-02-0000-000 | N42: JUAN ALBERTO OVIEDO SABOGAL | O42: 32855 | Q42: 0 | S42: 0 | T42: 32855 | U42: 32855 | V42: 2019-11-29 | W42: 2019-11-29 | X42: 2019-12-31 | AF42: 100 | AG42: =IF(SUMPRODUCT((A$14:A42=A42)*(B$14:B42=B42)*(C$14:C42=C42))>1,0,1) -> 0 | AH42: 0 | AI42: 0 | AJ42: 0 | AK42: 0 | AL42: 0 | AM42: Otros gastos | AN42: NO | AO42: =IFERROR(VLOOKUP(F42,[1]Tipo!$C$12:$C$27,1,FALSE),"NO") -> NO | AP42: Funcionamiento | AQ42: NO
B43: 2019 | D43: Otros gastos | G43: PAGO HONORARIOS EDILES LOCALIDAD DE SUBA, VIGENCIA 2019, HONORARIOS NOVIEMBRE DE 2019. | H43: Funcionamiento | I43: No aplica | J43: =IF(ISERROR(VLOOKUP(I43,[1]Eje_Pilar!$C$2:$E$47,2,FALSE))," ",VLOOKUP(I43,[1]Eje_Pilar!$C$2:$E$47,2,FALSE)) ->  | K43: =IF(ISERROR(VLOOKUP(I43,[1]Eje_Pilar!$C$2:$E$47,3,FALSE))," ",VLOOKUP(I43,[1]Eje_Pilar!$C$2:$E$47,3,FALSE)) ->  | L43: 3-1-1-04-01-02-0000-000 | N43: JUAN JOSE RAMIREZ CIFUENTES | O43: 32855 | Q43: 0 | S43: 0 | T43: 32855 | U43: 32855 | V43: 2019-11-29 | W43: 2019-11-29 | X43: 2019-12-31 | AF43: 100 | AG43: =IF(SUMPRODUCT((A$14:A43=A43)*(B$14:B43=B43)*(C$14:C43=C43))>1,0,1) -> 0 | AH43: 0 | AI43: 0 | AJ43: 0 | AK43: 0 | AL43: 0 | AM43: Otros gastos | AN43: NO | AO43: =IFERROR(VLOOKUP(F43,[1]Tipo!$C$12:$C$27,1,FALSE),"NO") -> NO | AP43: Funcionamiento | AQ43: NO
B44: 2019 | D44: Otros gastos | G44: PAGO HONORARIOS EDILES LOCALIDAD DE SUBA, VIGENCIA 2019, HONORARIOS NOVIEMBRE DE 2019. | H44: Funcionamiento | I44: No aplica | J44: =IF(ISERROR(VLOOKUP(I44,[1]Eje_Pilar!$C$2:$E$47,2,FALSE))," ",VLOOKUP(I44,[1]Eje_Pilar!$C$2:$E$47,2,FALSE)) ->  | K44: =IF(ISERROR(VLOOKUP(I44,[1]Eje_Pilar!$C$2:$E$47,3,FALSE))," ",VLOOKUP(I44,[1]Eje_Pilar!$C$2:$E$47,3,FALSE)) ->  | L44: 3-1-1-04-01-02-0000-000 | N44: CESAR AUGUSTO SALAMANCA ROJAS | O44: 33662 | Q44: 0 | S44: 0 | T44: 33662 | U44: 33662 | V44: 2019-11-29 | W44: 2019-11-29 | X44: 2019-12-31 | AF44: 100 | AG44: =IF(SUMPRODUCT((A$14:A44=A44)*(B$14:B44=B44)*(C$14:C44=C44))>1,0,1) -> 0 | AH44: 0 | AI44: 0 | AJ44: 0 | AK44: 0 | AL44: 0 | AM44: Otros gastos | AN44: NO | AO44: =IFERROR(VLOOKUP(F44,[1]Tipo!$C$12:$C$27,1,FALSE),"NO") -> NO | AP44: Funcionamiento | AQ44: NO
B45: 2019 | D45: Otros gastos | G45: PAGO HONORARIOS EDILES LOCALIDAD DE SUBA, VIGENCIA 2019. | H45: Funcionamiento | I45: No aplica | J45: =IF(ISERROR(VLOOKUP(I45,[1]Eje_Pilar!$C$2:$E$47,2,FALSE))," ",VLOOKUP(I45,[1]Eje_Pilar!$C$2:$E$47,2,FALSE)) ->  | K45: =IF(ISERROR(VLOOKUP(I45,[1]Eje_Pilar!$C$2:$E$47,3,FALSE))," ",VLOOKUP(I45,[1]Eje_Pilar!$C$2:$E$47,3,FALSE)) ->  | L45: 3-1-1-04-01-02-0000-000 | N45: YEISON JAVIER SEPULVEDA RINCON | O45: 32855 | Q45: 0 | S45: 0 | T45: 32855 | U45: 32855 | V45: 2019-11-29 | W45: 2019-11-29 | X45: 2019-12-31 | AF45: 100 | AG45: =IF(SUMPRODUCT((A$14:A45=A45)*(B$14:B45=B45)*(C$14:C45=C45))>1,0,1) -> 0 | AH45: 0 | AI45: 0 | AJ45: 0 | AK45: 0 | AL45: 0 | AM45: Otros gastos | AN45: NO | AO45: =IFERROR(VLOOKUP(F45,[1]Tipo!$C$12:$C$27,1,FALSE),"NO") -> NO | AP45: Funcionamiento | AQ45: NO
B46: 2019 | D46: Otros gastos | G46: PAGO HONORARIOS EDILES LOCALIDAD DE SUBA, VIGENCIA 2019. | H46: Funcionamiento | I46: No aplica | J46: =IF(ISERROR(VLOOKUP(I46,[1]Eje_Pilar!$C$2:$E$47,2,FALSE))," ",VLOOKUP(I46,[1]Eje_Pilar!$C$2:$E$47,2,FALSE)) ->  | K46: =IF(ISERROR(VLOOKUP(I46,[1]Eje_Pilar!$C$2:$E$47,3,FALSE))," ",VLOOKUP(I46,[1]Eje_Pilar!$C$2:$E$47,3,FALSE)) ->  | L46: 3-1-1-04-01-02-0000-000 | N46: MARIA CAROLINA VILLAMARIN JIMENEZ | O46: 32895 | Q46: 0 | S46: 0 | T46: 32895 | U46: 32895 | V46: 2019-11-29 | W46: 2019-11-29 | X46: 2019-12-31 | AF46: 100 | AG46: =IF(SUMPRODUCT((A$14:A46=A46)*(B$14:B46=B46)*(C$14:C46=C46))>1,0,1) -> 0 | AH46: 0 | AI46: 0 | AJ46: 0 | AK46: 0 | AL46: 0 | AM46: Otros gastos | AN46: NO | AO46: =IFERROR(VLOOKUP(F46,[1]Tipo!$C$12:$C$27,1,FALSE),"NO") -> NO | AP46: Funcionamiento | AQ46: NO
B47: 2019 | D47: Otros gastos | G47: PAGO SEGURIDAD SOCIAL EDILES LOCALIDAD DE SUBA, VIGENCIA 2019. EDIL JAIME RAFAEL MORON BARROS | H47: Funcionamiento | I47: No aplica | J47: =IF(ISERROR(VLOOKUP(I47,[1]Eje_Pilar!$C$2:$E$47,2,FALSE))," ",VLOOKUP(I47,[1]Eje_Pilar!$C$2:$E$47,2,FALSE)) ->  | K47: =IF(ISERROR(VLOOKUP(I47,[1]Eje_Pilar!$C$2:$E$47,3,FALSE))," ",VLOOKUP(I47,[1]Eje_Pilar!$C$2:$E$47,3,FALSE)) ->  | L47: 3-1-2-02-02-02-0001-006 | N47: ALIANSALUD ENTIDAD PROMOTORA DE SALUD S.A | O47: 9834000 | Q47: 0 | S47: 0 | T47: 9834000 | U47: 9803600 | V47: 2019-02-20 | W47: 2019-02-20 | X47: 2019-12-31 | AF47: 99.69086842 | AG47: =IF(SUMPRODUCT((A$14:A47=A47)*(B$14:B47=B47)*(C$14:C47=C47))>1,0,1) -> 0 | AH47: 0 | AI47: 0 | AJ47: 0 | AK47: 0 | AL47: 0 | AM47: Otros gastos | AN47: NO | AO47: =IFERROR(VLOOKUP(F47,[1]Tipo!$C$12:$C$27,1,FALSE),"NO") -> NO | AP47: Funcionamiento | AQ47: NO
A48: 11 | B48: 2019 | C48: FDLSUBA-CPS-011-2019 | D48: Contratos de prestación de servicios profesionales y de apoyo a la gestión | E48: Contratación directa | F48: Prestación de servicios profesionales y de apoyo a la gestión, o para la ejecución de trabajos artísticos que sólo puedan encomendarse a determinadas personas naturales; | G48: PRESTAR LOS SERVICIOS PROFESIONALES ESPECIALIZADOS COMO ABOGADO (A) PARA APOYAR LA GESTION CONTRACTUAL DEL AREA GESTION DEL DESARROLLO LOCAL DE LA ALCALDIA LOCAL DE SUBA, EN LOS DIFERENTES PROCESOS DE SELECCION EN SUS ETAPAS PRECONTRACTUAL, CONTRACTUAL Y POSTCONTRACTUAL. | H48: Inversión | I48: 45 | J48: =IF(ISERROR(VLOOKUP(I48,[1]Eje_Pilar!$C$2:$E$47,2,FALSE))," ",VLOOKUP(I48,[1]Eje_Pilar!$C$2:$E$47,2,FALSE)) -> Gobernanza e influencia local, regional e internacional | K48: =IF(ISERROR(VLOOKUP(I48,[1]Eje_Pilar!$C$2:$E$47,3,FALSE))," ",VLOOKUP(I48,[1]Eje_Pilar!$C$2:$E$47,3,FALSE)) -> Eje Transversal 4 Gobierno Legitimo, Fortalecimiento Local y Eficiencia | L48: 3-3-1-15-07-45-1478-000 | M48: 79938533 | N48: JULIO ALEJANDRO MAYA AMADOR | O48: 92000000 | Q48: 0 | R48: 1 | S48: 4266666 | T48: 96266666 | U48: 81600000 | V48: 2019-01-24 | W48: 2019-01-24 | X48: 2020-01-21 | Y48: 345 | Z48: 21 | AD48: X | AF48: 84.76454352 | AG48: =IF(SUMPRODUCT((A$14:A48=A48)*(B$14:B48=B48)*(C$14:C48=C48))>1,0,1) -> 1 | AH48: 0 | AI48: 0 | AJ48: 0 | AK48: 1 | AL48: 0 | AM48: Contratos de prestación de servicios profesionales y de apoyo a la gestión | AN48: Contratación directa | AO48: =IFERROR(VLOOKUP(F48,[1]Tipo!$C$12:$C$27,1,FALSE),"NO") -> Prestación de servicios profesionales y de apoyo a la gestión, o para la ejecución de trabajos artísticos que sólo puedan encomendarse a determinadas personas naturales; | AP48: Inversión | AQ48: 45
B49: 2019 | D49: Otros gastos | G49: PAGO HONORARIOS EDILES LOCALIDAD DE SUBA, VIGENCIA 2019, NOVIEMBRE 2019. | H49: Funcionamiento | I49: No aplica | J49: =IF(ISERROR(VLOOKUP(I49,[1]Eje_Pilar!$C$2:$E$47,2,FALSE))," ",VLOOKUP(I49,[1]Eje_Pilar!$C$2:$E$47,2,FALSE)) ->  | K49: =IF(ISERROR(VLOOKUP(I49,[1]Eje_Pilar!$C$2:$E$47,3,FALSE))," ",VLOOKUP(I49,[1]Eje_Pilar!$C$2:$E$47,3,FALSE)) ->  | L49: 3-1-1-04-01-02-0000-000 | N49: MARCELA OSPINA GOMEZ | O49: 32856 | Q49: 0 | S49: 0 | T49: 32856 | U49: 32856 | V49: 2019-11-29 | W49: 2019-11-29 | X49: 2019-12-31 | AF49: 100 | AG49: =IF(SUMPRODUCT((A$14:A49=A49)*(B$14:B49=B49)*(C$14:C49=C49))>1,0,1) -> 0 | AH49: 0 | AI49: 0 | AJ49: 0 | AK49: 0 | AL49: 0 | AM49: Otros gastos | AN49: NO | AO49: =IFERROR(VLOOKUP(F49,[1]Tipo!$C$12:$C$27,1,FALSE),"NO") -> NO | AP49: Funcionamiento | AQ49: NO
B50: 2019 | D50: Otros gastos | G50: OBJETO: PAGO DEL SERVICIO PUBLICO DE ASEO VIGENCIA 2019, DE LOS INMUEBLES A CARGO DEL FDL SUBA. CARRERA 93 C # 129 C - 15. ENERO 2019. | H50: Funcionamiento | I50: No aplica | J50: =IF(ISERROR(VLOOKUP(I50,[1]Eje_Pilar!$C$2:$E$47,2,FALSE))," ",VLOOKUP(I50,[1]Eje_Pilar!$C$2:$E$47,2,FALSE)) ->  | K50: =IF(ISERROR(VLOOKUP(I50,[1]Eje_Pilar!$C$2:$E$47,3,FALSE))," ",VLOOKUP(I50,[1]Eje_Pilar!$C$2:$E$47,3,FALSE)) ->  | L50: 3-1-2-02-02-04-0001-003 | N50: EMPRESA DE ACUEDUCTO Y ALCANTARILLADO DE BOGOTA ESP | O50: 464580 | Q50: 0 | S50: 0 | T50: 464580 | U50: 464580 | V50: 2019-01-23 | W50: 2019-01-23 | X50: 2019-12-31 | AF50: 100 | AG50: =IF(SUMPRODUCT((A$14:A50=A50)*(B$14:B50=B50)*(C$14:C50=C50))>1,0,1) -> 0 | AH50: 0 | AI50: 0 | AJ50: 0 | AK50: 0 | AL50: 0 | AM50: Otros gastos | AN50: NO | AO50: =IFERROR(VLOOKUP(F50,[1]Tipo!$C$12:$C$27,1,FALSE),"NO") -> NO | AP50: Funcionamiento | AQ50: NO
A51: 12 | B51: 2019 | C51: FDLSUBA-CPS-012-2019 | D51: Contratos de prestación de servicios profesionales y de apoyo a la gestión | E51: Contratación directa | F51: Prestación de servicios profesionales y de apoyo a la gestión, o para la ejecución de trabajos artísticos que sólo puedan encomendarse a determinadas personas naturales; | G51: PRESTAR LOS SERVICIOS DE APOYO AL AREA DE GESTION DE DESARROLLO LOCAL ESPECIALMENTE EN EL CENTRO DE DOCUMENTACION E INFORMACION CDI DE LA ALCALDIA LOCAL DE SUBA. NO HAY 14601. | H51: Inversión | I51: 45 | J51: =IF(ISERROR(VLOOKUP(I51,[1]Eje_Pilar!$C$2:$E$47,2,FALSE))," ",VLOOKUP(I51,[1]Eje_Pilar!$C$2:$E$47,2,FALSE)) -> Gobernanza e influencia local, regional e internacional | K51: =IF(ISERROR(VLOOKUP(I51,[1]Eje_Pilar!$C$2:$E$47,3,FALSE))," ",VLOOKUP(I51,[1]Eje_Pilar!$C$2:$E$47,3,FALSE)) -> Eje Transversal 4 Gobierno Legitimo, Fortalecimiento Local y Eficiencia | L51: 3-3-1-15-07-45-1478-000 | M51: 80756783 | N51: JAVIER IGNACIO RODRIGUEZ PARRA | O51: 25116000 | Q51: 0 | R51: 1 | S51: 1164800 | T51: 26280800 | U51: 22276800 | V51: 2019-01-24 | W51: 2019-01-24 | X51: 2020-01-21 | Y51: 345 | Z51: 21 | AD51: X | AF51: 84.76454294 | AG51: =IF(SUMPRODUCT((A$14:A51=A51)*(B$14:B51=B51)*(C$14:C51=C51))>1,0,1) -> 1 | AH51: 0 | AI51: 0 | AJ51: 0 | AK51: 1 | AL51: 0 | AM51: Contratos de prestación de servicios profesionales y de apoyo a la gestión | AN51: Contratación directa | AO51: =IFERROR(VLOOKUP(F51,[1]Tipo!$C$12:$C$27,1,FALSE),"NO") -> Prestación de servicios profesionales y de apoyo a la gestión, o para la ejecución de trabajos artísticos que sólo puedan encomendarse a determinadas personas naturales; | AP51: Inversión | AQ51: 45
B52: 2019 | D52: Otros gastos | G52: PAGO SEGURIDAD SOCIAL EDILES LOCALIDAD DE SUBA, VIGENCIA 2019. EDIL CESAR AUGUSTO SALAMANCA ROJAS. | H52: Funcionamiento | I52: No aplica | J52: =IF(ISERROR(VLOOKUP(I52,[1]Eje_Pilar!$C$2:$E$47,2,FALSE))," ",VLOOKUP(I52,[1]Eje_Pilar!$C$2:$E$47,2,FALSE)) ->  | K52: =IF(ISERROR(VLOOKUP(I52,[1]Eje_Pilar!$C$2:$E$47,3,FALSE))," ",VLOOKUP(I52,[1]Eje_Pilar!$C$2:$E$47,3,FALSE)) ->  | L52: 3-1-2-02-02-02-0001-006 | N52: SALUD TOTAL ENTIDAD PROMOTORA DE SALUD DEL REGIMEN CONTRIBUTIVO Y DEL REGIMEN SUBSIDIADO S.A. | O52: 9834000 | Q52: 0 | S52: 0 | T52: 9834000 | U52: 9803600 | V52: 2019-02-20 | W52: 2019-02-20 | X52: 2019-12-31 | AF52: 99.69086842 | AG52: =IF(SUMPRODUCT((A$14:A52=A52)*(B$14:B52=B52)*(C$14:C52=C52))>1,0,1) -> 0 | AH52: 0 | AI52: 0 | AJ52: 0 | AK52: 0 | AL52: 0 | AM52: Otros gastos | AN52: NO | AO52: =IFERROR(VLOOKUP(F52,[1]Tipo!$C$12:$C$27,1,FALSE),"NO") -> NO | AP52: Funcionamiento | AQ52: NO
B53: 2019 | D53: Otros gastos | G53: PAGO SEGURIDAD SOCIAL EDILES LOCALIDAD DE SUBA, VIGENCIA 2019. EDILES JUAN ALBERTO OVIEDO SABOGAL Y MARIA CAROLINA VILLAMARIN JIMENEZ. | H53: Funcionamiento | I53: No aplica | J53: =IF(ISERROR(VLOOKUP(I53,[1]Eje_Pilar!$C$2:$E$47,2,FALSE))," ",VLOOKUP(I53,[1]Eje_Pilar!$C$2:$E$47,2,FALSE)) ->  | K53: =IF(ISERROR(VLOOKUP(I53,[1]Eje_Pilar!$C$2:$E$47,3,FALSE))," ",VLOOKUP(I53,[1]Eje_Pilar!$C$2:$E$47,3,FALSE)) ->  | L53: 3-1-2-02-02-02-0001-006 | N53: ENTIDAD PROMOTORA DE SALUD SANITAS S.A. | O53: 19667000 | Q53: 0 | S53: 0 | T53: 19667000 | U53: 19607100 | V53: 2019-02-20 | W53: 2019-02-20 | X53: 2019-12-31 | AF53: 99.69542889 | AG53: =IF(SUMPRODUCT((A$14:A53=A53)*(B$14:B53=B53)*(C$14:C53=C53))>1,0,1) -> 0 | AH53: 0 | AI53: 0 | AJ53: 0 | AK53: 0 | AL53: 0 | AM53: Otros gastos | AN53: NO | AO53: =IFERROR(VLOOKUP(F53,[1]Tipo!$C$12:$C$27,1,FALSE),"NO") -> NO | AP53: Funcionamiento | AQ53: NO
B54: 2019 | D54: Otros gastos | G54: PAGO SEGURIDAD SOCIAL EDILES LOCALIDAD DE SUBA, VIGENCIA 2019. EDILES WILLIAM ALFONSO DIAZ SANCHEZ, HUGO BARAJAS, YEISON JAVIER SEPÚLVEDA Y MARCELA OSPINA. | H54: Funcionamiento | I54: No aplica | J54: =IF(ISERROR(VLOOKUP(I54,[1]Eje_Pilar!$C$2:$E$47,2,FALSE))," ",VLOOKUP(I54,[1]Eje_Pilar!$C$2:$E$47,2,FALSE)) ->  | K54: =IF(ISERROR(VLOOKUP(I54,[1]Eje_Pilar!$C$2:$E$47,3,FALSE))," ",VLOOKUP(I54,[1]Eje_Pilar!$C$2:$E$47,3,FALSE)) ->  | L54: 3-1-2-02-02-02-0001-006 | N54: CAJA DE COMPENSACION FAMILIAR - COMPENSAR | O54: 39333000 | Q54: 0 | S54: 0 | T54: 39333000 | U54: 39125200 | V54: 2019-02-20 | W54: 2019-02-20 | X54: 2019-12-31 | AF54: 99.47169044 | AG54: =IF(SUMPRODUCT((A$14:A54=A54)*(B$14:B54=B54)*(C$14:C54=C54))>1,0,1) -> 0 | AH54: 0 | AI54: 0 | AJ54: 0 | AK54: 0 | AL54: 0 | AM54: Otros gastos | AN54: NO | AO54: =IFERROR(VLOOKUP(F54,[1]Tipo!$C$12:$C$27,1,FALSE),"NO") -> NO | AP54: Funcionamiento | AQ54: NO
B55: 2019 | D55: Otros gastos | G55: PAGO SEGURIDAD SOCIAL EDILES LOCALIDAD DE SUBA, VIGENCIA 2019. EDIL LUZ AMPARO GARCÍA QUINTERO. | H55: Funcionamiento | I55: No aplica | J55: =IF(ISERROR(VLOOKUP(I55,[1]Eje_Pilar!$C$2:$E$47,2,FALSE))," ",VLOOKUP(I55,[1]Eje_Pilar!$C$2:$E$47,2,FALSE)) ->  | K55: =IF(ISERROR(VLOOKUP(I55,[1]Eje_Pilar!$C$2:$E$47,3,FALSE))," ",VLOOKUP(I55,[1]Eje_Pilar!$C$2:$E$47,3,FALSE)) ->  | L55: 3-1-2-02-02-02-0001-006 | N55: COOMEVA ENTIDAD PROMOTORA DE SALUD S.A. - COOMEVA E.P.S. S.A. | O55: 9834000 | Q55: 0 | S55: 0 | T55: 9834000 | U55: 9803600 | V55: 2019-02-20 | W55: 2019-02-20 | X55: 2019-12-31 | AF55: 99.69086842 | AG55: =IF(SUMPRODUCT((A$14:A55=A55)*(B$14:B55=B55)*(C$14:C55=C55))>1,0,1) -> 0 | AH55: 0 | AI55: 0 | AJ55: 0 | AK55: 0 | AL55: 0 | AM55: Otros gastos | AN55: NO | AO55: =IFERROR(VLOOKUP(F55,[1]Tipo!$C$12:$C$27,1,FALSE),"NO") -> NO | AP55: Funcionamiento | AQ55: NO
B56: 2019 | D56: Otros gastos | G56: PAGO SEGURIDAD SOCIAL EDILES LOCALIDAD DE SUBA, VIGENCIA 2019. EDILES JUAN JOSÉ RAMIREZ CIFUENTE Y GUSTAVO ROJAS PINILLA. | H56: Funcionamiento | I56: No aplica | J56: =IF(ISERROR(VLOOKUP(I56,[1]Eje_Pilar!$C$2:$E$47,2,FALSE))," ",VLOOKUP(I56,[1]Eje_Pilar!$C$2:$E$47,2,FALSE)) ->  | K56: =IF(ISERROR(VLOOKUP(I56,[1]Eje_Pilar!$C$2:$E$47,3,FALSE))," ",VLOOKUP(I56,[1]Eje_Pilar!$C$2:$E$47,3,FALSE)) ->  | L56: 3-1-2-02-02-02-0001-006 | N56: MEDIMAS EPS S.A.S. | O56: 19667000 | Q56: 0 | S56: 0 | T56: 19667000 | U56: 15825100 | V56: 2019-02-20 | W56: 2019-02-20 | X56: 2019-12-31 | AF56: 80.46524635 | AG56: =IF(SUMPRODUCT((A$14:A56=A56)*(B$14:B56=B56)*(C$14:C56=C56))>1,0,1) -> 0 | AH56: 0 | AI56: 0 | AJ56: 0 | AK56: 0 | AL56: 0 | AM56: Otros gastos | AN56: NO | AO56: =IFERROR(VLOOKUP(F56,[1]Tipo!$C$12:$C$27,1,FALSE),"NO") -> NO | AP56: Funcionamiento | AQ56: NO
B57: 2019 | D57: Otros gastos | G57: OBJETO: PAGO DEL SERVICIO PUBLICO DE ASEO VIGENCIA 2019, DE LOS INMUEBLES A CARGO DEL FDL SUBA. | H57: Funcionamiento | I57: No aplica | J57: =IF(ISERROR(VLOOKUP(I57,[1]Eje_Pilar!$C$2:$E$47,2,FALSE))," ",VLOOKUP(I57,[1]Eje_Pilar!$C$2:$E$47,2,FALSE)) ->  | K57: =IF(ISERROR(VLOOKUP(I57,[1]Eje_Pilar!$C$2:$E$47,3,FALSE))," ",VLOOKUP(I57,[1]Eje_Pilar!$C$2:$E$47,3,FALSE)) ->  | L57: 3-1-2-02-02-04-0001-003 | N57: AREA LIMPIA DISTRITO CAPITAL S.A.S. E.S.P. | O57: 223200 | Q57: 0 | S57: 0 | T57: 223200 | U57: 223200 | V57: 2019-05-02 | W57: 2019-05-02 | X57: 2019-12-31 | AF57: 100 | AG57: =IF(SUMPRODUCT((A$14:A57=A57)*(B$14:B57=B57)*(C$14:C57=C57))>1,0,1) -> 0 | AH57: 0 | AI57: 0 | AJ57: 0 | AK57: 0 | AL57: 0 | AM57: Otros gastos | AN57: NO | AO57: =IFERROR(VLOOKUP(F57,[1]Tipo!$C$12:$C$27,1,FALSE),"NO") -> NO | AP57: Funcionamiento | AQ57: NO
B58: 2019 | D58: Otros gastos | G58: OBJETO: PAGO DEL SERVICIO PUBLICO DE ASEO VIGENCIA 2019, DE LOS INMUEBLES A CARGO DEL FDL SUBA. | H58: Funcionamiento | I58: No aplica | J58: =IF(ISERROR(VLOOKUP(I58,[1]Eje_Pilar!$C$2:$E$47,2,FALSE))," ",VLOOKUP(I58,[1]Eje_Pilar!$C$2:$E$47,2,FALSE)) ->  | K58: =IF(ISERROR(VLOOKUP(I58,[1]Eje_Pilar!$C$2:$E$47,3,FALSE))," ",VLOOKUP(I58,[1]Eje_Pilar!$C$2:$E$47,3,FALSE)) ->  | L58: 3-1-2-02-02-04-0001-003 | N58: CODENSA S. A. ESP | O58: 14285 | Q58: 0 | S58: 0 | T58: 14285 | U58: 14285 | V58: 2019-08-01 | W58: 2019-08-01 | X58: 2019-12-31 | AF58: 100 | AG58: =IF(SUMPRODUCT((A$14:A58=A58)*(B$14:B58=B58)*(C$14:C58=C58))>1,0,1) -> 0 | AH58: 0 | AI58: 0 | AJ58: 0 | AK58: 0 | AL58: 0 | AM58: Otros gastos | AN58: NO | AO58: =IFERROR(VLOOKUP(F58,[1]Tipo!$C$12:$C$27,1,FALSE),"NO") -> NO | AP58: Funcionamiento | AQ58: NO
B59: 2019 | D59: Otros gastos | G59: PAGO DEL SERVICIO PUBLICO DE ASEO VIGENCIA 2019, DE LOS INMUEBLES A CARGO DEL FDL SUBA. | H59: Funcionamiento | I59: No aplica | J59: =IF(ISERROR(VLOOKUP(I59,[1]Eje_Pilar!$C$2:$E$47,2,FALSE))," ",VLOOKUP(I59,[1]Eje_Pilar!$C$2:$E$47,2,FALSE)) ->  | K59: =IF(ISERROR(VLOOKUP(I59,[1]Eje_Pilar!$C$2:$E$47,3,FALSE))," ",VLOOKUP(I59,[1]Eje_Pilar!$C$2:$E$47,3,FALSE)) ->  | L59: 3-1-2-02-02-04-0001-003 | N59: CODENSA S. A. ESP | O59: 60005 | Q59: 0 | S59: 0 | T59: 60005 | U59: 60005 | V59: 2019-08-01 | W59: 2019-08-01 | X59: 2019-12-31 | AF59: 100 | AG59: =IF(SUMPRODUCT((A$14:A59=A59)*(B$14:B59=B59)*(C$14:C59=C59))>1,0,1) -> 0 | AH59: 0 | AI59: 0 | AJ59: 0 | AK59: 0 | AL59: 0 | AM59: Otros gastos | AN59: NO | AO59: =IFERROR(VLOOKUP(F59,[1]Tipo!$C$12:$C$27,1,FALSE),"NO") -> NO | AP59: Funcionamiento | AQ59: NO
B60: 2019 | D60: Otros gastos | G60: PAGO DEL SERVICIO PUBLICO DE ASEO VIGENCIA 2019, DE LOS INMUEBLES A CARGO DEL FDL SUBA. | H60: Funcionamiento | I60: No aplica | J60: =IF(ISERROR(VLOOKUP(I60,[1]Eje_Pilar!$C$2:$E$47,2,FALSE))," ",VLOOKUP(I60,[1]Eje_Pilar!$C$2:$E$47,2,FALSE)) ->  | K60: =IF(ISERROR(VLOOKUP(I60,[1]Eje_Pilar!$C$2:$E$47,3,FALSE))," ",VLOOKUP(I60,[1]Eje_Pilar!$C$2:$E$47,3,FALSE)) ->  | L60: 3-1-2-02-02-04-0001-003 | N60: CODENSA S. A. ESP | O60: 5000 | Q60: 0 | S60: 0 | T60: 5000 | U60: 5000 | V60: 2019-08-01 | W60: 2019-08-01 | X60: 2019-12-31 | AF60: 100 | AG60: =IF(SUMPRODUCT((A$14:A60=A60)*(B$14:B60=B60)*(C$14:C60=C60))>1,0,1) -> 0 | AH60: 0 | AI60: 0 | AJ60: 0 | AK60: 0 | AL60: 0 | AM60: Otros gastos | AN60: NO | AO60: =IFERROR(VLOOKUP(F60,[1]Tipo!$C$12:$C$27,1,FALSE),"NO") -> NO | AP60: Funcionamiento | AQ60: NO
B61: 2019 | D61: Otros gastos | G61: PAGO DEL SERVICIO PUBLICO DE ASEO VIGENCIA 2019, DE LOS INMUEBLES A CARGO DEL FDL SUBA. | H61: Funcionamiento | I61: No aplica | J61: =IF(ISERROR(VLOOKUP(I61,[1]Eje_Pilar!$C$2:$E$47,2,FALSE))," ",VLOOKUP(I61,[1]Eje_Pilar!$C$2:$E$47,2,FALSE)) ->  | K61: =IF(ISERROR(VLOOKUP(I61,[1]Eje_Pilar!$C$2:$E$47,3,FALSE))," ",VLOOKUP(I61,[1]Eje_Pilar!$C$2:$E$47,3,FALSE)) ->  | L61: 3-1-2-02-02-04-0001-003 | N61: AREA LIMPIA DISTRITO CAPITAL S.A.S. E.S.P. | O61: 1870960 | Q61: 0 | S61: 0 | T61: 1870960 | U61: 1870960 | V61: 2019-08-01 | W61: 2019-08-01 | X61: 2019-12-31 | AF61: 100 | AG61: =IF(SUMPRODUCT((A$14:A61=A61)*(B$14:B61=B61)*(C$14:C61=C61))>1,0,1) -> 0 | AH61: 0 | AI61: 0 | AJ61: 0 | AK61: 0 | AL61: 0 | AM61: Otros gastos | AN61: NO | AO61: =IFERROR(VLOOKUP(F61,[1]Tipo!$C$12:$C$27,1,FALSE),"NO") -> NO | AP61: Funcionamiento | AQ61: NO
A62: 13 | B62: 2019 | C62: FDLSUBA-CPS-013-2019 | D62: Contratos de prestación de servicios profesionales y de apoyo a la gestión | E62: Contratación directa | F62: Prestación de servicios profesionales y de apoyo a la gestión, o para la ejecución de trabajos artísticos que sólo puedan encomendarse a determinadas personas naturales; | G62: PRESTAR LOS SERVICIOS DE APOYO AL AREA DE GESTION DE DESARROLLO LOCAL ESPECIALMENTE EN EL CENTRO DE DOCUMENTACION E INFORMACION CDI DE LA ALCALDIA LOCAL DE SUBA. NO HAY 14601. | H62: Inversión | I62: 45 | J62: =IF(ISERROR(VLOOKUP(I62,[1]Eje_Pilar!$C$2:$E$47,2,FALSE))," ",VLOOKUP(I62,[1]Eje_Pilar!$C$2:$E$47,2,FALSE)) -> Gobernanza e influencia local, regional e internacional | K62: =IF(ISERROR(VLOOKUP(I62,[1]Eje_Pilar!$C$2:$E$47,3,FALSE))," ",VLOOKUP(I62,[1]Eje_Pilar!$C$2:$E$47,3,FALSE)) -> Eje Transversal 4 Gobierno Legitimo, Fortalecimiento Local y Eficiencia | L62: 3-3-1-15-07-45-1478-000 | M62: 79866768 | N62: OSCAR ENRIQUE VANEGAS GONZALEZ | O62: 25116000 | Q62: 0 | S62: 0 | T62: 25116000 | U62: 22276800 | V62: 2019-01-24 | W62: 2019-01-24 | X62: 2019-12-31 | Y62: 341 | AD62: X | AF62: 88.69565217 | AG62: =IF(SUMPRODUCT((A$14:A62=A62)*(B$14:B62=B62)*(C$14:C62=C62))>1,0,1) -> 1 | AH62: 0 | AI62: 0 | AJ62: 0 | AK62: 1 | AL62: 0 | AM62: Contratos de prestación de servicios profesionales y de apoyo a la gestión | AN62: Contratación directa | AO62: =IFERROR(VLOOKUP(F62,[1]Tipo!$C$12:$C$27,1,FALSE),"NO") -> Prestación de servicios profesionales y de apoyo a la gestión, o para la ejecución de trabajos artísticos que sólo puedan encomendarse a determinadas personas naturales; | AP62: Inversión | AQ62: 45
B63: 2019 | D63: Otros gastos | G63: OBJETO: PAGO DEL SERVICIO PUBLICO DE ASEO VIGENCIA 2019, DE LOS INMUEBLES A CARGO DEL FDL SUBA. | H63: Funcionamiento | I63: No aplica | J63: =IF(ISERROR(VLOOKUP(I63,[1]Eje_Pilar!$C$2:$E$47,2,FALSE))," ",VLOOKUP(I63,[1]Eje_Pilar!$C$2:$E$47,2,FALSE)) ->  | K63: =IF(ISERROR(VLOOKUP(I63,[1]Eje_Pilar!$C$2:$E$47,3,FALSE))," ",VLOOKUP(I63,[1]Eje_Pilar!$C$2:$E$47,3,FALSE)) ->  | L63: 3-1-2-02-02-04-0001-003 | N63: AREA LIMPIA DISTRITO CAPITAL S.A.S. E.S.P. | O63: 1719790 | Q63: 0 | S63: 0 | T63: 1719790 | U63: 1719790 | V63: 2019-02-27 | W63: 2019-02-27 | X63: 2019-12-31 | AF63: 100 | AG63: =IF(SUMPRODUCT((A$14:A63=A63)*(B$14:B63=B63)*(C$14:C63=C63))>1,0,1) -> 0 | AH63: 0 | AI63: 0 | AJ63: 0 | AK63: 0 | AL63: 0 | AM63: Otros gastos | AN63: NO | AO63: =IFERROR(VLOOKUP(F63,[1]Tipo!$C$12:$C$27,1,FALSE),"NO") -> NO | AP63: Funcionamiento | AQ63: NO
B64: 2019 | D64: Otros gastos | G64: OBJETO: PAGO DEL SERVICIO PUBLICO DE ASEO VIGENCIA 2019, DE LOS INMUEBLES A CARGO DEL FDL SUBA. | H64: Funcionamiento | I64: No aplica | J64: =IF(ISERROR(VLOOKUP(I64,[1]Eje_Pilar!$C$2:$E$47,2,FALSE))," ",VLOOKUP(I64,[1]Eje_Pilar!$C$2:$E$47,2,FALSE)) ->  | K64: =IF(ISERROR(VLOOKUP(I64,[1]Eje_Pilar!$C$2:$E$47,3,FALSE))," ",VLOOKUP(I64,[1]Eje_Pilar!$C$2:$E$47,3,FALSE)) ->  | L64: 3-1-2-02-02-04-0001-003 | N64: CODENSA S. A. ESP | O64: 57240 | Q64: 0 | S64: 0 | T64: 57240 | U64: 57240 | V64: 2019-06-04 | W64: 2019-06-04 | X64: 2019-12-31 | AF64: 100 | AG64: =IF(SUMPRODUCT((A$14:A64=A64)*(B$14:B64=B64)*(C$14:C64=C64))>1,0,1) -> 0 | AH64: 0 | AI64: 0 | AJ64: 0 | AK64: 0 | AL64: 0 | AM64: Otros gastos | AN64: NO | AO64: =IFERROR(VLOOKUP(F64,[1]Tipo!$C$12:$C$27,1,FALSE),"NO") -> NO | AP64: Funcionamiento | AQ64: NO
B65: 2019 | D65: Otros gastos | G65: OBJETO: PAGO DEL SERVICIO PUBLICO DE ASEO VIGENCIA 2019, DE LOS INMUEBLES A CARGO DEL FDL SUBA. | H65: Funcionamiento | I65: No aplica | J65: =IF(ISERROR(VLOOKUP(I65,[1]Eje_Pilar!$C$2:$E$47,2,FALSE))," ",VLOOKUP(I65,[1]Eje_Pilar!$C$2:$E$47,2,FALSE)) ->  | K65: =IF(ISERROR(VLOOKUP(I65,[1]Eje_Pilar!$C$2:$E$47,3,FALSE))," ",VLOOKUP(I65,[1]Eje_Pilar!$C$2:$E$47,3,FALSE)) ->  | L65: 3-1-2-02-02-04-0001-003 | N65: CODENSA S. A. ESP | O65: 95610 | Q65: 0 | S65: 0 | T65: 95610 | U65: 95610 | V65: 2019-06-04 | W65: 2019-06-04 | X65: 2019-12-31 | AF65: 100 | AG65: =IF(SUMPRODUCT((A$14:A65=A65)*(B$14:B65=B65)*(C$14:C65=C65))>1,0,1) -> 0 | AH65: 0 | AI65: 0 | AJ65: 0 | AK65: 0 | AL65: 0 | AM65: Otros gastos | AN65: NO | AO65: =IFERROR(VLOOKUP(F65,[1]Tipo!$C$12:$C$27,1,FALSE),"NO") -> NO | AP65: Funcionamiento | AQ65: NO
A66: 14 | B66: 2019 | C66: FDLSUBA-CPS-014-2019 | D66: Contratos de prestación de servicios profesionales y de apoyo a la gestión | E66: Contratación directa | F66: Prestación de servicios profesionales y de apoyo a la gestión, o para la ejecución de trabajos artísticos que sólo puedan encomendarse a determinadas personas naturales; | G66: PRESTAR LOS SERVICIOS DE APOYO AL AREA DE GESTION DE DESARROLLO LOCAL ESPECIALMENTE EN EL CENTRO DE DOCUMENTACION E INFORMACION CDI DE LA ALCALDIA LOCAL DE SUBA. NO HAY 14601. | H66: Inversión | I66: 45 | J66: =IF(ISERROR(VLOOKUP(I66,[1]Eje_Pilar!$C$2:$E$47,2,FALSE))," ",VLOOKUP(I66,[1]Eje_Pilar!$C$2:$E$47,2,FALSE)) -> Gobernanza e influencia local, regional e internacional | K66: =IF(ISERROR(VLOOKUP(I66,[1]Eje_Pilar!$C$2:$E$47,3,FALSE))," ",VLOOKUP(I66,[1]Eje_Pilar!$C$2:$E$47,3,FALSE)) -> Eje Transversal 4 Gobierno Legitimo, Fortalecimiento Local y Eficiencia | L66: 3-3-1-15-07-45-1478-000 | M66: 79998991 | N66: WILLIAM JAIR PACHON CALA | O66: 25116000 | Q66: 0 | S66: 0 | T66: 25116000 | U66: 22058400 | V66: 2019-01-28 | W66: 2019-01-28 | X66: 2019-12-31 | Y66: 345 | AD66: X | AF66: 87.82608696 | AG66: =IF(SUMPRODUCT((A$14:A66=A66)*(B$14:B66=B66)*(C$14:C66=C66))>1,0,1) -> 1 | AH66: 0 | AI66: 0 | AJ66: 0 | AK66: 1 | AL66: 0 | AM66: Contratos de prestación de servicios profesionales y de apoyo a la gestión | AN66: Contratación directa | AO66: =IFERROR(VLOOKUP(F66,[1]Tipo!$C$12:$C$27,1,FALSE),"NO") -> Prestación de servicios profesionales y de apoyo a la gestión, o para la ejecución de trabajos artísticos que sólo puedan encomendarse a determinadas personas naturales; | AP66: Inversión | AQ66: 45
A67: 15 | B67: 2019 | C67: FDLSUBA-CPS-015-2019 | D67: Contratos de prestación de servicios profesionales y de apoyo a la gestión | E67: Contratación directa | F67: Prestación de servicios profesionales y de apoyo a la gestión, o para la ejecución de trabajos artísticos que sólo puedan encomendarse a determinadas personas naturales; | G67: PRESTAR LOS SERVICIOS DE APOYO AL AREA DE GESTION DE DESARROLLO LOCAL ESPECIALMENTE EN EL CENTRO DE DOCUMENTACION E INFORMACION CDI DE LA ALCALDIA LOCAL DE SUBA. NO HAY 14601. | H67: Inversión | I67: 45 | J67: =IF(ISERROR(VLOOKUP(I67,[1]Eje_Pilar!$C$2:$E$47,2,FALSE))," ",VLOOKUP(I67,[1]Eje_Pilar!$C$2:$E$47,2,FALSE)) -> Gobernanza e influencia local, regional e internacional | K67: =IF(ISERROR(VLOOKUP(I67,[1]Eje_Pilar!$C$2:$E$47,3,FALSE))," ",VLOOKUP(I67,[1]Eje_Pilar!$C$2:$E$47,3,FALSE)) -> Eje Transversal 4 Gobierno Legitimo, Fortalecimiento Local y Eficiencia | L67: 3-3-1-15-07-45-1478-000 | M67: 1019099233 | N67: DELLY ALEXANDRA HERNANDEZ HERNANDEZ | O67: 25116000 | Q67: 0 | R67: 1 | S67: 1164800 | T67: 26280800 | U67: 22276800 | V67: 2019-01-24 | W67: 2019-01-24 | X67: 2020-01-21 | Y67: 345 | Z67: 21 | AD67: X | AF67: 84.76454294 | AG67: =IF(SUMPRODUCT((A$14:A67=A67)*(B$14:B67=B67)*(C$14:C67=C67))>1,0,1) -> 1 | AH67: 0 | AI67: 0 | AJ67: 0 | AK67: 1 | AL67: 0 | AM67: Contratos de prestación de servicios profesionales y de apoyo a la gestión | AN67: Contratación directa | AO67: =IFERROR(VLOOKUP(F67,[1]Tipo!$C$12:$C$27,1,FALSE),"NO") -> Prestación de servicios profesionales y de apoyo a la gestión, o para la ejecución de trabajos artísticos que sólo puedan encomendarse a determinadas personas naturales; | AP67: Inversión | AQ67: 45
A68: 16 | B68: 2019 | C68: FDLSUBA-CPS-016-2019 | D68: Contratos de prestación de servicios profesionales y de apoyo a la gestión | E68: Contratación directa | F68: Prestación de servicios profesionales y de apoyo a la gestión, o para la ejecución de trabajos artísticos que sólo puedan encomendarse a determinadas personas naturales; | G68: PRESTAR LOS SERVICIOS PROFESIONALES COMO ABOGADO (A) ESPECIALIZADO (A) PARA APOYAR Y LIDERAR JURIDICA Y TECNICAMENTE EL DESARROLLO DE LAS ACTIVIDADES ENCAMINADAS AL CUMPLIMIENTO DE LAS METAS ESTABLECIDAS EN LOS PLANES DE TRABAJO SUSCRITOS PARA TODOS LOS ASUNTOS JURIDICOS DE INSPECCION VIGILANCIA Y CONTROL DE LA ALCALDIA LOCAL DE SUBA. NO HAY 14661. | H68: Inversión | I68: 45 | J68: =IF(ISERROR(VLOOKUP(I68,[1]Eje_Pilar!$C$2:$E$47,2,FALSE))," ",VLOOKUP(I68,[1]Eje_Pilar!$C$2:$E$47,2,FALSE)) -> Gobernanza e influencia local, regional e internacional | K68: =IF(ISERROR(VLOOKUP(I68,[1]Eje_Pilar!$C$2:$E$47,3,FALSE))," ",VLOOKUP(I68,[1]Eje_Pilar!$C$2:$E$47,3,FALSE)) -> Eje Transversal 4 Gobierno Legitimo, Fortalecimiento Local y Eficiencia | L68: 3-3-1-15-07-45-1481-000 | M68: 55063883 | N68: NATALIA ROJAS GONZALEZ | O68: 92000000 | Q68: 0 | R68: 1 | S68: 4266666 | T68: 96266666 | U68: 81600000 | V68: 2019-01-24 | W68: 2019-01-24 | X68: 2020-01-21 | Y68: 345 | Z68: 21 | AD68: X | AF68: 84.76454352 | AG68: =IF(SUMPRODUCT((A$14:A68=A68)*(B$14:B68=B68)*(C$14:C68=C68))>1,0,1) -> 1 | AH68: 0 | AI68: 0 | AJ68: 0 | AK68: 1 | AL68: 0 | AM68: Contratos de prestación de servicios profesionales y de apoyo a la gestión | AN68: Contratación directa | AO68: =IFERROR(VLOOKUP(F68,[1]Tipo!$C$12:$C$27,1,FALSE),"NO") -> Prestación de servicios profesionales y de apoyo a la gestión, o para la ejecución de trabajos artísticos que sólo puedan encomendarse a determinadas personas naturales; | AP68: Inversión | AQ68: 45
A69: 17 | B69: 2019 | C69: FDLSUBA-CPS-017-2019 | D69: Contratos de prestación de servicios profesionales y de apoyo a la gestión | E69: Contratación directa | F69: Prestación de servicios profesionales y de apoyo a la gestión, o para la ejecución de trabajos artísticos que sólo puedan encomendarse a determinadas personas naturales; | G69: ¿Prestar servicios profesionales en el Área de Gestión del Desarrollo Local de la Alcaldía Local de Suba en el área de planeación, para lograr el cumplimiento de las metas del plan de desarrollo local de la vigencia¿. NO HAY 14605. | H69: Inversión | I69: 45 | J69: =IF(ISERROR(VLOOKUP(I69,[1]Eje_Pilar!$C$2:$E$47,2,FALSE))," ",VLOOKUP(I69,[1]Eje_Pilar!$C$2:$E$47,2,FALSE)) -> Gobernanza e influencia local, regional e internacional | K69: =IF(ISERROR(VLOOKUP(I69,[1]Eje_Pilar!$C$2:$E$47,3,FALSE))," ",VLOOKUP(I69,[1]Eje_Pilar!$C$2:$E$47,3,FALSE)) -> Eje Transversal 4 Gobierno Legitimo, Fortalecimiento Local y Eficiencia | L69: 3-3-1-15-07-45-1478-000 | M69: 52998723 | N69: JENNY LILIANA CAMACHO ANGEL | O69: 72450000 | Q69: 0 | R69: 1 | S69: 3360000 | T69: 75810000 | U69: 64260000 | V69: 2019-01-24 | W69: 2019-01-24 | X69: 2020-01-21 | Y69: 345 | Z69: 21 | AD69: X | AF69: 84.76454294 | AG69: =IF(SUMPRODUCT((A$14:A69=A69)*(B$14:B69=B69)*(C$14:C69=C69))>1,0,1) -> 1 | AH69: 0 | AI69: 0 | AJ69: 0 | AK69: 1 | AL69: 0 | AM69: Contratos de prestación de servicios profesionales y de apoyo a la gestión | AN69: Contratación directa | AO69: =IFERROR(VLOOKUP(F69,[1]Tipo!$C$12:$C$27,1,FALSE),"NO") -> Prestación de servicios profesionales y de apoyo a la gestión, o para la ejecución de trabajos artísticos que sólo puedan encomendarse a determinadas personas naturales; | AP69: Inversión | AQ69: 45
A70: 18 | B70: 2019 | C70: FDLSUBA-CPS-018-2019 | D70: Contratos de prestación de servicios profesionales y de apoyo a la gestión | E70: Contratación directa | F70: Prestación de servicios profesionales y de apoyo a la gestión, o para la ejecución de trabajos artísticos que sólo puedan encomendarse a determinadas personas naturales; | G70: ¿Prestar servicios profesionales especializados en el despacho para lineamientos jurídicos, financieros, y administrativos para evaluar y orientar temas prioritarios en el área de gestión de desarrollo local de la Alcaldía Local de Suba.¿. NO HAY 14594. | H70: Inversión | I70: 45 | J70: =IF(ISERROR(VLOOKUP(I70,[1]Eje_Pilar!$C$2:$E$47,2,FALSE))," ",VLOOKUP(I70,[1]Eje_Pilar!$C$2:$E$47,2,FALSE)) -> Gobernanza e influencia local, regional e internacional | K70: =IF(ISERROR(VLOOKUP(I70,[1]Eje_Pilar!$C$2:$E$47,3,FALSE))," ",VLOOKUP(I70,[1]Eje_Pilar!$C$2:$E$47,3,FALSE)) -> Eje Transversal 4 Gobierno Legitimo, Fortalecimiento Local y Eficiencia | L70: 3-3-1-15-07-45-1478-000 | M70: 40820509 | N70: YINETH ROCIO TOVAR PIMIENTA | O70: 92000000 | Q70: 0 | R70: 1 | S70: 3466667 | T70: 95466667 | U70: 80800000 | V70: 2019-01-25 | W70: 2019-01-25 | X70: 2020-01-21 | Y70: 345 | Z70: 21 | AD70: X | AF70: 84.63687121 | AG70: =IF(SUMPRODUCT((A$14:A70=A70)*(B$14:B70=B70)*(C$14:C70=C70))>1,0,1) -> 1 | AH70: 0 | AI70: 0 | AJ70: 0 | AK70: 1 | AL70: 0 | AM70: Contratos de prestación de servicios profesionales y de apoyo a la gestión | AN70: Contratación directa | AO70: =IFERROR(VLOOKUP(F70,[1]Tipo!$C$12:$C$27,1,FALSE),"NO") -> Prestación de servicios profesionales y de apoyo a la gestión, o para la ejecución de trabajos artísticos que sólo puedan encomendarse a determinadas personas naturales; | AP70: Inversión | AQ70: 45
A71: 19 | B71: 2019 | C71: FDLSUBA-CPS-019-2019 | D71: Contratos de prestación de servicios profesionales y de apoyo a la gestión | E71: Contratación directa | F71: Prestación de servicios profesionales y de apoyo a la gestión, o para la ejecución de trabajos artísticos que sólo puedan encomendarse a determinadas personas naturales; | G71: ¿Prestar Servicios Profesionales en Área de Gestión del Desarrollo de la Alcaldía Local de suba, para la respuesta efectiva y oportuna a los requerimientos presentados, revisión de las actuaciones, liderar de relaciones en sus distintos niveles y demás asuntos de competencia de la Alcaldía". NO HAY 14599. | H71: Inversión | I71: 45 | J71: =IF(ISERROR(VLOOKUP(I71,[1]Eje_Pilar!$C$2:$E$47,2,FALSE))," ",VLOOKUP(I71,[1]Eje_Pilar!$C$2:$E$47,2,FALSE)) -> Gobernanza e influencia local, regional e internacional | K71: =IF(ISERROR(VLOOKUP(I71,[1]Eje_Pilar!$C$2:$E$47,3,FALSE))," ",VLOOKUP(I71,[1]Eje_Pilar!$C$2:$E$47,3,FALSE)) -> Eje Transversal 4 Gobierno Legitimo, Fortalecimiento Local y Eficiencia | L71: 3-3-1-15-07-45-1478-000 | M71: 53140639 | N71: SANDRA MILENA MONTOYA AMARILES | O71: 72450000 | Q71: 0 | R71: 1 | S71: 2310000 | T71: 74760000 | U71: 60900000 | V71: 2019-01-25 | W71: 2019-01-25 | X71: 2020-01-21 | Y71: 345 | Z71: 21 | AD71: X | AF71: 81.46067416 | AG71: =IF(SUMPRODUCT((A$14:A71=A71)*(B$14:B71=B71)*(C$14:C71=C71))>1,0,1) -> 1 | AH71: 0 | AI71: 0 | AJ71: 0 | AK71: 1 | AL71: 0 | AM71: Contratos de prestación de servicios profesionales y de apoyo a la gestión | AN71: Contratación directa | AO71: =IFERROR(VLOOKUP(F71,[1]Tipo!$C$12:$C$27,1,FALSE),"NO") -> Prestación de servicios profesionales y de apoyo a la gestión, o para la ejecución de trabajos artísticos que sólo puedan encomendarse a determinadas personas naturales; | AP71: Inversión | AQ71: 45
A72: 20 | B72: 2019 | C72: FDLSUBA-CPS-020-2019 | D72: Contratos de prestación de servicios profesionales y de apoyo a la gestión | E72: Contratación directa | F72: Prestación de servicios profesionales y de apoyo a la gestión, o para la ejecución de trabajos artísticos que sólo puedan encomendarse a determinadas personas naturales; | G72: PRESTAR LOS SERVICIOS PROFESIONALES JURIDICOS ESPECIALIZADOS A LA ALCALDIA LOCAL DE SUBA, PRINCIPALMENTE LIDERANDO LAS ACCIONES PEDAGOGICAS PREVENTIVAS Y DE SENSIBILIZACION PARA EL ACATAMIENTO VOLUNTARIO DE LA NORMATIVA EN MATERIA DEL REGIMEN URBANISTICO, LEGAL FUNCIONAMIENTO DE LOS ESTABLECIMIENTOS COMERCIALES, USO DEL ESPACIO PUBLICO Y MEDIO AMBIENTE EN LA ALCALDIA LOCAL DE SUBA. NO HAY 14802. | H72: Inversión | I72: 45 | J72: =IF(ISERROR(VLOOKUP(I72,[1]Eje_Pilar!$C$2:$E$47,2,FALSE))," ",VLOOKUP(I72,[1]Eje_Pilar!$C$2:$E$47,2,FALSE)) -> Gobernanza e influencia local, regional e internacional | K72: =IF(ISERROR(VLOOKUP(I72,[1]Eje_Pilar!$C$2:$E$47,3,FALSE))," ",VLOOKUP(I72,[1]Eje_Pilar!$C$2:$E$47,3,FALSE)) -> Eje Transversal 4 Gobierno Legitimo, Fortalecimiento Local y Eficiencia | L72: 3-3-1-15-07-45-1481-000 | M72: 19097825 | N72: JOSE VICENTE BERARDINELLI SOLANO | O72: 83950000 | Q72: 0 | R72: 1 | S72: 3163333 | T72: 87113333 | U72: 73730000 | V72: 2019-01-28 | W72: 2019-01-28 | X72: 2020-01-21 | Y72: 345 | Z72: 21 | AD72: X | AF72: 84.63687183 | AG72: =IF(SUMPRODUCT((A$14:A72=A72)*(B$14:B72=B72)*(C$14:C72=C72))>1,0,1) -> 1 | AH72: 0 | AI72: 0 | AJ72: 0 | AK72: 1 | AL72: 0 | AM72: Contratos de prestación de servicios profesionales y de apoyo a la gestión | AN72: Contratación directa | AO72: =IFERROR(VLOOKUP(F72,[1]Tipo!$C$12:$C$27,1,FALSE),"NO") -> Prestación de servicios profesionales y de apoyo a la gestión, o para la ejecución de trabajos artísticos que sólo puedan encomendarse a determinadas personas naturales; | AP72: Inversión | AQ72: 45
A73: 21 | B73: 2019 | C73: FDLSUBA-CPS-021-2019 | D73: Contratos de prestación de servicios profesionales y de apoyo a la gestión | E73: Contratación directa | F73: Prestación de servicios profesionales y de apoyo a la gestión, o para la ejecución de trabajos artísticos que sólo puedan encomendarse a determinadas personas naturales; | G73: PRESTAR LOS SERVICIOS PROFESIONALES COMO ABOGADO EN LA ALCALDIA LOCAL DE SUBA, ESPECIALMENTE REALIZANDO EL TRAMITE Y SEGUIMIENTO A TUTELAS, ACCIONES POPULARES, INCIDENTE DE DESACATO, PROPOSICIONES Y DEMAS ASUNTOS JURIDICOS DE LA ALCALDIA LOCAL DE SUBA NOHAY 14607. | H73: Inversión | I73: 45 | J73: =IF(ISERROR(VLOOKUP(I73,[1]Eje_Pilar!$C$2:$E$47,2,FALSE))," ",VLOOKUP(I73,[1]Eje_Pilar!$C$2:$E$47,2,FALSE)) -> Gobernanza e influencia local, regional e internacional | K73: =IF(ISERROR(VLOOKUP(I73,[1]Eje_Pilar!$C$2:$E$47,3,FALSE))," ",VLOOKUP(I73,[1]Eje_Pilar!$C$2:$E$47,3,FALSE)) -> Eje Transversal 4 Gobierno Legitimo, Fortalecimiento Local y Eficiencia | L73: 3-3-1-15-07-45-1481-000 | M73: 80136968 | N73: JUAN CARLOS BETANCOURT CARVAJAL | O73: 52900000 | Q73: 0 | R73: 1 | S73: 1840000 | T73: 54740000 | U73: 46306667 | V73: 2019-01-28 | W73: 2019-01-28 | X73: 2020-01-21 | Y73: 345 | Z73: 21 | AD73: X | AF73: 84.59383814 | AG73: =IF(SUMPRODUCT((A$14:A73=A73)*(B$14:B73=B73)*(C$14:C73=C73))>1,0,1) -> 1 | AH73: 0 | AI73: 0 | AJ73: 0 | AK73: 1 | AL73: 0 | AM73: Contratos de prestación de servicios profesionales y de apoyo a la gestión | AN73: Contratación directa | AO73: =IFERROR(VLOOKUP(F73,[1]Tipo!$C$12:$C$27,1,FALSE),"NO") -> Prestación de servicios profesionales y de apoyo a la gestión, o para la ejecución de trabajos artísticos que sólo puedan encomendarse a determinadas personas naturales; | AP73: Inversión | AQ73: 45
A74: 22 | B74: 2019 | C74: FDLSUBA-CPS-022-2019 | D74: Contratos de prestación de servicios profesionales y de apoyo a la gestión | E74: Contratación directa | F74: Prestación de servicios profesionales y de apoyo a la gestión, o para la ejecución de trabajos artísticos que sólo puedan encomendarse a determinadas personas naturales; | G74: PRESTAR LOS SERVICIOS DE APOYO AL AREA DE GESTION DEL DESARROLLO LOCAL POR SUS PROPIOS MEDIOS PARA LA DISTRIBUCION DE LA CORRESPONDENCIA EXTERNA QUE TIENE ORIGEN EN LAS DIFERENTES DEPENDENCIAS DE LA ALCALDIA LOCAL. NO HAY 14598. | H74: Inversión | I74: 45 | J74: =IF(ISERROR(VLOOKUP(I74,[1]Eje_Pilar!$C$2:$E$47,2,FALSE))," ",VLOOKUP(I74,[1]Eje_Pilar!$C$2:$E$47,2,FALSE)) -> Gobernanza e influencia local, regional e internacional | K74: =IF(ISERROR(VLOOKUP(I74,[1]Eje_Pilar!$C$2:$E$47,3,FALSE))," ",VLOOKUP(I74,[1]Eje_Pilar!$C$2:$E$47,3,FALSE)) -> Eje Transversal 4 Gobierno Legitimo, Fortalecimiento Local y Eficiencia | L74: 3-3-1-15-07-45-1478-000 | M74: 1030567733 | N74: CRISTIAN DIOKR CALDERON GARCES | O74: 25116000 | Q74: 0 | R74: 1 | S74: 946400 | T74: 26062400 | U74: 22058400 | V74: 2019-01-25 | W74: 2019-01-25 | X74: 2020-01-21 | Y74: 345 | Z74: 21 | AD74: X | AF74: 84.63687151 | AG74: =IF(SUMPRODUCT((A$14:A74=A74)*(B$14:B74=B74)*(C$14:C74=C74))>1,0,1) -> 1 | AH74: 0 | AI74: 0 | AJ74: 0 | AK74: 1 | AL74: 0 | AM74: Contratos de prestación de servicios profesionales y de apoyo a la gestión | AN74: Contratación directa | AO74: =IFERROR(VLOOKUP(F74,[1]Tipo!$C$12:$C$27,1,FALSE),"NO") -> Prestación de servicios profesionales y de apoyo a la gestión, o para la ejecución de trabajos artísticos que sólo puedan encomendarse a determinadas personas naturales; | AP74: Inversión | AQ74: 45
A75: 23 | B75: 2019 | C75: FDLSUBA-CPS-023-2019 | D75: Contratos de prestación de servicios profesionales y de apoyo a la gestión | E75: Contratación directa | F75: Prestación de servicios profesionales y de apoyo a la gestión, o para la ejecución de trabajos artísticos que sólo puedan encomendarse a determinadas personas naturales; | G75: PRESTAR LOS SERVICIOS DE APOYO AL AREA DE GESTION DEL DESARROLLO LOCAL POR SUS PROPIOS MEDIOS PARA LA DISTRIBUCION DE LA CORRESPONDENCIA EXTERNA QUE TIENE ORIGEN EN LAS DIFERENTES DEPENDENCIAS DE LA ALCALDIA LOCAL. NO HAY 14598. | H75: Inversión | I75: 45 | J75: =IF(ISERROR(VLOOKUP(I75,[1]Eje_Pilar!$C$2:$E$47,2,FALSE))," ",VLOOKUP(I75,[1]Eje_Pilar!$C$2:$E$47,2,FALSE)) -> Gobernanza e influencia local, regional e internacional | K75: =IF(ISERROR(VLOOKUP(I75,[1]Eje_Pilar!$C$2:$E$47,3,FALSE))," ",VLOOKUP(I75,[1]Eje_Pilar!$C$2:$E$47,3,FALSE)) -> Eje Transversal 4 Gobierno Legitimo, Fortalecimiento Local y Eficiencia | L75: 3-3-1-15-07-45-1478-000 | M75: 59888227 | N75: WILLIAM OSWALDO RODRIGUEZ MORENO | O75: 25116000 | Q75: 0 | R75: 1 | S75: 946400 | T75: 26062400 | U75: 22058400 | V75: 2019-01-28 | W75: 2019-01-28 | X75: 2020-01-21 | Y75: 345 | Z75: 21 | AD75: X | AF75: 84.63687151 | AG75: =IF(SUMPRODUCT((A$14:A75=A75)*(B$14:B75=B75)*(C$14:C75=C75))>1,0,1) -> 1 | AH75: 0 | AI75: 0 | AJ75: 0 | AK75: 1 | AL75: 0 | AM75: Contratos de prestación de servicios profesionales y de apoyo a la gestión | AN75: Contratación directa | AO75: =IFERROR(VLOOKUP(F75,[1]Tipo!$C$12:$C$27,1,FALSE),"NO") -> Prestación de servicios profesionales y de apoyo a la gestión, o para la ejecución de trabajos artísticos que sólo puedan encomendarse a determinadas personas naturales; | AP75: Inversión | AQ75: 45
A76: 24 | B76: 2019 | C76: FDLSUBA-CPS-024-2019 | D76: Contratos de prestación de servicios profesionales y de apoyo a la gestión | E76: Contratación directa | F76: Prestación de servicios profesionales y de apoyo a la gestión, o para la ejecución de trabajos artísticos que sólo puedan encomendarse a determinadas personas naturales; | G76: PRESTAR LOS SERVICIOS DE APOYO AL AREA DE GESTION DEL DESARROLLO LOCAL POR SUS PROPIOS MEDIOS PARA LA DISTRIBUCION DE LA CORRESPONDENCIA EXTERNA QUE TIENE ORIGEN EN LAS DIFERENTES DEPENDENCIAS DE LA ALCALDIA LOCAL. NO HAY 14598. | H76: Inversión | I76: 45 | J76: =IF(ISERROR(VLOOKUP(I76,[1]Eje_Pilar!$C$2:$E$47,2,FALSE))," ",VLOOKUP(I76,[1]Eje_Pilar!$C$2:$E$47,2,FALSE)) -> Gobernanza e influencia local, regional e internacional | K76: =IF(ISERROR(VLOOKUP(I76,[1]Eje_Pilar!$C$2:$E$47,3,FALSE))," ",VLOOKUP(I76,[1]Eje_Pilar!$C$2:$E$47,3,FALSE)) -> Eje Transversal 4 Gobierno Legitimo, Fortalecimiento Local y Eficiencia | L76: 3-3-1-15-07-45-1478-000 | M76: 79915114 | N76: JUAN CARLOS CASTILLO LOPEZ | O76: 25116000 | Q76: 0 | R76: 1 | S76: 946400 | T76: 26062400 | U76: 22058400 | V76: 2019-01-25 | W76: 2019-01-25 | X76: 2020-01-21 | Y76: 345 | Z76: 21 | AD76: X | AF76: 84.63687151 | AG76: =IF(SUMPRODUCT((A$14:A76=A76)*(B$14:B76=B76)*(C$14:C76=C76))>1,0,1) -> 1 | AH76: 0 | AI76: 0 | AJ76: 0 | AK76: 1 | AL76: 0 | AM76: Contratos de prestación de servicios profesionales y de apoyo a la gestión | AN76: Contratación directa | AO76: =IFERROR(VLOOKUP(F76,[1]Tipo!$C$12:$C$27,1,FALSE),"NO") -> Prestación de servicios profesionales y de apoyo a la gestión, o para la ejecución de trabajos artísticos que sólo puedan encomendarse a determinadas personas naturales; | AP76: Inversión | AQ76: 45
A77: 25 | B77: 2019 | C77: FDLSUBA-CPS-025-2019 | D77: Contratos de prestación de servicios profesionales y de apoyo a la gestión | E77: Contratación directa | F77: Prestación de servicios profesionales y de apoyo a la gestión, o para la ejecución de trabajos artísticos que sólo puedan encomendarse a determinadas personas naturales; | G77: ¿Apoyar jurídicamente a la Alcaldía Local de Suba, principalmente en el proceso de liderar el cobro persuasivo y remisión de cobro coactivo que competa al Alcalde Local, así como las gestiones jurídicas para mantener actualizada la información correspondiente a multas¿. NO HAY 14592. | H77: Inversión | I77: 45 | J77: =IF(ISERROR(VLOOKUP(I77,[1]Eje_Pilar!$C$2:$E$47,2,FALSE))," ",VLOOKUP(I77,[1]Eje_Pilar!$C$2:$E$47,2,FALSE)) -> Gobernanza e influencia local, regional e internacional | K77: =IF(ISERROR(VLOOKUP(I77,[1]Eje_Pilar!$C$2:$E$47,3,FALSE))," ",VLOOKUP(I77,[1]Eje_Pilar!$C$2:$E$47,3,FALSE)) -> Eje Transversal 4 Gobierno Legitimo, Fortalecimiento Local y Eficiencia | L77: 3-3-1-15-07-45-1481-000 | M77: 79262899 | N77: NORBERTO RUBIANO MARTINEZ | O77: 72450000 | Q77: 0 | R77: 1 | S77: 2520000 | T77: 74970000 | U77: 63420000 | V77: 2019-01-28 | W77: 2019-01-28 | X77: 2020-01-21 | Y77: 345 | Z77: 21 | AD77: X | AF77: 84.59383754 | AG77: =IF(SUMPRODUCT((A$14:A77=A77)*(B$14:B77=B77)*(C$14:C77=C77))>1,0,1) -> 1 | AH77: 0 | AI77: 0 | AJ77: 0 | AK77: 1 | AL77: 0 | AM77: Contratos de prestación de servicios profesionales y de apoyo a la gestión | AN77: Contratación directa | AO77: =IFERROR(VLOOKUP(F77,[1]Tipo!$C$12:$C$27,1,FALSE),"NO") -> Prestación de servicios profesionales y de apoyo a la gestión, o para la ejecución de trabajos artísticos que sólo puedan encomendarse a determinadas personas naturales; | AP77: Inversión | AQ77: 45
A78: 26 | B78: 2019 | C78: FDLSUBA-CPS-026-2019 | D78: Contratos de prestación de servicios profesionales y de apoyo a la gestión | E78: Contratación directa | F78: Prestación de servicios profesionales y de apoyo a la gestión, o para la ejecución de trabajos artísticos que sólo puedan encomendarse a determinadas personas naturales; | G78: PRESTAR SERVICIOS PROFESIONALES ESPECIALIZADOS PARA BRINDAR LINEAMIENTOS JURIDICOS, EVALUAR Y ORIENTAR TEMAS PRIORITARIOS EN EL AREA DE DESARROLLO LOCAL DE LA ALCALDIA LOCAL DE SUBA, PARA EL CUMPLIMIENTO DE LAS REGULACIONES EN MATERIA DE DERECHO ADMINISTRATIVO APLICABLES EN EL DISTRITO CAPITAL. NO HAY 15119. | H78: Inversión | I78: 45 | J78: =IF(ISERROR(VLOOKUP(I78,[1]Eje_Pilar!$C$2:$E$47,2,FALSE))," ",VLOOKUP(I78,[1]Eje_Pilar!$C$2:$E$47,2,FALSE)) -> Gobernanza e influencia local, regional e internacional | K78: =IF(ISERROR(VLOOKUP(I78,[1]Eje_Pilar!$C$2:$E$47,3,FALSE))," ",VLOOKUP(I78,[1]Eje_Pilar!$C$2:$E$47,3,FALSE)) -> Eje Transversal 4 Gobierno Legitimo, Fortalecimiento Local y Eficiencia | L78: 3-3-1-15-07-45-1478-000 | M78: 48600807 | N78: JANETTE ALEXANDRA LUNA VELA | O78: 92000000 | Q78: 0 | R78: 1 | S78: 3200000 | T78: 95200000 | U78: 80533333 | V78: 2019-01-28 | W78: 2019-01-28 | X78: 2020-01-21 | Y78: 345 | Z78: 21 | AD78: X | AF78: 84.59383718 | AG78: =IF(SUMPRODUCT((A$14:A78=A78)*(B$14:B78=B78)*(C$14:C78=C78))>1,0,1) -> 1 | AH78: 0 | AI78: 0 | AJ78: 0 | AK78: 1 | AL78: 0 | AM78: Contratos de prestación de servicios profesionales y de apoyo a la gestión | AN78: Contratación directa | AO78: =IFERROR(VLOOKUP(F78,[1]Tipo!$C$12:$C$27,1,FALSE),"NO") -> Prestación de servicios profesionales y de apoyo a la gestión, o para la ejecución de trabajos artísticos que sólo puedan encomendarse a determinadas personas naturales; | AP78: Inversión | AQ78: 45
A79: 27 | B79: 2019 | C79: FDLSUBA-CPS-027-2019 | D79: Contratos de prestación de servicios profesionales y de apoyo a la gestión | E79: Contratación directa | F79: Prestación de servicios profesionales y de apoyo a la gestión, o para la ejecución de trabajos artísticos que sólo puedan encomendarse a determinadas personas naturales; | G79: PRESTAR EL SERVICIO COMO CONDUCTOR DE LOS VEHICULOS LIVIANOS QUE INTEGRAN EL PARQUE AUTOMOTOR DE LA ALCALDIA LOCAL DE SUBA. NO HAY 14853. | H79: Inversión | I79: 45 | J79: =IF(ISERROR(VLOOKUP(I79,[1]Eje_Pilar!$C$2:$E$47,2,FALSE))," ",VLOOKUP(I79,[1]Eje_Pilar!$C$2:$E$47,2,FALSE)) -> Gobernanza e influencia local, regional e internacional | K79: =IF(ISERROR(VLOOKUP(I79,[1]Eje_Pilar!$C$2:$E$47,3,FALSE))," ",VLOOKUP(I79,[1]Eje_Pilar!$C$2:$E$47,3,FALSE)) -> Eje Transversal 4 Gobierno Legitimo, Fortalecimiento Local y Eficiencia | L79: 3-3-1-15-07-45-1478-000 | M79: 9398950 | N79: WILSON ALEXANDER RINCON NIVIA | O79: 25116000 | Q79: 0 | R79: 1 | S79: 873600 | T79: 25989600 | U79: 21985600 | V79: 2019-01-28 | W79: 2019-01-28 | X79: 2020-01-21 | Y79: 345 | Z79: 21 | AD79: X | AF79: =(IF(ISERROR(U79/T79),"-",(U79/T79)))*100 -> 84.59383754 | AG79: =IF(SUMPRODUCT((A$14:A79=A79)*(B$14:B79=B79)*(C$14:C79=C79))>1,0,1) -> 1 | AH79: =IF(AND(AA79="X",AG79=1 ),1,0) -> 0 | AI79: =IF(AND(AB79="X",AG79=1 ),1,0) -> 0 | AJ79: =IF(AND(AC79="X",AG79=1 ),1,0) -> 0 | AK79: =IF(AND(AD79="X",AG79=1 ),1,0) -> 1 | AL79: =IF(AND(AE79="X",AG79=1 ),1,0) -> 0 | AM79: Contratos de prestación de servicios profesionales y de apoyo a la gestión | AN79: Contratación directa | AO79: =IFERROR(VLOOKUP(F79,[1]Tipo!$C$12:$C$27,1,FALSE),"NO") -> Prestación de servicios profesionales y de apoyo a la gestión, o para la ejecución de trabajos artísticos que sólo puedan encomendarse a determinadas personas naturales; | AP79: Inversión | AQ79: 45
A80: 28 | B80: 2019 | C80: FDLSUBA-CPS-028-2019 | D80: Contratos de prestación de servicios profesionales y de apoyo a la gestión | E80: Contratación directa | F80: Prestación de servicios profesionales y de apoyo a la gestión, o para la ejecución de trabajos artísticos que sólo puedan encomendarse a determinadas personas naturales; | G80: PRESTAR EL SERVICIO COMO CONDUCTOR DE LOS VEHICULOS LIVIANOS QUE INTEGRAN EL PARQUE AUTOMOTOR DE LA ALCALDIA LOCAL DE SUBA. NO HAY 14853. | H80: Inversión | I80: 45 | J80: =IF(ISERROR(VLOOKUP(I80,[1]Eje_Pilar!$C$2:$E$47,2,FALSE))," ",VLOOKUP(I80,[1]Eje_Pilar!$C$2:$E$47,2,FALSE)) -> Gobernanza e influencia local, regional e internacional | K80: =IF(ISERROR(VLOOKUP(I80,[1]Eje_Pilar!$C$2:$E$47,3,FALSE))," ",VLOOKUP(I80,[1]Eje_Pilar!$C$2:$E$47,3,FALSE)) -> Eje Transversal 4 Gobierno Legitimo, Fortalecimiento Local y Eficiencia | L80: 3-3-1-15-07-45-1478-000 | M80: 19301839 | N80: ISIDRO TELLEZ BECERRA | O80: 25116000 | Q80: 0 | R80: 1 | S80: 873600 | T80: 25989600 | U80: 21985600 | V80: 2019-01-28 | W80: 2019-01-28 | X80: 2020-01-21 | Y80: 345 | Z80: 21 | AD80: X | AF80: 84.59383754 | AG80: =IF(SUMPRODUCT((A$14:A80=A80)*(B$14:B80=B80)*(C$14:C80=C80))>1,0,1) -> 1 | AH80: 0 | AI80: 0 | AJ80: 0 | AK80: 1 | AL80: 0 | AM80: Contratos de prestación de servicios profesionales y de apoyo a la gestión | AN80: Contratación directa | AO80: =IFERROR(VLOOKUP(F80,[1]Tipo!$C$12:$C$27,1,FALSE),"NO") -> Prestación de servicios profesionales y de apoyo a la gestión, o para la ejecución de trabajos artísticos que sólo puedan encomendarse a determinadas personas naturales; | AP80: Inversión | AQ80: 45
A81: 29 | B81: 2019 | C81: FDLSUBA-CPS-029-2019 | D81: Contratos de prestación de servicios profesionales y de apoyo a la gestión | E81: Contratación directa | F81: Prestación de servicios profesionales y de apoyo a la gestión, o para la ejecución de trabajos artísticos que sólo puedan encomendarse a determinadas personas naturales; | G81: PRESTAR SERVICIOS PROFESIONALES ESPECIALIZADOS PARA BRINDAR LINEAMIENTOS JURIDICOS, EVALUAR Y ORIENTAR TEMAS PRIORITARIOS EN EL AREA DE DESARROLLO LOCAL DE LA ALCALDIA LOCAL DE SUBA, PARA EL CUMPLIMIENTO DE LAS REGULACIONES EN MATERIA DE DERECHO ADMINISTRATIVO APLICABLES EN EL DISTRITO CAPITAL. NO HAY 15119. | H81: Inversión | I81: 45 | J81: =IF(ISERROR(VLOOKUP(I81,[1]Eje_Pilar!$C$2:$E$47,2,FALSE))," ",VLOOKUP(I81,[1]Eje_Pilar!$C$2:$E$47,2,FALSE)) -> Gobernanza e influencia local, regional e internacional | K81: =IF(ISERROR(VLOOKUP(I81,[1]Eje_Pilar!$C$2:$E$47,3,FALSE))," ",VLOOKUP(I81,[1]Eje_Pilar!$C$2:$E$47,3,FALSE)) -> Eje Transversal 4 Gobierno Legitimo, Fortalecimiento Local y Eficiencia | L81: 3-3-1-15-07-45-1478-000 | M81: 52084411 | N81: DUNIA SOAD DE LA VEGA JALILIE | O81: 92000000 | Q81: 0 | R81: 1 | S81: 3200000 | T81: 95200000 | U81: 80533333 | V81: 2019-01-28 | W81: 2019-01-28 | X81: 2020-01-21 | Y81: 345 | Z81: 21 | AD81: X | AF81: 84.59383718 | AG81: =IF(SUMPRODUCT((A$14:A81=A81)*(B$14:B81=B81)*(C$14:C81=C81))>1,0,1) -> 1 | AH81: 0 | AI81: 0 | AJ81: 0 | AK81: 1 | AL81: 0 | AM81: Contratos de prestación de servicios profesionales y de apoyo a la gestión | AN81: Contratación directa | AO81: =IFERROR(VLOOKUP(F81,[1]Tipo!$C$12:$C$27,1,FALSE),"NO") -> Prestación de servicios profesionales y de apoyo a la gestión, o para la ejecución de trabajos artísticos que sólo puedan encomendarse a determinadas personas naturales; | AP81: Inversión | AQ81: 45
A82: 30 | B82: 2019 | C82: FDLSUBA-CPS-030-2019 | D82: Contratos de prestación de servicios profesionales y de apoyo a la gestión | E82: Contratación directa | F82: Prestación de servicios profesionales y de apoyo a la gestión, o para la ejecución de trabajos artísticos que sólo puedan encomendarse a determinadas personas naturales; | G82: PRESTAR EL SERVICIO COMO CONDUCTOR DE LOS VEHICULOS LIVIANOS QUE INTEGRAN EL PARQUE AUTOMOTOR DE LA ALCALDIA LOCAL DE SUBA. NO HAY 14853. | H82: Inversión | I82: 45 | J82: =IF(ISERROR(VLOOKUP(I82,[1]Eje_Pilar!$C$2:$E$47,2,FALSE))," ",VLOOKUP(I82,[1]Eje_Pilar!$C$2:$E$47,2,FALSE)) -> Gobernanza e influencia local, regional e internacional | K82: =IF(ISERROR(VLOOKUP(I82,[1]Eje_Pilar!$C$2:$E$47,3,FALSE))," ",VLOOKUP(I82,[1]Eje_Pilar!$C$2:$E$47,3,FALSE)) -> Eje Transversal 4 Gobierno Legitimo, Fortalecimiento Local y Eficiencia | L82: 3-3-1-15-07-45-1478-000 | M82: 80139311 | N82: RICHARD ARNULFO BUITRAGO | O82: 25116000 | Q82: 0 | R82: 1 | S82: 873600 | T82: 25989600 | U82: 21985600 | V82: 2019-01-28 | W82: 2019-01-28 | X82: 2020-01-21 | Y82: 345 | Z82: 21 | AD82: X | AF82: 84.59383754 | AG82: =IF(SUMPRODUCT((A$14:A82=A82)*(B$14:B82=B82)*(C$14:C82=C82))>1,0,1) -> 1 | AH82: 0 | AI82: 0 | AJ82: 0 | AK82: 1 | AL82: 0 | AM82: Contratos de prestación de servicios profesionales y de apoyo a la gestión | AN82: Contratación directa | AO82: =IFERROR(VLOOKUP(F82,[1]Tipo!$C$12:$C$27,1,FALSE),"NO") -> Prestación de servicios profesionales y de apoyo a la gestión, o para la ejecución de trabajos artísticos que sólo puedan encomendarse a determinadas personas naturales; | AP82: Inversión | AQ82: 45
A83: 31 | B83: 2019 | C83: FDLSUBA-CPS-031-2019 | D83: Contratos de prestación de servicios profesionales y de apoyo a la gestión | E83: Contratación directa | F83: Prestación de servicios profesionales y de apoyo a la gestión, o para la ejecución de trabajos artísticos que sólo puedan encomendarse a determinadas personas naturales; | G83: PRESTAR SERVICIOS DE APOYO A LA SUPERVISION EN LAS AREAS OPERATIVAS DE CARACTER ARCHIVISTICO DESARROLLADAS EN LAS DEPENDENCIAS DE LA ALCALDIA LOCAL DE SUBA PARA GARANTIZAR LA APLICACION CORRECTA DE LOS PROCEDIMIENTOS TECNICOS. NO HAY 14779. | H83: Inversión | I83: 45 | J83: =IF(ISERROR(VLOOKUP(I83,[1]Eje_Pilar!$C$2:$E$47,2,FALSE))," ",VLOOKUP(I83,[1]Eje_Pilar!$C$2:$E$47,2,FALSE)) -> Gobernanza e influencia local, regional e internacional | K83: =IF(ISERROR(VLOOKUP(I83,[1]Eje_Pilar!$C$2:$E$47,3,FALSE))," ",VLOOKUP(I83,[1]Eje_Pilar!$C$2:$E$47,3,FALSE)) -> Eje Transversal 4 Gobierno Legitimo, Fortalecimiento Local y Eficiencia | L83: 3-3-1-15-07-45-1478-000 | M83: 1032361632 | N83: JENNIFER TORRES PEREZ | O83: 40250000 | Q83: 0 | R83: 1 | S83: 1166666 | T83: 41416666 | U83: 35116667 | V83: 2019-01-30 | W83: 2019-01-30 | X83: 2020-01-21 | Y83: 345 | Z83: 21 | AD83: X | AF83: 84.78873456 | AG83: =IF(SUMPRODUCT((A$14:A83=A83)*(B$14:B83=B83)*(C$14:C83=C83))>1,0,1) -> 1 | AH83: 0 | AI83: 0 | AJ83: 0 | AK83: 1 | AL83: 0 | AM83: Contratos de prestación de servicios profesionales y de apoyo a la gestión | AN83: Contratación directa | AO83: =IFERROR(VLOOKUP(F83,[1]Tipo!$C$12:$C$27,1,FALSE),"NO") -> Prestación de servicios profesionales y de apoyo a la gestión, o para la ejecución de trabajos artísticos que sólo puedan encomendarse a determinadas personas naturales; | AP83: Inversión | AQ83: 45
A84: 32 | B84: 2019 | C84: FDLSUBA-CPS-032-2019 | D84: Contratos de prestación de servicios profesionales y de apoyo a la gestión | E84: Contratación directa | F84: Prestación de servicios profesionales y de apoyo a la gestión, o para la ejecución de trabajos artísticos que sólo puedan encomendarse a determinadas personas naturales; | G84: ¿Prestar servicios técnicos en el Área de Gestión Desarrollo Local especialmente para apoyar en la atención de actividades ambientales propias de la Alcaldía Local de Suba para lograr con el cumplimiento de las metas del plan de desarrollo local de la vigencia¿. NO HAY 14585. | H84: Inversión | I84: 38 | J84: =IF(ISERROR(VLOOKUP(I84,[1]Eje_Pilar!$C$2:$E$47,2,FALSE))," ",VLOOKUP(I84,[1]Eje_Pilar!$C$2:$E$47,2,FALSE)) -> Recuperación y manejo de la Estructura Ecológica Principal | K84: =IF(ISERROR(VLOOKUP(I84,[1]Eje_Pilar!$C$2:$E$47,3,FALSE))," ",VLOOKUP(I84,[1]Eje_Pilar!$C$2:$E$47,3,FALSE)) -> Eje Transversal 3 Sostenibilidad Ambiental basada en la eficiencia energética | L84: 3-3-1-15-06-38-1472-000 | M84: 52337641 | N84: ROCIO LOPEZ RAMIREZ | O84: 40250000 | Q84: 0 | S84: 0 | T84: 40250000 | U84: 35116667 | V84: 2019-01-30 | W84: 2019-01-30 | X84: 2019-12-31 | Y84: 345 | AD84: X | AF84: 87.24637764 | AG84: =IF(SUMPRODUCT((A$14:A84=A84)*(B$14:B84=B84)*(C$14:C84=C84))>1,0,1) -> 1 | AH84: 0 | AI84: 0 | AJ84: 0 | AK84: 1 | AL84: 0 | AM84: Contratos de prestación de servicios profesionales y de apoyo a la gestión | AN84: Contratación directa | AO84: =IFERROR(VLOOKUP(F84,[1]Tipo!$C$12:$C$27,1,FALSE),"NO") -> Prestación de servicios profesionales y de apoyo a la gestión, o para la ejecución de trabajos artísticos que sólo puedan encomendarse a determinadas personas naturales; | AP84: Inversión | AQ84: 38
A85: 33 | B85: 2019 | C85: FDLSUBA-CPS-033-2019 | D85: Contratos de prestación de servicios profesionales y de apoyo a la gestión | E85: Contratación directa | F85: Prestación de servicios profesionales y de apoyo a la gestión, o para la ejecución de trabajos artísticos que sólo puedan encomendarse a determinadas personas naturales; | G85: PRESTAR SERVICIOS PROFESIONALES ESPECIALIZADOS AL AREA DE GESTION DEL DESARROLLO LOCAL DE LA ALCALDIA LOCAL DE SUBA, PARA APOYAR LA SUPERVISION DE CONTRATOS DE LOS PROYECTOS QUE LE SEAN ASIGNADOS. NO HAY 15041. | H85: Inversión | I85: 45 | J85: =IF(ISERROR(VLOOKUP(I85,[1]Eje_Pilar!$C$2:$E$47,2,FALSE))," ",VLOOKUP(I85,[1]Eje_Pilar!$C$2:$E$47,2,FALSE)) -> Gobernanza e influencia local, regional e internacional | K85: =IF(ISERROR(VLOOKUP(I85,[1]Eje_Pilar!$C$2:$E$47,3,FALSE))," ",VLOOKUP(I85,[1]Eje_Pilar!$C$2:$E$47,3,FALSE)) -> Eje Transversal 4 Gobierno Legitimo, Fortalecimiento Local y Eficiencia | L85: 3-3-1-15-07-45-1478-000 | M85: 79148595 | N85: ALBERTO ENRIQUE NUNEZ MOLINARES | O85: 83950000 | Q85: 0 | R85: 1 | S85: 2676666 | T85: 86626666 | U85: 73243333 | V85: 2019-01-30 | W85: 2019-01-30 | X85: 2020-01-21 | Y85: 345 | Z85: 21 | AD85: X | AF85: 84.55056206 | AG85: =IF(SUMPRODUCT((A$14:A85=A85)*(B$14:B85=B85)*(C$14:C85=C85))>1,0,1) -> 1 | AH85: 0 | AI85: 0 | AJ85: 0 | AK85: 1 | AL85: 0 | AM85: Contratos de prestación de servicios profesionales y de apoyo a la gestión | AN85: Contratación directa | AO85: =IFERROR(VLOOKUP(F85,[1]Tipo!$C$12:$C$27,1,FALSE),"NO") -> Prestación de servicios profesionales y de apoyo a la gestión, o para la ejecución de trabajos artísticos que sólo puedan encomendarse a determinadas personas naturales; | AP85: Inversión | AQ85: 45
A86: 34 | B86: 2019 | C86: FDLSUBA-CPS-034-2019 | D86: Contratos de prestación de servicios profesionales y de apoyo a la gestión | E86: Contratación directa | F86: Prestación de servicios profesionales y de apoyo a la gestión, o para la ejecución de trabajos artísticos que sólo puedan encomendarse a determinadas personas naturales; | G86: PRESTAR LOS SERVICIOS PROFESIONALES DE APOYO EN LA ALCALDIA LOCAL DE SUBA EN LA GESTION DE LOS ASUNTOS RELACIONADOS CON LA SEGURIDAD CIUDADANA, CONVIVENCIA Y PREVENCION DE CONFLICTOS, VIOLENCIA Y DELITOS EN LA LOCALIDAD DE SUBA. NO HAY 14994.|72450000|0|0|72450000|63420000|9030000 | H86: Inversión | I86: 19 | J86: =IF(ISERROR(VLOOKUP(I86,[1]Eje_Pilar!$C$2:$E$47,2,FALSE))," ",VLOOKUP(I86,[1]Eje_Pilar!$C$2:$E$47,2,FALSE)) -> Seguridad y convivencia para todos | K86: =IF(ISERROR(VLOOKUP(I86,[1]Eje_Pilar!$C$2:$E$47,3,FALSE))," ",VLOOKUP(I86,[1]Eje_Pilar!$C$2:$E$47,3,FALSE)) -> Pilar 3 Construcción de Comunidad y Cultura Ciudadana | L86: 3-3-1-15-03-19-1469-000 | M86: 10881331 | N86: LUIS CARLOS OTERO ESPITIA | O86: 72450000 | Q86: 0 | R86: 1 | S86: 2520000 | T86: 74970000 | U86: 63420000 | V86: 2019-01-29 | W86: 2019-01-29 | X86: 2020-01-21 | Y86: 345 | Z86: 21 | AD86: X | AF86: 84.59383754 | AG86: =IF(SUMPRODUCT((A$14:A86=A86)*(B$14:B86=B86)*(C$14:C86=C86))>1,0,1) -> 1 | AH86: 0 | AI86: 0 | AJ86: 0 | AK86: 1 | AL86: 0 | AM86: Contratos de prestación de servicios profesionales y de apoyo a la gestión | AN86: Contratación directa | AO86: =IFERROR(VLOOKUP(F86,[1]Tipo!$C$12:$C$27,1,FALSE),"NO") -> Prestación de servicios profesionales y de apoyo a la gestión, o para la ejecución de trabajos artísticos que sólo puedan encomendarse a determinadas personas naturales; | AP86: Inversión | AQ86: 19
A87: 35 | B87: 2019 | C87: FDLSUBA-CPS-035-2019 | D87: Contratos de prestación de servicios profesionales y de apoyo a la gestión | E87: Contratación directa | F87: Prestación de servicios profesionales y de apoyo a la gestión, o para la ejecución de trabajos artísticos que sólo puedan encomendarse a determinadas personas naturales; | G87: PRESTAR SERVICIOS PROFESIONALES AL AREA DE GESTION DEL DESARROLLO LOCAL DE LA ALCALDIA LOCAL DE SUBA, PARA APOYAR LA SUPERVISION DE CONTRATOS DE LOS PROYECTOS QUE LE SEAN ASIGNADOS. NO HAY 14591. | H87: Inversión | I87: 45 | J87: =IF(ISERROR(VLOOKUP(I87,[1]Eje_Pilar!$C$2:$E$47,2,FALSE))," ",VLOOKUP(I87,[1]Eje_Pilar!$C$2:$E$47,2,FALSE)) -> Gobernanza e influencia local, regional e internacional | K87: =IF(ISERROR(VLOOKUP(I87,[1]Eje_Pilar!$C$2:$E$47,3,FALSE))," ",VLOOKUP(I87,[1]Eje_Pilar!$C$2:$E$47,3,FALSE)) -> Eje Transversal 4 Gobierno Legitimo, Fortalecimiento Local y Eficiencia | L87: 3-3-1-15-07-45-1478-000 | M87: 51582419 | N87: NASLLY ESPERANZA FONSECA GRANADA | O87: 72450000 | Q87: 0 | R87: 1 | S87: 2310000 | T87: 74760000 | U87: 63210000 | V87: 2019-01-30 | W87: 2019-01-30 | X87: 2020-01-21 | Y87: 345 | Z87: 21 | AD87: X | AF87: 84.5505618 | AG87: =IF(SUMPRODUCT((A$14:A87=A87)*(B$14:B87=B87)*(C$14:C87=C87))>1,0,1) -> 1 | AH87: 0 | AI87: 0 | AJ87: 0 | AK87: 1 | AL87: 0 | AM87: Contratos de prestación de servicios profesionales y de apoyo a la gestión | AN87: Contratación directa | AO87: =IFERROR(VLOOKUP(F87,[1]Tipo!$C$12:$C$27,1,FALSE),"NO") -> Prestación de servicios profesionales y de apoyo a la gestión, o para la ejecución de trabajos artísticos que sólo puedan encomendarse a determinadas personas naturales; | AP87: Inversión | AQ87: 45
A88: 36 | B88: 2019 | C88: FDLSUBA-CPS-036-2019 | D88: Contratos de prestación de servicios profesionales y de apoyo a la gestión | E88: Contratación directa | F88: Prestación de servicios profesionales y de apoyo a la gestión, o para la ejecución de trabajos artísticos que sólo puedan encomendarse a determinadas personas naturales; | G88: PRESTAR SERVICIOS PROFESIONALES AL AREA DE GESTION DEL DESARROLLO LOCAL DE LA ALCALDIA LOCAL DE SUBA, PARA APOYAR LA SUPERVISION DE CONTRATOS DE LOS PROYECTOS QUE LE SEAN ASIGNADOS. NO HAY 14591. | H88: Inversión | I88: 45 | J88: =IF(ISERROR(VLOOKUP(I88,[1]Eje_Pilar!$C$2:$E$47,2,FALSE))," ",VLOOKUP(I88,[1]Eje_Pilar!$C$2:$E$47,2,FALSE)) -> Gobernanza e influencia local, regional e internacional | K88: =IF(ISERROR(VLOOKUP(I88,[1]Eje_Pilar!$C$2:$E$47,3,FALSE))," ",VLOOKUP(I88,[1]Eje_Pilar!$C$2:$E$47,3,FALSE)) -> Eje Transversal 4 Gobierno Legitimo, Fortalecimiento Local y Eficiencia | L88: 3-3-1-15-07-45-1478-000 | M88: 79489803 | N88: NEIL OSWALDO RODRIGUEZ MORALES | O88: 72450000 | Q88: 0 | R88: 1 | S88: 2100000 | T88: 74550000 | U88: 63210000 | V88: 2019-01-30 | W88: 2019-01-30 | X88: 2020-01-21 | Y88: 345 | Z88: 21 | AD88: X | AF88: 84.78873239 | AG88: =IF(SUMPRODUCT((A$14:A88=A88)*(B$14:B88=B88)*(C$14:C88=C88))>1,0,1) -> 1 | AH88: 0 | AI88: 0 | AJ88: 0 | AK88: 1 | AL88: 0 | AM88: Contratos de prestación de servicios profesionales y de apoyo a la gestión | AN88: Contratación directa | AO88: =IFERROR(VLOOKUP(F88,[1]Tipo!$C$12:$C$27,1,FALSE),"NO") -> Prestación de servicios profesionales y de apoyo a la gestión, o para la ejecución de trabajos artísticos que sólo puedan encomendarse a determinadas personas naturales; | AP88: Inversión | AQ88: 45
A89: 37 | B89: 2019 | C89: FDLSUBA-CPS-037-2019 | D89: Contratos de prestación de servicios profesionales y de apoyo a la gestión | E89: Contratación directa | F89: Prestación de servicios profesionales y de apoyo a la gestión, o para la ejecución de trabajos artísticos que sólo puedan encomendarse a determinadas personas naturales; | G89: PRESTAR SERVICIOS AL GRUPO DE GESTION ADMINISTRATIVA Y FINANCIERA PARA LIDERAR Y COORDINAR LOS PUNTO VIVE DIGITAL PLUS DE LA LOCALIDAD DE SUBA Y BRINDAR APOYO AL AREA DE PRENSA EN LOS TEMAS RELACIONADOS CON TICS.|72450000|0|0|72450000|63420000|9030000 | H89: Inversión | I89: 36 | J89: =IF(ISERROR(VLOOKUP(I89,[1]Eje_Pilar!$C$2:$E$47,2,FALSE))," ",VLOOKUP(I89,[1]Eje_Pilar!$C$2:$E$47,2,FALSE)) -> Bogotá, una ciudad digital | K89: =IF(ISERROR(VLOOKUP(I89,[1]Eje_Pilar!$C$2:$E$47,3,FALSE))," ",VLOOKUP(I89,[1]Eje_Pilar!$C$2:$E$47,3,FALSE)) -> Eje Transversal 2 Desarrollo Económico basado en el conocimiento | L89: 3-3-1-15-05-36-1504-000 | M89: 1098648859 | N89: DIANA PATRICIA ARENAS BLANCO | O89: 72450000 | Q89: 0 | R89: 1 | S89: 2520000 | T89: 74970000 | U89: 63420000 | V89: 2019-01-29 | W89: 2019-01-29 | X89: 2020-01-21 | Y89: 345 | Z89: 21 | AD89: X | AF89: 84.59383754 | AG89: =IF(SUMPRODUCT((A$14:A89=A89)*(B$14:B89=B89)*(C$14:C89=C89))>1,0,1) -> 1 | AH89: 0 | AI89: 0 | AJ89: 0 | AK89: 1 | AL89: 0 | AM89: Contratos de prestación de servicios profesionales y de apoyo a la gestión | AN89: Contratación directa | AO89: =IFERROR(VLOOKUP(F89,[1]Tipo!$C$12:$C$27,1,FALSE),"NO") -> Prestación de servicios profesionales y de apoyo a la gestión, o para la ejecución de trabajos artísticos que sólo puedan encomendarse a determinadas personas naturales; | AP89: Inversión | AQ89: 36
A90: 38 | B90: 2019 | C90: FDLSUBA-CPS-038-2019 | D90: Contratos de prestación de servicios profesionales y de apoyo a la gestión | E90: Contratación directa | F90: Prestación de servicios profesionales y de apoyo a la gestión, o para la ejecución de trabajos artísticos que sólo puedan encomendarse a determinadas personas naturales; | G90: PRESTAR SERVICIOS PROFESIONALES ESPECIALIZADOS EN EL AREA DE GESTION DEL DESARROLLO LOCAL DE LA ALCALDIA LOCAL DE SUBA, PARA EL APOYO A LA EJECUCION INTEGRAL DE LOS DIFERENTES PROYECTOS DE INVERSION DESTINADOS A LA INTERVENCION DE LA MALLA VIAL, ESPACIO PUBLICO Y PARQUES DE LA LOCALIDAD DE SUBA. NO HAY 14781. | H90: Inversión | I90: 18 | J90: =IF(ISERROR(VLOOKUP(I90,[1]Eje_Pilar!$C$2:$E$47,2,FALSE))," ",VLOOKUP(I90,[1]Eje_Pilar!$C$2:$E$47,2,FALSE)) -> Mejor movilidad para todos | K90: =IF(ISERROR(VLOOKUP(I90,[1]Eje_Pilar!$C$2:$E$47,3,FALSE))," ",VLOOKUP(I90,[1]Eje_Pilar!$C$2:$E$47,3,FALSE)) -> Pilar 2 Democracía Urbana | L90: 3-3-1-15-02-18-1506-000 | M90: 79724176 | N90: EXMELIN HAMID LEMUS FRANCO | O90: 83950000 | Q90: 0 | R90: 1 | S90: 2433333 | T90: 86383333 | U90: 73243333 | V90: 2019-01-31 | W90: 2019-01-31 | X90: 2020-01-21 | Y90: 345 | Z90: 21 | AD90: X | AF90: 84.78873234 | AG90: =IF(SUMPRODUCT((A$14:A90=A90)*(B$14:B90=B90)*(C$14:C90=C90))>1,0,1) -> 1 | AH90: 0 | AI90: 0 | AJ90: 0 | AK90: 1 | AL90: 0 | AM90: Contratos de prestación de servicios profesionales y de apoyo a la gestión | AN90: Contratación directa | AO90: =IFERROR(VLOOKUP(F90,[1]Tipo!$C$12:$C$27,1,FALSE),"NO") -> Prestación de servicios profesionales y de apoyo a la gestión, o para la ejecución de trabajos artísticos que sólo puedan encomendarse a determinadas personas naturales; | AP90: Inversión | AQ90: 18
A91: 39 | B91: 2019 | C91: FDLSUBA-CPS-039-2019 | D91: Contratos de prestación de servicios profesionales y de apoyo a la gestión | E91: Contratación directa | F91: Prestación de servicios profesionales y de apoyo a la gestión, o para la ejecución de trabajos artísticos que sólo puedan encomendarse a determinadas personas naturales; | G91: PRESTAR LOS SERVICOS PROFESIONALES EN EL AREA GESTION DEL DESARROLLO, PARA EL APOYO A LA EJECUCION INTEGRAL DE LOS DIFERENTES PROYECTOS DE INVERSION DESTINADOS A LA INTERVENCION DE LA MALLA VIAL, ESPACIO PUBLICO Y PARQUES DE LA LOCALIDAD DE SUBA. NO HAY 14780. | H91: Inversión | I91: 18 | J91: =IF(ISERROR(VLOOKUP(I91,[1]Eje_Pilar!$C$2:$E$47,2,FALSE))," ",VLOOKUP(I91,[1]Eje_Pilar!$C$2:$E$47,2,FALSE)) -> Mejor movilidad para todos | K91: =IF(ISERROR(VLOOKUP(I91,[1]Eje_Pilar!$C$2:$E$47,3,FALSE))," ",VLOOKUP(I91,[1]Eje_Pilar!$C$2:$E$47,3,FALSE)) -> Pilar 2 Democracía Urbana | L91: 3-3-1-15-02-18-1506-000 | M91: 1032456151 | N91: OSCAR JAVIER OVALLE RIVERA | O91: 72450000 | Q91: 0 | R91: 1 | S91: 2100000 | T91: 74550000 | U91: 63210000 | V91: 2019-01-30 | W91: 2019-01-30 | X91: 2020-01-21 | Y91: 345 | Z91: 21 | AD91: X | AF91: 84.78873239 | AG91: =IF(SUMPRODUCT((A$14:A91=A91)*(B$14:B91=B91)*(C$14:C91=C91))>1,0,1) -> 1 | AH91: 0 | AI91: 0 | AJ91: 0 | AK91: 1 | AL91: 0 | AM91: Contratos de prestación de servicios profesionales y de apoyo a la gestión | AN91: Contratación directa | AO91: =IFERROR(VLOOKUP(F91,[1]Tipo!$C$12:$C$27,1,FALSE),"NO") -> Prestación de servicios profesionales y de apoyo a la gestión, o para la ejecución de trabajos artísticos que sólo puedan encomendarse a determinadas personas naturales; | AP91: Inversión | AQ91: 18
A92: 40 | B92: 2019 | C92: FDLSUBA-CPS-040-2019 | D92: Contratos de prestación de servicios profesionales y de apoyo a la gestión | E92: Contratación directa | F92: Prestación de servicios profesionales y de apoyo a la gestión, o para la ejecución de trabajos artísticos que sólo puedan encomendarse a determinadas personas naturales; | G92: PRESTAR LOS SERVICOS PROFESIONALES EN EL AREA GESTION DEL DESARROLLO, PARA EL APOYO A LA EJECUCION INTEGRAL DE LOS DIFERENTES PROYECTOS DE INVERSION DESTINADOS A LA INTERVENCION DE LA MALLA VIAL, ESPACIO PUBLICO Y PARQUES DE LA LOCALIDAD DE SUBA. NO HAY 14780. | H92: Inversión | I92: 18 | J92: =IF(ISERROR(VLOOKUP(I92,[1]Eje_Pilar!$C$2:$E$47,2,FALSE))," ",VLOOKUP(I92,[1]Eje_Pilar!$C$2:$E$47,2,FALSE)) -> Mejor movilidad para todos | K92: =IF(ISERROR(VLOOKUP(I92,[1]Eje_Pilar!$C$2:$E$47,3,FALSE))," ",VLOOKUP(I92,[1]Eje_Pilar!$C$2:$E$47,3,FALSE)) -> Pilar 2 Democracía Urbana | L92: 3-3-1-15-02-18-1506-000 | M92: 7121658 | N92: YEISSON YAZETH BARAJAS GONZALEZ | O92: 72450000 | Q92: 0 | R92: 1 | S92: 2310000 | T92: 74760000 | U92: 63210000 | V92: 2019-01-30 | W92: 2019-01-30 | X92: 2020-01-21 | Y92: 345 | Z92: 21 | AD92: X | AF92: 84.5505618 | AG92: =IF(SUMPRODUCT((A$14:A92=A92)*(B$14:B92=B92)*(C$14:C92=C92))>1,0,1) -> 1 | AH92: 0 | AI92: 0 | AJ92: 0 | AK92: 1 | AL92: 0 | AM92: Contratos de prestación de servicios profesionales y de apoyo a la gestión | AN92: Contratación directa | AO92: =IFERROR(VLOOKUP(F92,[1]Tipo!$C$12:$C$27,1,FALSE),"NO") -> Prestación de servicios profesionales y de apoyo a la gestión, o para la ejecución de trabajos artísticos que sólo puedan encomendarse a determinadas personas naturales; | AP92: Inversión | AQ92: 18
A93: 41 | B93: 2019 | C93: FDLSUBA-CPS-041-2019 | D93: Contratos de prestación de servicios profesionales y de apoyo a la gestión | E93: Contratación directa | F93: Prestación de servicios profesionales y de apoyo a la gestión, o para la ejecución de trabajos artísticos que sólo puedan encomendarse a determinadas personas naturales; | G93: PRESTAR LOS SERVICIOS PROFESIONALES PARA EL APOYO EN EL TRAMITE DE DESPACHOS COMISORIOS DE LA ALCALDIA LOCAL DE SUBA. NO HAY 14590. | H93: Inversión | I93: 45 | J93: =IF(ISERROR(VLOOKUP(I93,[1]Eje_Pilar!$C$2:$E$47,2,FALSE))," ",VLOOKUP(I93,[1]Eje_Pilar!$C$2:$E$47,2,FALSE)) -> Gobernanza e influencia local, regional e internacional | K93: =IF(ISERROR(VLOOKUP(I93,[1]Eje_Pilar!$C$2:$E$47,3,FALSE))," ",VLOOKUP(I93,[1]Eje_Pilar!$C$2:$E$47,3,FALSE)) -> Eje Transversal 4 Gobierno Legitimo, Fortalecimiento Local y Eficiencia | L93: 3-3-1-15-07-45-1478-000 | M93: 51979241 | N93: ELIZABETH ANGEL | O93: 52900000 | Q93: 0 | S93: 0 | T93: 52900000 | U93: 46153333 | V93: 2019-01-30 | W93: 2019-01-30 | X93: 2019-12-31 | Y93: 345 | AD93: X | AF93: 87.24637618 | AG93: =IF(SUMPRODUCT((A$14:A93=A93)*(B$14:B93=B93)*(C$14:C93=C93))>1,0,1) -> 1 | AH93: 0 | AI93: 0 | AJ93: 0 | AK93: 1 | AL93: 0 | AM93: Contratos de prestación de servicios profesionales y de apoyo a la gestión | AN93: Contratación directa | AO93: =IFERROR(VLOOKUP(F93,[1]Tipo!$C$12:$C$27,1,FALSE),"NO") -> Prestación de servicios profesionales y de apoyo a la gestión, o para la ejecución de trabajos artísticos que sólo puedan encomendarse a determinadas personas naturales; | AP93: Inversión | AQ93: 45
A94: 42 | B94: 2019 | C94: FDLSUBA-CPS-042-2019 | D94: Contratos de prestación de servicios profesionales y de apoyo a la gestión | E94: Contratación directa | F94: Prestación de servicios profesionales y de apoyo a la gestión, o para la ejecución de trabajos artísticos que sólo puedan encomendarse a determinadas personas naturales; | G94: PRESTAR LOS SERVICIOS PROFESIONALES PARA EL APOYO EN EL TRAMITE DE DESPACHOS COMISORIOS DE LA ALCALDIA LOCAL DE SUBA. NO HAY 14590. | H94: Inversión | I94: 45 | J94: =IF(ISERROR(VLOOKUP(I94,[1]Eje_Pilar!$C$2:$E$47,2,FALSE))," ",VLOOKUP(I94,[1]Eje_Pilar!$C$2:$E$47,2,FALSE)) -> Gobernanza e influencia local, regional e internacional | K94: =IF(ISERROR(VLOOKUP(I94,[1]Eje_Pilar!$C$2:$E$47,3,FALSE))," ",VLOOKUP(I94,[1]Eje_Pilar!$C$2:$E$47,3,FALSE)) -> Eje Transversal 4 Gobierno Legitimo, Fortalecimiento Local y Eficiencia | L94: 3-3-1-15-07-45-1478-000 | M94: 52517812 | N94: ADRIANA MONTEALEGRE RIAÑO | O94: 52900000 | Q94: 0 | R94: 1 | S94: 1533333 | T94: 54433333 | U94: 46153333 | V94: 2019-01-31 | W94: 2019-01-31 | X94: 2020-01-21 | Y94: 345 | Z94: 21 | AD94: X | AF94: 84.7887323 | AG94: =IF(SUMPRODUCT((A$14:A94=A94)*(B$14:B94=B94)*(C$14:C94=C94))>1,0,1) -> 1 | AH94: 0 | AI94: 0 | AJ94: 0 | AK94: 1 | AL94: 0 | AM94: Contratos de prestación de servicios profesionales y de apoyo a la gestión | AN94: Contratación directa | AO94: =IFERROR(VLOOKUP(F94,[1]Tipo!$C$12:$C$27,1,FALSE),"NO") -> Prestación de servicios profesionales y de apoyo a la gestión, o para la ejecución de trabajos artísticos que sólo puedan encomendarse a determinadas personas naturales; | AP94: Inversión | AQ94: 45
A95: 43 | B95: 2019 | C95: FDLSUBA-CPS-043-2019 | D95: Contratos de prestación de servicios profesionales y de apoyo a la gestión | E95: Contratación directa | F95: Prestación de servicios profesionales y de apoyo a la gestión, o para la ejecución de trabajos artísticos que sólo puedan encomendarse a determinadas personas naturales; | G95: PRESTAR LOS SERVICIOS PROFESIONALES COMO ABOGADO (A) PARA APOYAR LA GESTION CONTRACTUAL DEL AREA GESTION DEL DESARROLLO LOCAL DE LA ALCALDIA LOCAL DE SUBA, EN LOS DIFERENTES PROCESOS DE SELECCION EN SUS ETAPAS PRECONTRACTUAL, CONTRACTUAL Y POSTCONTRACTUAL. NO HAY 14669. | H95: Inversión | I95: 45 | J95: =IF(ISERROR(VLOOKUP(I95,[1]Eje_Pilar!$C$2:$E$47,2,FALSE))," ",VLOOKUP(I95,[1]Eje_Pilar!$C$2:$E$47,2,FALSE)) -> Gobernanza e influencia local, regional e internacional | K95: =IF(ISERROR(VLOOKUP(I95,[1]Eje_Pilar!$C$2:$E$47,3,FALSE))," ",VLOOKUP(I95,[1]Eje_Pilar!$C$2:$E$47,3,FALSE)) -> Eje Transversal 4 Gobierno Legitimo, Fortalecimiento Local y Eficiencia | L95: 3-3-1-15-07-45-1478-000 | M95: 3232505 | N95: JULIO CESAR GONZALEZ VARGAS | O95: 72450000 | Q95: 0 | R95: 1 | S95: 2310000 | T95: 74760000 | U95: 63210000 | V95: 2019-01-31 | W95: 2019-01-31 | X95: 2020-01-21 | Y95: 345 | Z95: 21 | AD95: X | AF95: 84.5505618 | AG95: =IF(SUMPRODUCT((A$14:A95=A95)*(B$14:B95=B95)*(C$14:C95=C95))>1,0,1) -> 1 | AH95: 0 | AI95: 0 | AJ95: 0 | AK95: 1 | AL95: 0 | AM95: Contratos de prestación de servicios profesionales y de apoyo a la gestión | AN95: Contratación directa | AO95: =IFERROR(VLOOKUP(F95,[1]Tipo!$C$12:$C$27,1,FALSE),"NO") -> Prestación de servicios profesionales y de apoyo a la gestión, o para la ejecución de trabajos artísticos que sólo puedan encomendarse a determinadas personas naturales; | AP95: Inversión | AQ95: 45
A96: 44 | B96: 2019 | C96: FDLSUBA-CPS-044-2019 | D96: Contratos de prestación de servicios profesionales y de apoyo a la gestión | E96: Contratación directa | F96: Prestación de servicios profesionales y de apoyo a la gestión, o para la ejecución de trabajos artísticos que sólo puedan encomendarse a determinadas personas naturales; | G96: PRESTAR SERVICIOS PROFESIONALES ESPECIALIZADOS EN EL AREA DE GESTION DEL DESARROLLO LOCAL DE LA ALCALDIA LOCAL DE SUBA PARA EL APOYO AL SEGUIMIENTO DE LA EJECUCION DE LOS PROYECTOS DE INVERSION DESTINADOS A LA INTERVENCION DE INFRAESTRUCTURA DE LA LOCALIDAD DE SUBA. NO HAY 15185. | H96: Inversión | I96: 18 | J96: =IF(ISERROR(VLOOKUP(I96,[1]Eje_Pilar!$C$2:$E$47,2,FALSE))," ",VLOOKUP(I96,[1]Eje_Pilar!$C$2:$E$47,2,FALSE)) -> Mejor movilidad para todos | K96: =IF(ISERROR(VLOOKUP(I96,[1]Eje_Pilar!$C$2:$E$47,3,FALSE))," ",VLOOKUP(I96,[1]Eje_Pilar!$C$2:$E$47,3,FALSE)) -> Pilar 2 Democracía Urbana | L96: 3-3-1-15-02-18-1506-000 | M96: 79602816 | N96: ADOLFO JOSE BERNAL PUERTO | O96: 92000000 | Q96: 0 | R96: 1 | S96: 2400000 | T96: 94400000 | U96: 80000000 | V96: 2019-02-01 | W96: 2019-02-01 | X96: 2020-01-21 | Y96: 345 | Z96: 21 | AD96: X | AF96: 84.74576271 | AG96: =IF(SUMPRODUCT((A$14:A96=A96)*(B$14:B96=B96)*(C$14:C96=C96))>1,0,1) -> 1 | AH96: 0 | AI96: 0 | AJ96: 0 | AK96: 1 | AL96: 0 | AM96: Contratos de prestación de servicios profesionales y de apoyo a la gestión | AN96: Contratación directa | AO96: =IFERROR(VLOOKUP(F96,[1]Tipo!$C$12:$C$27,1,FALSE),"NO") -> Prestación de servicios profesionales y de apoyo a la gestión, o para la ejecución de trabajos artísticos que sólo puedan encomendarse a determinadas personas naturales; | AP96: Inversión | AQ96: 18
A97: 45 | B97: 2019 | C97: FDLSUBA-CPS-045-2019 | D97: Contratos de prestación de servicios profesionales y de apoyo a la gestión | E97: Contratación directa | F97: Prestación de servicios profesionales y de apoyo a la gestión, o para la ejecución de trabajos artísticos que sólo puedan encomendarse a determinadas personas naturales; | G97: PRESTAR LOS SERVICIOS PROFESIONALES PARA APOYAR LA GESTION CONTRACTUAL EN EL AREA DE GESTION DEL DESARROLLO LOCAL, REALIZANDO LAS ACTIVIDADES RELACIONADAS CON LAS DIFERENTES ETAPAS CONTRACTUALES DE LOS PROCESOS DE ADQUISICION DE BIENES Y SERVICIOS QUE REALICE EL FONDO DE DESARROLLO LOCAL DE SUBA. NO HAY 15413. | H97: Inversión | I97: 45 | J97: =IF(ISERROR(VLOOKUP(I97,[1]Eje_Pilar!$C$2:$E$47,2,FALSE))," ",VLOOKUP(I97,[1]Eje_Pilar!$C$2:$E$47,2,FALSE)) -> Gobernanza e influencia local, regional e internacional | K97: =IF(ISERROR(VLOOKUP(I97,[1]Eje_Pilar!$C$2:$E$47,3,FALSE))," ",VLOOKUP(I97,[1]Eje_Pilar!$C$2:$E$47,3,FALSE)) -> Eje Transversal 4 Gobierno Legitimo, Fortalecimiento Local y Eficiencia | L97: 3-3-1-15-07-45-1478-000 | M97: 1032441293 | N97: LADY YESSENIA RIAÑO UPEGUI | O97: 50600000 | Q97: 0 | R97: 1 | S97: 1613333 | T97: 52213333 | U97: 44146667 | V97: 2019-01-30 | W97: 2019-01-30 | X97: 2020-01-21 | Y97: 345 | Z97: 21 | AD97: X | AF97: 84.55056298 | AG97: =IF(SUMPRODUCT((A$14:A97=A97)*(B$14:B97=B97)*(C$14:C97=C97))>1,0,1) -> 1 | AH97: 0 | AI97: 0 | AJ97: 0 | AK97: 1 | AL97: 0 | AM97: Contratos de prestación de servicios profesionales y de apoyo a la gestión | AN97: Contratación directa | AO97: =IFERROR(VLOOKUP(F97,[1]Tipo!$C$12:$C$27,1,FALSE),"NO") -> Prestación de servicios profesionales y de apoyo a la gestión, o para la ejecución de trabajos artísticos que sólo puedan encomendarse a determinadas personas naturales; | AP97: Inversión | AQ97: 45
A98: 46 | B98: 2019 | C98: FDLSUBA-CPS-046-2019 | D98: Contratos de prestación de servicios profesionales y de apoyo a la gestión | E98: Contratación directa | F98: Prestación de servicios profesionales y de apoyo a la gestión, o para la ejecución de trabajos artísticos que sólo puedan encomendarse a determinadas personas naturales; | G98: PRESTAR SERVICIOS PROFESIONALES COMO APOYO AL ÁREA DE GESTIÓN DEL DESARROLLO LOCAL, EN LA OFICINA DE PRESUPUESTO DE LA ALCALDÍA LOCAL DE SUBA. NO HAY 14602. | H98: Inversión | I98: 45 | J98: =IF(ISERROR(VLOOKUP(I98,[1]Eje_Pilar!$C$2:$E$47,2,FALSE))," ",VLOOKUP(I98,[1]Eje_Pilar!$C$2:$E$47,2,FALSE)) -> Gobernanza e influencia local, regional e internacional | K98: =IF(ISERROR(VLOOKUP(I98,[1]Eje_Pilar!$C$2:$E$47,3,FALSE))," ",VLOOKUP(I98,[1]Eje_Pilar!$C$2:$E$47,3,FALSE)) -> Eje Transversal 4 Gobierno Legitimo, Fortalecimiento Local y Eficiencia | L98: 3-3-1-15-07-45-1478-000 | M98: 79399120 | N98: FABIAN ANDRES PALACIOS VANEGAS | O98: 52900000 | Q98: 0 | R98: 1 | S98: 1686667 | T98: 54586667 | U98: 46153333 | V98: 2019-01-30 | W98: 2019-01-30 | X98: 2020-01-21 | Y98: 345 | Z98: 21 | AD98: X | AF98: 84.55056067 | AG98: =IF(SUMPRODUCT((A$14:A98=A98)*(B$14:B98=B98)*(C$14:C98=C98))>1,0,1) -> 1 | AH98: 0 | AI98: 0 | AJ98: 0 | AK98: 1 | AL98: 0 | AM98: Contratos de prestación de servicios profesionales y de apoyo a la gestión | AN98: Contratación directa | AO98: =IFERROR(VLOOKUP(F98,[1]Tipo!$C$12:$C$27,1,FALSE),"NO") -> Prestación de servicios profesionales y de apoyo a la gestión, o para la ejecución de trabajos artísticos que sólo puedan encomendarse a determinadas personas naturales; | AP98: Inversión | AQ98: 45
A99: 47 | B99: 2019 | C99: FDLSUBA-CPS-047-2019 | D99: Contratos de prestación de servicios profesionales y de apoyo a la gestión | E99: Contratación directa | F99: Prestación de servicios profesionales y de apoyo a la gestión, o para la ejecución de trabajos artísticos que sólo puedan encomendarse a determinadas personas naturales; | G99: PRESTAR LOS SERVICIOS PROFESIONALES COMO ABOGADO (A) PARA APOYAR LA GESTION CONTRACTUAL DEL AREA DE GESTION DEL DESARROLLO LOCAL DE LA ALCALDIA LOCAL DE SUBA, EN LOS DIFERENTES PROCESOS DE SELECCION EN SUS ETAPAS PRECONTRACTUAL, CONTRACTUAL Y POSTCONTRACTUAL. NO HAY 14852. | H99: Inversión | I99: 45 | J99: =IF(ISERROR(VLOOKUP(I99,[1]Eje_Pilar!$C$2:$E$47,2,FALSE))," ",VLOOKUP(I99,[1]Eje_Pilar!$C$2:$E$47,2,FALSE)) -> Gobernanza e influencia local, regional e internacional | K99: =IF(ISERROR(VLOOKUP(I99,[1]Eje_Pilar!$C$2:$E$47,3,FALSE))," ",VLOOKUP(I99,[1]Eje_Pilar!$C$2:$E$47,3,FALSE)) -> Eje Transversal 4 Gobierno Legitimo, Fortalecimiento Local y Eficiencia | L99: 3-3-1-15-07-45-1478-000 | M99: 1094947788 | N99: SEBASTIAN CHAVARRIA TELLEZ | O99: 52900000 | Q99: 0 | R99: 1 | S99: 1686667 | T99: 54586667 | U99: 46153333 | V99: 2019-01-30 | W99: 2019-01-30 | X99: 2020-01-21 | Y99: 345 | Z99: 21 | AD99: X | AF99: 84.55056067 | AG99: =IF(SUMPRODUCT((A$14:A99=A99)*(B$14:B99=B99)*(C$14:C99=C99))>1,0,1) -> 1 | AH99: 0 | AI99: 0 | AJ99: 0 | AK99: 1 | AL99: 0 | AM99: Contratos de prestación de servicios profesionales y de apoyo a la gestión | AN99: Contratación directa | AO99: =IFERROR(VLOOKUP(F99,[1]Tipo!$C$12:$C$27,1,FALSE),"NO") -> Prestación de servicios profesionales y de apoyo a la gestión, o para la ejecución de trabajos artísticos que sólo puedan encomendarse a determinadas personas naturales; | AP99: Inversión | AQ99: 45
A100: 48 | B100: 2019 | C100: FDLSUBA-CPS-048-2019 | D100: Contratos de prestación de servicios profesionales y de apoyo a la gestión | E100: Contratación directa | F100: Prestación de servicios profesionales y de apoyo a la gestión, o para la ejecución de trabajos artísticos que sólo puedan encomendarse a determinadas personas naturales; | G100: PRESTAR LOS SERVICIOS PROFESIONALES EN LA ALCALDIA LOCAL DE SUBA, EN LOS TEMAS RELACIONADOS CON EL AREA DE SISTEMAS, GESTION DE TICS Y TODO LO RELACIONADO CON EL RECURSO TECNOLOGICO DE LA ALCALDIA LOCAL DE SUBA. NO HAY 14855. | H100: Inversión | I100: 45 | J100: =IF(ISERROR(VLOOKUP(I100,[1]Eje_Pilar!$C$2:$E$47,2,FALSE))," ",VLOOKUP(I100,[1]Eje_Pilar!$C$2:$E$47,2,FALSE)) -> Gobernanza e influencia local, regional e internacional | K100: =IF(ISERROR(VLOOKUP(I100,[1]Eje_Pilar!$C$2:$E$47,3,FALSE))," ",VLOOKUP(I100,[1]Eje_Pilar!$C$2:$E$47,3,FALSE)) -> Eje Transversal 4 Gobierno Legitimo, Fortalecimiento Local y Eficiencia | L100: 3-3-1-15-07-45-1478-000 | M100: 52783714 | N100: MARTHA PATRICIA MATEUS GONZALEZ | O100: 52900000 | Q100: 0 | R100: 1 | S100: 1380000 | T100: 54280000 | U100: 46000000 | V100: 2019-02-01 | W100: 2019-02-01 | X100: 2020-01-21 | Y100: 345 | Z100: 21 | AD100: X | AF100: 84.74576271 | AG100: =IF(SUMPRODUCT((A$14:A100=A100)*(B$14:B100=B100)*(C$14:C100=C100))>1,0,1) -> 1 | AH100: 0 | AI100: 0 | AJ100: 0 | AK100: 1 | AL100: 0 | AM100: Contratos de prestación de servicios profesionales y de apoyo a la gestión | AN100: Contratación directa | AO100: =IFERROR(VLOOKUP(F100,[1]Tipo!$C$12:$C$27,1,FALSE),"NO") -> Prestación de servicios profesionales y de apoyo a la gestión, o para la ejecución de trabajos artísticos que sólo puedan encomendarse a determinadas personas naturales; | AP100: Inversión | AQ100: 45
A101: 49 | B101: 2019 | C101: FDLSUBA-CPS-049-2019 | D101: Contratos de prestación de servicios profesionales y de apoyo a la gestión | E101: Contratación directa | F101: Prestación de servicios profesionales y de apoyo a la gestión, o para la ejecución de trabajos artísticos que sólo puedan encomendarse a determinadas personas naturales; | G101: PRESTAR LOS SERVICIOS PROFESIONALES EN LA ALCALDIA LOCAL DE SUBA, EN LOS TEMAS RELACIONADOS CON EL AREA DE SISTEMAS, GESTION DE TICS Y TODO LO RELACIONADO CON EL RECURSO TECNOLOGICO DE LA ALCALDIA LOCAL DE SUBA. NO HAY 14855. | H101: Inversión | I101: 45 | J101: =IF(ISERROR(VLOOKUP(I101,[1]Eje_Pilar!$C$2:$E$47,2,FALSE))," ",VLOOKUP(I101,[1]Eje_Pilar!$C$2:$E$47,2,FALSE)) -> Gobernanza e influencia local, regional e internacional | K101: =IF(ISERROR(VLOOKUP(I101,[1]Eje_Pilar!$C$2:$E$47,3,FALSE))," ",VLOOKUP(I101,[1]Eje_Pilar!$C$2:$E$47,3,FALSE)) -> Eje Transversal 4 Gobierno Legitimo, Fortalecimiento Local y Eficiencia | L101: 3-3-1-15-07-45-1478-000 | M101: 79632651 | N101: HERWIN BRICEÑO AVILA | O101: 52900000 | Q101: 0 | R101: 1 | S101: 1686667 | T101: 54586667 | U101: 46153333 | V101: 2019-01-31 | W101: 2019-01-31 | X101: 2020-01-21 | Y101: 345 | Z101: 21 | AD101: X | AF101: 84.55056067 | AG101: =IF(SUMPRODUCT((A$14:A101=A101)*(B$14:B101=B101)*(C$14:C101=C101))>1,0,1) -> 1 | AH101: 0 | AI101: 0 | AJ101: 0 | AK101: 1 | AL101: 0 | AM101: Contratos de prestación de servicios profesionales y de apoyo a la gestión | AN101: Contratación directa | AO101: =IFERROR(VLOOKUP(F101,[1]Tipo!$C$12:$C$27,1,FALSE),"NO") -> Prestación de servicios profesionales y de apoyo a la gestión, o para la ejecución de trabajos artísticos que sólo puedan encomendarse a determinadas personas naturales; | AP101: Inversión | AQ101: 45
A102: 50 | B102: 2019 | C102: FDLSUBA-CPS-050-2019 | D102: Contratos de prestación de servicios profesionales y de apoyo a la gestión | E102: Contratación directa | F102: Prestación de servicios profesionales y de apoyo a la gestión, o para la ejecución de trabajos artísticos que sólo puedan encomendarse a determinadas personas naturales; | G102: PRESTAR LOS SERVICIOS PROFESIONALES EN LA ALCALDIA LOCAL DE SUBA, EN LOS TEMAS RELACIONADOS CON EL AREA DE SISTEMAS, GESTION DE TICS Y TODO LO RELACIONADO CON EL RECURSO TECNOLOGICO DE LA ALCALDIA LOCAL DE SUBA. NO HAY 14855. | H102: Inversión | I102: 45 | J102: =IF(ISERROR(VLOOKUP(I102,[1]Eje_Pilar!$C$2:$E$47,2,FALSE))," ",VLOOKUP(I102,[1]Eje_Pilar!$C$2:$E$47,2,FALSE)) -> Gobernanza e influencia local, regional e internacional | K102: =IF(ISERROR(VLOOKUP(I102,[1]Eje_Pilar!$C$2:$E$47,3,FALSE))," ",VLOOKUP(I102,[1]Eje_Pilar!$C$2:$E$47,3,FALSE)) -> Eje Transversal 4 Gobierno Legitimo, Fortalecimiento Local y Eficiencia | L102: 3-3-1-15-07-45-1478-000 | M102: 11385910 | N102: PEDRO PABLO ANGEL MENDEZ | O102: 52900000 | Q102: 0 | S102: 0 | T102: 52900000 | U102: 46000000 | V102: 2019-02-01 | W102: 2019-02-01 | X102: 2019-12-31 | Y102: 345 | AD102: X | AF102: 86.95652174 | AG102: =IF(SUMPRODUCT((A$14:A102=A102)*(B$14:B102=B102)*(C$14:C102=C102))>1,0,1) -> 1 | AH102: 0 | AI102: 0 | AJ102: 0 | AK102: 1 | AL102: 0 | AM102: Contratos de prestación de servicios profesionales y de apoyo a la gestión | AN102: Contratación directa | AO102: =IFERROR(VLOOKUP(F102,[1]Tipo!$C$12:$C$27,1,FALSE),"NO") -> Prestación de servicios profesionales y de apoyo a la gestión, o para la ejecución de trabajos artísticos que sólo puedan encomendarse a determinadas personas naturales; | AP102: Inversión | AQ102: 45
A103: 51 | B103: 2019 | C103: FDLSUBA-CPS-051-2019 | D103: Contratos de prestación de servicios profesionales y de apoyo a la gestión | E103: Contratación directa | F103: Prestación de servicios profesionales y de apoyo a la gestión, o para la ejecución de trabajos artísticos que sólo puedan encomendarse a determinadas personas naturales; | G103: PRESTAR SERVICIOS PROFESIONALES ESPECIALIZADOS EN EL AREA DE GESTION DEL DESARROLLO LOCAL DE LA ALCALDIA LOCAL DE SUBA, PARA EL APOYO A LA EJECUCION INTEGRAL DE LOS DIFERENTES PROYECTOS DE INVERSION DESTINADOS A LA INTERVENCION DE LA MALLA VIAL, ESPACIO PUBLICO Y PARQUES DE LA LOCALIDAD DE SUBA. NO HAY 14781. | H103: Inversión | I103: 18 | J103: =IF(ISERROR(VLOOKUP(I103,[1]Eje_Pilar!$C$2:$E$47,2,FALSE))," ",VLOOKUP(I103,[1]Eje_Pilar!$C$2:$E$47,2,FALSE)) -> Mejor movilidad para todos | K103: =IF(ISERROR(VLOOKUP(I103,[1]Eje_Pilar!$C$2:$E$47,3,FALSE))," ",VLOOKUP(I103,[1]Eje_Pilar!$C$2:$E$47,3,FALSE)) -> Pilar 2 Democracía Urbana | L103: 3-3-1-15-02-18-1506-000 | M103: 79460624 | N103: JOSE ARTURO LOPEZ BORRAEZ | O103: 83950000 | Q103: 0 | R103: 1 | S103: 2190000 | T103: 86140000 | U103: 73000000 | V103: 2019-02-01 | W103: 2019-02-01 | X103: 2020-01-21 | Y103: 345 | Z103: 21 | AD103: X | AF103: 84.74576271 | AG103: =IF(SUMPRODUCT((A$14:A103=A103)*(B$14:B103=B103)*(C$14:C103=C103))>1,0,1) -> 1 | AH103: 0 | AI103: 0 | AJ103: 0 | AK103: 1 | AL103: 0 | AM103: Contratos de prestación de servicios profesionales y de apoyo a la gestión | AN103: Contratación directa | AO103: =IFERROR(VLOOKUP(F103,[1]Tipo!$C$12:$C$27,1,FALSE),"NO") -> Prestación de servicios profesionales y de apoyo a la gestión, o para la ejecución de trabajos artísticos que sólo puedan encomendarse a determinadas personas naturales; | AP103: Inversión | AQ103: 18
A104: 53 | B104: 2019 | C104: FDLSUBA-CPS-053-2019 | D104: Contratos de prestación de servicios profesionales y de apoyo a la gestión | E104: Contratación directa | F104: Prestación de servicios profesionales y de apoyo a la gestión, o para la ejecución de trabajos artísticos que sólo puedan encomendarse a determinadas personas naturales; | G104: PRESTAR SERVICIOS DE APOYO A LA GESTION MEDIANTE LABORES ADMINISTRATIVAS Y FINANCIERAS EN LA OFICINA DE CONTABILIDAD EN EL AREA DE GESTION DEL DESARROLLO LOCAL. NO HAY 15018.|40250000|0|0|40250000|34650000|5600000 | H104: Inversión | I104: 45 | J104: =IF(ISERROR(VLOOKUP(I104,[1]Eje_Pilar!$C$2:$E$47,2,FALSE))," ",VLOOKUP(I104,[1]Eje_Pilar!$C$2:$E$47,2,FALSE)) -> Gobernanza e influencia local, regional e internacional | K104: =IF(ISERROR(VLOOKUP(I104,[1]Eje_Pilar!$C$2:$E$47,3,FALSE))," ",VLOOKUP(I104,[1]Eje_Pilar!$C$2:$E$47,3,FALSE)) -> Eje Transversal 4 Gobierno Legitimo, Fortalecimiento Local y Eficiencia | L104: 3-3-1-15-07-45-1478-000 | M104: 1032371046 | N104: LUIS ALEJANDRO GONZALEZ CASTILLO | O104: 40250000 | Q104: 0 | R104: 1 | S104: 700000 | T104: 40950000 | U104: 34650000 | V104: 2019-02-01 | W104: 2019-02-01 | X104: 2020-01-21 | Y104: 345 | Z104: 21 | AD104: X | AF104: 84.61538462 | AG104: =IF(SUMPRODUCT((A$14:A104=A104)*(B$14:B104=B104)*(C$14:C104=C104))>1,0,1) -> 1 | AH104: 0 | AI104: 0 | AJ104: 0 | AK104: 1 | AL104: 0 | AM104: Contratos de prestación de servicios profesionales y de apoyo a la gestión | AN104: Contratación directa | AO104: =IFERROR(VLOOKUP(F104,[1]Tipo!$C$12:$C$27,1,FALSE),"NO") -> Prestación de servicios profesionales y de apoyo a la gestión, o para la ejecución de trabajos artísticos que sólo puedan encomendarse a determinadas personas naturales; | AP104: Inversión | AQ104: 45
A105: 54 | B105: 2019 | C105: FDLSUBA-CPS-054-2019 | D105: Contratos de prestación de servicios profesionales y de apoyo a la gestión | E105: Contratación directa | F105: Prestación de servicios profesionales y de apoyo a la gestión, o para la ejecución de trabajos artísticos que sólo puedan encomendarse a determinadas personas naturales; | G105: PRESTAR LOS SERVICIOS PROFESIONALES PARA EL DESARROLLO DE LAS ACTIVIDADES RELACIONADAS CON LA POBLACION LGBTI, EN CONCORDANCIA CON LA METAS DEL PLAN DE DESARROLLO, EN EL AREA DE GESTION DE DESARROLLO LOCAL DE LA ALCLADIA LOCAL DE SUBA. NO HAY 14988. | H105: Inversión | I105: 45 | J105: =IF(ISERROR(VLOOKUP(I105,[1]Eje_Pilar!$C$2:$E$47,2,FALSE))," ",VLOOKUP(I105,[1]Eje_Pilar!$C$2:$E$47,2,FALSE)) -> Gobernanza e influencia local, regional e internacional | K105: =IF(ISERROR(VLOOKUP(I105,[1]Eje_Pilar!$C$2:$E$47,3,FALSE))," ",VLOOKUP(I105,[1]Eje_Pilar!$C$2:$E$47,3,FALSE)) -> Eje Transversal 4 Gobierno Legitimo, Fortalecimiento Local y Eficiencia | L105: 3-3-1-15-07-45-1483-000 | M105: 52207793 | N105: CARINA HERNANDEZ OCAMPO | O105: 52900000 | Q105: 0 | R105: 1 | S105: 306667 | T105: 53206667 | U105: 44926667 | V105: 2019-02-01 | W105: 2019-02-01 | X105: 2020-01-21 | Y105: 345 | Z105: 21 | AD105: X | AF105: 84.43804044 | AG105: =IF(SUMPRODUCT((A$14:A105=A105)*(B$14:B105=B105)*(C$14:C105=C105))>1,0,1) -> 1 | AH105: 0 | AI105: 0 | AJ105: 0 | AK105: 1 | AL105: 0 | AM105: Contratos de prestación de servicios profesionales y de apoyo a la gestión | AN105: Contratación directa | AO105: =IFERROR(VLOOKUP(F105,[1]Tipo!$C$12:$C$27,1,FALSE),"NO") -> Prestación de servicios profesionales y de apoyo a la gestión, o para la ejecución de trabajos artísticos que sólo puedan encomendarse a determinadas personas naturales; | AP105: Inversión | AQ105: 45
A106: 55 | B106: 2019 | C106: FDLSUBA-CPS-055-2019 | D106: Contratos de prestación de servicios profesionales y de apoyo a la gestión | E106: Contratación directa | F106: Prestación de servicios profesionales y de apoyo a la gestión, o para la ejecución de trabajos artísticos que sólo puedan encomendarse a determinadas personas naturales; | G106: PRESTAR LOS SERVICIOS PROFESIONALES AL DESPACHO DE LA ALCALDIA LOCAL DE SUBA COMO ENLACE EN LOS TEMAS DE GESTION DEL RIESGO DE CONFORMIDAD CON EL MARCO NORMATIVO APLICABLE PARA LA MATERIA. NO HAY 15480. | H106: Inversión | I106: 19 | J106: =IF(ISERROR(VLOOKUP(I106,[1]Eje_Pilar!$C$2:$E$47,2,FALSE))," ",VLOOKUP(I106,[1]Eje_Pilar!$C$2:$E$47,2,FALSE)) -> Seguridad y convivencia para todos | K106: =IF(ISERROR(VLOOKUP(I106,[1]Eje_Pilar!$C$2:$E$47,3,FALSE))," ",VLOOKUP(I106,[1]Eje_Pilar!$C$2:$E$47,3,FALSE)) -> Pilar 3 Construcción de Comunidad y Cultura Ciudadana | L106: 3-3-1-15-03-19-1469-000 | M106: 80512697 | N106: FREDY ARMANDO ORTIZ HERNANDEZ | O106: 72450000 | Q106: 0 | R106: 1 | S106: 1890000 | T106: 74340000 | U106: 63000000 | V106: 2019-02-01 | W106: 2019-02-01 | X106: 2020-01-21 | Y106: 345 | Z106: 21 | AD106: X | AF106: 84.74576271 | AG106: =IF(SUMPRODUCT((A$14:A106=A106)*(B$14:B106=B106)*(C$14:C106=C106))>1,0,1) -> 1 | AH106: 0 | AI106: 0 | AJ106: 0 | AK106: 1 | AL106: 0 | AM106: Contratos de prestación de servicios profesionales y de apoyo a la gestión | AN106: Contratación directa | AO106: =IFERROR(VLOOKUP(F106,[1]Tipo!$C$12:$C$27,1,FALSE),"NO") -> Prestación de servicios profesionales y de apoyo a la gestión, o para la ejecución de trabajos artísticos que sólo puedan encomendarse a determinadas personas naturales; | AP106: Inversión | AQ106: 19
A107: 56 | B107: 2019 | C107: FDLSUBA-CPS-056-2019 | D107: Contratos de prestación de servicios profesionales y de apoyo a la gestión | E107: Contratación directa | F107: Prestación de servicios profesionales y de apoyo a la gestión, o para la ejecución de trabajos artísticos que sólo puedan encomendarse a determinadas personas naturales; | G107: PRESTAR SERVICIOS PROFESIONALES ESPECIALIZADOS EN EL AREA DE GESTION DEL DESARROLLO LOCAL DE LA ALCALDIA LOCAL DE SUBA, PARA EL APOYO A LA EJECUCION INTEGRAL DE LOS DIFERENTES PROYECTOS DE INVERSION DESTINADOS A LA INTERVENCION DE LA MALLA VIAL, ESPACIO PUBLICO Y PARQUES DE LA LOCALIDAD DE SUBA. NO HAY 14781. | H107: Inversión | I107: 18 | J107: =IF(ISERROR(VLOOKUP(I107,[1]Eje_Pilar!$C$2:$E$47,2,FALSE))," ",VLOOKUP(I107,[1]Eje_Pilar!$C$2:$E$47,2,FALSE)) -> Mejor movilidad para todos | K107: =IF(ISERROR(VLOOKUP(I107,[1]Eje_Pilar!$C$2:$E$47,3,FALSE))," ",VLOOKUP(I107,[1]Eje_Pilar!$C$2:$E$47,3,FALSE)) -> Pilar 2 Democracía Urbana | L107: 3-3-1-15-02-18-1506-000 | M107: 79169164 | N107: EDWIN DARIO SANCHEZ GONZALEZ | O107: 83950000 | Q107: 0 | R107: 1 | S107: 1260000 | T107: 85210000 | U107: 72270000 | V107: 2019-02-04 | W107: 2019-02-04 | X107: 2020-01-21 | Y107: 345 | Z107: 21 | AD107: X | AF107: 84.81398897 | AG107: =IF(SUMPRODUCT((A$14:A107=A107)*(B$14:B107=B107)*(C$14:C107=C107))>1,0,1) -> 1 | AH107: 0 | AI107: 0 | AJ107: 0 | AK107: 1 | AL107: 0 | AM107: Contratos de prestación de servicios profesionales y de apoyo a la gestión | AN107: Contratación directa | AO107: =IFERROR(VLOOKUP(F107,[1]Tipo!$C$12:$C$27,1,FALSE),"NO") -> Prestación de servicios profesionales y de apoyo a la gestión, o para la ejecución de trabajos artísticos que sólo puedan encomendarse a determinadas personas naturales; | AP107: Inversión | AQ107: 18
A108: 57 | B108: 2019 | C108: FDLSUBA-CPS-057-2019 | D108: Contratos de prestación de servicios profesionales y de apoyo a la gestión | E108: Contratación directa | F108: Prestación de servicios profesionales y de apoyo a la gestión, o para la ejecución de trabajos artísticos que sólo puedan encomendarse a determinadas personas naturales; | G108: PRESTAR SERVICIOS AL GRUPO DE GESTION ADMINISTRATIVA Y FINANCIERA PARA LA ADMINISTRACION DEL PUNTO VIVE DIGITAL PLUS DE LA LOCALIDAD DE SUBA Y BRINDAR APOYO AL AREA DE PRENSA EN LOS TEMAS RELACIONADOS CON TICS. NO HAY 15042.|52900000|0|0|52900000|43853333|9046667 | H108: Inversión | I108: 36 | J108: =IF(ISERROR(VLOOKUP(I108,[1]Eje_Pilar!$C$2:$E$47,2,FALSE))," ",VLOOKUP(I108,[1]Eje_Pilar!$C$2:$E$47,2,FALSE)) -> Bogotá, una ciudad digital | K108: =IF(ISERROR(VLOOKUP(I108,[1]Eje_Pilar!$C$2:$E$47,3,FALSE))," ",VLOOKUP(I108,[1]Eje_Pilar!$C$2:$E$47,3,FALSE)) -> Eje Transversal 2 Desarrollo Económico basado en el conocimiento | L108: 3-3-1-15-05-36-1504-000 | M108: 1018407461 | N108: DIEGO FERNANDO MARTINEZ GOMEZ | O108: 52900000 | Q108: 0 | T108: 52900000 | U108: 43853333 | V108: 2019-02-06 | W108: 2019-02-06 | X108: 2019-12-31 | Y108: 345 | AD108: X | AF108: 82.89855009 | AG108: =IF(SUMPRODUCT((A$14:A108=A108)*(B$14:B108=B108)*(C$14:C108=C108))>1,0,1) -> 1 | AH108: 0 | AI108: 0 | AJ108: 0 | AK108: 1 | AL108: 0 | AM108: Contratos de prestación de servicios profesionales y de apoyo a la gestión | AN108: Contratación directa | AO108: =IFERROR(VLOOKUP(F108,[1]Tipo!$C$12:$C$27,1,FALSE),"NO") -> Prestación de servicios profesionales y de apoyo a la gestión, o para la ejecución de trabajos artísticos que sólo puedan encomendarse a determinadas personas naturales; | AP108: Inversión | AQ108: 36
A109: 58 | B109: 2019 | C109: FDLSUBA-CPS-058-2019 | D109: Contratos de prestación de servicios profesionales y de apoyo a la gestión | E109: Contratación directa | F109: Prestación de servicios profesionales y de apoyo a la gestión, o para la ejecución de trabajos artísticos que sólo puedan encomendarse a determinadas personas naturales; | G109: PRESTAR SERVICIOS AL GRUPO DE GESTION ADMINISTRATIVA Y FINANCIERA PARA LA ADMINISTRACION DEL PUNTO VIVE DIGITAL PLUS DE LA LOCALIDAD DE SUBA Y BRINDAR APOYO AL AREA DE PRENSA EN LOS TEMAS RELACIONADOS CON TICS. NO HAY 15042.|52900000|0|0|52900000|44466667|8433333 | H109: Inversión | I109: 36 | J109: =IF(ISERROR(VLOOKUP(I109,[1]Eje_Pilar!$C$2:$E$47,2,FALSE))," ",VLOOKUP(I109,[1]Eje_Pilar!$C$2:$E$47,2,FALSE)) -> Bogotá, una ciudad digital | K109: =IF(ISERROR(VLOOKUP(I109,[1]Eje_Pilar!$C$2:$E$47,3,FALSE))," ",VLOOKUP(I109,[1]Eje_Pilar!$C$2:$E$47,3,FALSE)) -> Eje Transversal 2 Desarrollo Económico basado en el conocimiento | L109: 3-3-1-15-05-36-1504-000 | M109: 80853316 | N109: CARLOS ALFONSO ACOSTA GARZON | O109: 52900000 | Q109: 0 | T109: 52900000 | U109: 44466667 | V109: 2019-02-11 | W109: 2019-02-11 | X109: 2019-12-31 | Y109: 345 | Z109: 21 | AD109: X | AF109: 84.05797164 | AG109: =IF(SUMPRODUCT((A$14:A109=A109)*(B$14:B109=B109)*(C$14:C109=C109))>1,0,1) -> 1 | AH109: 0 | AI109: 0 | AJ109: 0 | AK109: 1 | AL109: 0 | AM109: Contratos de prestación de servicios profesionales y de apoyo a la gestión | AN109: Contratación directa | AO109: =IFERROR(VLOOKUP(F109,[1]Tipo!$C$12:$C$27,1,FALSE),"NO") -> Prestación de servicios profesionales y de apoyo a la gestión, o para la ejecución de trabajos artísticos que sólo puedan encomendarse a determinadas personas naturales; | AP109: Inversión | AQ109: 36
A110: 59 | B110: 2019 | C110: FDLSUBA-CPS-059-2019 | D110: Contratos de prestación de servicios profesionales y de apoyo a la gestión | E110: Contratación directa | F110: Prestación de servicios profesionales y de apoyo a la gestión, o para la ejecución de trabajos artísticos que sólo puedan encomendarse a determinadas personas naturales; | G110: PRESTAR SERVICIOS PROFESIONALES EN EL AREA DE GESTION DEL DESARROLLO LOCAL DE LA ALCALDIA LOCAL DE SUBA, EN EL PROCESO DE FORMULACION, EJECUCION, SEGUIMIENTO Y EVALUACION DE LAS POLITICAS, PLANES, PROGRAMAS Y PROYECTOS DE DESARROLLO LOCAL PARA LOGRAR EL CUMPLIMIENTO DEL PLAN DE DESARROLLO LOCAL DE LA VIGENCIA. NO HAY 14849. | H110: Inversión | I110: 45 | J110: =IF(ISERROR(VLOOKUP(I110,[1]Eje_Pilar!$C$2:$E$47,2,FALSE))," ",VLOOKUP(I110,[1]Eje_Pilar!$C$2:$E$47,2,FALSE)) -> Gobernanza e influencia local, regional e internacional | K110: =IF(ISERROR(VLOOKUP(I110,[1]Eje_Pilar!$C$2:$E$47,3,FALSE))," ",VLOOKUP(I110,[1]Eje_Pilar!$C$2:$E$47,3,FALSE)) -> Eje Transversal 4 Gobierno Legitimo, Fortalecimiento Local y Eficiencia | L110: 3-3-1-15-07-45-1478-000 | M110: 1019080604 | N110: FREDDY ORLANDO PUERTO PEÑA | O110: 52900000 | Q110: 0 | S110: 0 | T110: 52900000 | U110: 44160000 | V110: 2019-02-11 | W110: 2019-02-11 | X110: 2019-12-31 | Y110: 345 | Z110: 21 | AD110: X | AF110: 83.47826087 | AG110: =IF(SUMPRODUCT((A$14:A110=A110)*(B$14:B110=B110)*(C$14:C110=C110))>1,0,1) -> 1 | AH110: 0 | AI110: 0 | AJ110: 0 | AK110: 1 | AL110: 0 | AM110: Contratos de prestación de servicios profesionales y de apoyo a la gestión | AN110: Contratación directa | AO110: =IFERROR(VLOOKUP(F110,[1]Tipo!$C$12:$C$27,1,FALSE),"NO") -> Prestación de servicios profesionales y de apoyo a la gestión, o para la ejecución de trabajos artísticos que sólo puedan encomendarse a determinadas personas naturales; | AP110: Inversión | AQ110: 45
A111: 60 | B111: 2019 | C111: FDLSUBA-CPS-060-2019 | D111: Contratos de prestación de servicios profesionales y de apoyo a la gestión | E111: Contratación directa | F111: Prestación de servicios profesionales y de apoyo a la gestión, o para la ejecución de trabajos artísticos que sólo puedan encomendarse a determinadas personas naturales; | G111: APOYAR JURIDICAMENTE LA EJECUCION DE LAS ACCIONES REQUERIDAS PARA LA DEPURACION DE LAS ACTUACIONES ADMINISTRATIVAS QUE CURSAN EN LA ALCALDIA LOCAL. NO HAY 14565. | H111: Inversión | I111: 45 | J111: =IF(ISERROR(VLOOKUP(I111,[1]Eje_Pilar!$C$2:$E$47,2,FALSE))," ",VLOOKUP(I111,[1]Eje_Pilar!$C$2:$E$47,2,FALSE)) -> Gobernanza e influencia local, regional e internacional | K111: =IF(ISERROR(VLOOKUP(I111,[1]Eje_Pilar!$C$2:$E$47,3,FALSE))," ",VLOOKUP(I111,[1]Eje_Pilar!$C$2:$E$47,3,FALSE)) -> Eje Transversal 4 Gobierno Legitimo, Fortalecimiento Local y Eficiencia | L111: 3-3-1-15-07-45-1478-000 | M111: 37626464 | N111: ROSA LILIANA SUAREZ VELOSA | O111: 52900000 | Q111: 0 | S111: 0 | T111: 52900000 | U111: 45386667 | V111: 2019-02-05 | W111: 2019-02-05 | X111: 2019-12-31 | Y111: 345 | Z111: 21 | AD111: X | AF111: 85.79710208 | AG111: =IF(SUMPRODUCT((A$14:A111=A111)*(B$14:B111=B111)*(C$14:C111=C111))>1,0,1) -> 1 | AH111: 0 | AI111: 0 | AJ111: 0 | AK111: 1 | AL111: 0 | AM111: =IFERROR(VLOOKUP(D111,tipo,1,FALSE),"NO") -> Contratos de prestación de servicios profesionales y de apoyo a la gestión | AN111: =IFERROR(VLOOKUP(E111,modal,1,FALSE),"NO") -> Contratación directa | AO111: =IFERROR(VLOOKUP(F111,[1]Tipo!$C$12:$C$27,1,FALSE),"NO") -> Prestación de servicios profesionales y de apoyo a la gestión, o para la ejecución de trabajos artísticos que sólo puedan encomendarse a determinadas personas naturales; | AP111: =IFERROR(VLOOKUP(H111,afectacion,1,FALSE),"NO") -> Inversión | AQ111: =IFERROR(VLOOKUP(I111,programa,1,FALSE),"NO") -> 45
A112: 61 | B112: 2019 | C112: FDLSUBA-CPS-061-2019 | D112: Contratos de prestación de servicios profesionales y de apoyo a la gestión | E112: Contratación directa | F112: Prestación de servicios profesionales y de apoyo a la gestión, o para la ejecución de trabajos artísticos que sólo puedan encomendarse a determinadas personas naturales; | G112: PRESTAR SERVICIOS PROFESIONALES PARA LA OPERACION, PRESTACION Y SEGUIMIENTO Y CUMPLIMIENTO DE LOS PROCEDIMIENTOS ADMINISTRATIVOS, OPERATIVOS Y PROGRAMATICOS DE LOS SERVICIOS SOCIALES DEL PROYECTO DE SUBSIDIO / APOYO ECONOMICO TIPO C, QUE CONTRIBUYAN A LA GARANTIA DE LOS DERECHOS DE LA POBLACION MAYOR EN EL MARCO DE LA POLITICA PUBLICA SOCIAL PARA EL ENVEJECIMIENTO Y LA VEJEZ EN EL DISTRITO CAPITAL A CARGO DE LA ALCALDIA LOCAL DE SUBA. NO HAY 14803. | H112: Inversión | I112: 3 | J112: =IF(ISERROR(VLOOKUP(I112,[1]Eje_Pilar!$C$2:$E$47,2,FALSE))," ",VLOOKUP(I112,[1]Eje_Pilar!$C$2:$E$47,2,FALSE)) -> Igualdad y autonomía para una Bogotá incluyente | K112: =IF(ISERROR(VLOOKUP(I112,[1]Eje_Pilar!$C$2:$E$47,3,FALSE))," ",VLOOKUP(I112,[1]Eje_Pilar!$C$2:$E$47,3,FALSE)) -> Pilar 1 Igualdad de Calidad de Vida | L112: 3-3-1-15-01-03-1427-000 | M112: 52896849 | N112: LINDSAY MIREYA BETANCUR MAYORGA | O112: 52900000 | Q112: 0 | R112: 1 | S112: 920000 | T112: =+O112+Q112+S112 -> 53820000 | U112: 45540000 | V112: 2019-02-04 | W112: 2019-02-04 | X112: 2020-01-21 | Y112: 345 | Z112: 21 | AD112: X | AF112: 84.61538462 | AG112: =IF(SUMPRODUCT((A$14:A112=A112)*(B$14:B112=B112)*(C$14:C112=C112))>1,0,1) -> 1 | AH112: 0 | AI112: 0 | AJ112: 0 | AK112: 1 | AL112: 0 | AM112: Contratos de prestación de servicios profesionales y de apoyo a la gestión | AN112: Contratación directa | AO112: =IFERROR(VLOOKUP(F112,[1]Tipo!$C$12:$C$27,1,FALSE),"NO") -> Prestación de servicios profesionales y de apoyo a la gestión, o para la ejecución de trabajos artísticos que sólo puedan encomendarse a determinadas personas naturales; | AP112: Inversión | AQ112: 3
A113: 62 | B113: 2019 | C113: FDLSUBA-CPS-062-2019 | D113: Contratos de prestación de servicios profesionales y de apoyo a la gestión | E113: Contratación directa | F113: Prestación de servicios profesionales y de apoyo a la gestión, o para la ejecución de trabajos artísticos que sólo puedan encomendarse a determinadas personas naturales; | G113: PRESTAR LOS SERVICIOS PROFESIONALES EN LA ALCALDIA LOCAL DE SUBA, PRINCIPALMENTE PARA REALIZAR ACCIONES PEDAGOGICAS PREVENTIVAS Y DE SENSIBILIZACION PARA EL ACATAMIENTO VOLUNTARIO DE LAS NORMAS EN LA LOCALIDAD. NO HAY 15412. | H113: Inversión | I113: 45 | J113: =IF(ISERROR(VLOOKUP(I113,[1]Eje_Pilar!$C$2:$E$47,2,FALSE))," ",VLOOKUP(I113,[1]Eje_Pilar!$C$2:$E$47,2,FALSE)) -> Gobernanza e influencia local, regional e internacional | K113: =IF(ISERROR(VLOOKUP(I113,[1]Eje_Pilar!$C$2:$E$47,3,FALSE))," ",VLOOKUP(I113,[1]Eje_Pilar!$C$2:$E$47,3,FALSE)) -> Eje Transversal 4 Gobierno Legitimo, Fortalecimiento Local y Eficiencia | L113: 3-3-1-15-07-45-1481-000 | M113: 51602138 | N113: BEATRIZ HELENA ROZO MORALES | O113: 52900000 | Q113: 0 | R113: 1 | S113: 766667 | T113: 53666667 | U113: 45386667 | V113: 2019-02-05 | W113: 2019-02-05 | X113: 2020-01-21 | Y113: 345 | Z113: 21 | AD113: X | AF113: 84.57142867 | AG113: =IF(SUMPRODUCT((A$14:A113=A113)*(B$14:B113=B113)*(C$14:C113=C113))>1,0,1) -> 1 | AH113: 0 | AI113: 0 | AJ113: 0 | AK113: 1 | AL113: 0 | AM113: Contratos de prestación de servicios profesionales y de apoyo a la gestión | AN113: Contratación directa | AO113: =IFERROR(VLOOKUP(F113,[1]Tipo!$C$12:$C$27,1,FALSE),"NO") -> Prestación de servicios profesionales y de apoyo a la gestión, o para la ejecución de trabajos artísticos que sólo puedan encomendarse a determinadas personas naturales; | AP113: Inversión | AQ113: 45
A114: 63 | B114: 2019 | C114: FDLSUBA-CPS-063-2019 | D114: Contratos de prestación de servicios profesionales y de apoyo a la gestión | E114: Contratación directa | F114: Prestación de servicios profesionales y de apoyo a la gestión, o para la ejecución de trabajos artísticos que sólo puedan encomendarse a determinadas personas naturales; | G114: PRESTAR LOS SERVICIOS PROFESIONALES EN LA ALCALDIA LOCAL DE SUBA, PRINCIPALMENTE PARA REALIZAR ACCIONES PEDAGOGICAS PREVENTIVAS Y DE SENSIBILIZACION PARA EL ACATAMIENTO VOLUNTARIO DE LAS NORMAS EN LA LOCALIDAD. NO HAY 15412. | H114: Inversión | I114: 45 | J114: =IF(ISERROR(VLOOKUP(I114,[1]Eje_Pilar!$C$2:$E$47,2,FALSE))," ",VLOOKUP(I114,[1]Eje_Pilar!$C$2:$E$47,2,FALSE)) -> Gobernanza e influencia local, regional e internacional | K114: =IF(ISERROR(VLOOKUP(I114,[1]Eje_Pilar!$C$2:$E$47,3,FALSE))," ",VLOOKUP(I114,[1]Eje_Pilar!$C$2:$E$47,3,FALSE)) -> Eje Transversal 4 Gobierno Legitimo, Fortalecimiento Local y Eficiencia | L114: 3-3-1-15-07-45-1481-000 | M114: 26872947 | N114: SARA NOHELIA VELASQUEZ GUERRA | O114: 52900000 | Q114: 0 | S114: 0 | T114: 52900000 | U114: 45386667 | V114: 2019-02-05 | W114: 2019-02-05 | X114: 2019-12-31 | Y114: 345 | AD114: X | AF114: 85.79710208 | AG114: =IF(SUMPRODUCT((A$14:A114=A114)*(B$14:B114=B114)*(C$14:C114=C114))>1,0,1) -> 1 | AH114: 0 | AI114: 0 | AJ114: 0 | AK114: 1 | AL114: 0 | AM114: Contratos de prestación de servicios profesionales y de apoyo a la gestión | AN114: Contratación directa | AO114: =IFERROR(VLOOKUP(F114,[1]Tipo!$C$12:$C$27,1,FALSE),"NO") -> Prestación de servicios profesionales y de apoyo a la gestión, o para la ejecución de trabajos artísticos que sólo puedan encomendarse a determinadas personas naturales; | AP114: Inversión | AQ114: 45
A115: 64 | B115: 2019 | C115: FDLSUBA-CPS-064-2019 | D115: Contratos de prestación de servicios profesionales y de apoyo a la gestión | E115: Contratación directa | F115: Prestación de servicios profesionales y de apoyo a la gestión, o para la ejecución de trabajos artísticos que sólo puedan encomendarse a determinadas personas naturales; | G115: PRESTAR LOS SERVICIOS PROFESIONALES EN LA ALCALDIA LOCAL DE SUBA, PRINCIPALMENTE PARA REALIZAR ACCIONES PEDAGOGICAS PREVENTIVAS Y DE SENSIBILIZACION PARA EL ACATAMIENTO VOLUNTARIO DE LAS NORMAS EN LA LOCALIDAD. NO HAY 15412. | H115: Inversión | I115: 45 | J115: =IF(ISERROR(VLOOKUP(I115,[1]Eje_Pilar!$C$2:$E$47,2,FALSE))," ",VLOOKUP(I115,[1]Eje_Pilar!$C$2:$E$47,2,FALSE)) -> Gobernanza e influencia local, regional e internacional | K115: =IF(ISERROR(VLOOKUP(I115,[1]Eje_Pilar!$C$2:$E$47,3,FALSE))," ",VLOOKUP(I115,[1]Eje_Pilar!$C$2:$E$47,3,FALSE)) -> Eje Transversal 4 Gobierno Legitimo, Fortalecimiento Local y Eficiencia | L115: 3-3-1-15-07-45-1481-000 | M115: 79648974 | N115: JUAN CARLOS MORENO JIMENEZ | O115: 52900000 | Q115: 0 | R115: 1 | S115: 766667 | T115: 53666667 | U115: 45386667 | V115: 2019-02-05 | W115: 2019-02-05 | X115: 2020-01-21 | Y115: 345 | Z115: 21 | AD115: X | AF115: 84.57142867 | AG115: =IF(SUMPRODUCT((A$14:A115=A115)*(B$14:B115=B115)*(C$14:C115=C115))>1,0,1) -> 1 | AH115: 0 | AI115: 0 | AJ115: 0 | AK115: 1 | AL115: 0 | AM115: Contratos de prestación de servicios profesionales y de apoyo a la gestión | AN115: Contratación directa | AO115: =IFERROR(VLOOKUP(F115,[1]Tipo!$C$12:$C$27,1,FALSE),"NO") -> Prestación de servicios profesionales y de apoyo a la gestión, o para la ejecución de trabajos artísticos que sólo puedan encomendarse a determinadas personas naturales; | AP115: Inversión | AQ115: 45
A116: 65 | B116: 2019 | C116: FDLSUBA-CPS-065-2019 | D116: Contratos de prestación de servicios profesionales y de apoyo a la gestión | E116: Contratación directa | F116: Prestación de servicios profesionales y de apoyo a la gestión, o para la ejecución de trabajos artísticos que sólo puedan encomendarse a determinadas personas naturales; | G116: PRESTAR LOS SERVICIOS PROFESIONALES EN LA ALCALDIA LOCAL DE SUBA, PRINCIPALMENTE PARA REALIZAR ACCIONES PEDAGOGICAS PREVENTIVAS Y DE SENSIBILIZACION PARA EL ACATAMIENTO VOLUNTARIO DE LAS NORMAS EN LA LOCALIDAD. NO HAY 15412. | H116: Inversión | I116: 45 | J116: =IF(ISERROR(VLOOKUP(I116,[1]Eje_Pilar!$C$2:$E$47,2,FALSE))," ",VLOOKUP(I116,[1]Eje_Pilar!$C$2:$E$47,2,FALSE)) -> Gobernanza e influencia local, regional e internacional | K116: =IF(ISERROR(VLOOKUP(I116,[1]Eje_Pilar!$C$2:$E$47,3,FALSE))," ",VLOOKUP(I116,[1]Eje_Pilar!$C$2:$E$47,3,FALSE)) -> Eje Transversal 4 Gobierno Legitimo, Fortalecimiento Local y Eficiencia | L116: 3-3-1-15-07-45-1481-000 | M116: 77008995 | N116: CARLOS ARDILA VEGA | O116: 52900000 | Q116: 0 | S116: 0 | T116: 52900000 | U116: 45386667 | V116: 2019-02-05 | W116: 2019-02-05 | X116: 2019-12-31 | Y116: 345 | AD116: X | AF116: 85.79710208 | AG116: =IF(SUMPRODUCT((A$14:A116=A116)*(B$14:B116=B116)*(C$14:C116=C116))>1,0,1) -> 1 | AH116: 0 | AI116: 0 | AJ116: 0 | AK116: 1 | AL116: 0 | AM116: Contratos de prestación de servicios profesionales y de apoyo a la gestión | AN116: Contratación directa | AO116: =IFERROR(VLOOKUP(F116,[1]Tipo!$C$12:$C$27,1,FALSE),"NO") -> Prestación de servicios profesionales y de apoyo a la gestión, o para la ejecución de trabajos artísticos que sólo puedan encomendarse a determinadas personas naturales; | AP116: Inversión | AQ116: 45
A117: 66 | B117: 2019 | C117: FDLSUBA-CPS-066-2019 | D117: Contratos de prestación de servicios profesionales y de apoyo a la gestión | E117: Contratación directa | F117: Prestación de servicios profesionales y de apoyo a la gestión, o para la ejecución de trabajos artísticos que sólo puedan encomendarse a determinadas personas naturales; | G117: PRESTAR SERVICIOS DE APOYO A LOS ARCHIVOS DE GESTION DE LA ENTIDAD EN LA IMPLEMENTACION DE LOS PROCESOS DE CLASIFICACION, ORDENACION, SELECCION NATURAL, FOLIACION, IDENTIFICACION, LEVANTAMIENTO DE INVENTARIOS, ALMACENAMIENTO Y APLICACION DE PROTOCOLOS DE ELIMINACION Y TRANSFERENCIAS DOCUMENTALES. NO HAY 15414. | H117: Inversión | I117: 45 | J117: =IF(ISERROR(VLOOKUP(I117,[1]Eje_Pilar!$C$2:$E$47,2,FALSE))," ",VLOOKUP(I117,[1]Eje_Pilar!$C$2:$E$47,2,FALSE)) -> Gobernanza e influencia local, regional e internacional | K117: =IF(ISERROR(VLOOKUP(I117,[1]Eje_Pilar!$C$2:$E$47,3,FALSE))," ",VLOOKUP(I117,[1]Eje_Pilar!$C$2:$E$47,3,FALSE)) -> Eje Transversal 4 Gobierno Legitimo, Fortalecimiento Local y Eficiencia | L117: 3-3-1-15-07-45-1478-000 | M117: 1019021542 | N117: YENNI MARCELA DURAN GOMEZ | O117: 24024000 | Q117: 0 | R117: 1 | S117: 1310400 | T117: 25334400 | U117: 21403200 | V117: 2019-02-06 | W117: 2019-02-06 | X117: 2020-01-21 | Y117: 345 | Z117: 21 | AD117: X | AF117: 84.48275862 | AG117: =IF(SUMPRODUCT((A$14:A117=A117)*(B$14:B117=B117)*(C$14:C117=C117))>1,0,1) -> 1 | AH117: 0 | AI117: 0 | AJ117: 0 | AK117: 1 | AL117: 0 | AM117: Contratos de prestación de servicios profesionales y de apoyo a la gestión | AN117: Contratación directa | AO117: =IFERROR(VLOOKUP(F117,[1]Tipo!$C$12:$C$27,1,FALSE),"NO") -> Prestación de servicios profesionales y de apoyo a la gestión, o para la ejecución de trabajos artísticos que sólo puedan encomendarse a determinadas personas naturales; | AP117: Inversión | AQ117: 45
A118: 67 | B118: 2019 | C118: FDLSUBA-CPS-067-2019 | D118: Contratos de prestación de servicios profesionales y de apoyo a la gestión | E118: Contratación directa | F118: Prestación de servicios profesionales y de apoyo a la gestión, o para la ejecución de trabajos artísticos que sólo puedan encomendarse a determinadas personas naturales; | G118: PRESTAR SERVICIOS DE APOYO A LOS ARCHIVOS DE GESTION DE LA ENTIDAD EN LA IMPLEMENTACION DE LOS PROCESOS DE CLASIFICACION, ORDENACION, SELECCION NATURAL, FOLIACION, IDENTIFICACION, LEVANTAMIENTO DE INVENTARIOS, ALMACENAMIENTO Y APLICACION DE PROTOCOLOS DE ELIMINACION Y TRANSFERENCIAS DOCUMENTALES. NO HAY 15414. | H118: Inversión | I118: 45 | J118: =IF(ISERROR(VLOOKUP(I118,[1]Eje_Pilar!$C$2:$E$47,2,FALSE))," ",VLOOKUP(I118,[1]Eje_Pilar!$C$2:$E$47,2,FALSE)) -> Gobernanza e influencia local, regional e internacional | K118: =IF(ISERROR(VLOOKUP(I118,[1]Eje_Pilar!$C$2:$E$47,3,FALSE))," ",VLOOKUP(I118,[1]Eje_Pilar!$C$2:$E$47,3,FALSE)) -> Eje Transversal 4 Gobierno Legitimo, Fortalecimiento Local y Eficiencia | L118: 3-3-1-15-07-45-1478-000 | M118: 52396441 | N118: CLAUDIA ALEXANDRA CIFUENTES ORTIZ | O118: 25116000 | Q118: 0 | S118: 0 | T118: 25116000 | U118: 9609600 | V118: 2019-02-04 | W118: 2019-02-04 | X118: 2019-12-31 | Y118: 345 | AD118: X | AF118: 38.26086957 | AG118: =IF(SUMPRODUCT((A$14:A118=A118)*(B$14:B118=B118)*(C$14:C118=C118))>1,0,1) -> 1 | AH118: 0 | AI118: 0 | AJ118: 0 | AK118: 1 | AL118: 0 | AM118: Contratos de prestación de servicios profesionales y de apoyo a la gestión | AN118: Contratación directa | AO118: =IFERROR(VLOOKUP(F118,[1]Tipo!$C$12:$C$27,1,FALSE),"NO") -> Prestación de servicios profesionales y de apoyo a la gestión, o para la ejecución de trabajos artísticos que sólo puedan encomendarse a determinadas personas naturales; | AP118: Inversión | AQ118: 45
A119: 68 | B119: 2019 | C119: FDLSUBA-CPS-068-2019 | D119: Contratos de prestación de servicios profesionales y de apoyo a la gestión | E119: Contratación directa | F119: Prestación de servicios profesionales y de apoyo a la gestión, o para la ejecución de trabajos artísticos que sólo puedan encomendarse a determinadas personas naturales; | G119: PRESTAR SERVICIOS DE APOYO A LOS ARCHIVOS DE GESTION DE LA ENTIDAD EN LA IMPLEMENTACION DE LOS PROCESOS DE CLASIFICACION, ORDENACION, SELECCION NATURAL, FOLIACION, IDENTIFICACION, LEVANTAMIENTO DE INVENTARIOS, ALMACENAMIENTO Y APLICACION DE PROTOCOLOS DE ELIMINACION Y TRANSFERENCIAS DOCUMENTALES. NO HAY 15414. | H119: Inversión | I119: 45 | J119: =IF(ISERROR(VLOOKUP(I119,[1]Eje_Pilar!$C$2:$E$47,2,FALSE))," ",VLOOKUP(I119,[1]Eje_Pilar!$C$2:$E$47,2,FALSE)) -> Gobernanza e influencia local, regional e internacional | K119: =IF(ISERROR(VLOOKUP(I119,[1]Eje_Pilar!$C$2:$E$47,3,FALSE))," ",VLOOKUP(I119,[1]Eje_Pilar!$C$2:$E$47,3,FALSE)) -> Eje Transversal 4 Gobierno Legitimo, Fortalecimiento Local y Eficiencia | L119: 3-3-1-15-07-45-1478-000 | M119: 53003164 | N119: ANGELICA MARIA NIETO CASALLAS | O119: 25116000 | Q119: 0 | S119: 0 | T119: 25116000 | U119: 21621600 | V119: 2019-02-04 | W119: 2019-02-04 | X119: 2019-12-31 | Y119: 345 | AD119: X | AF119: 86.08695652 | AG119: =IF(SUMPRODUCT((A$14:A119=A119)*(B$14:B119=B119)*(C$14:C119=C119))>1,0,1) -> 1 | AH119: 0 | AI119: 0 | AJ119: 0 | AK119: 1 | AL119: 0 | AM119: Contratos de prestación de servicios profesionales y de apoyo a la gestión | AN119: Contratación directa | AO119: =IFERROR(VLOOKUP(F119,[1]Tipo!$C$12:$C$27,1,FALSE),"NO") -> Prestación de servicios profesionales y de apoyo a la gestión, o para la ejecución de trabajos artísticos que sólo puedan encomendarse a determinadas personas naturales; | AP119: Inversión | AQ119: 45
A120: 69 | B120: 2019 | C120: FDLSUBA-CPS-069-2019 | D120: Contratos de prestación de servicios profesionales y de apoyo a la gestión | E120: Contratación directa | F120: Prestación de servicios profesionales y de apoyo a la gestión, o para la ejecución de trabajos artísticos que sólo puedan encomendarse a determinadas personas naturales; | G120: PRESTAR SERVICIOS PROFESIONALES ESPECIALIZADOS EN EL AREA DE GESTION DEL DESARROLLO LOCAL, DE LA ALCALDIA LOCAL DE SUBA EN EL PROCESO DE FORMULACION EJECUCION SEGUIMIENTO Y EVALUACION DE LAS POLITICAS, PLANES, PROGRAMAS Y PROYECTOS DE DESARROLLO LOCAL, PARA LOGRAR EL CUMPLIMIENTO DE LAS METAS DE DESARROLLO LOCAL DE LA VIGENCIA. NO HAY 15854. | H120: Inversión | I120: 45 | J120: =IF(ISERROR(VLOOKUP(I120,[1]Eje_Pilar!$C$2:$E$47,2,FALSE))," ",VLOOKUP(I120,[1]Eje_Pilar!$C$2:$E$47,2,FALSE)) -> Gobernanza e influencia local, regional e internacional | K120: =IF(ISERROR(VLOOKUP(I120,[1]Eje_Pilar!$C$2:$E$47,3,FALSE))," ",VLOOKUP(I120,[1]Eje_Pilar!$C$2:$E$47,3,FALSE)) -> Eje Transversal 4 Gobierno Legitimo, Fortalecimiento Local y Eficiencia | L120: 3-3-1-15-07-45-1478-000 | M120: 77192494 | N120: ARIEL COHEN RIVERA | O120: 92000000 | Q120: 0 | R120: 1 | S120: 1600000 | T120: 93600000 | U120: 79200000 | V120: 2019-02-04 | W120: 2019-02-04 | X120: 2020-01-21 | Y120: 345 | Z120: 21 | AD120: X | AF120: 84.61538462 | AG120: =IF(SUMPRODUCT((A$14:A120=A120)*(B$14:B120=B120)*(C$14:C120=C120))>1,0,1) -> 1 | AH120: 0 | AI120: 0 | AJ120: 0 | AK120: 1 | AL120: 0 | AM120: Contratos de prestación de servicios profesionales y de apoyo a la gestión | AN120: Contratación directa | AO120: =IFERROR(VLOOKUP(F120,[1]Tipo!$C$12:$C$27,1,FALSE),"NO") -> Prestación de servicios profesionales y de apoyo a la gestión, o para la ejecución de trabajos artísticos que sólo puedan encomendarse a determinadas personas naturales; | AP120: Inversión | AQ120: 45
A121: 70 | B121: 2019 | C121: FDLSUBA-CPS-070-2019 | D121: Contratos de prestación de servicios profesionales y de apoyo a la gestión | E121: Contratación directa | F121: Prestación de servicios profesionales y de apoyo a la gestión, o para la ejecución de trabajos artísticos que sólo puedan encomendarse a determinadas personas naturales; | G121: PRESTAR SERVICIOS DE APOYO EN LAS ACTIVIDADES ADMINISTRATIVAS EN EL AREA DE GESTION DEL DESARROLLO LOCAL, PARA EL LOGRO DE LAS METAS DE GESTION DE LA VIGENCIA. NO HAY 15855. | H121: Inversión | I121: 45 | J121: =IF(ISERROR(VLOOKUP(I121,[1]Eje_Pilar!$C$2:$E$47,2,FALSE))," ",VLOOKUP(I121,[1]Eje_Pilar!$C$2:$E$47,2,FALSE)) -> Gobernanza e influencia local, regional e internacional | K121: =IF(ISERROR(VLOOKUP(I121,[1]Eje_Pilar!$C$2:$E$47,3,FALSE))," ",VLOOKUP(I121,[1]Eje_Pilar!$C$2:$E$47,3,FALSE)) -> Eje Transversal 4 Gobierno Legitimo, Fortalecimiento Local y Eficiencia | L121: 3-3-1-15-07-45-1478-000 | M121: 52588770 | N121: BLANCA PILAR SUAREZ CHACON | O121: 40250000 | Q121: 0 | R121: 1 | S121: 700000 | T121: 40950000 | U121: 34650000 | V121: 2019-02-04 | W121: 2019-02-04 | X121: 2020-01-21 | Y121: 345 | Z121: 21 | AD121: X | AF121: 84.61538462 | AG121: =IF(SUMPRODUCT((A$14:A121=A121)*(B$14:B121=B121)*(C$14:C121=C121))>1,0,1) -> 1 | AH121: 0 | AI121: 0 | AJ121: 0 | AK121: 1 | AL121: 0 | AM121: Contratos de prestación de servicios profesionales y de apoyo a la gestión | AN121: Contratación directa | AO121: =IFERROR(VLOOKUP(F121,[1]Tipo!$C$12:$C$27,1,FALSE),"NO") -> Prestación de servicios profesionales y de apoyo a la gestión, o para la ejecución de trabajos artísticos que sólo puedan encomendarse a determinadas personas naturales; | AP121: Inversión | AQ121: 45
A122: 71 | B122: 2019 | C122: FDLSUBA-CPS-071-2019 | D122: Contratos de prestación de servicios profesionales y de apoyo a la gestión | E122: Contratación directa | F122: Prestación de servicios profesionales y de apoyo a la gestión, o para la ejecución de trabajos artísticos que sólo puedan encomendarse a determinadas personas naturales; | G122: PRESTAR LOS SERVICIOS PROFESIONALES PARA COORDINAR, LIDERAR Y ASESORAR LOS PLANES Y ESTRATEGIAS DE COMUNICACION INTERNA Y EXTERNA PARA LA DIVULGACION DE LOS PROGRAMAS, PROYECTOS Y ACTIVIDADES DE LA ALCALDIA LOCAL DE SUBA. NO HAY 15272. | H122: Inversión | I122: 45 | J122: =IF(ISERROR(VLOOKUP(I122,[1]Eje_Pilar!$C$2:$E$47,2,FALSE))," ",VLOOKUP(I122,[1]Eje_Pilar!$C$2:$E$47,2,FALSE)) -> Gobernanza e influencia local, regional e internacional | K122: =IF(ISERROR(VLOOKUP(I122,[1]Eje_Pilar!$C$2:$E$47,3,FALSE))," ",VLOOKUP(I122,[1]Eje_Pilar!$C$2:$E$47,3,FALSE)) -> Eje Transversal 4 Gobierno Legitimo, Fortalecimiento Local y Eficiencia | L122: 3-3-1-15-07-45-1478-000 | M122: 52869347 | N122: CAROLINA RESTREPO ARIAS | O122: 79350000 | Q122: 0 | S122: 0 | T122: 79350000 | U122: 66700000 | V122: 2019-02-05 | W122: 2019-02-05 | X122: 2020-01-21 | Y122: 345 | Z122: 21 | AD122: X | AF122: 84.05797101 | AG122: =IF(SUMPRODUCT((A$14:A122=A122)*(B$14:B122=B122)*(C$14:C122=C122))>1,0,1) -> 1 | AH122: 0 | AI122: 0 | AJ122: 0 | AK122: 1 | AL122: 0 | AM122: Contratos de prestación de servicios profesionales y de apoyo a la gestión | AN122: Contratación directa | AO122: =IFERROR(VLOOKUP(F122,[1]Tipo!$C$12:$C$27,1,FALSE),"NO") -> Prestación de servicios profesionales y de apoyo a la gestión, o para la ejecución de trabajos artísticos que sólo puedan encomendarse a determinadas personas naturales; | AP122: Inversión | AQ122: 45
A123: 72 | B123: 2019 | C123: FDLSUBA-CPS-072-2019 | D123: Contratos de prestación de servicios profesionales y de apoyo a la gestión | E123: Contratación directa | F123: Prestación de servicios profesionales y de apoyo a la gestión, o para la ejecución de trabajos artísticos que sólo puedan encomendarse a determinadas personas naturales; | G123: PRESTAR SERVICIOS PROFESIONALES ESPECIALIZADOS EN EL AREA DE GESTION DEL DESARROLLO LOCAL DE LA ALCALDIA LOCAL DE SUBA EN EL AREA DE PLANEACION, PARA LOGRAR EL CUMPLIMIENTO DE LAS METAS DEL PLAN DE DESARROLLO LOCAL DE LA VIGENCIA. NO HAY 15856. | H123: Inversión | I123: 45 | J123: =IF(ISERROR(VLOOKUP(I123,[1]Eje_Pilar!$C$2:$E$47,2,FALSE))," ",VLOOKUP(I123,[1]Eje_Pilar!$C$2:$E$47,2,FALSE)) -> Gobernanza e influencia local, regional e internacional | K123: =IF(ISERROR(VLOOKUP(I123,[1]Eje_Pilar!$C$2:$E$47,3,FALSE))," ",VLOOKUP(I123,[1]Eje_Pilar!$C$2:$E$47,3,FALSE)) -> Eje Transversal 4 Gobierno Legitimo, Fortalecimiento Local y Eficiencia | L123: 3-3-1-15-07-45-1478-000 | M123: 80257080 | N123: YURY ANDRES SANTOS PETREL | O123: 80948500 | Q123: 0 | R123: 1 | S123: 1407800 | T123: 82356300 | U123: 69686100 | V123: 2019-02-04 | W123: 2019-02-04 | X123: 2020-01-21 | Y123: 345 | Z123: 21 | AD123: X | AF123: 84.61538462 | AG123: =IF(SUMPRODUCT((A$14:A123=A123)*(B$14:B123=B123)*(C$14:C123=C123))>1,0,1) -> 1 | AH123: 0 | AI123: 0 | AJ123: 0 | AK123: 1 | AL123: 0 | AM123: Contratos de prestación de servicios profesionales y de apoyo a la gestión | AN123: Contratación directa | AO123: =IFERROR(VLOOKUP(F123,[1]Tipo!$C$12:$C$27,1,FALSE),"NO") -> Prestación de servicios profesionales y de apoyo a la gestión, o para la ejecución de trabajos artísticos que sólo puedan encomendarse a determinadas personas naturales; | AP123: Inversión | AQ123: 45
A124: 73 | B124: 2019 | C124: FDLSUBA-CPS-073-2019 | D124: Contratos de prestación de servicios profesionales y de apoyo a la gestión | E124: Contratación directa | F124: Prestación de servicios profesionales y de apoyo a la gestión, o para la ejecución de trabajos artísticos que sólo puedan encomendarse a determinadas personas naturales; | G124: PRESTAR SERVICIOS PROFESIONALES ESPECIALIZADOS EN EL AREA DE GESTION DEL DESARROLLO LOCAL DE LA ALCALDIA LOCAL DE SUBA EN EL AREA DE PLANEACION, PARA LOGRAR EL CUMPLIMIENTO DE LAS METAS DEL PLAN DE DESARROLLO LOCAL DE LA VIGENCIA. NO HAY 15856. | H124: Inversión | I124: 45 | J124: =IF(ISERROR(VLOOKUP(I124,[1]Eje_Pilar!$C$2:$E$47,2,FALSE))," ",VLOOKUP(I124,[1]Eje_Pilar!$C$2:$E$47,2,FALSE)) -> Gobernanza e influencia local, regional e internacional | K124: =IF(ISERROR(VLOOKUP(I124,[1]Eje_Pilar!$C$2:$E$47,3,FALSE))," ",VLOOKUP(I124,[1]Eje_Pilar!$C$2:$E$47,3,FALSE)) -> Eje Transversal 4 Gobierno Legitimo, Fortalecimiento Local y Eficiencia | L124: 3-3-1-15-07-45-1478-000 | M124: 79230850 | N124: LUIS JAVIER GOUSY AMORTEGUI | O124: 80948500 | Q124: 0 | R124: 1 | S124: 1407800 | T124: 82356300 | U124: 69686100 | V124: 2019-02-04 | W124: 2019-02-04 | X124: 2020-01-21 | Y124: 345 | Z124: 21 | AD124: X | AF124: 84.61538462 | AG124: =IF(SUMPRODUCT((A$14:A124=A124)*(B$14:B124=B124)*(C$14:C124=C124))>1,0,1) -> 1 | AH124: 0 | AI124: 0 | AJ124: 0 | AK124: 1 | AL124: 0 | AM124: Contratos de prestación de servicios profesionales y de apoyo a la gestión | AN124: Contratación directa | AO124: =IFERROR(VLOOKUP(F124,[1]Tipo!$C$12:$C$27,1,FALSE),"NO") -> Prestación de servicios profesionales y de apoyo a la gestión, o para la ejecución de trabajos artísticos que sólo puedan encomendarse a determinadas personas naturales; | AP124: Inversión | AQ124: 45
A125: 74 | B125: 2019 | C125: FDLSUBA-CPS-074-2019 | D125: Contratos de prestación de servicios profesionales y de apoyo a la gestión | E125: Contratación directa | F125: Prestación de servicios profesionales y de apoyo a la gestión, o para la ejecución de trabajos artísticos que sólo puedan encomendarse a determinadas personas naturales; | G125: PRESTAR SERVICIOS PROFESIONALES AL AREA DE GESTION DEL DESARROLLO LOCAL DE LA ALCALDIA LOCAL DE SUBA, PARA APOYAR LA SUPERVISION DE CONTRATOS DE LOS PROYECTOS QUE LE SEAN ASIGNADOS. NO HAY 14591. | H125: Inversión | I125: 45 | J125: =IF(ISERROR(VLOOKUP(I125,[1]Eje_Pilar!$C$2:$E$47,2,FALSE))," ",VLOOKUP(I125,[1]Eje_Pilar!$C$2:$E$47,2,FALSE)) -> Gobernanza e influencia local, regional e internacional | K125: =IF(ISERROR(VLOOKUP(I125,[1]Eje_Pilar!$C$2:$E$47,3,FALSE))," ",VLOOKUP(I125,[1]Eje_Pilar!$C$2:$E$47,3,FALSE)) -> Eje Transversal 4 Gobierno Legitimo, Fortalecimiento Local y Eficiencia | L125: 3-3-1-15-07-45-1478-000 | M125: 77020940 | N125: ENRIQUE ALFREDO HERRERA ARAUJO | O125: 72450000 | Q125: 0 | R125: 1 | S125: 840000 | T125: 73290000 | U125: 61950000 | V125: 2019-02-05 | W125: 2019-02-05 | X125: 2020-01-21 | Y125: 345 | Z125: 21 | AD125: X | AF125: 84.52722063 | AG125: =IF(SUMPRODUCT((A$14:A125=A125)*(B$14:B125=B125)*(C$14:C125=C125))>1,0,1) -> 1 | AH125: 0 | AI125: 0 | AJ125: 0 | AK125: 1 | AL125: 0 | AM125: Contratos de prestación de servicios profesionales y de apoyo a la gestión | AN125: Contratación directa | AO125: =IFERROR(VLOOKUP(F125,[1]Tipo!$C$12:$C$27,1,FALSE),"NO") -> Prestación de servicios profesionales y de apoyo a la gestión, o para la ejecución de trabajos artísticos que sólo puedan encomendarse a determinadas personas naturales; | AP125: Inversión | AQ125: 45
A126: 75 | B126: 2019 | C126: FDLSUBA-CPS-075-2019 | D126: Contratos de prestación de servicios profesionales y de apoyo a la gestión | E126: Contratación directa | F126: Prestación de servicios profesionales y de apoyo a la gestión, o para la ejecución de trabajos artísticos que sólo puedan encomendarse a determinadas personas naturales; | G126: ¿Prestar los servicios asistenciales en la Alcaldía Local de Suba, especialmente para apoyar la gestión documental del área de Gestión Policiva, acompañando al equipo jurídico de Depuración en las labores operativas que genera el proceso de impulso de las actuaciones administrativas existentes en la localidad.¿. NO HAY 14571. | H126: Inversión | I126: 45 | J126: =IF(ISERROR(VLOOKUP(I126,[1]Eje_Pilar!$C$2:$E$47,2,FALSE))," ",VLOOKUP(I126,[1]Eje_Pilar!$C$2:$E$47,2,FALSE)) -> Gobernanza e influencia local, regional e internacional | K126: =IF(ISERROR(VLOOKUP(I126,[1]Eje_Pilar!$C$2:$E$47,3,FALSE))," ",VLOOKUP(I126,[1]Eje_Pilar!$C$2:$E$47,3,FALSE)) -> Eje Transversal 4 Gobierno Legitimo, Fortalecimiento Local y Eficiencia | L126: 3-3-1-15-07-45-1481-000 | M126: 80759813 | N126: OMAR EDUARDO SUPELANO MARQUEZ | O126: 25116000 | Q126: 0 | R126: 1 | S126: 436800 | T126: 25552800 | U126: 21548800 | V126: 2019-02-05 | W126: 2019-02-05 | X126: 2020-01-21 | Y126: 345 | Z126: 21 | AD126: X | AF126: 84.33048433 | AG126: =IF(SUMPRODUCT((A$14:A126=A126)*(B$14:B126=B126)*(C$14:C126=C126))>1,0,1) -> 1 | AH126: 0 | AI126: 0 | AJ126: 0 | AK126: 1 | AL126: 0 | AM126: Contratos de prestación de servicios profesionales y de apoyo a la gestión | AN126: Contratación directa | AO126: =IFERROR(VLOOKUP(F126,[1]Tipo!$C$12:$C$27,1,FALSE),"NO") -> Prestación de servicios profesionales y de apoyo a la gestión, o para la ejecución de trabajos artísticos que sólo puedan encomendarse a determinadas personas naturales; | AP126: Inversión | AQ126: 45
A127: 76 | B127: 2019 | C127: FDLSUBA-CPS-076-2019 | D127: Contratos de prestación de servicios profesionales y de apoyo a la gestión | E127: Contratación directa | F127: Prestación de servicios profesionales y de apoyo a la gestión, o para la ejecución de trabajos artísticos que sólo puedan encomendarse a determinadas personas naturales; | G127: ¿Prestar los servicios asistenciales en la Alcaldía Local de Suba, especialmente para apoyar la gestión documental del área de Gestión Policiva, acompañando al equipo jurídico de Depuración en las labores operativas que genera el proceso de impulso de las actuaciones administrativas existentes en la localidad.¿. NO HAY 14571. | H127: Inversión | I127: 45 | J127: =IF(ISERROR(VLOOKUP(I127,[1]Eje_Pilar!$C$2:$E$47,2,FALSE))," ",VLOOKUP(I127,[1]Eje_Pilar!$C$2:$E$47,2,FALSE)) -> Gobernanza e influencia local, regional e internacional | K127: =IF(ISERROR(VLOOKUP(I127,[1]Eje_Pilar!$C$2:$E$47,3,FALSE))," ",VLOOKUP(I127,[1]Eje_Pilar!$C$2:$E$47,3,FALSE)) -> Eje Transversal 4 Gobierno Legitimo, Fortalecimiento Local y Eficiencia | L127: 3-3-1-15-07-45-1481-000 | M127: 103376982 | N127: EDWARD JAMIR LOZANO VERA | O127: 25116000 | Q127: 0 | R127: 1 | S127: 436800 | T127: 25552800 | U127: 21548800 | V127: 2019-02-05 | W127: 2019-02-05 | X127: 2020-01-21 | Y127: 345 | Z127: 21 | AD127: X | AF127: 84.33048433 | AG127: =IF(SUMPRODUCT((A$14:A127=A127)*(B$14:B127=B127)*(C$14:C127=C127))>1,0,1) -> 1 | AH127: 0 | AI127: 0 | AJ127: 0 | AK127: 1 | AL127: 0 | AM127: Contratos de prestación de servicios profesionales y de apoyo a la gestión | AN127: Contratación directa | AO127: =IFERROR(VLOOKUP(F127,[1]Tipo!$C$12:$C$27,1,FALSE),"NO") -> Prestación de servicios profesionales y de apoyo a la gestión, o para la ejecución de trabajos artísticos que sólo puedan encomendarse a determinadas personas naturales; | AP127: Inversión | AQ127: 45
A128: 77 | B128: 2019 | C128: FDLSUBA-CPS-077-2019 | D128: Contratos de prestación de servicios profesionales y de apoyo a la gestión | E128: Contratación directa | F128: Prestación de servicios profesionales y de apoyo a la gestión, o para la ejecución de trabajos artísticos que sólo puedan encomendarse a determinadas personas naturales; | G128: ¿Prestar servicios profesionales en el Área de Gestión del Desarrollo Local de la Alcaldía Local de Suba en el área de planeación, para lograr el cumplimiento de las metas del plan de desarrollo local de la vigencia¿. NO HAY 14605. | H128: Inversión | I128: 45 | J128: =IF(ISERROR(VLOOKUP(I128,[1]Eje_Pilar!$C$2:$E$47,2,FALSE))," ",VLOOKUP(I128,[1]Eje_Pilar!$C$2:$E$47,2,FALSE)) -> Gobernanza e influencia local, regional e internacional | K128: =IF(ISERROR(VLOOKUP(I128,[1]Eje_Pilar!$C$2:$E$47,3,FALSE))," ",VLOOKUP(I128,[1]Eje_Pilar!$C$2:$E$47,3,FALSE)) -> Eje Transversal 4 Gobierno Legitimo, Fortalecimiento Local y Eficiencia | L128: 3-3-1-15-07-45-1478-000 | M128: 98570119 | N128: NESTOR JOSE LARA BARRIOS | O128: 72450000 | Q128: 0 | S128: 0 | T128: 72450000 | U128: 60690000 | V128: 2019-02-12 | W128: 2019-02-12 | X128: 2019-12-31 | Y128: 345 | AD128: X | AF128: 83.76811594 | AG128: =IF(SUMPRODUCT((A$14:A128=A128)*(B$14:B128=B128)*(C$14:C128=C128))>1,0,1) -> 1 | AH128: 0 | AI128: 0 | AJ128: 0 | AK128: 1 | AL128: 0 | AM128: Contratos de prestación de servicios profesionales y de apoyo a la gestión | AN128: Contratación directa | AO128: =IFERROR(VLOOKUP(F128,[1]Tipo!$C$12:$C$27,1,FALSE),"NO") -> Prestación de servicios profesionales y de apoyo a la gestión, o para la ejecución de trabajos artísticos que sólo puedan encomendarse a determinadas personas naturales; | AP128: Inversión | AQ128: 45
A129: 78 | B129: 2019 | C129: FDLSUBA-CPS-078-2019 | D129: Contratos de prestación de servicios profesionales y de apoyo a la gestión | E129: Contratación directa | F129: Prestación de servicios profesionales y de apoyo a la gestión, o para la ejecución de trabajos artísticos que sólo puedan encomendarse a determinadas personas naturales; | G129: PRESTAR SERVICIOS DE APOYO PROFESIONAL AL AREA DE GESTION DEL DESARROLLO LOCAL EN LA OFICINA DE CONTABILIDAD PARA ADELANTAR LAS ACTIVIDADES QUE DEN CUMPLIMIENTO A PROCEDIMIENTOS, ADMINISTRATIVOS Y CONTABLES APLICABLES. | H129: Inversión | I129: 45 | J129: =IF(ISERROR(VLOOKUP(I129,[1]Eje_Pilar!$C$2:$E$47,2,FALSE))," ",VLOOKUP(I129,[1]Eje_Pilar!$C$2:$E$47,2,FALSE)) -> Gobernanza e influencia local, regional e internacional | K129: =IF(ISERROR(VLOOKUP(I129,[1]Eje_Pilar!$C$2:$E$47,3,FALSE))," ",VLOOKUP(I129,[1]Eje_Pilar!$C$2:$E$47,3,FALSE)) -> Eje Transversal 4 Gobierno Legitimo, Fortalecimiento Local y Eficiencia | L129: 3-3-1-15-07-45-1478-000 | M129: 51924201 | N129: LUZ ANGELA RAMIREZ ORTEGON | O129: 69300000 | Q129: 0 | R129: 1 | S129: 3780000 | T129: 73080000 | U129: 61740000 | V129: 2019-02-06 | W129: 2019-02-06 | X129: 2020-01-21 | Y129: 330 | Z129: 21 | AD129: X | AF129: 84.48275862 | AG129: =IF(SUMPRODUCT((A$14:A129=A129)*(B$14:B129=B129)*(C$14:C129=C129))>1,0,1) -> 1 | AH129: 0 | AI129: 0 | AJ129: 0 | AK129: 1 | AL129: 0 | AM129: =11*30 -> 330 | AN129: Contratación directa | AO129: =IFERROR(VLOOKUP(F129,[1]Tipo!$C$12:$C$27,1,FALSE),"NO") -> Prestación de servicios profesionales y de apoyo a la gestión, o para la ejecución de trabajos artísticos que sólo puedan encomendarse a determinadas personas naturales; | AP129: Inversión | AQ129: 45
A130: 79 | B130: 2019 | C130: FDLSUBA-CPS-079-2019 | D130: Contratos de prestación de servicios profesionales y de apoyo a la gestión | E130: Contratación directa | F130: Prestación de servicios profesionales y de apoyo a la gestión, o para la ejecución de trabajos artísticos que sólo puedan encomendarse a determinadas personas naturales; | G130: PRESTAR SERVICIOS PROFESIONALES PARA LA OPERACION, SEGUIMIENTO Y CUMPLIMIENTO DE LOS PROCESOS Y PROCEDIMIENTOS DEL SERVICIO SOCIAL APOYO ECONOMICO TIPO C, REQUERIDOS PARA EL OPORTUNO Y ADECUADO REGISTRO, CRUCE Y REPORTE DE LOS DATOS EN EL SISTEMA DE INFORMACION Y REGISTRO DE BENEFICIARIOS SIRBE, QUE CONTRIBUYAN A LA GARANTIA DE LOS DERECHOS DE LA POBLACION MAYOR EN EL MARCO DE LA POLITICA PUBLICA SOCIAL PARA EL ENVEJECIMIENTO Y LA VEJEZ EN EL DISTRITO CAPITAL A CARGO DE LA ALCALDIA LOCAL. NO HAY 15009. | H130: Inversión | I130: 3 | J130: =IF(ISERROR(VLOOKUP(I130,[1]Eje_Pilar!$C$2:$E$47,2,FALSE))," ",VLOOKUP(I130,[1]Eje_Pilar!$C$2:$E$47,2,FALSE)) -> Igualdad y autonomía para una Bogotá incluyente | K130: =IF(ISERROR(VLOOKUP(I130,[1]Eje_Pilar!$C$2:$E$47,3,FALSE))," ",VLOOKUP(I130,[1]Eje_Pilar!$C$2:$E$47,3,FALSE)) -> Pilar 1 Igualdad de Calidad de Vida | L130: 3-3-1-15-01-03-1427-000 | M130: 52840007 | N130: DENISSE ELISA MATIZ HERRERA | O130: 50600000 | Q130: 0 | R130: 1 | S130: 2606667 | T130: 53206667 | U130: 41706666 | V130: 2019-02-08 | W130: 2019-02-08 | X130: 2020-01-21 | Y130: 330 | Z130: 21 | AD130: X | AF130: 78.3861654 | AG130: =IF(SUMPRODUCT((A$14:A130=A130)*(B$14:B130=B130)*(C$14:C130=C130))>1,0,1) -> 1 | AH130: 0 | AI130: 0 | AJ130: 0 | AK130: 1 | AL130: 0 | AM130: Contratos de prestación de servicios profesionales y de apoyo a la gestión | AN130: Contratación directa | AO130: =IFERROR(VLOOKUP(F130,[1]Tipo!$C$12:$C$27,1,FALSE),"NO") -> Prestación de servicios profesionales y de apoyo a la gestión, o para la ejecución de trabajos artísticos que sólo puedan encomendarse a determinadas personas naturales; | AP130: Inversión | AQ130: 3
A131: 80 | B131: 2019 | C131: FDLSUBA-CPS-080-2019 | D131: Contratos de prestación de servicios profesionales y de apoyo a la gestión | E131: Contratación directa | F131: Prestación de servicios profesionales y de apoyo a la gestión, o para la ejecución de trabajos artísticos que sólo puedan encomendarse a determinadas personas naturales; | G131: PRESTAR SERVICIOS DE APOYO EN EL AREA DE GESTION DEL DESARROLLO LOCAL, REALIZANDO LAS LABORES ASISTENCIALES PARA LAS ACTIVIDADES ENCAMINADAS EN LAS DIFERENTES ETAPAS CONTRACTUALES DE LOS PROCESOS DE ADQUISICION DE BIENES Y SERVICIOS QUE REALICE EL FONDO DE DESARROLLO LOCAL DE SUBA. NO HAY 15860. | H131: Inversión | I131: 45 | J131: =IF(ISERROR(VLOOKUP(I131,[1]Eje_Pilar!$C$2:$E$47,2,FALSE))," ",VLOOKUP(I131,[1]Eje_Pilar!$C$2:$E$47,2,FALSE)) -> Gobernanza e influencia local, regional e internacional | K131: =IF(ISERROR(VLOOKUP(I131,[1]Eje_Pilar!$C$2:$E$47,3,FALSE))," ",VLOOKUP(I131,[1]Eje_Pilar!$C$2:$E$47,3,FALSE)) -> Eje Transversal 4 Gobierno Legitimo, Fortalecimiento Local y Eficiencia | L131: 3-3-1-15-07-45-1478-000 | M131: 1233895755 | N131: BRAYAN STIVEN SUAREZ BORJA | O131: 33000000 | Q131: 0 | R131: 1 | S131: 1700000 | T131: 34700000 | U131: 29300000 | V131: 2019-02-07 | W131: 2019-02-07 | X131: 2020-01-21 | Y131: 330 | Z131: 21 | AD131: X | AF131: 84.43804035 | AG131: =IF(SUMPRODUCT((A$14:A131=A131)*(B$14:B131=B131)*(C$14:C131=C131))>1,0,1) -> 1 | AH131: 0 | AI131: 0 | AJ131: 0 | AK131: 1 | AL131: 0 | AM131: Contratos de prestación de servicios profesionales y de apoyo a la gestión | AN131: Contratación directa | AO131: =IFERROR(VLOOKUP(F131,[1]Tipo!$C$12:$C$27,1,FALSE),"NO") -> Prestación de servicios profesionales y de apoyo a la gestión, o para la ejecución de trabajos artísticos que sólo puedan encomendarse a determinadas personas naturales; | AP131: Inversión | AQ131: 45
A132: 81 | B132: 2019 | C132: FDLSUBA-CPS-081-2019 | D132: Contratos de prestación de servicios profesionales y de apoyo a la gestión | E132: Contratación directa | F132: Prestación de servicios profesionales y de apoyo a la gestión, o para la ejecución de trabajos artísticos que sólo puedan encomendarse a determinadas personas naturales; | G132: ¿Prestar los servicios profesionales como abogado en la Alcaldía Local de Suba, principalmente en todas las gestiones jurídicas y administrativas en materia de Propiedad Horizontal.¿. NO HAY 14589. | H132: Inversión | I132: 45 | J132: =IF(ISERROR(VLOOKUP(I132,[1]Eje_Pilar!$C$2:$E$47,2,FALSE))," ",VLOOKUP(I132,[1]Eje_Pilar!$C$2:$E$47,2,FALSE)) -> Gobernanza e influencia local, regional e internacional | K132: =IF(ISERROR(VLOOKUP(I132,[1]Eje_Pilar!$C$2:$E$47,3,FALSE))," ",VLOOKUP(I132,[1]Eje_Pilar!$C$2:$E$47,3,FALSE)) -> Eje Transversal 4 Gobierno Legitimo, Fortalecimiento Local y Eficiencia | L132: 3-3-1-15-07-45-1481-000 | M132: 1032376922 | N132: DANIEL FRANCISCO MATIZ RODRIGUEZ | O132: 50600000 | Q132: 0 | R132: 1 | S132: 1840000 | T132: 52440000 | U132: 44160000 | V132: 2019-02-07 | W132: 2019-02-07 | X132: 2020-01-21 | Y132: 330 | Z132: 21 | AD132: X | AF132: 84.21052632 | AG132: =IF(SUMPRODUCT((A$14:A132=A132)*(B$14:B132=B132)*(C$14:C132=C132))>1,0,1) -> 1 | AH132: 0 | AI132: 0 | AJ132: 0 | AK132: 1 | AL132: 0 | AM132: Contratos de prestación de servicios profesionales y de apoyo a la gestión | AN132: Contratación directa | AO132: =IFERROR(VLOOKUP(F132,[1]Tipo!$C$12:$C$27,1,FALSE),"NO") -> Prestación de servicios profesionales y de apoyo a la gestión, o para la ejecución de trabajos artísticos que sólo puedan encomendarse a determinadas personas naturales; | AP132: Inversión | AQ132: 45
A133: 82 | B133: 2019 | C133: FDLSUBA-CPS-082-2019 | D133: Contratos de prestación de servicios profesionales y de apoyo a la gestión | E133: Contratación directa | F133: Prestación de servicios profesionales y de apoyo a la gestión, o para la ejecución de trabajos artísticos que sólo puedan encomendarse a determinadas personas naturales; | G133: APOYAR JURIDICAMENTE LA EJECUCION DE LAS ACCIONES REQUERIDAS PARA LA DEPURACION DE LAS ACTUACIONES ADMINISTRATIVAS QUE CURSAN EN LA ALCALDIA LOCAL. NO HAY 14565. | H133: Inversión | I133: 45 | J133: =IF(ISERROR(VLOOKUP(I133,[1]Eje_Pilar!$C$2:$E$47,2,FALSE))," ",VLOOKUP(I133,[1]Eje_Pilar!$C$2:$E$47,2,FALSE)) -> Gobernanza e influencia local, regional e internacional | K133: =IF(ISERROR(VLOOKUP(I133,[1]Eje_Pilar!$C$2:$E$47,3,FALSE))," ",VLOOKUP(I133,[1]Eje_Pilar!$C$2:$E$47,3,FALSE)) -> Eje Transversal 4 Gobierno Legitimo, Fortalecimiento Local y Eficiencia | L133: 3-3-1-15-07-45-1478-000 | M133: 1069477300 | N133: MARIA DEL PILAR MUÑOZ ALVAREZ | O133: 50600000 | Q133: 0 | R133: 1 | S133: 2606667 | T133: 53206667 | U133: 44926666 | V133: 2019-02-08 | W133: 2019-02-08 | X133: 2020-01-21 | Y133: 330 | Z133: 21 | AD133: X | AF133: 84.43803856 | AG133: =IF(SUMPRODUCT((A$14:A133=A133)*(B$14:B133=B133)*(C$14:C133=C133))>1,0,1) -> 1 | AH133: 0 | AI133: 0 | AJ133: 0 | AK133: 1 | AL133: 0 | AM133: Contratos de prestación de servicios profesionales y de apoyo a la gestión | AN133: Contratación directa | AO133: =IFERROR(VLOOKUP(F133,[1]Tipo!$C$12:$C$27,1,FALSE),"NO") -> Prestación de servicios profesionales y de apoyo a la gestión, o para la ejecución de trabajos artísticos que sólo puedan encomendarse a determinadas personas naturales; | AP133: Inversión | AQ133: 45
A134: 83 | B134: 2019 | C134: FDLSUBA-CPS-083-2019 | D134: Contratos de prestación de servicios profesionales y de apoyo a la gestión | E134: Contratación directa | F134: Prestación de servicios profesionales y de apoyo a la gestión, o para la ejecución de trabajos artísticos que sólo puedan encomendarse a determinadas personas naturales; | G134: ¿Prestar los servicios como operario de maquinaria amarilla del Área Gestión del Desarrollo De la Alcaldía local de Suba¿. NO HAY 14560. | H134: Inversión | I134: 18 | J134: =IF(ISERROR(VLOOKUP(I134,[1]Eje_Pilar!$C$2:$E$47,2,FALSE))," ",VLOOKUP(I134,[1]Eje_Pilar!$C$2:$E$47,2,FALSE)) -> Mejor movilidad para todos | K134: =IF(ISERROR(VLOOKUP(I134,[1]Eje_Pilar!$C$2:$E$47,3,FALSE))," ",VLOOKUP(I134,[1]Eje_Pilar!$C$2:$E$47,3,FALSE)) -> Pilar 2 Democracía Urbana | L134: 3-3-1-15-02-18-1506-000 | M134: 79985679 | N134: FREDDY RODRIGUEZ CASTELLANOS | O134: 24024000 | Q134: 0 | S134: 0 | T134: 24024000 | U134: 19146400 | V134: 2019-02-08 | W134: 2019-02-08 | X134: 2019-12-31 | Y134: 330 | AD134: X | AF134: 79.6969697 | AG134: =IF(SUMPRODUCT((A$14:A134=A134)*(B$14:B134=B134)*(C$14:C134=C134))>1,0,1) -> 1 | AH134: 0 | AI134: 0 | AJ134: 0 | AK134: 1 | AL134: 0 | AM134: Contratos de prestación de servicios profesionales y de apoyo a la gestión | AN134: Contratación directa | AO134: =IFERROR(VLOOKUP(F134,[1]Tipo!$C$12:$C$27,1,FALSE),"NO") -> Prestación de servicios profesionales y de apoyo a la gestión, o para la ejecución de trabajos artísticos que sólo puedan encomendarse a determinadas personas naturales; | AP134: Inversión | AQ134: 18
A135: 84 | B135: 2019 | C135: FDLSUBA-CPS-084-2019 | D135: Contratos de prestación de servicios profesionales y de apoyo a la gestión | E135: Contratación directa | F135: Prestación de servicios profesionales y de apoyo a la gestión, o para la ejecución de trabajos artísticos que sólo puedan encomendarse a determinadas personas naturales; | G135: ¿Prestar los servicios como operario de maquinaria amarilla del Área Gestión del Desarrollo De la Alcaldía local de Suba¿. NO HAY 14560. | H135: Inversión | I135: 18 | J135: =IF(ISERROR(VLOOKUP(I135,[1]Eje_Pilar!$C$2:$E$47,2,FALSE))," ",VLOOKUP(I135,[1]Eje_Pilar!$C$2:$E$47,2,FALSE)) -> Mejor movilidad para todos | K135: =IF(ISERROR(VLOOKUP(I135,[1]Eje_Pilar!$C$2:$E$47,3,FALSE))," ",VLOOKUP(I135,[1]Eje_Pilar!$C$2:$E$47,3,FALSE)) -> Pilar 2 Democracía Urbana | L135: 3-3-1-15-02-18-1506-000 | M135: 4228947 | N135: LUIS ALBERTO ZAMBRANO CASTELLANOS | O135: 24024000 | Q135: 0 | R135: 1 | S135: 1237600 | T135: 25261600 | U135: 21330400 | V135: 2019-02-07 | W135: 2019-02-07 | X135: 2020-01-21 | Y135: 330 | Z135: 21 | AD135: X | AF135: 84.43804035 | AG135: =IF(SUMPRODUCT((A$14:A135=A135)*(B$14:B135=B135)*(C$14:C135=C135))>1,0,1) -> 1 | AH135: 0 | AI135: 0 | AJ135: 0 | AK135: 1 | AL135: 0 | AM135: Contratos de prestación de servicios profesionales y de apoyo a la gestión | AN135: Contratación directa | AO135: =IFERROR(VLOOKUP(F135,[1]Tipo!$C$12:$C$27,1,FALSE),"NO") -> Prestación de servicios profesionales y de apoyo a la gestión, o para la ejecución de trabajos artísticos que sólo puedan encomendarse a determinadas personas naturales; | AP135: Inversión | AQ135: 18
A136: 85 | B136: 2019 | C136: FDLSUBA-CPS-085-2019 | D136: Contratos de prestación de servicios profesionales y de apoyo a la gestión | E136: Contratación directa | F136: Prestación de servicios profesionales y de apoyo a la gestión, o para la ejecución de trabajos artísticos que sólo puedan encomendarse a determinadas personas naturales; | G136: ¿Prestar los servicios como operario de maquinaria amarilla del Área Gestión del Desarrollo De la Alcaldía local de Suba¿. NO HAY 14560. | H136: Inversión | I136: 18 | J136: =IF(ISERROR(VLOOKUP(I136,[1]Eje_Pilar!$C$2:$E$47,2,FALSE))," ",VLOOKUP(I136,[1]Eje_Pilar!$C$2:$E$47,2,FALSE)) -> Mejor movilidad para todos | K136: =IF(ISERROR(VLOOKUP(I136,[1]Eje_Pilar!$C$2:$E$47,3,FALSE))," ",VLOOKUP(I136,[1]Eje_Pilar!$C$2:$E$47,3,FALSE)) -> Pilar 2 Democracía Urbana | L136: 3-3-1-15-02-18-1506-000 | M136: 80265981 | N136: GERMAN SANCHEZ SANCHEZ | O136: 24024000 | Q136: 0 | R136: 1 | S136: 1241600 | T136: 25265600 | U136: 21330400 | V136: 2019-02-08 | W136: 2019-02-08 | X136: 2020-01-21 | Y136: 330 | Z136: 21 | AD136: X | AF136: 84.42467228 | AG136: =IF(SUMPRODUCT((A$14:A136=A136)*(B$14:B136=B136)*(C$14:C136=C136))>1,0,1) -> 1 | AH136: 0 | AI136: 0 | AJ136: 0 | AK136: 1 | AL136: 0 | AM136: Contratos de prestación de servicios profesionales y de apoyo a la gestión | AN136: Contratación directa | AO136: =IFERROR(VLOOKUP(F136,[1]Tipo!$C$12:$C$27,1,FALSE),"NO") -> Prestación de servicios profesionales y de apoyo a la gestión, o para la ejecución de trabajos artísticos que sólo puedan encomendarse a determinadas personas naturales; | AP136: Inversión | AQ136: 18
A137: 86 | B137: 2019 | C137: FDLSUBA-CPS-086-2019 | D137: Contratos de prestación de servicios profesionales y de apoyo a la gestión | E137: Contratación directa | F137: Prestación de servicios profesionales y de apoyo a la gestión, o para la ejecución de trabajos artísticos que sólo puedan encomendarse a determinadas personas naturales; | G137: PRESTAR SERVICIOS PROFESIONALES EN EL AREA DE GESTION DEL DESARROLLO LOCAL EN LA ALCALDIA LOCAL DE SUBA, EN TEMAS SOCIALES EN MATERIA DE INFRAESTRUCTURA, PARA LOGRAR EL CUMPLIMIENTO DE LAS METAS DEL PLAN DE DESARROLLO LOCAL DE LA VIGENCIA. NO HAY 15910. | H137: Inversión | I137: 18 | J137: =IF(ISERROR(VLOOKUP(I137,[1]Eje_Pilar!$C$2:$E$47,2,FALSE))," ",VLOOKUP(I137,[1]Eje_Pilar!$C$2:$E$47,2,FALSE)) -> Mejor movilidad para todos | K137: =IF(ISERROR(VLOOKUP(I137,[1]Eje_Pilar!$C$2:$E$47,3,FALSE))," ",VLOOKUP(I137,[1]Eje_Pilar!$C$2:$E$47,3,FALSE)) -> Pilar 2 Democracía Urbana | L137: 3-3-1-15-02-18-1506-000 | M137: 53041995 | N137: SHIRLEY SAENZ BUITRAGO | O137: 50600000 | Q137: 0 | R137: 1 | S137: 1933333 | T137: 52533333 | U137: 44159999 | V137: 2019-02-08 | W137: 2019-02-08 | X137: 2020-01-21 | Y137: 330 | Z137: 21 | AD137: X | AF137: 84.06091234 | AG137: =IF(SUMPRODUCT((A$14:A137=A137)*(B$14:B137=B137)*(C$14:C137=C137))>1,0,1) -> 1 | AH137: 0 | AI137: 0 | AJ137: 0 | AK137: 1 | AL137: 0 | AM137: Contratos de prestación de servicios profesionales y de apoyo a la gestión | AN137: Contratación directa | AO137: =IFERROR(VLOOKUP(F137,[1]Tipo!$C$12:$C$27,1,FALSE),"NO") -> Prestación de servicios profesionales y de apoyo a la gestión, o para la ejecución de trabajos artísticos que sólo puedan encomendarse a determinadas personas naturales; | AP137: Inversión | AQ137: 18
B138: 2019 | D138: Otros gastos | G138: AUNAR RECURSOS TECNICOS Y ADMINISTRATIVOS PARA GARANTIZAR LA ENTREGA DEL SUBSIDIO ECONOMICO TIPO C A LAS PERSONAS MAYORES BENEFICIARIAS DEL SERVICIO SOCIAL SUBSIDIOS ECONOMICOS QUE SON ATENDIDAS CON RECURSOS DE LOS FONDOS DE DESAROLLO LOCAL EN EL MARCO DE LA POLITICA PUBLICA SOCIAL PARA EL ENVEJECIMIENTO Y LA VEJEZ EN EL DISTRITO CAPITAL. | H138: Inversión | I138: 3 | J138: =IF(ISERROR(VLOOKUP(I138,[1]Eje_Pilar!$C$2:$E$47,2,FALSE))," ",VLOOKUP(I138,[1]Eje_Pilar!$C$2:$E$47,2,FALSE)) -> Igualdad y autonomía para una Bogotá incluyente | K138: =IF(ISERROR(VLOOKUP(I138,[1]Eje_Pilar!$C$2:$E$47,3,FALSE))," ",VLOOKUP(I138,[1]Eje_Pilar!$C$2:$E$47,3,FALSE)) -> Pilar 1 Igualdad de Calidad de Vida | L138: 3-3-1-15-01-03-1427-000 | M138: 52793510 | N138: CAJA DE COMPENSACION FAMILIAR - COMPENSAR | O138: 3060000000 | Q138: 0 | S138: 0 | T138: 3060000000 | U138: 3060000000 | V138: 2019-02-28 | W138: 2019-02-28 | X138: 2019-12-31 | Y138: 306 | AD138: X | AF138: 100 | AG138: =IF(SUMPRODUCT((A$14:A138=A138)*(B$14:B138=B138)*(C$14:C138=C138))>1,0,1) -> 0 | AH138: 0 | AI138: 0 | AJ138: 0 | AK138: 0 | AL138: 0 | AM138: Otros gastos | AN138: NO | AO138: =IFERROR(VLOOKUP(F138,[1]Tipo!$C$12:$C$27,1,FALSE),"NO") -> NO | AP138: Inversión | AQ138: 3
A139: 87 | B139: 2019 | C139: FDLSUBA-CPS-087-2019 | D139: Contratos de prestación de servicios profesionales y de apoyo a la gestión | E139: Contratación directa | F139: Prestación de servicios profesionales y de apoyo a la gestión, o para la ejecución de trabajos artísticos que sólo puedan encomendarse a determinadas personas naturales; | G139: Prestar Apoyo técnico en el Área de Gestión del Desarrollo Local en el área de planeación, para lograr el cumplimiento de las metas del plan de desarrollo local de la vigencia¿. NO HAY 15928.|27500000|0|0|27500000|24083333|3416667 | H139: Inversión | I139: 45 | J139: =IF(ISERROR(VLOOKUP(I139,[1]Eje_Pilar!$C$2:$E$47,2,FALSE))," ",VLOOKUP(I139,[1]Eje_Pilar!$C$2:$E$47,2,FALSE)) -> Gobernanza e influencia local, regional e internacional | K139: =IF(ISERROR(VLOOKUP(I139,[1]Eje_Pilar!$C$2:$E$47,3,FALSE))," ",VLOOKUP(I139,[1]Eje_Pilar!$C$2:$E$47,3,FALSE)) -> Eje Transversal 4 Gobierno Legitimo, Fortalecimiento Local y Eficiencia | L139: 3-3-1-15-07-45-1478-000 | M139: 52329311 | N139: MARIA CRISTINA BERNAL ROMERO | O139: 27500000 | Q139: 0 | R139: 1 | S139: 1083333 | T139: 28583333 | U139: 24083333 | V139: 2019-02-11 | W139: 2019-02-11 | X139: 2020-01-21 | Y139: 330 | Z139: 21 | AD139: X | AF139: 84.25655958 | AG139: =IF(SUMPRODUCT((A$14:A139=A139)*(B$14:B139=B139)*(C$14:C139=C139))>1,0,1) -> 1 | AH139: 0 | AI139: 0 | AJ139: 0 | AK139: 1 | AL139: 0 | AM139: Contratos de prestación de servicios profesionales y de apoyo a la gestión | AN139: Contratación directa | AO139: =IFERROR(VLOOKUP(F139,[1]Tipo!$C$12:$C$27,1,FALSE),"NO") -> Prestación de servicios profesionales y de apoyo a la gestión, o para la ejecución de trabajos artísticos que sólo puedan encomendarse a determinadas personas naturales; | AP139: Inversión | AQ139: 45
A140: 88 | B140: 2019 | C140: FDLSUBA-CPS-088-2019 | D140: Contratos de prestación de servicios profesionales y de apoyo a la gestión | E140: Contratación directa | F140: Prestación de servicios profesionales y de apoyo a la gestión, o para la ejecución de trabajos artísticos que sólo puedan encomendarse a determinadas personas naturales; | G140: Prestar servicios profesionales al Área de Gestión del Desarrollo local de la Alcaldía local de Suba, para apoyar la supervisión de contratos del proyecto 1427 que le sean asignado¿. NO HAY 15931.|69300000|0|0|69300000|60900000|8400000 | H140: Inversión | I140: 3 | J140: =IF(ISERROR(VLOOKUP(I140,[1]Eje_Pilar!$C$2:$E$47,2,FALSE))," ",VLOOKUP(I140,[1]Eje_Pilar!$C$2:$E$47,2,FALSE)) -> Igualdad y autonomía para una Bogotá incluyente | K140: =IF(ISERROR(VLOOKUP(I140,[1]Eje_Pilar!$C$2:$E$47,3,FALSE))," ",VLOOKUP(I140,[1]Eje_Pilar!$C$2:$E$47,3,FALSE)) -> Pilar 1 Igualdad de Calidad de Vida | L140: 3-3-1-15-01-03-1427-000 | M140: 79762491 | N140: JOHN ALAIN RAMIREZ CARRILLO | O140: 69300000 | Q140: 0 | R140: 1 | S140: 2940000 | T140: 72240000 | U140: 60900000 | V140: 2019-02-08 | W140: 2019-02-08 | X140: 2020-01-21 | Y140: 330 | Z140: 21 | AD140: X | AF140: 84.30232558 | AG140: =IF(SUMPRODUCT((A$14:A140=A140)*(B$14:B140=B140)*(C$14:C140=C140))>1,0,1) -> 1 | AH140: 0 | AI140: 0 | AJ140: 0 | AK140: 1 | AL140: 0 | AM140: Contratos de prestación de servicios profesionales y de apoyo a la gestión | AN140: Contratación directa | AO140: =IFERROR(VLOOKUP(F140,[1]Tipo!$C$12:$C$27,1,FALSE),"NO") -> Prestación de servicios profesionales y de apoyo a la gestión, o para la ejecución de trabajos artísticos que sólo puedan encomendarse a determinadas personas naturales; | AP140: Inversión | AQ140: 3
A141: 89 | B141: 2019 | C141: FDLSUBA-CPS-089-2019 | D141: Contratos de prestación de servicios profesionales y de apoyo a la gestión | E141: Contratación directa | F141: Prestación de servicios profesionales y de apoyo a la gestión, o para la ejecución de trabajos artísticos que sólo puedan encomendarse a determinadas personas naturales; | G141: PRESTAR SERVICIOS TECNICOS EN EL AREA DE GESTION DEL DESARROLLO LOCAL ESPECIALMENTE PARA APOYAR EN LA ATENCION DE ACTIVIDADES AMBIENTALES PROPIAS DE LA ALCALDIA LOCAL DE SUBA PARA LOGRAR CON EL CUMPLIMIENTO DE LAS METAS DEL PLAN DE DESARROLLO LOCAL DE LA VIGENCIA. NO HAY 14783. | H141: Inversión | I141: 38 | J141: =IF(ISERROR(VLOOKUP(I141,[1]Eje_Pilar!$C$2:$E$47,2,FALSE))," ",VLOOKUP(I141,[1]Eje_Pilar!$C$2:$E$47,2,FALSE)) -> Recuperación y manejo de la Estructura Ecológica Principal | K141: =IF(ISERROR(VLOOKUP(I141,[1]Eje_Pilar!$C$2:$E$47,3,FALSE))," ",VLOOKUP(I141,[1]Eje_Pilar!$C$2:$E$47,3,FALSE)) -> Eje Transversal 3 Sostenibilidad Ambiental basada en la eficiencia energética | L141: 3-3-1-15-06-38-1472-000 | M141: 1018493757 | N141: ALIX GERALDINE MORA ROA | O141: 28750000 | Q141: 0 | S141: 0 | T141: 28750000 | U141: 24250000 | V141: 2019-02-08 | W141: 2019-02-08 | X141: 2019-12-31 | Y141: 345 | AD141: X | AF141: 84.34782609 | AG141: =IF(SUMPRODUCT((A$14:A141=A141)*(B$14:B141=B141)*(C$14:C141=C141))>1,0,1) -> 1 | AH141: 0 | AI141: 0 | AJ141: 0 | AK141: 1 | AL141: 0 | AM141: Contratos de prestación de servicios profesionales y de apoyo a la gestión | AN141: Contratación directa | AO141: =IFERROR(VLOOKUP(F141,[1]Tipo!$C$12:$C$27,1,FALSE),"NO") -> Prestación de servicios profesionales y de apoyo a la gestión, o para la ejecución de trabajos artísticos que sólo puedan encomendarse a determinadas personas naturales; | AP141: Inversión | AQ141: 38
A142: 91 | B142: 2019 | C142: FDLSUBA-CPS-091-2019 | D142: Contratos de prestación de servicios profesionales y de apoyo a la gestión | E142: Contratación directa | F142: Prestación de servicios profesionales y de apoyo a la gestión, o para la ejecución de trabajos artísticos que sólo puedan encomendarse a determinadas personas naturales; | G142: APOYAR AL EQUIPO DE PRENSA Y COMUNICACIONES DE LA ALCALDIA LOCAL MEDIANTE EL REGISTRO, LA EDICION Y LA PRESENTACION DE FOTOGRAFIAS DE LOS ACONTECIMIENTOS, HECHOS Y EVENTOS DE LA ALCALDIA LOCAL EN LOS MEDIOS DE COMUNICACION, ESPECIALMENTE ESCRITOS, DIGITALES Y AUDIOVISUALES. NO HAY 15922. | H142: Inversión | I142: 45 | J142: =IF(ISERROR(VLOOKUP(I142,[1]Eje_Pilar!$C$2:$E$47,2,FALSE))," ",VLOOKUP(I142,[1]Eje_Pilar!$C$2:$E$47,2,FALSE)) -> Gobernanza e influencia local, regional e internacional | K142: =IF(ISERROR(VLOOKUP(I142,[1]Eje_Pilar!$C$2:$E$47,3,FALSE))," ",VLOOKUP(I142,[1]Eje_Pilar!$C$2:$E$47,3,FALSE)) -> Eje Transversal 4 Gobierno Legitimo, Fortalecimiento Local y Eficiencia | L142: 3-3-1-15-07-45-1478-000 | M142: 1014242626 | N142: JULY JOHANA SILVA GUTIERREZ | O142: 52900000 | Q142: 0 | R142: 1 | S142: 306667 | T142: 53206667 | U142: 44926667 | V142: 2019-02-08 | W142: 2019-02-08 | X142: 2020-01-21 | Y142: 345 | Z142: 21 | AD142: X | AF142: 84.43804044 | AG142: =IF(SUMPRODUCT((A$14:A142=A142)*(B$14:B142=B142)*(C$14:C142=C142))>1,0,1) -> 1 | AH142: 0 | AI142: 0 | AJ142: 0 | AK142: 1 | AL142: 0 | AM142: Contratos de prestación de servicios profesionales y de apoyo a la gestión | AN142: Contratación directa | AO142: =IFERROR(VLOOKUP(F142,[1]Tipo!$C$12:$C$27,1,FALSE),"NO") -> Prestación de servicios profesionales y de apoyo a la gestión, o para la ejecución de trabajos artísticos que sólo puedan encomendarse a determinadas personas naturales; | AP142: Inversión | AQ142: 45
A143: 92 | B143: 2019 | C143: FDLSUBA-CPS-092-2019 | D143: Contratos de prestación de servicios profesionales y de apoyo a la gestión | E143: Contratación directa | F143: Prestación de servicios profesionales y de apoyo a la gestión, o para la ejecución de trabajos artísticos que sólo puedan encomendarse a determinadas personas naturales; | G143: ¿Prestar servicios profesionales en el área de gestión del desarrollo local para el cumplimiento de las metas del plan de desarrollo local de la vigencia y atender las competencias ambientales propias de la Alcaldía Local de Suba..¿. NO HAY 15932. | H143: Inversión | I143: 38 | J143: =IF(ISERROR(VLOOKUP(I143,[1]Eje_Pilar!$C$2:$E$47,2,FALSE))," ",VLOOKUP(I143,[1]Eje_Pilar!$C$2:$E$47,2,FALSE)) -> Recuperación y manejo de la Estructura Ecológica Principal | K143: =IF(ISERROR(VLOOKUP(I143,[1]Eje_Pilar!$C$2:$E$47,3,FALSE))," ",VLOOKUP(I143,[1]Eje_Pilar!$C$2:$E$47,3,FALSE)) -> Eje Transversal 3 Sostenibilidad Ambiental basada en la eficiencia energética | L143: 3-3-1-15-06-38-1472-000 | M143: 80124523 | N143: JHON ALEXANDER FIERRO MARTINEZ | O143: 52900000 | Q143: 0 | S143: 0 | T143: 52900000 | U143: 44926666 | V143: 2019-02-08 | W143: 2019-02-08 | X143: 2019-12-31 | Y143: 330 | AD143: X | AF143: =(IF(ISERROR(U143/T143),"-",(U143/T143)))*100 -> 84.92753497 | AG143: =IF(SUMPRODUCT((A$14:A143=A143)*(B$14:B143=B143)*(C$14:C143=C143))>1,0,1) -> 1 | AH143: =IF(AND(AA143="X",AG143=1 ),1,0) -> 0 | AI143: =IF(AND(AB143="X",AG143=1 ),1,0) -> 0 | AJ143: =IF(AND(AC143="X",AG143=1 ),1,0) -> 0 | AK143: =IF(AND(AD143="X",AG143=1 ),1,0) -> 1 | AL143: =IF(AND(AE143="X",AG143=1 ),1,0) -> 0 | AM143: Contratos de prestación de servicios profesionales y de apoyo a la gestión | AN143: Contratación directa | AO143: =IFERROR(VLOOKUP(F143,[1]Tipo!$C$12:$C$27,1,FALSE),"NO") -> Prestación de servicios profesionales y de apoyo a la gestión, o para la ejecución de trabajos artísticos que sólo puedan encomendarse a determinadas personas naturales; | AP143: Inversión | AQ143: 38
A144: 93 | B144: 2019 | C144: FDLSUBA-CPS-093-2019 | D144: Contratos de prestación de servicios profesionales y de apoyo a la gestión | E144: Contratación directa | F144: Prestación de servicios profesionales y de apoyo a la gestión, o para la ejecución de trabajos artísticos que sólo puedan encomendarse a determinadas personas naturales; | G144: PRESTAR SERVICIOS PROFESIONALES AL AREA DE GESTION DEL DESARROLLO LOCAL DE LA ALCALDIA LOCAL DE SUBA EN EL APOYO A LA SUPERVISION DE LOS CONTRATOS DE LOS PROYECTOS DE RECREACION Y EL DEPORTE. NO HAY 15921. | H144: Inversión | I144: 11 | J144: =IF(ISERROR(VLOOKUP(I144,[1]Eje_Pilar!$C$2:$E$47,2,FALSE))," ",VLOOKUP(I144,[1]Eje_Pilar!$C$2:$E$47,2,FALSE)) -> Mejores oportunidades para el desarrollo a través de la cultura, la recreación y el deporte | K144: =IF(ISERROR(VLOOKUP(I144,[1]Eje_Pilar!$C$2:$E$47,3,FALSE))," ",VLOOKUP(I144,[1]Eje_Pilar!$C$2:$E$47,3,FALSE)) -> Pilar 1 Igualdad de Calidad de Vida | L144: 3-3-1-15-01-11-1459-000 | M144: 79641497 | N144: MARIO GIOVANNI MONROY HERNANDEZ | O144: 69300000 | Q144: 0 | S144: 0 | T144: 69300000 | U144: 60900000 | V144: 2019-02-11 | W144: 2019-02-11 | X144: 2019-12-31 | Y144: 330 | AD144: X | AF144: 87.87878788 | AG144: =IF(SUMPRODUCT((A$14:A144=A144)*(B$14:B144=B144)*(C$14:C144=C144))>1,0,1) -> 1 | AH144: 0 | AI144: 0 | AJ144: 0 | AK144: 1 | AL144: 0 | AM144: Contratos de prestación de servicios profesionales y de apoyo a la gestión | AN144: Contratación directa | AO144: =IFERROR(VLOOKUP(F144,[1]Tipo!$C$12:$C$27,1,FALSE),"NO") -> Prestación de servicios profesionales y de apoyo a la gestión, o para la ejecución de trabajos artísticos que sólo puedan encomendarse a determinadas personas naturales; | AP144: Inversión | AQ144: 11
A145: 94 | B145: 2019 | C145: FDLSUBA-CPS-094-2019 | D145: Contratos de prestación de servicios profesionales y de apoyo a la gestión | E145: Contratación directa | F145: Prestación de servicios profesionales y de apoyo a la gestión, o para la ejecución de trabajos artísticos que sólo puedan encomendarse a determinadas personas naturales; | G145: ¿Apoyar técnicamente a los responsables e integrantes de los procesos en la implementación de herramientas de gestión, siguiendo los lineamientos metodológicos establecidos por la Oficina Asesora de Planeación de la Secretaría Distrital de Gobierno¿. NO HAY 14565. | H145: Inversión | I145: 45 | J145: =IF(ISERROR(VLOOKUP(I145,[1]Eje_Pilar!$C$2:$E$47,2,FALSE))," ",VLOOKUP(I145,[1]Eje_Pilar!$C$2:$E$47,2,FALSE)) -> Gobernanza e influencia local, regional e internacional | K145: =IF(ISERROR(VLOOKUP(I145,[1]Eje_Pilar!$C$2:$E$47,3,FALSE))," ",VLOOKUP(I145,[1]Eje_Pilar!$C$2:$E$47,3,FALSE)) -> Eje Transversal 4 Gobierno Legitimo, Fortalecimiento Local y Eficiencia | L145: 3-3-1-15-07-45-1478-000 | M145: 1026266066 | N145: KATHERIN JOHANNA MORENO CASTAÑEDA | O145: 69300000 | Q145: 0 | R145: 1 | S145: 2940000 | T145: 72240000 | U145: 60900000 | V145: 2019-02-11 | W145: 2019-02-11 | X145: 2020-01-21 | Y145: 330 | Z145: 21 | AD145: X | AF145: 84.30232558 | AG145: =IF(SUMPRODUCT((A$14:A145=A145)*(B$14:B145=B145)*(C$14:C145=C145))>1,0,1) -> 1 | AH145: 0 | AI145: 0 | AJ145: 0 | AK145: 1 | AL145: 0 | AM145: Contratos de prestación de servicios profesionales y de apoyo a la gestión | AN145: Contratación directa | AO145: =IFERROR(VLOOKUP(F145,[1]Tipo!$C$12:$C$27,1,FALSE),"NO") -> Prestación de servicios profesionales y de apoyo a la gestión, o para la ejecución de trabajos artísticos que sólo puedan encomendarse a determinadas personas naturales; | AP145: Inversión | AQ145: 45
A146: 95 | B146: 2019 | C146: FDLSUBA-CPS-095-2019 | D146: Contratos de prestación de servicios profesionales y de apoyo a la gestión | E146: Contratación directa | F146: Prestación de servicios profesionales y de apoyo a la gestión, o para la ejecución de trabajos artísticos que sólo puedan encomendarse a determinadas personas naturales; | G146: PRESTAR LOS SERVICIOS PROFESIONALES PARA LIDERAR Y REALIZAR EL LEVANTAMIENTO Y VERIFICACION DEL INVENTARIO DE LOS BIENES MUEBLES PROPIEDAD DE LA ALCALDIA LOCAL DE SUBA. NO HAY 14850. | H146: Inversión | I146: 45 | J146: =IF(ISERROR(VLOOKUP(I146,[1]Eje_Pilar!$C$2:$E$47,2,FALSE))," ",VLOOKUP(I146,[1]Eje_Pilar!$C$2:$E$47,2,FALSE)) -> Gobernanza e influencia local, regional e internacional | K146: =IF(ISERROR(VLOOKUP(I146,[1]Eje_Pilar!$C$2:$E$47,3,FALSE))," ",VLOOKUP(I146,[1]Eje_Pilar!$C$2:$E$47,3,FALSE)) -> Eje Transversal 4 Gobierno Legitimo, Fortalecimiento Local y Eficiencia | L146: 3-3-1-15-07-45-1478-000 | M146: 39533107 | N146: MARLENE TORRES RODRIGUEZ | O146: 50600000 | Q146: 0 | R146: 1 | S146: 1993333 | T146: 52593333 | U146: 44313333 | V146: 2019-02-11 | W146: 2019-02-11 | X146: 2020-01-21 | Y146: 330 | Z146: 21 | AD146: X | AF146: 84.25655967 | AG146: =IF(SUMPRODUCT((A$14:A146=A146)*(B$14:B146=B146)*(C$14:C146=C146))>1,0,1) -> 1 | AH146: 0 | AI146: 0 | AJ146: 0 | AK146: 1 | AL146: 0 | AM146: Contratos de prestación de servicios profesionales y de apoyo a la gestión | AN146: Contratación directa | AO146: =IFERROR(VLOOKUP(F146,[1]Tipo!$C$12:$C$27,1,FALSE),"NO") -> Prestación de servicios profesionales y de apoyo a la gestión, o para la ejecución de trabajos artísticos que sólo puedan encomendarse a determinadas personas naturales; | AP146: Inversión | AQ146: 45
A147: 96 | B147: 2019 | C147: FDLSUBA-CPS-096-2019 | D147: Contratos de prestación de servicios profesionales y de apoyo a la gestión | E147: Contratación directa | F147: Prestación de servicios profesionales y de apoyo a la gestión, o para la ejecución de trabajos artísticos que sólo puedan encomendarse a determinadas personas naturales; | G147: ¿Apoyar al equipo de prensa y comunicaciones de la Alcaldía Local en la realización de productos y piezas digitales, impresas y publicitarias de gran formato y de animación gráfica, así como apoyar la producción y montaje de eventos.¿. NO HAY 14570. | H147: Inversión | I147: 45 | J147: =IF(ISERROR(VLOOKUP(I147,[1]Eje_Pilar!$C$2:$E$47,2,FALSE))," ",VLOOKUP(I147,[1]Eje_Pilar!$C$2:$E$47,2,FALSE)) -> Gobernanza e influencia local, regional e internacional | K147: =IF(ISERROR(VLOOKUP(I147,[1]Eje_Pilar!$C$2:$E$47,3,FALSE))," ",VLOOKUP(I147,[1]Eje_Pilar!$C$2:$E$47,3,FALSE)) -> Eje Transversal 4 Gobierno Legitimo, Fortalecimiento Local y Eficiencia | L147: 3-3-1-15-07-45-1478-000 | M147: 1020729968 | N147: CESAR ANDRES AMARIS MONTERO | O147: 50600000 | Q147: 0 | S147: 0 | T147: 50600000 | U147: 39713333 | V147: 2019-02-11 | W147: 2019-02-11 | X147: 2019-12-31 | Y147: 330 | AD147: X | AF147: 78.48484783 | AG147: =IF(SUMPRODUCT((A$14:A147=A147)*(B$14:B147=B147)*(C$14:C147=C147))>1,0,1) -> 1 | AH147: 0 | AI147: 0 | AJ147: 0 | AK147: 1 | AL147: 0 | AM147: Contratos de prestación de servicios profesionales y de apoyo a la gestión | AN147: Contratación directa | AO147: =IFERROR(VLOOKUP(F147,[1]Tipo!$C$12:$C$27,1,FALSE),"NO") -> Prestación de servicios profesionales y de apoyo a la gestión, o para la ejecución de trabajos artísticos que sólo puedan encomendarse a determinadas personas naturales; | AP147: Inversión | AQ147: 45
A148: 97 | B148: 2019 | C148: FDLSUBA-CPS-097-2019 | D148: Contratos de prestación de servicios profesionales y de apoyo a la gestión | E148: Contratación directa | F148: Prestación de servicios profesionales y de apoyo a la gestión, o para la ejecución de trabajos artísticos que sólo puedan encomendarse a determinadas personas naturales; | G148: PRESTAR SERVICIOS TECNICOS EN EL AREA DE GESTION DEL DESARROLLO LOCAL ESPECIALMENTE PARA APOYAR EN LA ATENCION DE ACTIVIDADES AMBIENTALES PROPIAS DE LA ALCALDIA LOCAL DE SUBA PARA LOGRAR CON EL CUMPLIMIENTO DE LAS METAS DEL PLAN DE DESARROLLO LOCAL DE LA VIGENCIA. NO HAY 14783. | H148: Inversión | I148: 38 | J148: =IF(ISERROR(VLOOKUP(I148,[1]Eje_Pilar!$C$2:$E$47,2,FALSE))," ",VLOOKUP(I148,[1]Eje_Pilar!$C$2:$E$47,2,FALSE)) -> Recuperación y manejo de la Estructura Ecológica Principal | K148: =IF(ISERROR(VLOOKUP(I148,[1]Eje_Pilar!$C$2:$E$47,3,FALSE))," ",VLOOKUP(I148,[1]Eje_Pilar!$C$2:$E$47,3,FALSE)) -> Eje Transversal 3 Sostenibilidad Ambiental basada en la eficiencia energética | L148: 3-3-1-15-06-38-1472-000 | M148: 52974214 | N148: DIANA MARCELA PEDRAZA NOVA | O148: 28750000 | Q148: 0 | S148: 0 | T148: 28750000 | U148: 24166667 | V148: 2019-02-11 | W148: 2019-02-11 | X148: 2019-12-31 | Y148: 345 | Z148: 21 | AD148: X | AF148: 84.05797217 | AG148: =IF(SUMPRODUCT((A$14:A148=A148)*(B$14:B148=B148)*(C$14:C148=C148))>1,0,1) -> 1 | AH148: 0 | AI148: 0 | AJ148: 0 | AK148: 1 | AL148: 0 | AM148: Contratos de prestación de servicios profesionales y de apoyo a la gestión | AN148: Contratación directa | AO148: =IFERROR(VLOOKUP(F148,[1]Tipo!$C$12:$C$27,1,FALSE),"NO") -> Prestación de servicios profesionales y de apoyo a la gestión, o para la ejecución de trabajos artísticos que sólo puedan encomendarse a determinadas personas naturales; | AP148: Inversión | AQ148: 38
A149: 98 | B149: 2019 | C149: FDLSUBA-CPS-098-2019 | D149: Contratos de prestación de servicios profesionales y de apoyo a la gestión | E149: Contratación directa | F149: Prestación de servicios profesionales y de apoyo a la gestión, o para la ejecución de trabajos artísticos que sólo puedan encomendarse a determinadas personas naturales; | G149: ¿Prestar los servicios profesionales para apoyar jurídicamente la ejecución de las acciones requeridas para la depuración de las actuaciones administrativas que cursan en la Alcaldía Local.¿. NO HAY 14569. | H149: Inversión | I149: 45 | J149: =IF(ISERROR(VLOOKUP(I149,[1]Eje_Pilar!$C$2:$E$47,2,FALSE))," ",VLOOKUP(I149,[1]Eje_Pilar!$C$2:$E$47,2,FALSE)) -> Gobernanza e influencia local, regional e internacional | K149: =IF(ISERROR(VLOOKUP(I149,[1]Eje_Pilar!$C$2:$E$47,3,FALSE))," ",VLOOKUP(I149,[1]Eje_Pilar!$C$2:$E$47,3,FALSE)) -> Eje Transversal 4 Gobierno Legitimo, Fortalecimiento Local y Eficiencia | L149: 3-3-1-15-07-45-1478-000 | M149: 1020720464 | N149: JORGE ANDRES ANGARITA PARDO | O149: 50600000 | Q149: 0 | R149: 1 | S149: 2146667 | T149: 52746667 | U149: 44466667 | V149: 2019-02-11 | W149: 2019-02-11 | X149: 2020-01-21 | Y149: 330 | Z149: 21 | AD149: X | AF149: 84.30232568 | AG149: =IF(SUMPRODUCT((A$14:A149=A149)*(B$14:B149=B149)*(C$14:C149=C149))>1,0,1) -> 1 | AH149: 0 | AI149: 0 | AJ149: 0 | AK149: 1 | AL149: 0 | AM149: Contratos de prestación de servicios profesionales y de apoyo a la gestión | AN149: Contratación directa | AO149: =IFERROR(VLOOKUP(F149,[1]Tipo!$C$12:$C$27,1,FALSE),"NO") -> Prestación de servicios profesionales y de apoyo a la gestión, o para la ejecución de trabajos artísticos que sólo puedan encomendarse a determinadas personas naturales; | AP149: Inversión | AQ149: 45
A150: 99 | B150: 2019 | C150: FDLSUBA-CPS-099-2019 | D150: Contratos de prestación de servicios profesionales y de apoyo a la gestión | E150: Contratación directa | F150: Prestación de servicios profesionales y de apoyo a la gestión, o para la ejecución de trabajos artísticos que sólo puedan encomendarse a determinadas personas naturales; | G150: ¿Prestar los servicios de apoyo para realizar el levantamiento, toma física, identificación y verificación del inventario de los bienes muebles propiedad de la Alcaldía Local de Suba¿. NO HAY 15859. | H150: Inversión | I150: 45 | J150: =IF(ISERROR(VLOOKUP(I150,[1]Eje_Pilar!$C$2:$E$47,2,FALSE))," ",VLOOKUP(I150,[1]Eje_Pilar!$C$2:$E$47,2,FALSE)) -> Gobernanza e influencia local, regional e internacional | K150: =IF(ISERROR(VLOOKUP(I150,[1]Eje_Pilar!$C$2:$E$47,3,FALSE))," ",VLOOKUP(I150,[1]Eje_Pilar!$C$2:$E$47,3,FALSE)) -> Eje Transversal 4 Gobierno Legitimo, Fortalecimiento Local y Eficiencia | L150: 3-3-1-15-07-45-1478-000 | M150: 80036601 | N150: CAMILO ANDRES GARNICA GONZALEZ | O150: 33000000 | Q150: 0 | R150: 1 | S150: 1300000 | T150: 34300000 | U150: 28100000 | V150: 2019-02-18 | W150: 2019-02-18 | X150: 2020-01-21 | Y150: 330 | Z150: 21 | AD150: X | AF150: 81.92419825 | AG150: =IF(SUMPRODUCT((A$14:A150=A150)*(B$14:B150=B150)*(C$14:C150=C150))>1,0,1) -> 1 | AH150: 0 | AI150: 0 | AJ150: 0 | AK150: 1 | AL150: 0 | AM150: =IFERROR(VLOOKUP(D150,tipo,1,FALSE),"NO") -> Contratos de prestación de servicios profesionales y de apoyo a la gestión | AN150: =IFERROR(VLOOKUP(E150,modal,1,FALSE),"NO") -> Contratación directa | AO150: =IFERROR(VLOOKUP(F150,[1]Tipo!$C$12:$C$27,1,FALSE),"NO") -> Prestación de servicios profesionales y de apoyo a la gestión, o para la ejecución de trabajos artísticos que sólo puedan encomendarse a determinadas personas naturales; | AP150: =IFERROR(VLOOKUP(H150,afectacion,1,FALSE),"NO") -> Inversión | AQ150: =IFERROR(VLOOKUP(I150,programa,1,FALSE),"NO") -> 45
A151: 100 | B151: 2019 | C151: FDLSUBA-CPS-100-2019 | D151: Contratos de prestación de servicios profesionales y de apoyo a la gestión | E151: Contratación directa | F151: Prestación de servicios profesionales y de apoyo a la gestión, o para la ejecución de trabajos artísticos que sólo puedan encomendarse a determinadas personas naturales; | G151: GESTIONAR Y REALIZAR LAS ACTIVIDADES CORRESPONDIENTES PARA EL PROCESO DE REVISION DE GARANTIAS DE LAS OBRAS EN EJECUCION Y TERMINADAS DEL FONDO DE DESARROLLO LOCAL DE SUBA. NO HAY 15906. | H151: Inversión | I151: 18 | J151: =IF(ISERROR(VLOOKUP(I151,[1]Eje_Pilar!$C$2:$E$47,2,FALSE))," ",VLOOKUP(I151,[1]Eje_Pilar!$C$2:$E$47,2,FALSE)) -> Mejor movilidad para todos | K151: =IF(ISERROR(VLOOKUP(I151,[1]Eje_Pilar!$C$2:$E$47,3,FALSE))," ",VLOOKUP(I151,[1]Eje_Pilar!$C$2:$E$47,3,FALSE)) -> Pilar 2 Democracía Urbana | L151: 3-3-1-15-02-18-1506-000 | M151: 27535477 | N151: MONICA PATRICIA MARTINEZ | O151: 69300000 | Q151: 0 | R151: 1 | S151: 2310000 | T151: 71610000 | U151: 60270000 | V151: 2019-02-14 | W151: 2019-02-14 | X151: 2020-01-21 | Y151: 330 | Z151: 21 | AD151: X | AF151: 84.16422287 | AG151: =IF(SUMPRODUCT((A$14:A151=A151)*(B$14:B151=B151)*(C$14:C151=C151))>1,0,1) -> 1 | AH151: 0 | AI151: 0 | AJ151: 0 | AK151: 1 | AL151: 0 | AM151: Contratos de prestación de servicios profesionales y de apoyo a la gestión | AN151: Contratación directa | AO151: =IFERROR(VLOOKUP(F151,[1]Tipo!$C$12:$C$27,1,FALSE),"NO") -> Prestación de servicios profesionales y de apoyo a la gestión, o para la ejecución de trabajos artísticos que sólo puedan encomendarse a determinadas personas naturales; | AP151: Inversión | AQ151: 18
A152: 101 | B152: 2019 | C152: FDLSUBA-CPS-101-2019 | D152: Contratos de prestación de servicios profesionales y de apoyo a la gestión | E152: Contratación directa | F152: Prestación de servicios profesionales y de apoyo a la gestión, o para la ejecución de trabajos artísticos que sólo puedan encomendarse a determinadas personas naturales; | G152: ¿Apoyar administrativa y asistencialmente a las Inspecciones de Policía de la Localidad.¿. NO HAY 14567. | H152: Inversión | I152: 45 | J152: =IF(ISERROR(VLOOKUP(I152,[1]Eje_Pilar!$C$2:$E$47,2,FALSE))," ",VLOOKUP(I152,[1]Eje_Pilar!$C$2:$E$47,2,FALSE)) -> Gobernanza e influencia local, regional e internacional | K152: =IF(ISERROR(VLOOKUP(I152,[1]Eje_Pilar!$C$2:$E$47,3,FALSE))," ",VLOOKUP(I152,[1]Eje_Pilar!$C$2:$E$47,3,FALSE)) -> Eje Transversal 4 Gobierno Legitimo, Fortalecimiento Local y Eficiencia | L152: 3-3-1-15-07-45-1481-000 | M152: 1019131782 | N152: NEIDER FARID CASTILLO BORJA | O152: 19448000 | Q152: 0 | R152: 1 | S152: 648267 | T152: 20096267 | U152: 16913867 | V152: 2019-02-14 | W152: 2019-02-14 | X152: 2020-01-21 | Y152: 330 | Z152: 21 | AD152: X | AF152: 84.16422314 | AG152: =IF(SUMPRODUCT((A$14:A152=A152)*(B$14:B152=B152)*(C$14:C152=C152))>1,0,1) -> 1 | AH152: 0 | AI152: 0 | AJ152: 0 | AK152: 1 | AL152: 0 | AM152: Contratos de prestación de servicios profesionales y de apoyo a la gestión | AN152: Contratación directa | AO152: =IFERROR(VLOOKUP(F152,[1]Tipo!$C$12:$C$27,1,FALSE),"NO") -> Prestación de servicios profesionales y de apoyo a la gestión, o para la ejecución de trabajos artísticos que sólo puedan encomendarse a determinadas personas naturales; | AP152: Inversión | AQ152: 45
A153: 102 | B153: 2019 | C153: FDLSUBA-CPS-102-2019 | D153: Contratos de prestación de servicios profesionales y de apoyo a la gestión | E153: Contratación directa | F153: Prestación de servicios profesionales y de apoyo a la gestión, o para la ejecución de trabajos artísticos que sólo puedan encomendarse a determinadas personas naturales; | G153: PRESTAR LOS SERVICIOS PROFESIONALES COMO ABOGADO EN LA ALCALDIA LOCAL DE SUBA, PRINCIPALMENTE EN LA REVISION DE LOS IMPULSOS Y PROYECTOS DE ACTOS ADMINISTRATIVOS QUE SE PRODUZCAN DENTRO DE LAS ACTUACIONES ADMINISTRATIVAS QUE CURSAN EN LA ALCALDIA LOCAL. NO HAY 14844. | H153: Inversión | I153: 45 | J153: =IF(ISERROR(VLOOKUP(I153,[1]Eje_Pilar!$C$2:$E$47,2,FALSE))," ",VLOOKUP(I153,[1]Eje_Pilar!$C$2:$E$47,2,FALSE)) -> Gobernanza e influencia local, regional e internacional | K153: =IF(ISERROR(VLOOKUP(I153,[1]Eje_Pilar!$C$2:$E$47,3,FALSE))," ",VLOOKUP(I153,[1]Eje_Pilar!$C$2:$E$47,3,FALSE)) -> Eje Transversal 4 Gobierno Legitimo, Fortalecimiento Local y Eficiencia | L153: 3-3-1-15-07-45-1481-000 | M153: 1026552471 | N153: JULIO DANIEL GONZALEZ ASCENCIO | O153: 50600000 | Q153: 0 | R153: 1 | S153: 1686667 | T153: 52286667 | U153: 44006666 | V153: 2019-02-14 | W153: 2019-02-14 | X153: 2020-01-21 | Y153: 330 | Z153: 21 | AD153: X | AF153: 84.16422106 | AG153: =IF(SUMPRODUCT((A$14:A153=A153)*(B$14:B153=B153)*(C$14:C153=C153))>1,0,1) -> 1 | AH153: 0 | AI153: 0 | AJ153: 0 | AK153: 1 | AL153: 0 | AM153: Contratos de prestación de servicios profesionales y de apoyo a la gestión | AN153: Contratación directa | AO153: =IFERROR(VLOOKUP(F153,[1]Tipo!$C$12:$C$27,1,FALSE),"NO") -> Prestación de servicios profesionales y de apoyo a la gestión, o para la ejecución de trabajos artísticos que sólo puedan encomendarse a determinadas personas naturales; | AP153: Inversión | AQ153: 45
A154: 103 | B154: 2019 | C154: FDLSUBA-CPS-103-2019 | D154: Contratos de prestación de servicios profesionales y de apoyo a la gestión | E154: Contratación directa | F154: Prestación de servicios profesionales y de apoyo a la gestión, o para la ejecución de trabajos artísticos que sólo puedan encomendarse a determinadas personas naturales; | G154: PRESTAR SERVICIOS PROFESIONALES PARA LA OPERACION, PRESTACION Y SEGUIMIENTO Y CUMPLIMIENTO DE LOS PROCEDIMIENTOS ADMINISTRATIVOS, OPERATIVOS Y PROGRAMATICOS DE LOS SERVICIOS SOCIALES DEL PROYECTO DE SUBSIDIO / APOYO ECONOMICO TIPO C, QUE CONTRIBUYAN A LA GARANTIA DE LOS DERECHOS DE LA POBLACION MAYOR EN EL MARCO DE LA POLITICA PUBLICA SOCIAL PARA EL ENVEJECIMIENTO Y LA VEJEZ EN EL DISTRITO CAPITAL A CARGO DE LA ALCALDIA LOCAL DE SUBA. NO HAY 14803. | H154: Inversión | I154: 3 | J154: =IF(ISERROR(VLOOKUP(I154,[1]Eje_Pilar!$C$2:$E$47,2,FALSE))," ",VLOOKUP(I154,[1]Eje_Pilar!$C$2:$E$47,2,FALSE)) -> Igualdad y autonomía para una Bogotá incluyente | K154: =IF(ISERROR(VLOOKUP(I154,[1]Eje_Pilar!$C$2:$E$47,3,FALSE))," ",VLOOKUP(I154,[1]Eje_Pilar!$C$2:$E$47,3,FALSE)) -> Pilar 1 Igualdad de Calidad de Vida | L154: 3-3-1-15-01-03-1427-000 | M154: 52964383 | N154: PAOLA IGNACIA VARGAS ALVAREZ | O154: 50600000 | Q154: 0 | R154: 1 | S154: 1993333 | T154: 52593333 | U154: 44313333 | V154: 2019-02-12 | W154: 2019-02-12 | X154: 2020-01-21 | Y154: 330 | Z154: 21 | AD154: X | AF154: 84.25655967 | AG154: =IF(SUMPRODUCT((A$14:A154=A154)*(B$14:B154=B154)*(C$14:C154=C154))>1,0,1) -> 1 | AH154: 0 | AI154: 0 | AJ154: 0 | AK154: 1 | AL154: 0 | AM154: Contratos de prestación de servicios profesionales y de apoyo a la gestión | AN154: Contratación directa | AO154: =IFERROR(VLOOKUP(F154,[1]Tipo!$C$12:$C$27,1,FALSE),"NO") -> Prestación de servicios profesionales y de apoyo a la gestión, o para la ejecución de trabajos artísticos que sólo puedan encomendarse a determinadas personas naturales; | AP154: Inversión | AQ154: 3
A155: 104 | B155: 2019 | C155: FDLSUBA-CPS-104-2019 | D155: Contratos de prestación de servicios profesionales y de apoyo a la gestión | E155: Contratación directa | F155: Prestación de servicios profesionales y de apoyo a la gestión, o para la ejecución de trabajos artísticos que sólo puedan encomendarse a determinadas personas naturales; | G155: PRESTAR SERVICIOS PROFESIONALES PARA LA OPERACION, PRESTACION Y SEGUIMIENTO Y CUMPLIMIENTO DE LOS PROCEDIMIENTOS ADMINISTRATIVOS, OPERATIVOS Y PROGRAMATICOS DE LOS SERVICIOS SOCIALES DEL PROYECTO DE SUBSIDIO / APOYO ECONOMICO TIPO C, QUE CONTRIBUYAN A LA GARANTIA DE LOS DERECHOS DE LA POBLACION MAYOR EN EL MARCO DE LA POLITICA PUBLICA SOCIAL PARA EL ENVEJECIMIENTO Y LA VEJEZ EN EL DISTRITO CAPITAL A CARGO DE LA ALCALDIA LOCAL DE SUBA. NO HAY 14803. | H155: Inversión | I155: 3 | J155: =IF(ISERROR(VLOOKUP(I155,[1]Eje_Pilar!$C$2:$E$47,2,FALSE))," ",VLOOKUP(I155,[1]Eje_Pilar!$C$2:$E$47,2,FALSE)) -> Igualdad y autonomía para una Bogotá incluyente | K155: =IF(ISERROR(VLOOKUP(I155,[1]Eje_Pilar!$C$2:$E$47,3,FALSE))," ",VLOOKUP(I155,[1]Eje_Pilar!$C$2:$E$47,3,FALSE)) -> Pilar 1 Igualdad de Calidad de Vida | L155: 3-3-1-15-01-03-1427-000 | M155: 52444244 | N155: GLORIA ASTRID RODRIGUEZ BAQUERO | O155: 50600000 | Q155: 0 | S155: 0 | T155: 50600000 | U155: 44160000 | V155: 2019-02-12 | W155: 2019-02-12 | X155: 2019-12-31 | Y155: 330 | AD155: X | AF155: 87.27272727 | AG155: =IF(SUMPRODUCT((A$14:A155=A155)*(B$14:B155=B155)*(C$14:C155=C155))>1,0,1) -> 1 | AH155: 0 | AI155: 0 | AJ155: 0 | AK155: 1 | AL155: 0 | AM155: Contratos de prestación de servicios profesionales y de apoyo a la gestión | AN155: Contratación directa | AO155: =IFERROR(VLOOKUP(F155,[1]Tipo!$C$12:$C$27,1,FALSE),"NO") -> Prestación de servicios profesionales y de apoyo a la gestión, o para la ejecución de trabajos artísticos que sólo puedan encomendarse a determinadas personas naturales; | AP155: Inversión | AQ155: 3
A156: 105 | B156: 2019 | C156: FDLSUBA-CPS-105-2019 | D156: Contratos de prestación de servicios profesionales y de apoyo a la gestión | E156: Contratación directa | F156: Prestación de servicios profesionales y de apoyo a la gestión, o para la ejecución de trabajos artísticos que sólo puedan encomendarse a determinadas personas naturales; | G156: PRESTAR SERVICIOS PROFESIONALES PARA LA OPERACION, PRESTACION Y SEGUIMIENTO Y CUMPLIMIENTO DE LOS PROCEDIMIENTOS ADMINISTRATIVOS, OPERATIVOS Y PROGRAMATICOS DE LOS SERVICIOS SOCIALES DEL PROYECTO DE SUBSIDIO / APOYO ECONOMICO TIPO C, QUE CONTRIBUYAN A LA GARANTIA DE LOS DERECHOS DE LA POBLACION MAYOR EN EL MARCO DE LA POLITICA PUBLICA SOCIAL PARA EL ENVEJECIMIENTO Y LA VEJEZ EN EL DISTRITO CAPITAL A CARGO DE LA ALCALDIA LOCAL DE SUBA. NO HAY 14803. | H156: Inversión | I156: 3 | J156: =IF(ISERROR(VLOOKUP(I156,[1]Eje_Pilar!$C$2:$E$47,2,FALSE))," ",VLOOKUP(I156,[1]Eje_Pilar!$C$2:$E$47,2,FALSE)) -> Igualdad y autonomía para una Bogotá incluyente | K156: =IF(ISERROR(VLOOKUP(I156,[1]Eje_Pilar!$C$2:$E$47,3,FALSE))," ",VLOOKUP(I156,[1]Eje_Pilar!$C$2:$E$47,3,FALSE)) -> Pilar 1 Igualdad de Calidad de Vida | L156: 3-3-1-15-01-03-1427-000 | M156: 53067352 | N156: JENNY CAROLINA ACOSTA TALERO | O156: 50600000 | Q156: 0 | R156: 1 | S156: 1686667 | T156: 52286667 | U156: 44006667 | V156: 2019-02-14 | W156: 2019-02-14 | X156: 2020-01-21 | Y156: 330 | Z156: 21 | AD156: X | AF156: 84.16422297 | AG156: =IF(SUMPRODUCT((A$14:A156=A156)*(B$14:B156=B156)*(C$14:C156=C156))>1,0,1) -> 1 | AH156: 0 | AI156: 0 | AJ156: 0 | AK156: 1 | AL156: 0 | AM156: Contratos de prestación de servicios profesionales y de apoyo a la gestión | AN156: Contratación directa | AO156: =IFERROR(VLOOKUP(F156,[1]Tipo!$C$12:$C$27,1,FALSE),"NO") -> Prestación de servicios profesionales y de apoyo a la gestión, o para la ejecución de trabajos artísticos que sólo puedan encomendarse a determinadas personas naturales; | AP156: Inversión | AQ156: 3
A157: 106 | B157: 2019 | C157: FDLSUBA-CPS-106-2019 | D157: Contratos de prestación de servicios profesionales y de apoyo a la gestión | E157: Contratación directa | F157: Prestación de servicios profesionales y de apoyo a la gestión, o para la ejecución de trabajos artísticos que sólo puedan encomendarse a determinadas personas naturales; | G157: EL CONTRATO QUE SE PRETENDE CELEBRAR, TENDRA POR OBJETO: PRESTAR LOS SERVICIOS TECNICOS PARA LA OPERACION, SEGUIMIENTO Y CUMPLIMIENTO DE LOS PROCESOS Y PROCEDIMIENTOS DEL SERVICIO SOCIAL APOYOS PARA LA SEGURIDAD ECONOMICA TIPO C, REQUERIDOS PARA EL OPORTUNO Y ADECUADO REGISTRO, CRUCE Y REPORTE DE LOS DATOS EN EL SISTEMA DE INFORMACION Y REGISTRO DE BENEFICIARIOS SIRBE, QUE CONTRIBUYAN A LA GARANTIA DE LOS DERECHOS DE LA POBLACION MAYOR EN EL MARCO DE LA POLITICA PUBLICA SOCIAL PARA EL ENVEJECIMIENTO Y LA VEJEZ EN EL DISTRITO CAPITAL A CARGO DE LA ALCALDIA LOCAL. NO HAY 15008. | H157: Inversión | I157: 3 | J157: =IF(ISERROR(VLOOKUP(I157,[1]Eje_Pilar!$C$2:$E$47,2,FALSE))," ",VLOOKUP(I157,[1]Eje_Pilar!$C$2:$E$47,2,FALSE)) -> Igualdad y autonomía para una Bogotá incluyente | K157: =IF(ISERROR(VLOOKUP(I157,[1]Eje_Pilar!$C$2:$E$47,3,FALSE))," ",VLOOKUP(I157,[1]Eje_Pilar!$C$2:$E$47,3,FALSE)) -> Pilar 1 Igualdad de Calidad de Vida | L157: 3-3-1-15-01-03-1427-000 | M157: 52988161 | N157: NANCY ANDREA NIETO PANTOJA | O157: 33000000 | Q157: 0 | S157: 0 | T157: 33000000 | U157: 26900000 | V157: 2019-02-13 | W157: 2019-02-13 | X157: 2019-12-31 | Y157: 330 | AD157: X | AF157: 81.51515152 | AG157: =IF(SUMPRODUCT((A$14:A157=A157)*(B$14:B157=B157)*(C$14:C157=C157))>1,0,1) -> 1 | AH157: 0 | AI157: 0 | AJ157: 0 | AK157: 1 | AL157: 0 | AM157: Contratos de prestación de servicios profesionales y de apoyo a la gestión | AN157: Contratación directa | AO157: =IFERROR(VLOOKUP(F157,[1]Tipo!$C$12:$C$27,1,FALSE),"NO") -> Prestación de servicios profesionales y de apoyo a la gestión, o para la ejecución de trabajos artísticos que sólo puedan encomendarse a determinadas personas naturales; | AP157: Inversión | AQ157: 3
A158: 107 | B158: 2019 | C158: FDLSUBA-CPS-107-2019 | D158: Contratos de prestación de servicios profesionales y de apoyo a la gestión | E158: Contratación directa | F158: Prestación de servicios profesionales y de apoyo a la gestión, o para la ejecución de trabajos artísticos que sólo puedan encomendarse a determinadas personas naturales; | G158: ¿Apoyar administrativa y asistencialmente a la Alcaldía Local de Suba en las diferentes dependencias con la oportunidad y confidencialidad requerida¿. NO HAY14568. | H158: Inversión | I158: 45 | J158: =IF(ISERROR(VLOOKUP(I158,[1]Eje_Pilar!$C$2:$E$47,2,FALSE))," ",VLOOKUP(I158,[1]Eje_Pilar!$C$2:$E$47,2,FALSE)) -> Gobernanza e influencia local, regional e internacional | K158: =IF(ISERROR(VLOOKUP(I158,[1]Eje_Pilar!$C$2:$E$47,3,FALSE))," ",VLOOKUP(I158,[1]Eje_Pilar!$C$2:$E$47,3,FALSE)) -> Eje Transversal 4 Gobierno Legitimo, Fortalecimiento Local y Eficiencia | L158: 3-3-1-15-07-45-1481-000 | M158: 1022349829 | N158: GERMAN RICARDO SILVA CARDENAS | O158: 24024000 | Q158: 0 | S158: 0 | T158: 24024000 | U158: 20820800 | V158: 2019-02-14 | W158: 2019-02-14 | X158: 2019-12-31 | Y158: 330 | AD158: X | AF158: 86.66666667 | AG158: =IF(SUMPRODUCT((A$14:A158=A158)*(B$14:B158=B158)*(C$14:C158=C158))>1,0,1) -> 1 | AH158: 0 | AI158: 0 | AJ158: 0 | AK158: 1 | AL158: 0 | AM158: Contratos de prestación de servicios profesionales y de apoyo a la gestión | AN158: Contratación directa | AO158: =IFERROR(VLOOKUP(F158,[1]Tipo!$C$12:$C$27,1,FALSE),"NO") -> Prestación de servicios profesionales y de apoyo a la gestión, o para la ejecución de trabajos artísticos que sólo puedan encomendarse a determinadas personas naturales; | AP158: Inversión | AQ158: 45
A159: 108 | B159: 2019 | C159: FDLSUBA-CPS-108-2019 | D159: Contratos de prestación de servicios profesionales y de apoyo a la gestión | E159: Contratación directa | F159: Prestación de servicios profesionales y de apoyo a la gestión, o para la ejecución de trabajos artísticos que sólo puedan encomendarse a determinadas personas naturales; | G159: ¿Apoyar administrativa y asistencialmente a la Alcaldía Local de Suba en las diferentes dependencias con la oportunidad y confidencialidad requerida¿. | H159: Inversión | I159: 45 | J159: =IF(ISERROR(VLOOKUP(I159,[1]Eje_Pilar!$C$2:$E$47,2,FALSE))," ",VLOOKUP(I159,[1]Eje_Pilar!$C$2:$E$47,2,FALSE)) -> Gobernanza e influencia local, regional e internacional | K159: =IF(ISERROR(VLOOKUP(I159,[1]Eje_Pilar!$C$2:$E$47,3,FALSE))," ",VLOOKUP(I159,[1]Eje_Pilar!$C$2:$E$47,3,FALSE)) -> Eje Transversal 4 Gobierno Legitimo, Fortalecimiento Local y Eficiencia | L159: 3-3-1-15-07-45-1481-000 | M159: 1010106649 | N159: CATALINA REYES FORERO | O159: 24024000 | Q159: 0 | S159: 0 | T159: 24024000 | U159: 20893600 | V159: 2019-02-14 | W159: 2019-02-14 | X159: 2019-12-31 | Y159: 330 | AD159: X | AF159: 86.96969697 | AG159: =IF(SUMPRODUCT((A$14:A159=A159)*(B$14:B159=B159)*(C$14:C159=C159))>1,0,1) -> 1 | AH159: 0 | AI159: 0 | AJ159: 0 | AK159: 1 | AL159: 0 | AM159: Contratos de prestación de servicios profesionales y de apoyo a la gestión | AN159: Contratación directa | AO159: =IFERROR(VLOOKUP(F159,[1]Tipo!$C$12:$C$27,1,FALSE),"NO") -> Prestación de servicios profesionales y de apoyo a la gestión, o para la ejecución de trabajos artísticos que sólo puedan encomendarse a determinadas personas naturales; | AP159: Inversión | AQ159: 45
A160: 109 | B160: 2019 | C160: FDLSUBA-CPS-109-2019 | D160: Contratos de prestación de servicios profesionales y de apoyo a la gestión | E160: Contratación directa | F160: Prestación de servicios profesionales y de apoyo a la gestión, o para la ejecución de trabajos artísticos que sólo puedan encomendarse a determinadas personas naturales; | G160: Prestar servicios profesionales en materia social para impulsar los procesos de participación ciudadana y fomentar las actividades institucionales para el cumplimiento de las metas de plan de desarrollo local. NO HAY 15902. | H160: Inversión | I160: 45 | J160: =IF(ISERROR(VLOOKUP(I160,[1]Eje_Pilar!$C$2:$E$47,2,FALSE))," ",VLOOKUP(I160,[1]Eje_Pilar!$C$2:$E$47,2,FALSE)) -> Gobernanza e influencia local, regional e internacional | K160: =IF(ISERROR(VLOOKUP(I160,[1]Eje_Pilar!$C$2:$E$47,3,FALSE))," ",VLOOKUP(I160,[1]Eje_Pilar!$C$2:$E$47,3,FALSE)) -> Eje Transversal 4 Gobierno Legitimo, Fortalecimiento Local y Eficiencia | L160: 3-3-1-15-07-45-1483-000 | M160: 53064832 | N160: JESSICA ALEXANDRA QUIROZ CAUSIL | O160: 50600000 | Q160: 0 | R160: 1 | S160: 1686666 | T160: 52286666 | U160: 44006667 | V160: 2019-02-13 | W160: 2019-02-13 | X160: 2020-01-21 | Y160: 330 | Z160: 21 | AD160: X | AF160: 84.16422458 | AG160: =IF(SUMPRODUCT((A$14:A160=A160)*(B$14:B160=B160)*(C$14:C160=C160))>1,0,1) -> 1 | AH160: 0 | AI160: 0 | AJ160: 0 | AK160: 1 | AL160: 0 | AM160: Contratos de prestación de servicios profesionales y de apoyo a la gestión | AN160: Contratación directa | AO160: =IFERROR(VLOOKUP(F160,[1]Tipo!$C$12:$C$27,1,FALSE),"NO") -> Prestación de servicios profesionales y de apoyo a la gestión, o para la ejecución de trabajos artísticos que sólo puedan encomendarse a determinadas personas naturales; | AP160: Inversión | AQ160: 45
A161: 110 | B161: 2019 | C161: FDLSUBA-CPS-110-2019 | D161: Contratos de prestación de servicios profesionales y de apoyo a la gestión | E161: Contratación directa | F161: Prestación de servicios profesionales y de apoyo a la gestión, o para la ejecución de trabajos artísticos que sólo puedan encomendarse a determinadas personas naturales; | G161: APOYAR JURIDICAMENTE LA EJECUCION DE LAS ACCIONES REQUERIDAS PARA LA DEPURACION DE LAS ACTUACIONES ADMINISTRATIVAS QUE CURSAN EN LA ALCALDIA LOCAL. NO HAY 14565. | H161: Inversión | I161: 45 | J161: =IF(ISERROR(VLOOKUP(I161,[1]Eje_Pilar!$C$2:$E$47,2,FALSE))," ",VLOOKUP(I161,[1]Eje_Pilar!$C$2:$E$47,2,FALSE)) -> Gobernanza e influencia local, regional e internacional | K161: =IF(ISERROR(VLOOKUP(I161,[1]Eje_Pilar!$C$2:$E$47,3,FALSE))," ",VLOOKUP(I161,[1]Eje_Pilar!$C$2:$E$47,3,FALSE)) -> Eje Transversal 4 Gobierno Legitimo, Fortalecimiento Local y Eficiencia | L161: 3-3-1-15-07-45-1478-000 | M161: 1032418847 | N161: DIEGO FERNANDO PULIDO CHICA | O161: 50600000 | Q161: 0 | R161: 1 | S161: 1840000 | T161: 52440000 | U161: 44160000 | V161: 2019-02-13 | W161: 2019-02-13 | X161: 2020-01-21 | Y161: 330 | Z161: 21 | AD161: X | AF161: 84.21052632 | AG161: =IF(SUMPRODUCT((A$14:A161=A161)*(B$14:B161=B161)*(C$14:C161=C161))>1,0,1) -> 1 | AH161: 0 | AI161: 0 | AJ161: 0 | AK161: 1 | AL161: 0 | AM161: Contratos de prestación de servicios profesionales y de apoyo a la gestión | AN161: Contratación directa | AO161: =IFERROR(VLOOKUP(F161,[1]Tipo!$C$12:$C$27,1,FALSE),"NO") -> Prestación de servicios profesionales y de apoyo a la gestión, o para la ejecución de trabajos artísticos que sólo puedan encomendarse a determinadas personas naturales; | AP161: Inversión | AQ161: 45
A162: 111 | B162: 2019 | C162: FDLSUBA-CPS-111-2019 | D162: Contratos de prestación de servicios profesionales y de apoyo a la gestión | E162: Contratación directa | F162: Prestación de servicios profesionales y de apoyo a la gestión, o para la ejecución de trabajos artísticos que sólo puedan encomendarse a determinadas personas naturales; | G162: Apoyar jurídicamente la ejecución de las acciones requeridas para la depuración de las actuaciones administrativas que cursan en la Alcaldía Local. NO HAY 15929. | H162: Inversión | I162: 45 | J162: =IF(ISERROR(VLOOKUP(I162,[1]Eje_Pilar!$C$2:$E$47,2,FALSE))," ",VLOOKUP(I162,[1]Eje_Pilar!$C$2:$E$47,2,FALSE)) -> Gobernanza e influencia local, regional e internacional | K162: =IF(ISERROR(VLOOKUP(I162,[1]Eje_Pilar!$C$2:$E$47,3,FALSE))," ",VLOOKUP(I162,[1]Eje_Pilar!$C$2:$E$47,3,FALSE)) -> Eje Transversal 4 Gobierno Legitimo, Fortalecimiento Local y Eficiencia | L162: 3-3-1-15-07-45-1478-000 | M162: 52990899 | N162: CLAUDIA PATRICIA URREGO MORENO | O162: 50600000 | Q162: 0 | S162: 0 | T162: 50600000 | U162: 44160000 | V162: 2019-02-14 | W162: 2019-02-14 | X162: 2019-12-31 | Y162: 330 | AD162: X | AF162: 87.27272727 | AG162: =IF(SUMPRODUCT((A$14:A162=A162)*(B$14:B162=B162)*(C$14:C162=C162))>1,0,1) -> 1 | AH162: 0 | AI162: 0 | AJ162: 0 | AK162: 1 | AL162: 0 | AM162: Contratos de prestación de servicios profesionales y de apoyo a la gestión | AN162: Contratación directa | AO162: =IFERROR(VLOOKUP(F162,[1]Tipo!$C$12:$C$27,1,FALSE),"NO") -> Prestación de servicios profesionales y de apoyo a la gestión, o para la ejecución de trabajos artísticos que sólo puedan encomendarse a determinadas personas naturales; | AP162: Inversión | AQ162: 45
A163: 112 | B163: 2019 | C163: FDLSUBA-CPS-112-2019 | D163: Contratos de prestación de servicios profesionales y de apoyo a la gestión | E163: Contratación directa | F163: Prestación de servicios profesionales y de apoyo a la gestión, o para la ejecución de trabajos artísticos que sólo puedan encomendarse a determinadas personas naturales; | G163: Apoyar jurídicamente la ejecución de las acciones requeridas para la depuración de las actuaciones administrativas que cursan en la Alcaldía Local. NO HAY 15929. | H163: Inversión | I163: 45 | J163: =IF(ISERROR(VLOOKUP(I163,[1]Eje_Pilar!$C$2:$E$47,2,FALSE))," ",VLOOKUP(I163,[1]Eje_Pilar!$C$2:$E$47,2,FALSE)) -> Gobernanza e influencia local, regional e internacional | K163: =IF(ISERROR(VLOOKUP(I163,[1]Eje_Pilar!$C$2:$E$47,3,FALSE))," ",VLOOKUP(I163,[1]Eje_Pilar!$C$2:$E$47,3,FALSE)) -> Eje Transversal 4 Gobierno Legitimo, Fortalecimiento Local y Eficiencia | L163: 3-3-1-15-07-45-1478-000 | M163: 7165595 | N163: SERGIO JOSE SARMIENTO CHARRY | O163: 50600000 | Q163: 0 | S163: 0 | T163: 50600000 | U163: 29133333 | V163: 2019-02-15 | W163: 2019-02-15 | X163: 2019-12-31 | Y163: 330 | AD163: X | AF163: 57.57575692 | AG163: =IF(SUMPRODUCT((A$14:A163=A163)*(B$14:B163=B163)*(C$14:C163=C163))>1,0,1) -> 1 | AH163: 0 | AI163: 0 | AJ163: 0 | AK163: 1 | AL163: 0 | AM163: Contratos de prestación de servicios profesionales y de apoyo a la gestión | AN163: Contratación directa | AO163: =IFERROR(VLOOKUP(F163,[1]Tipo!$C$12:$C$27,1,FALSE),"NO") -> Prestación de servicios profesionales y de apoyo a la gestión, o para la ejecución de trabajos artísticos que sólo puedan encomendarse a determinadas personas naturales; | AP163: Inversión | AQ163: 45
A164: 113 | B164: 2019 | C164: FDLSUBA-CPS-113-2019 | D164: Contratos de prestación de servicios profesionales y de apoyo a la gestión | E164: Contratación directa | F164: Prestación de servicios profesionales y de apoyo a la gestión, o para la ejecución de trabajos artísticos que sólo puedan encomendarse a determinadas personas naturales; | G164: Apoyar técnicamente las distintas etapas de los procesos de competencia de la Alcaldía Local para la depuración de actuaciones administrativas. NO HAY 15912. | H164: Inversión | I164: 45 | J164: =IF(ISERROR(VLOOKUP(I164,[1]Eje_Pilar!$C$2:$E$47,2,FALSE))," ",VLOOKUP(I164,[1]Eje_Pilar!$C$2:$E$47,2,FALSE)) -> Gobernanza e influencia local, regional e internacional | K164: =IF(ISERROR(VLOOKUP(I164,[1]Eje_Pilar!$C$2:$E$47,3,FALSE))," ",VLOOKUP(I164,[1]Eje_Pilar!$C$2:$E$47,3,FALSE)) -> Eje Transversal 4 Gobierno Legitimo, Fortalecimiento Local y Eficiencia | L164: 3-3-1-15-07-45-1481-000 | M164: 80470339 | N164: ANDRES LOPEZ GARCIA | O164: 69300000 | Q164: 0 | S164: 0 | T164: 69300000 | U164: 59220000 | V164: 2019-02-14 | W164: 2019-02-14 | X164: 2019-12-31 | Y164: 330 | AD164: X | AF164: 85.45454545 | AG164: =IF(SUMPRODUCT((A$14:A164=A164)*(B$14:B164=B164)*(C$14:C164=C164))>1,0,1) -> 1 | AH164: 0 | AI164: 0 | AJ164: 0 | AK164: 1 | AL164: 0 | AM164: Contratos de prestación de servicios profesionales y de apoyo a la gestión | AN164: Contratación directa | AO164: =IFERROR(VLOOKUP(F164,[1]Tipo!$C$12:$C$27,1,FALSE),"NO") -> Prestación de servicios profesionales y de apoyo a la gestión, o para la ejecución de trabajos artísticos que sólo puedan encomendarse a determinadas personas naturales; | AP164: Inversión | AQ164: 45
A165: 114 | B165: 2019 | C165: FDLSUBA-CPS-114-2019 | D165: Contratos de prestación de servicios profesionales y de apoyo a la gestión | E165: Contratación directa | F165: Prestación de servicios profesionales y de apoyo a la gestión, o para la ejecución de trabajos artísticos que sólo puedan encomendarse a determinadas personas naturales; | G165: Apoyar jurídicamente la ejecución de las acciones requeridas para el trámite e impulso procesal de las actuaciones contravencionales y/o querellas que cursen en las Inspecciones de Policía de la Localidad. NO HAY 15858. | H165: Inversión | I165: 45 | J165: =IF(ISERROR(VLOOKUP(I165,[1]Eje_Pilar!$C$2:$E$47,2,FALSE))," ",VLOOKUP(I165,[1]Eje_Pilar!$C$2:$E$47,2,FALSE)) -> Gobernanza e influencia local, regional e internacional | K165: =IF(ISERROR(VLOOKUP(I165,[1]Eje_Pilar!$C$2:$E$47,3,FALSE))," ",VLOOKUP(I165,[1]Eje_Pilar!$C$2:$E$47,3,FALSE)) -> Eje Transversal 4 Gobierno Legitimo, Fortalecimiento Local y Eficiencia | L165: 3-3-1-15-07-45-1481-000 | M165: 1024470158 | N165: ANGELA JOHANA PATIÑO QUIROGA | O165: 50600000 | Q165: 0 | S165: 0 | T165: 50600000 | U165: 42933333 | V165: 2019-02-14 | W165: 2019-02-14 | X165: 2019-12-31 | Y165: 330 | AD165: X | AF165: 84.84848419 | AG165: =IF(SUMPRODUCT((A$14:A165=A165)*(B$14:B165=B165)*(C$14:C165=C165))>1,0,1) -> 1 | AH165: 0 | AI165: 0 | AJ165: 0 | AK165: 1 | AL165: 0 | AM165: Contratos de prestación de servicios profesionales y de apoyo a la gestión | AN165: Contratación directa | AO165: =IFERROR(VLOOKUP(F165,[1]Tipo!$C$12:$C$27,1,FALSE),"NO") -> Prestación de servicios profesionales y de apoyo a la gestión, o para la ejecución de trabajos artísticos que sólo puedan encomendarse a determinadas personas naturales; | AP165: Inversión | AQ165: 45
B166: 2019 | D166: Otros gastos | G166: PAGO ARL CONTRATISTAS DEL FONDO DE DESARROLLO LOCAL DE SUBA VIGENCIA 2019, SEGUN RESOLUCIONES No.115 DEL 14 DE MARZO DE 2019 Y No.152 DEL 04 DE ABRIL DE 2019 DE LA ALCALDIA LOCAL DE SUBA. | H166: Inversión | I166: 18 | J166: =IF(ISERROR(VLOOKUP(I166,[1]Eje_Pilar!$C$2:$E$47,2,FALSE))," ",VLOOKUP(I166,[1]Eje_Pilar!$C$2:$E$47,2,FALSE)) -> Mejor movilidad para todos | K166: =IF(ISERROR(VLOOKUP(I166,[1]Eje_Pilar!$C$2:$E$47,3,FALSE))," ",VLOOKUP(I166,[1]Eje_Pilar!$C$2:$E$47,3,FALSE)) -> Pilar 2 Democracía Urbana | L166: 3-3-1-15-02-18-1506-000 | N166: POSITIVA COMPAÑIA DE SEGUROS SA | O166: 7162000 | Q166: 0 | S166: 0 | T166: 7162000 | U166: 7162000 | V166: 2019-04-09 | W166: 2019-04-09 | X166: 2019-12-31 | Y166: 266 | AC166: X | AF166: 100 | AG166: =IF(SUMPRODUCT((A$14:A166=A166)*(B$14:B166=B166)*(C$14:C166=C166))>1,0,1) -> 0 | AH166: 0 | AI166: 0 | AJ166: 0 | AK166: 0 | AL166: 0 | AM166: Otros gastos | AN166: NO | AO166: =IFERROR(VLOOKUP(F166,[1]Tipo!$C$12:$C$27,1,FALSE),"NO") -> NO | AP166: Inversión | AQ166: 18
B167: 2019 | D167: Otros gastos | G167: PAGO ARL CONTRATISTAS DEL FONDO DE DESARROLLO LOCAL DE SUBA VIGENCIA 2019, SEGUN RESOLUCIONES No.115 DEL 14 DE MARZO DE 2019 Y No.152 DEL 04 DE ABRIL DE 2019 DE LA ALCALDIA LOCAL DE SUBA. | H167: Inversión | I167: 19 | J167: =IF(ISERROR(VLOOKUP(I167,[1]Eje_Pilar!$C$2:$E$47,2,FALSE))," ",VLOOKUP(I167,[1]Eje_Pilar!$C$2:$E$47,2,FALSE)) -> Seguridad y convivencia para todos | K167: =IF(ISERROR(VLOOKUP(I167,[1]Eje_Pilar!$C$2:$E$47,3,FALSE))," ",VLOOKUP(I167,[1]Eje_Pilar!$C$2:$E$47,3,FALSE)) -> Pilar 3 Construcción de Comunidad y Cultura Ciudadana | L167: 3-3-1-15-03-19-1469-000 | N167: POSITIVA COMPAÑIA DE SEGUROS SA | O167: 8124000 | Q167: 0 | S167: 0 | T167: 8124000 | U167: 8124000 | V167: 2019-04-09 | W167: 2019-04-09 | X167: 2019-12-31 | Y167: 266 | AC167: X | AF167: 100 | AG167: =IF(SUMPRODUCT((A$14:A167=A167)*(B$14:B167=B167)*(C$14:C167=C167))>1,0,1) -> 0 | AH167: 0 | AI167: 0 | AJ167: 0 | AK167: 0 | AL167: 0 | AM167: Otros gastos | AN167: NO | AO167: =IFERROR(VLOOKUP(F167,[1]Tipo!$C$12:$C$27,1,FALSE),"NO") -> NO | AP167: Inversión | AQ167: 19
B168: 2019 | D168: Otros gastos | G168: PAGO ARL CONTRATISTAS DEL FONDO DE DESARROLLO LOCAL DE SUBA VIGENCIA 2019, SEGUN RESOLUCIONES No.115 DEL 14 DE MARZO DE 2019 Y No.152 DEL 04 DE ABRIL DE 2019 DE LA ALCALDIA LOCAL DE SUBA. | H168: Inversión | I168: 45 | J168: =IF(ISERROR(VLOOKUP(I168,[1]Eje_Pilar!$C$2:$E$47,2,FALSE))," ",VLOOKUP(I168,[1]Eje_Pilar!$C$2:$E$47,2,FALSE)) -> Gobernanza e influencia local, regional e internacional | K168: =IF(ISERROR(VLOOKUP(I168,[1]Eje_Pilar!$C$2:$E$47,3,FALSE))," ",VLOOKUP(I168,[1]Eje_Pilar!$C$2:$E$47,3,FALSE)) -> Eje Transversal 4 Gobierno Legitimo, Fortalecimiento Local y Eficiencia | L168: 3-3-1-15-07-45-1478-000 | N168: POSITIVA COMPAÑIA DE SEGUROS SA | O168: 4263000 | Q168: 0 | S168: 0 | T168: 4263000 | U168: 4263000 | V168: 2019-04-09 | W168: 2019-04-09 | X168: 2019-12-31 | Y168: 266 | AC168: X | AF168: 100 | AG168: =IF(SUMPRODUCT((A$14:A168=A168)*(B$14:B168=B168)*(C$14:C168=C168))>1,0,1) -> 0 | AH168: 0 | AI168: 0 | AJ168: 0 | AK168: 0 | AL168: 0 | AM168: Otros gastos | AN168: NO | AO168: =IFERROR(VLOOKUP(F168,[1]Tipo!$C$12:$C$27,1,FALSE),"NO") -> NO | AP168: Inversión | AQ168: 45
A169: 115 | B169: 2019 | C169: FDLSUBA-CPS-115-2019 | D169: Contratos de prestación de servicios profesionales y de apoyo a la gestión | E169: Contratación directa | F169: Prestación de servicios profesionales y de apoyo a la gestión, o para la ejecución de trabajos artísticos que sólo puedan encomendarse a determinadas personas naturales; | G169: Apoyar técnicamente las distintas etapas de los procesos de competencia de la Alcaldía Local para la depuración de actuaciones administrativas. NO HAY 15912. | H169: Inversión | I169: 45 | J169: =IF(ISERROR(VLOOKUP(I169,[1]Eje_Pilar!$C$2:$E$47,2,FALSE))," ",VLOOKUP(I169,[1]Eje_Pilar!$C$2:$E$47,2,FALSE)) -> Gobernanza e influencia local, regional e internacional | K169: =IF(ISERROR(VLOOKUP(I169,[1]Eje_Pilar!$C$2:$E$47,3,FALSE))," ",VLOOKUP(I169,[1]Eje_Pilar!$C$2:$E$47,3,FALSE)) -> Eje Transversal 4 Gobierno Legitimo, Fortalecimiento Local y Eficiencia | L169: 3-3-1-15-07-45-1481-000 | M169: 19489509 | N169: SAUL TORRES DUEÑAS | O169: 69300000 | Q169: 0 | R169: 1 | S169: 1260000 | T169: 70560000 | U169: 59220000 | V169: 2019-02-14 | W169: 2019-02-14 | X169: 2020-01-21 | Y169: 330 | Z169: 21 | AD169: X | AF169: 83.92857143 | AG169: =IF(SUMPRODUCT((A$14:A169=A169)*(B$14:B169=B169)*(C$14:C169=C169))>1,0,1) -> 1 | AH169: 0 | AI169: 0 | AJ169: 0 | AK169: 1 | AL169: 0 | AM169: Contratos de prestación de servicios profesionales y de apoyo a la gestión | AN169: Contratación directa | AO169: =IFERROR(VLOOKUP(F169,[1]Tipo!$C$12:$C$27,1,FALSE),"NO") -> Prestación de servicios profesionales y de apoyo a la gestión, o para la ejecución de trabajos artísticos que sólo puedan encomendarse a determinadas personas naturales; | AP169: Inversión | AQ169: 45
A170: 116 | B170: 2019 | C170: FDLSUBA-CPS-116-2019 | D170: Contratos de prestación de servicios profesionales y de apoyo a la gestión | E170: Contratación directa | F170: Prestación de servicios profesionales y de apoyo a la gestión, o para la ejecución de trabajos artísticos que sólo puedan encomendarse a determinadas personas naturales; | G170: PRESTAR SERVICIOS DE APOYO A LOS ARCHIVOS DE GESTION DE LA ENTIDAD EN LA IMPLEMENTACION DE LOS PROCESOS DE CLASIFICACION, ORDENACION, SELECCION NATURAL, FOLIACION, IDENTIFICACION, LEVANTAMIENTO DE INVENTARIOS, ALMACENAMIENTO Y APLICACION DE PROTOCOLOS DE ELIMINACION Y TRANSFERENCIAS DOCUMENTALES. NO HAY 15414. | H170: Inversión | I170: 45 | J170: =IF(ISERROR(VLOOKUP(I170,[1]Eje_Pilar!$C$2:$E$47,2,FALSE))," ",VLOOKUP(I170,[1]Eje_Pilar!$C$2:$E$47,2,FALSE)) -> Gobernanza e influencia local, regional e internacional | K170: =IF(ISERROR(VLOOKUP(I170,[1]Eje_Pilar!$C$2:$E$47,3,FALSE))," ",VLOOKUP(I170,[1]Eje_Pilar!$C$2:$E$47,3,FALSE)) -> Eje Transversal 4 Gobierno Legitimo, Fortalecimiento Local y Eficiencia | L170: 3-3-1-15-07-45-1478-000 | M170: 79633658 | N170: JOSE LIBARDO CASTAÑEDA SERRANO | O170: 24024000 | Q170: 0 | R170: 1 | S170: 800800 | T170: 24824800 | U170: 20893600 | V170: 2019-02-14 | W170: 2019-02-14 | X170: 2020-01-21 | Y170: 330 | Z170: 21 | AD170: X | AF170: 84.16422287 | AG170: =IF(SUMPRODUCT((A$14:A170=A170)*(B$14:B170=B170)*(C$14:C170=C170))>1,0,1) -> 1 | AH170: 0 | AI170: 0 | AJ170: 0 | AK170: 1 | AL170: 0 | AM170: Contratos de prestación de servicios profesionales y de apoyo a la gestión | AN170: Contratación directa | AO170: =IFERROR(VLOOKUP(F170,[1]Tipo!$C$12:$C$27,1,FALSE),"NO") -> Prestación de servicios profesionales y de apoyo a la gestión, o para la ejecución de trabajos artísticos que sólo puedan encomendarse a determinadas personas naturales; | AP170: Inversión | AQ170: 45
A171: 117 | B171: 2019 | C171: FDLSUBA-CPS-117-2019 | D171: Contratos de prestación de servicios profesionales y de apoyo a la gestión | E171: Contratación directa | F171: Prestación de servicios profesionales y de apoyo a la gestión, o para la ejecución de trabajos artísticos que sólo puedan encomendarse a determinadas personas naturales; | G171: PRESTAR SERVICIOS DE APOYO A LOS ARCHIVOS DE GESTION DE LA ENTIDAD EN LA IMPLEMENTACION DE LOS PROCESOS DE CLASIFICACION, ORDENACION, SELECCION NATURAL, FOLIACION, IDENTIFICACION, LEVANTAMIENTO DE INVENTARIOS, ALMACENAMIENTO Y APLICACION DE PROTOCOLOS DE ELIMINACION Y TRANSFERENCIAS DOCUMENTALES. NO HAY 15414. | H171: Inversión | I171: 45 | J171: =IF(ISERROR(VLOOKUP(I171,[1]Eje_Pilar!$C$2:$E$47,2,FALSE))," ",VLOOKUP(I171,[1]Eje_Pilar!$C$2:$E$47,2,FALSE)) -> Gobernanza e influencia local, regional e internacional | K171: =IF(ISERROR(VLOOKUP(I171,[1]Eje_Pilar!$C$2:$E$47,3,FALSE))," ",VLOOKUP(I171,[1]Eje_Pilar!$C$2:$E$47,3,FALSE)) -> Eje Transversal 4 Gobierno Legitimo, Fortalecimiento Local y Eficiencia | L171: 3-3-1-15-07-45-1478-000 | M171: 52788301 | N171: JOHANNA PERILLA PLAZAS | O171: 24024000 | Q171: 0 | S171: 0 | T171: 24024000 | U171: 20893600 | V171: 2019-02-14 | W171: 2019-02-14 | X171: 2019-12-31 | Y171: 330 | AD171: X | AF171: 86.96969697 | AG171: =IF(SUMPRODUCT((A$14:A171=A171)*(B$14:B171=B171)*(C$14:C171=C171))>1,0,1) -> 1 | AH171: 0 | AI171: 0 | AJ171: 0 | AK171: 1 | AL171: 0 | AM171: Contratos de prestación de servicios profesionales y de apoyo a la gestión | AN171: Contratación directa | AO171: =IFERROR(VLOOKUP(F171,[1]Tipo!$C$12:$C$27,1,FALSE),"NO") -> Prestación de servicios profesionales y de apoyo a la gestión, o para la ejecución de trabajos artísticos que sólo puedan encomendarse a determinadas personas naturales; | AP171: Inversión | AQ171: 45
A172: 118 | B172: 2019 | C172: FDLSUBA-CPS-118-2019 | D172: Contratos de prestación de servicios profesionales y de apoyo a la gestión | E172: Contratación directa | F172: Prestación de servicios profesionales y de apoyo a la gestión, o para la ejecución de trabajos artísticos que sólo puedan encomendarse a determinadas personas naturales; | G172: PRESTAR SERVICIOS DE APOYO A LOS ARCHIVOS DE GESTION DE LA ENTIDAD EN LA IMPLEMENTACION DE LOS PROCESOS DE CLASIFICACION, ORDENACION, SELECCION NATURAL, FOLIACION, IDENTIFICACION, LEVANTAMIENTO DE INVENTARIOS, ALMACENAMIENTO Y APLICACION DE PROTOCOLOS DE ELIMINACION Y TRANSFERENCIAS DOCUMENTALES. NO HAY 15414. | H172: Inversión | I172: 45 | J172: =IF(ISERROR(VLOOKUP(I172,[1]Eje_Pilar!$C$2:$E$47,2,FALSE))," ",VLOOKUP(I172,[1]Eje_Pilar!$C$2:$E$47,2,FALSE)) -> Gobernanza e influencia local, regional e internacional | K172: =IF(ISERROR(VLOOKUP(I172,[1]Eje_Pilar!$C$2:$E$47,3,FALSE))," ",VLOOKUP(I172,[1]Eje_Pilar!$C$2:$E$47,3,FALSE)) -> Eje Transversal 4 Gobierno Legitimo, Fortalecimiento Local y Eficiencia | L172: 3-3-1-15-07-45-1478-000 | M172: 1019106771 | N172: NATALIA NARANJO MAZO | O172: 24024000 | Q172: 0 | S172: 0 | T172: 24024000 | U172: 20529600 | V172: 2019-02-14 | W172: 2019-02-14 | X172: 2019-12-31 | Y172: 330 | AD172: X | AF172: 85.45454545 | AG172: =IF(SUMPRODUCT((A$14:A172=A172)*(B$14:B172=B172)*(C$14:C172=C172))>1,0,1) -> 1 | AH172: 0 | AI172: 0 | AJ172: 0 | AK172: 1 | AL172: 0 | AM172: Contratos de prestación de servicios profesionales y de apoyo a la gestión | AN172: Contratación directa | AO172: =IFERROR(VLOOKUP(F172,[1]Tipo!$C$12:$C$27,1,FALSE),"NO") -> Prestación de servicios profesionales y de apoyo a la gestión, o para la ejecución de trabajos artísticos que sólo puedan encomendarse a determinadas personas naturales; | AP172: Inversión | AQ172: 45
A173: 119 | B173: 2019 | C173: FDLSUBA-CPS-119-2019 | D173: Contratos de prestación de servicios profesionales y de apoyo a la gestión | E173: Contratación directa | F173: Prestación de servicios profesionales y de apoyo a la gestión, o para la ejecución de trabajos artísticos que sólo puedan encomendarse a determinadas personas naturales; | G173: PRESTAR SERVICIOS DE APOYO A LOS ARCHIVOS DE GESTION DE LA ENTIDAD EN LA IMPLEMENTACION DE LOS PROCESOS DE CLASIFICACION, ORDENACION, SELECCION NATURAL, FOLIACION, IDENTIFICACION, LEVANTAMIENTO DE INVENTARIOS, ALMACENAMIENTO Y APLICACION DE PROTOCOLOS DE ELIMINACION Y TRANSFERENCIAS DOCUMENTALES. NO HAY 15414. | H173: Inversión | I173: 45 | J173: =IF(ISERROR(VLOOKUP(I173,[1]Eje_Pilar!$C$2:$E$47,2,FALSE))," ",VLOOKUP(I173,[1]Eje_Pilar!$C$2:$E$47,2,FALSE)) -> Gobernanza e influencia local, regional e internacional | K173: =IF(ISERROR(VLOOKUP(I173,[1]Eje_Pilar!$C$2:$E$47,3,FALSE))," ",VLOOKUP(I173,[1]Eje_Pilar!$C$2:$E$47,3,FALSE)) -> Eje Transversal 4 Gobierno Legitimo, Fortalecimiento Local y Eficiencia | L173: 3-3-1-15-07-45-1478-000 | M173: 1019050045 | N173: DIEGO ALEJANDRO PATARROYO PINILLA | O173: 24024000 | Q173: 0 | R173: 1 | S173: 800800 | T173: 24824800 | U173: 20893600 | V173: 2019-02-14 | W173: 2019-02-14 | X173: 2020-01-21 | Y173: 330 | Z173: 21 | AD173: X | AF173: 84.16422287 | AG173: =IF(SUMPRODUCT((A$14:A173=A173)*(B$14:B173=B173)*(C$14:C173=C173))>1,0,1) -> 1 | AH173: 0 | AI173: 0 | AJ173: 0 | AK173: 1 | AL173: 0 | AM173: Contratos de prestación de servicios profesionales y de apoyo a la gestión | AN173: Contratación directa | AO173: =IFERROR(VLOOKUP(F173,[1]Tipo!$C$12:$C$27,1,FALSE),"NO") -> Prestación de servicios profesionales y de apoyo a la gestión, o para la ejecución de trabajos artísticos que sólo puedan encomendarse a determinadas personas naturales; | AP173: Inversión | AQ173: 45
B174: 2019 | D174: Otros gastos | G174: CAJA MENOR ALCALDIA LOCAL DE SUBA VIGENCIA 2019. | H174: Funcionamiento | I174: No aplica | J174: =IF(ISERROR(VLOOKUP(I174,[1]Eje_Pilar!$C$2:$E$47,2,FALSE))," ",VLOOKUP(I174,[1]Eje_Pilar!$C$2:$E$47,2,FALSE)) ->  | K174: =IF(ISERROR(VLOOKUP(I174,[1]Eje_Pilar!$C$2:$E$47,3,FALSE))," ",VLOOKUP(I174,[1]Eje_Pilar!$C$2:$E$47,3,FALSE)) ->  | L174: 3-1-2-02-02-01-0006-001 | N174: ALCALDIA LOCAL DE SUBA | O174: 28000000 | Q174: 0 | S174: 0 | T174: 28000000 | U174: 17619450 | V174: 2019-04-03 | W174: 2019-04-03 | X174: 2019-12-31 | AF174: 62.92660714 | AG174: =IF(SUMPRODUCT((A$14:A174=A174)*(B$14:B174=B174)*(C$14:C174=C174))>1,0,1) -> 0 | AH174: 0 | AI174: 0 | AJ174: 0 | AK174: 0 | AL174: 0 | AM174: Otros gastos | AN174: NO | AO174: =IFERROR(VLOOKUP(F174,[1]Tipo!$C$12:$C$27,1,FALSE),"NO") -> NO | AP174: Funcionamiento | AQ174: NO
A175: 120 | B175: 2019 | C175: FDLSUBA-CPS-120-2019 | D175: Contratos de prestación de servicios profesionales y de apoyo a la gestión | E175: Contratación directa | F175: Prestación de servicios profesionales y de apoyo a la gestión, o para la ejecución de trabajos artísticos que sólo puedan encomendarse a determinadas personas naturales; | G175: PRESTAR SERVICIOS DE APOYO A LOS ARCHIVOS DE GESTION DE LA ENTIDAD EN LA IMPLEMENTACION DE LOS PROCESOS DE CLASIFICACION, ORDENACION, SELECCION NATURAL, FOLIACION, IDENTIFICACION, LEVANTAMIENTO DE INVENTARIOS, ALMACENAMIENTO Y APLICACION DE PROTOCOLOS DE ELIMINACION Y TRANSFERENCIAS DOCUMENTALES. NO HAY 15414. | H175: Inversión | I175: 45 | J175: =IF(ISERROR(VLOOKUP(I175,[1]Eje_Pilar!$C$2:$E$47,2,FALSE))," ",VLOOKUP(I175,[1]Eje_Pilar!$C$2:$E$47,2,FALSE)) -> Gobernanza e influencia local, regional e internacional | K175: =IF(ISERROR(VLOOKUP(I175,[1]Eje_Pilar!$C$2:$E$47,3,FALSE))," ",VLOOKUP(I175,[1]Eje_Pilar!$C$2:$E$47,3,FALSE)) -> Eje Transversal 4 Gobierno Legitimo, Fortalecimiento Local y Eficiencia | L175: 3-3-1-15-07-45-1478-000 | M175: 52903143 | N175: DIANA TEOFILDE GOMEZ DIAZ | O175: 24024000 | Q175: 0 | S175: 0 | T175: 24024000 | U175: 20893600 | V175: 2019-02-14 | W175: 2019-02-14 | X175: 2019-12-31 | Y175: 330 | AD175: X | AF175: 86.96969697 | AG175: =IF(SUMPRODUCT((A$14:A175=A175)*(B$14:B175=B175)*(C$14:C175=C175))>1,0,1) -> 1 | AH175: 0 | AI175: 0 | AJ175: 0 | AK175: 1 | AL175: 0 | AM175: Contratos de prestación de servicios profesionales y de apoyo a la gestión | AN175: Contratación directa | AO175: =IFERROR(VLOOKUP(F175,[1]Tipo!$C$12:$C$27,1,FALSE),"NO") -> Prestación de servicios profesionales y de apoyo a la gestión, o para la ejecución de trabajos artísticos que sólo puedan encomendarse a determinadas personas naturales; | AP175: Inversión | AQ175: 45
A176: 121 | B176: 2019 | C176: FDLSUBA-CPS-121-2019 | D176: Contratos de prestación de servicios profesionales y de apoyo a la gestión | E176: Contratación directa | F176: Prestación de servicios profesionales y de apoyo a la gestión, o para la ejecución de trabajos artísticos que sólo puedan encomendarse a determinadas personas naturales; | G176: Apoyar jurídicamente la ejecución de las acciones requeridas para el trámite e impulso procesal de las actuaciones contravencionales y/o querellas que cursen en las Inspecciones de Policía de la Localidad. NO HAY 15858. | H176: Inversión | I176: 45 | J176: =IF(ISERROR(VLOOKUP(I176,[1]Eje_Pilar!$C$2:$E$47,2,FALSE))," ",VLOOKUP(I176,[1]Eje_Pilar!$C$2:$E$47,2,FALSE)) -> Gobernanza e influencia local, regional e internacional | K176: =IF(ISERROR(VLOOKUP(I176,[1]Eje_Pilar!$C$2:$E$47,3,FALSE))," ",VLOOKUP(I176,[1]Eje_Pilar!$C$2:$E$47,3,FALSE)) -> Eje Transversal 4 Gobierno Legitimo, Fortalecimiento Local y Eficiencia | L176: 3-3-1-15-07-45-1481-000 | M176: 1032405392 | N176: JOHN JAVIER TORRES PAVA | O176: 50600000 | Q176: 0 | R176: 1 | S176: 766666 | T176: =+O176+Q176+S176 -> 51366666 | U176: 43086667 | V176: 2019-02-14 | W176: 2019-02-14 | X176: 2020-01-21 | Y176: 330 | Z176: 21 | AD176: X | AF176: 83.88059875 | AG176: =IF(SUMPRODUCT((A$14:A176=A176)*(B$14:B176=B176)*(C$14:C176=C176))>1,0,1) -> 1 | AH176: 0 | AI176: 0 | AJ176: 0 | AK176: 1 | AL176: 0 | AM176: Contratos de prestación de servicios profesionales y de apoyo a la gestión | AN176: Contratación directa | AO176: =IFERROR(VLOOKUP(F176,[1]Tipo!$C$12:$C$27,1,FALSE),"NO") -> Prestación de servicios profesionales y de apoyo a la gestión, o para la ejecución de trabajos artísticos que sólo puedan encomendarse a determinadas personas naturales; | AP176: Inversión | AQ176: 45
A177: 122 | B177: 2019 | C177: FDLSUBA-CPS-122-2019 | D177: Contratos de prestación de servicios profesionales y de apoyo a la gestión | E177: Contratación directa | F177: Prestación de servicios profesionales y de apoyo a la gestión, o para la ejecución de trabajos artísticos que sólo puedan encomendarse a determinadas personas naturales; | G177: Prestar los servicios como operario de volqueta, en el Área Gestión del Desarrollo de Suba¿. NO HAY 15908.|24024000|0|0|24024000|20820800|3203200 | H177: Inversión | I177: 18 | J177: =IF(ISERROR(VLOOKUP(I177,[1]Eje_Pilar!$C$2:$E$47,2,FALSE))," ",VLOOKUP(I177,[1]Eje_Pilar!$C$2:$E$47,2,FALSE)) -> Mejor movilidad para todos | K177: =IF(ISERROR(VLOOKUP(I177,[1]Eje_Pilar!$C$2:$E$47,3,FALSE))," ",VLOOKUP(I177,[1]Eje_Pilar!$C$2:$E$47,3,FALSE)) -> Pilar 2 Democracía Urbana | L177: 3-3-1-15-02-18-1506-000 | M177: 79512321 | N177: FELIPE ARMANDO OTERO RUEDA | O177: 24024000 | Q177: 0 | R177: 1 | S177: 728000 | T177: 24752000 | U177: 20820800 | V177: 2019-02-15 | W177: 2019-02-15 | X177: 2020-01-21 | Y177: 330 | Z177: 21 | AD177: X | AF177: 84.11764706 | AG177: =IF(SUMPRODUCT((A$14:A177=A177)*(B$14:B177=B177)*(C$14:C177=C177))>1,0,1) -> 1 | AH177: 0 | AI177: 0 | AJ177: 0 | AK177: 1 | AL177: 0 | AM177: Contratos de prestación de servicios profesionales y de apoyo a la gestión | AN177: Contratación directa | AO177: =IFERROR(VLOOKUP(F177,[1]Tipo!$C$12:$C$27,1,FALSE),"NO") -> Prestación de servicios profesionales y de apoyo a la gestión, o para la ejecución de trabajos artísticos que sólo puedan encomendarse a determinadas personas naturales; | AP177: Inversión | AQ177: 18
A178: 123 | B178: 2019 | C178: FDLSUBA-CPS-123-2019 | D178: Contratos de prestación de servicios profesionales y de apoyo a la gestión | E178: Contratación directa | F178: Prestación de servicios profesionales y de apoyo a la gestión, o para la ejecución de trabajos artísticos que sólo puedan encomendarse a determinadas personas naturales; | G178: APOYAR JURIDICAMENTE LA EJECUCION DE LAS ACCIONES REQUERIDAS PARA LA DEPURACION DE LAS ACTUACIONES ADMINISTRATIVAS QUE CURSAN EN LA ALCALDIA LOCAL. NO HAY 14565. | H178: Inversión | I178: 45 | J178: =IF(ISERROR(VLOOKUP(I178,[1]Eje_Pilar!$C$2:$E$47,2,FALSE))," ",VLOOKUP(I178,[1]Eje_Pilar!$C$2:$E$47,2,FALSE)) -> Gobernanza e influencia local, regional e internacional | K178: =IF(ISERROR(VLOOKUP(I178,[1]Eje_Pilar!$C$2:$E$47,3,FALSE))," ",VLOOKUP(I178,[1]Eje_Pilar!$C$2:$E$47,3,FALSE)) -> Eje Transversal 4 Gobierno Legitimo, Fortalecimiento Local y Eficiencia | L178: 3-3-1-15-07-45-1478-000 | M178: 19366445 | N178: GUILLERMO ANTONIO LEGUIZAMON GOMEZ | O178: 50600000 | Q178: 0 | R178: 1 | S178: 1686667 | T178: 52286667 | U178: 44006666 | V178: 2019-02-13 | W178: 2019-02-13 | X178: 2020-01-21 | Y178: 330 | Z178: 21 | AD178: X | AF178: 84.16422106 | AG178: =IF(SUMPRODUCT((A$14:A178=A178)*(B$14:B178=B178)*(C$14:C178=C178))>1,0,1) -> 1 | AH178: 0 | AI178: 0 | AJ178: 0 | AK178: 1 | AL178: 0 | AM178: Contratos de prestación de servicios profesionales y de apoyo a la gestión | AN178: Contratación directa | AO178: =IFERROR(VLOOKUP(F178,[1]Tipo!$C$12:$C$27,1,FALSE),"NO") -> Prestación de servicios profesionales y de apoyo a la gestión, o para la ejecución de trabajos artísticos que sólo puedan encomendarse a determinadas personas naturales; | AP178: Inversión | AQ178: 45
A179: 124 | B179: 2019 | C179: FDLSUBA-CPS-124-2019 | D179: Contratos de prestación de servicios profesionales y de apoyo a la gestión | E179: Contratación directa | F179: Prestación de servicios profesionales y de apoyo a la gestión, o para la ejecución de trabajos artísticos que sólo puedan encomendarse a determinadas personas naturales; | G179: PRESTAR SERVICIOS DE APOYO A LOS ARCHIVOS DE GESTION DE LA ENTIDAD EN LA IMPLEMENTACION DE LOS PROCESOS DE CLASIFICACION, ORDENACION, SELECCION NATURAL, FOLIACION, IDENTIFICACION, LEVANTAMIENTO DE INVENTARIOS, ALMACENAMIENTO Y APLICACION DE PROTOCOLOS DE ELIMINACION Y TRANSFERENCIAS DOCUMENTALES. NO HAY 15414. | H179: Inversión | I179: 45 | J179: =IF(ISERROR(VLOOKUP(I179,[1]Eje_Pilar!$C$2:$E$47,2,FALSE))," ",VLOOKUP(I179,[1]Eje_Pilar!$C$2:$E$47,2,FALSE)) -> Gobernanza e influencia local, regional e internacional | K179: =IF(ISERROR(VLOOKUP(I179,[1]Eje_Pilar!$C$2:$E$47,3,FALSE))," ",VLOOKUP(I179,[1]Eje_Pilar!$C$2:$E$47,3,FALSE)) -> Eje Transversal 4 Gobierno Legitimo, Fortalecimiento Local y Eficiencia | L179: 3-3-1-15-07-45-1478-000 | M179: 51847460 | N179: JAKELINE BERMEO OSORIO | O179: 24024000 | Q179: 0 | R179: 1 | S179: 800800 | T179: 24824800 | U179: 20893600 | V179: 2019-02-14 | W179: 2019-02-14 | X179: 2020-01-21 | Y179: 330 | Z179: 21 | AD179: X | AF179: 84.16422287 | AG179: =IF(SUMPRODUCT((A$14:A179=A179)*(B$14:B179=B179)*(C$14:C179=C179))>1,0,1) -> 1 | AH179: 0 | AI179: 0 | AJ179: 0 | AK179: 1 | AL179: 0 | AM179: Contratos de prestación de servicios profesionales y de apoyo a la gestión | AN179: Contratación directa | AO179: =IFERROR(VLOOKUP(F179,[1]Tipo!$C$12:$C$27,1,FALSE),"NO") -> Prestación de servicios profesionales y de apoyo a la gestión, o para la ejecución de trabajos artísticos que sólo puedan encomendarse a determinadas personas naturales; | AP179: Inversión | AQ179: 45
A180: 125 | B180: 2019 | C180: FDLSUBA-CPS-125-2019 | D180: Contratos de prestación de servicios profesionales y de apoyo a la gestión | E180: Contratación directa | F180: Prestación de servicios profesionales y de apoyo a la gestión, o para la ejecución de trabajos artísticos que sólo puedan encomendarse a determinadas personas naturales; | G180: ¿Prestar los servicios jurídicos en la Alcaldía Local de Suba, especialmente en todo lo relacionado con la gestión de multas impuestas dentro de las actuaciones administrativas que surjan en la localidad¿. NO HAY 14587. | H180: Inversión | I180: 45 | J180: =IF(ISERROR(VLOOKUP(I180,[1]Eje_Pilar!$C$2:$E$47,2,FALSE))," ",VLOOKUP(I180,[1]Eje_Pilar!$C$2:$E$47,2,FALSE)) -> Gobernanza e influencia local, regional e internacional | K180: =IF(ISERROR(VLOOKUP(I180,[1]Eje_Pilar!$C$2:$E$47,3,FALSE))," ",VLOOKUP(I180,[1]Eje_Pilar!$C$2:$E$47,3,FALSE)) -> Eje Transversal 4 Gobierno Legitimo, Fortalecimiento Local y Eficiencia | L180: 3-3-1-15-07-45-1481-000 | M180: 4778246 | N180: ANGEL KENNEDY ORDOÑEZ MUÑOZ | O180: 50600000 | Q180: 0 | R180: 1 | S180: 1073333 | T180: 51673333 | U180: 43393333 | V180: 2019-02-14 | W180: 2019-02-14 | X180: 2020-01-21 | Y180: 330 | Z180: 21 | AD180: X | AF180: 83.97626102 | AG180: =IF(SUMPRODUCT((A$14:A180=A180)*(B$14:B180=B180)*(C$14:C180=C180))>1,0,1) -> 1 | AH180: 0 | AI180: 0 | AJ180: 0 | AK180: 1 | AL180: 0 | AM180: Contratos de prestación de servicios profesionales y de apoyo a la gestión | AN180: Contratación directa | AO180: =IFERROR(VLOOKUP(F180,[1]Tipo!$C$12:$C$27,1,FALSE),"NO") -> Prestación de servicios profesionales y de apoyo a la gestión, o para la ejecución de trabajos artísticos que sólo puedan encomendarse a determinadas personas naturales; | AP180: Inversión | AQ180: 45
A181: 126 | B181: 2019 | C181: FDLSUBA-CPS-126-2019 | D181: Contratos de prestación de servicios profesionales y de apoyo a la gestión | E181: Contratación directa | F181: Prestación de servicios profesionales y de apoyo a la gestión, o para la ejecución de trabajos artísticos que sólo puedan encomendarse a determinadas personas naturales; | G181: Prestar servicios de apoyo en las actividades de seguridad y convivencia ciudadana y recuperación del espacio público para el logro de las metas de gestión de la vigencia. NO HAY 15926. | H181: Inversión | I181: 19 | J181: =IF(ISERROR(VLOOKUP(I181,[1]Eje_Pilar!$C$2:$E$47,2,FALSE))," ",VLOOKUP(I181,[1]Eje_Pilar!$C$2:$E$47,2,FALSE)) -> Seguridad y convivencia para todos | K181: =IF(ISERROR(VLOOKUP(I181,[1]Eje_Pilar!$C$2:$E$47,3,FALSE))," ",VLOOKUP(I181,[1]Eje_Pilar!$C$2:$E$47,3,FALSE)) -> Pilar 3 Construcción de Comunidad y Cultura Ciudadana | L181: 3-3-1-15-03-19-1469-000 | M181: 80157055 | N181: JUAN ESTEBAN VILLAMIL TORRES | O181: 19448000 | Q181: 0 | S181: 0 | T181: 19448000 | U181: 16854933 | V181: 2019-02-14 | W181: 2019-02-14 | X181: 2019-12-31 | Y181: 330 | AD181: X | AF181: 86.66666495 | AG181: =IF(SUMPRODUCT((A$14:A181=A181)*(B$14:B181=B181)*(C$14:C181=C181))>1,0,1) -> 1 | AH181: 0 | AI181: 0 | AJ181: 0 | AK181: 1 | AL181: 0 | AM181: Contratos de prestación de servicios profesionales y de apoyo a la gestión | AN181: Contratación directa | AO181: =IFERROR(VLOOKUP(F181,[1]Tipo!$C$12:$C$27,1,FALSE),"NO") -> Prestación de servicios profesionales y de apoyo a la gestión, o para la ejecución de trabajos artísticos que sólo puedan encomendarse a determinadas personas naturales; | AP181: Inversión | AQ181: 19
A182: 127 | B182: 2019 | C182: FDLSUBA-CPS-127-2019 | D182: Contratos de prestación de servicios profesionales y de apoyo a la gestión | E182: Contratación directa | F182: Prestación de servicios profesionales y de apoyo a la gestión, o para la ejecución de trabajos artísticos que sólo puedan encomendarse a determinadas personas naturales; | G182: Prestar servicios de apoyo en las actividades de seguridad y convivencia ciudadana y recuperación del espacio público para el logro de las metas de gestión de la vigencia. NO HAY 15926. | H182: Inversión | I182: 19 | J182: =IF(ISERROR(VLOOKUP(I182,[1]Eje_Pilar!$C$2:$E$47,2,FALSE))," ",VLOOKUP(I182,[1]Eje_Pilar!$C$2:$E$47,2,FALSE)) -> Seguridad y convivencia para todos | K182: =IF(ISERROR(VLOOKUP(I182,[1]Eje_Pilar!$C$2:$E$47,3,FALSE))," ",VLOOKUP(I182,[1]Eje_Pilar!$C$2:$E$47,3,FALSE)) -> Pilar 3 Construcción de Comunidad y Cultura Ciudadana | L182: 3-3-1-15-03-19-1469-000 | M182: 1026284037 | N182: HEINER SEBASTIAN BONILLA ESTEPA | O182: 19448000 | Q182: 0 | R182: 1 | S182: 648267 | T182: 20096267 | U182: 16913867 | V182: 2019-02-14 | W182: 2019-02-14 | X182: 2020-01-21 | Y182: 330 | Z182: 21 | AD182: X | AF182: 84.16422314 | AG182: =IF(SUMPRODUCT((A$14:A182=A182)*(B$14:B182=B182)*(C$14:C182=C182))>1,0,1) -> 1 | AH182: 0 | AI182: 0 | AJ182: 0 | AK182: 1 | AL182: 0 | AM182: Contratos de prestación de servicios profesionales y de apoyo a la gestión | AN182: Contratación directa | AO182: =IFERROR(VLOOKUP(F182,[1]Tipo!$C$12:$C$27,1,FALSE),"NO") -> Prestación de servicios profesionales y de apoyo a la gestión, o para la ejecución de trabajos artísticos que sólo puedan encomendarse a determinadas personas naturales; | AP182: Inversión | AQ182: 19
A183: 128 | B183: 2019 | C183: FDLSUBA-CPS-128-2019 | D183: Contratos de prestación de servicios profesionales y de apoyo a la gestión | E183: Contratación directa | F183: Prestación de servicios profesionales y de apoyo a la gestión, o para la ejecución de trabajos artísticos que sólo puedan encomendarse a determinadas personas naturales; | G183: Prestar servicios de apoyo en las actividades de seguridad y convivencia ciudadana y recuperación del espacio público para el logro de las metas de gestión de la vigencia. NO HAY 15926. | H183: Inversión | I183: 19 | J183: =IF(ISERROR(VLOOKUP(I183,[1]Eje_Pilar!$C$2:$E$47,2,FALSE))," ",VLOOKUP(I183,[1]Eje_Pilar!$C$2:$E$47,2,FALSE)) -> Seguridad y convivencia para todos | K183: =IF(ISERROR(VLOOKUP(I183,[1]Eje_Pilar!$C$2:$E$47,3,FALSE))," ",VLOOKUP(I183,[1]Eje_Pilar!$C$2:$E$47,3,FALSE)) -> Pilar 3 Construcción de Comunidad y Cultura Ciudadana | L183: 3-3-1-15-03-19-1469-000 | M183: 39547967 | N183: BERTILDA VASQUEZ MEJIA | O183: 19448000 | Q183: 0 | R183: 1 | S183: 412533 | T183: 19860533 | U183: 16678133 | V183: 2019-02-15 | W183: 2019-02-15 | X183: 2020-01-21 | Y183: 330 | Z183: 21 | AD183: X | AF183: 83.97626086 | AG183: =IF(SUMPRODUCT((A$14:A183=A183)*(B$14:B183=B183)*(C$14:C183=C183))>1,0,1) -> 1 | AH183: 0 | AI183: 0 | AJ183: 0 | AK183: 1 | AL183: 0 | AM183: Contratos de prestación de servicios profesionales y de apoyo a la gestión | AN183: Contratación directa | AO183: =IFERROR(VLOOKUP(F183,[1]Tipo!$C$12:$C$27,1,FALSE),"NO") -> Prestación de servicios profesionales y de apoyo a la gestión, o para la ejecución de trabajos artísticos que sólo puedan encomendarse a determinadas personas naturales; | AP183: Inversión | AQ183: 19
A184: 129 | B184: 2019 | C184: FDLSUBA-CPS-129-2019 | D184: Contratos de prestación de servicios profesionales y de apoyo a la gestión | E184: Contratación directa | F184: Prestación de servicios profesionales y de apoyo a la gestión, o para la ejecución de trabajos artísticos que sólo puedan encomendarse a determinadas personas naturales; | G184: Prestar servicios de apoyo en las actividades de seguridad y convivencia ciudadana y recuperación del espacio público para el logro de las metas de gestión de la vigencia. NO HAY 15926. | H184: Inversión | I184: 19 | J184: =IF(ISERROR(VLOOKUP(I184,[1]Eje_Pilar!$C$2:$E$47,2,FALSE))," ",VLOOKUP(I184,[1]Eje_Pilar!$C$2:$E$47,2,FALSE)) -> Seguridad y convivencia para todos | K184: =IF(ISERROR(VLOOKUP(I184,[1]Eje_Pilar!$C$2:$E$47,3,FALSE))," ",VLOOKUP(I184,[1]Eje_Pilar!$C$2:$E$47,3,FALSE)) -> Pilar 3 Construcción de Comunidad y Cultura Ciudadana | L184: 3-3-1-15-03-19-1469-000 | M184: 1019020588 | N184: ALEXANDRA SIERRA ORTEGA | O184: 19448000 | Q184: 0 | R184: 1 | S184: 648267 | T184: 20096267 | U184: 16913867 | V184: 2019-02-14 | W184: 2019-02-14 | X184: 2020-01-21 | Y184: 330 | Z184: 21 | AD184: X | AF184: 84.16422314 | AG184: =IF(SUMPRODUCT((A$14:A184=A184)*(B$14:B184=B184)*(C$14:C184=C184))>1,0,1) -> 1 | AH184: 0 | AI184: 0 | AJ184: 0 | AK184: 1 | AL184: 0 | AM184: Contratos de prestación de servicios profesionales y de apoyo a la gestión | AN184: Contratación directa | AO184: =IFERROR(VLOOKUP(F184,[1]Tipo!$C$12:$C$27,1,FALSE),"NO") -> Prestación de servicios profesionales y de apoyo a la gestión, o para la ejecución de trabajos artísticos que sólo puedan encomendarse a determinadas personas naturales; | AP184: Inversión | AQ184: 19
A185: 130 | B185: 2019 | C185: FDLSUBA-CPS-130-2019 | D185: Contratos de prestación de servicios profesionales y de apoyo a la gestión | E185: Contratación directa | F185: Prestación de servicios profesionales y de apoyo a la gestión, o para la ejecución de trabajos artísticos que sólo puedan encomendarse a determinadas personas naturales; | G185: APOYAR LA FORMULACION, EJECUCION, SEGUIMIENTO Y MEJORA CONTINUA ESPECIALMENTE DE LAS HERRAMIENTAS QUE CONFORMAN LA GESTION AMBIENTAL INSTITUCIONAL DE LA ALCALDIA LOCAL. NO HAY 15857. | H185: Inversión | I185: 38 | J185: =IF(ISERROR(VLOOKUP(I185,[1]Eje_Pilar!$C$2:$E$47,2,FALSE))," ",VLOOKUP(I185,[1]Eje_Pilar!$C$2:$E$47,2,FALSE)) -> Recuperación y manejo de la Estructura Ecológica Principal | K185: =IF(ISERROR(VLOOKUP(I185,[1]Eje_Pilar!$C$2:$E$47,3,FALSE))," ",VLOOKUP(I185,[1]Eje_Pilar!$C$2:$E$47,3,FALSE)) -> Eje Transversal 3 Sostenibilidad Ambiental basada en la eficiencia energética | L185: 3-3-1-15-06-38-1472-000 | M185: 1019094992 | N185: DIANA ZORAIDA ROMERO SALINAS | O185: 50600000 | Q185: 0 | R185: 1 | S185: 1686667 | T185: 52286667 | U185: 44006666 | V185: 2019-02-14 | W185: 2019-02-14 | X185: 2020-01-21 | Y185: 330 | Z185: 21 | AD185: X | AF185: 84.16422106 | AG185: =IF(SUMPRODUCT((A$14:A185=A185)*(B$14:B185=B185)*(C$14:C185=C185))>1,0,1) -> 1 | AH185: 0 | AI185: 0 | AJ185: 0 | AK185: 1 | AL185: 0 | AM185: Contratos de prestación de servicios profesionales y de apoyo a la gestión | AN185: Contratación directa | AO185: =IFERROR(VLOOKUP(F185,[1]Tipo!$C$12:$C$27,1,FALSE),"NO") -> Prestación de servicios profesionales y de apoyo a la gestión, o para la ejecución de trabajos artísticos que sólo puedan encomendarse a determinadas personas naturales; | AP185: Inversión | AQ185: 38
A186: 131 | B186: 2019 | C186: FDLSUBA-CPS-131-2019 | D186: Contratos de prestación de servicios profesionales y de apoyo a la gestión | E186: Contratación directa | F186: Prestación de servicios profesionales y de apoyo a la gestión, o para la ejecución de trabajos artísticos que sólo puedan encomendarse a determinadas personas naturales; | G186: PRESTAR LOS SERVICIOS A LA ALCALDIA LOCAL DE SUBA, PRINCIPALMENTE EN EL SEGUIMIENTO Y CONTROL PARA EL MANEJO DE TODOS LOS COMPONENTES AMBIENTALES EXTERNOS ESPECIALMENTE EN TEMAS DE RESERVAS AMBIENTALES, HUMEDALES Y ECOSISTEMAS RELACIONADOS CON LA GESTION DEL DESARROLLO Y RELACIONAMIENTO CON LA CAR. NO HAY 15904. | H186: Inversión | I186: 38 | J186: =IF(ISERROR(VLOOKUP(I186,[1]Eje_Pilar!$C$2:$E$47,2,FALSE))," ",VLOOKUP(I186,[1]Eje_Pilar!$C$2:$E$47,2,FALSE)) -> Recuperación y manejo de la Estructura Ecológica Principal | K186: =IF(ISERROR(VLOOKUP(I186,[1]Eje_Pilar!$C$2:$E$47,3,FALSE))," ",VLOOKUP(I186,[1]Eje_Pilar!$C$2:$E$47,3,FALSE)) -> Eje Transversal 3 Sostenibilidad Ambiental basada en la eficiencia energética | L186: 3-3-1-15-06-38-1472-000 | M186: 39670941 | N186: NELCY LOZANO CANTOR | O186: 69300000 | Q186: 0 | S186: 0 | T186: 69300000 | U186: 30450000 | V186: 2019-02-14 | W186: 2019-02-14 | X186: 2019-12-31 | Y186: 330 | AD186: X | AF186: 43.93939394 | AG186: =IF(SUMPRODUCT((A$14:A186=A186)*(B$14:B186=B186)*(C$14:C186=C186))>1,0,1) -> 1 | AH186: 0 | AI186: 0 | AJ186: 0 | AK186: 1 | AL186: 0 | AM186: Contratos de prestación de servicios profesionales y de apoyo a la gestión | AN186: Contratación directa | AO186: =IFERROR(VLOOKUP(F186,[1]Tipo!$C$12:$C$27,1,FALSE),"NO") -> Prestación de servicios profesionales y de apoyo a la gestión, o para la ejecución de trabajos artísticos que sólo puedan encomendarse a determinadas personas naturales; | AP186: Inversión | AQ186: 38
A187: 132 | B187: 2019 | C187: FDLSUBA-CPS-132-2019 | D187: Contratos de prestación de servicios profesionales y de apoyo a la gestión | E187: Contratación directa | F187: Prestación de servicios profesionales y de apoyo a la gestión, o para la ejecución de trabajos artísticos que sólo puedan encomendarse a determinadas personas naturales; | G187: Apoyar técnicamente las distintas etapas de los procesos de competencia de la Alcaldía Local para la depuración de actuaciones administrativas. NO HAY 15912. | H187: Inversión | I187: 45 | J187: =IF(ISERROR(VLOOKUP(I187,[1]Eje_Pilar!$C$2:$E$47,2,FALSE))," ",VLOOKUP(I187,[1]Eje_Pilar!$C$2:$E$47,2,FALSE)) -> Gobernanza e influencia local, regional e internacional | K187: =IF(ISERROR(VLOOKUP(I187,[1]Eje_Pilar!$C$2:$E$47,3,FALSE))," ",VLOOKUP(I187,[1]Eje_Pilar!$C$2:$E$47,3,FALSE)) -> Eje Transversal 4 Gobierno Legitimo, Fortalecimiento Local y Eficiencia | L187: 3-3-1-15-07-45-1481-000 | M187: 8708001 | N187: HERNANDO FRANCO CARBONELL | O187: 69300000 | Q187: 0 | S187: 0 | T187: 69300000 | U187: 58800000 | V187: 2019-02-18 | W187: 2019-02-18 | X187: 2019-12-31 | Y187: 330 | AD187: X | AF187: 84.84848485 | AG187: =IF(SUMPRODUCT((A$14:A187=A187)*(B$14:B187=B187)*(C$14:C187=C187))>1,0,1) -> 1 | AH187: 0 | AI187: 0 | AJ187: 0 | AK187: 1 | AL187: 0 | AM187: Contratos de prestación de servicios profesionales y de apoyo a la gestión | AN187: Contratación directa | AO187: =IFERROR(VLOOKUP(F187,[1]Tipo!$C$12:$C$27,1,FALSE),"NO") -> Prestación de servicios profesionales y de apoyo a la gestión, o para la ejecución de trabajos artísticos que sólo puedan encomendarse a determinadas personas naturales; | AP187: Inversión | AQ187: 45
A188: 133 | B188: 2019 | C188: FDLSUBA-CPS-133-2019 | D188: Contratos de prestación de servicios profesionales y de apoyo a la gestión | E188: Contratación directa | F188: Prestación de servicios profesionales y de apoyo a la gestión, o para la ejecución de trabajos artísticos que sólo puedan encomendarse a determinadas personas naturales; | G188: PRESTAR LOS SERVICIOS PROFESIONALES EN EL AREA GESTION DEL DESARROLLO LOCAL, PARA LOGRAR EL CUMPLIMIENTO DE LAS METAS DEL PLAN DE DESARROLLO LOCAL DE LA VIGENCIA Y ATENDER LAS COMPETENCIAS AMBIENTALES PROPIAS DE LA ALCALDIA LOCAL DE SUBA. NO HAY 15907. | H188: Inversión | I188: 38 | J188: =IF(ISERROR(VLOOKUP(I188,[1]Eje_Pilar!$C$2:$E$47,2,FALSE))," ",VLOOKUP(I188,[1]Eje_Pilar!$C$2:$E$47,2,FALSE)) -> Recuperación y manejo de la Estructura Ecológica Principal | K188: =IF(ISERROR(VLOOKUP(I188,[1]Eje_Pilar!$C$2:$E$47,3,FALSE))," ",VLOOKUP(I188,[1]Eje_Pilar!$C$2:$E$47,3,FALSE)) -> Eje Transversal 3 Sostenibilidad Ambiental basada en la eficiencia energética | L188: 3-3-1-15-06-38-1472-000 | M188: 1121874277 | N188: ANGELICA MARIA DIAZ VILLALOBOS | O188: 69300000 | Q188: 0 | R188: 1 | S188: 2310000 | T188: 71610000 | U188: 60270000 | V188: 2019-02-14 | W188: 2019-02-14 | X188: 2020-01-21 | Y188: 330 | Z188: 21 | AD188: X | AF188: 84.16422287 | AG188: =IF(SUMPRODUCT((A$14:A188=A188)*(B$14:B188=B188)*(C$14:C188=C188))>1,0,1) -> 1 | AH188: 0 | AI188: 0 | AJ188: 0 | AK188: 1 | AL188: 0 | AM188: Contratos de prestación de servicios profesionales y de apoyo a la gestión | AN188: Contratación directa | AO188: =IFERROR(VLOOKUP(F188,[1]Tipo!$C$12:$C$27,1,FALSE),"NO") -> Prestación de servicios profesionales y de apoyo a la gestión, o para la ejecución de trabajos artísticos que sólo puedan encomendarse a determinadas personas naturales; | AP188: Inversión | AQ188: 38
A189: 134 | B189: 2019 | C189: FDLSUBA-CPS-134-2019 | D189: Contratos de prestación de servicios profesionales y de apoyo a la gestión | E189: Contratación directa | F189: Prestación de servicios profesionales y de apoyo a la gestión, o para la ejecución de trabajos artísticos que sólo puedan encomendarse a determinadas personas naturales; | G189: Apoyar técnicamente las distintas etapas de los procesos de competencia de las Inspecciones de Policía de la Localidad, según reparto. NO HAY 15963. | H189: Inversión | I189: 45 | J189: =IF(ISERROR(VLOOKUP(I189,[1]Eje_Pilar!$C$2:$E$47,2,FALSE))," ",VLOOKUP(I189,[1]Eje_Pilar!$C$2:$E$47,2,FALSE)) -> Gobernanza e influencia local, regional e internacional | K189: =IF(ISERROR(VLOOKUP(I189,[1]Eje_Pilar!$C$2:$E$47,3,FALSE))," ",VLOOKUP(I189,[1]Eje_Pilar!$C$2:$E$47,3,FALSE)) -> Eje Transversal 4 Gobierno Legitimo, Fortalecimiento Local y Eficiencia | L189: 3-3-1-15-07-45-1481-000 | M189: 80134934 | N189: JONATHAN PRIETO BARAJAS | O189: 69300000 | Q189: 0 | S189: 0 | T189: 69300000 | U189: 57960000 | V189: 2019-02-18 | W189: 2019-02-18 | X189: 2019-12-31 | Y189: 330 | AD189: X | AF189: 83.63636364 | AG189: =IF(SUMPRODUCT((A$14:A189=A189)*(B$14:B189=B189)*(C$14:C189=C189))>1,0,1) -> 1 | AH189: 0 | AI189: 0 | AJ189: 0 | AK189: 1 | AL189: 0 | AM189: Contratos de prestación de servicios profesionales y de apoyo a la gestión | AN189: Contratación directa | AO189: =IFERROR(VLOOKUP(F189,[1]Tipo!$C$12:$C$27,1,FALSE),"NO") -> Prestación de servicios profesionales y de apoyo a la gestión, o para la ejecución de trabajos artísticos que sólo puedan encomendarse a determinadas personas naturales; | AP189: Inversión | AQ189: 45
A190: 135 | B190: 2019 | C190: FDLSUBA-CPS-135-2019 | D190: Contratos de prestación de servicios profesionales y de apoyo a la gestión | E190: Contratación directa | F190: Prestación de servicios profesionales y de apoyo a la gestión, o para la ejecución de trabajos artísticos que sólo puedan encomendarse a determinadas personas naturales; | G190: Prestar servicios profesionales en el Área de Gestión del Desarrollo Local de la Alcaldía Local de Suba, para el apoyo a la ejecución integral de los diferentes proyectos de inversión destinados a la intervención de la malla vial, espacio público y parques de la Localidad De Suba. NO HAY 15911. | H190: Inversión | I190: 18 | J190: =IF(ISERROR(VLOOKUP(I190,[1]Eje_Pilar!$C$2:$E$47,2,FALSE))," ",VLOOKUP(I190,[1]Eje_Pilar!$C$2:$E$47,2,FALSE)) -> Mejor movilidad para todos | K190: =IF(ISERROR(VLOOKUP(I190,[1]Eje_Pilar!$C$2:$E$47,3,FALSE))," ",VLOOKUP(I190,[1]Eje_Pilar!$C$2:$E$47,3,FALSE)) -> Pilar 2 Democracía Urbana | L190: 3-3-1-15-02-18-1506-000 | M190: 1018449224 | N190: DAVID ALEJANDRO HURTADO PALMA | O190: 50600000 | Q190: 0 | R190: 1 | S190: 766667 | T190: 51366667 | U190: 43086667 | V190: 2019-02-18 | W190: 2019-02-18 | X190: 2020-01-21 | Y190: 330 | Z190: 21 | AD190: X | AF190: 83.88059712 | AG190: =IF(SUMPRODUCT((A$14:A190=A190)*(B$14:B190=B190)*(C$14:C190=C190))>1,0,1) -> 1 | AH190: 0 | AI190: 0 | AJ190: 0 | AK190: 1 | AL190: 0 | AM190: Contratos de prestación de servicios profesionales y de apoyo a la gestión | AN190: Contratación directa | AO190: =IFERROR(VLOOKUP(F190,[1]Tipo!$C$12:$C$27,1,FALSE),"NO") -> Prestación de servicios profesionales y de apoyo a la gestión, o para la ejecución de trabajos artísticos que sólo puedan encomendarse a determinadas personas naturales; | AP190: Inversión | AQ190: 18
A191: 136 | B191: 2019 | C191: FDLSUBA-CPS-136-2019 | D191: Contratos de prestación de servicios profesionales y de apoyo a la gestión | E191: Contratación directa | F191: Prestación de servicios profesionales y de apoyo a la gestión, o para la ejecución de trabajos artísticos que sólo puedan encomendarse a determinadas personas naturales; | G191: Apoyar técnicamente las distintas etapas de los procesos de competencia de la Alcaldía Local para la depuración de actuaciones administrativas. NO HAY 15930. | H191: Inversión | I191: 45 | J191: =IF(ISERROR(VLOOKUP(I191,[1]Eje_Pilar!$C$2:$E$47,2,FALSE))," ",VLOOKUP(I191,[1]Eje_Pilar!$C$2:$E$47,2,FALSE)) -> Gobernanza e influencia local, regional e internacional | K191: =IF(ISERROR(VLOOKUP(I191,[1]Eje_Pilar!$C$2:$E$47,3,FALSE))," ",VLOOKUP(I191,[1]Eje_Pilar!$C$2:$E$47,3,FALSE)) -> Eje Transversal 4 Gobierno Legitimo, Fortalecimiento Local y Eficiencia | L191: 3-3-1-15-07-45-1481-000 | M191: 51864992 | N191: YOLANDA AMPARO RIAÑO GARCIA | O191: 69300000 | Q191: 0 | S191: 0 | T191: 69300000 | U191: 59010000 | V191: 2019-02-18 | W191: 2019-02-18 | X191: 2019-12-31 | Y191: 330 | AD191: X | AF191: 85.15151515 | AG191: =IF(SUMPRODUCT((A$14:A191=A191)*(B$14:B191=B191)*(C$14:C191=C191))>1,0,1) -> 1 | AH191: 0 | AI191: 0 | AJ191: 0 | AK191: 1 | AL191: 0 | AM191: Contratos de prestación de servicios profesionales y de apoyo a la gestión | AN191: Contratación directa | AO191: =IFERROR(VLOOKUP(F191,[1]Tipo!$C$12:$C$27,1,FALSE),"NO") -> Prestación de servicios profesionales y de apoyo a la gestión, o para la ejecución de trabajos artísticos que sólo puedan encomendarse a determinadas personas naturales; | AP191: Inversión | AQ191: 45
A192: 137 | B192: 2019 | C192: FDLSUBA-CPS-137-2019 | D192: Contratos de prestación de servicios profesionales y de apoyo a la gestión | E192: Contratación directa | F192: Prestación de servicios profesionales y de apoyo a la gestión, o para la ejecución de trabajos artísticos que sólo puedan encomendarse a determinadas personas naturales; | G192: Apoyar jurídicamente la ejecución de las acciones requeridas para el trámite e impulso procesal de las actuaciones contravencionales y/o querellas que cursen en las Inspecciones de Policía de la Localidad. NO HAY 15858. | H192: Inversión | I192: 45 | J192: =IF(ISERROR(VLOOKUP(I192,[1]Eje_Pilar!$C$2:$E$47,2,FALSE))," ",VLOOKUP(I192,[1]Eje_Pilar!$C$2:$E$47,2,FALSE)) -> Gobernanza e influencia local, regional e internacional | K192: =IF(ISERROR(VLOOKUP(I192,[1]Eje_Pilar!$C$2:$E$47,3,FALSE))," ",VLOOKUP(I192,[1]Eje_Pilar!$C$2:$E$47,3,FALSE)) -> Eje Transversal 4 Gobierno Legitimo, Fortalecimiento Local y Eficiencia | L192: 3-3-1-15-07-45-1481-000 | M192: 53041139 | N192: JEANNY CARDOZO LOAIZA | O192: 50600000 | Q192: 0 | S192: 0 | T192: 50600000 | U192: 42933333 | V192: 2019-02-18 | W192: 2019-02-18 | X192: 2019-12-31 | Y192: 330 | AD192: X | AF192: 84.84848419 | AG192: =IF(SUMPRODUCT((A$14:A192=A192)*(B$14:B192=B192)*(C$14:C192=C192))>1,0,1) -> 1 | AH192: 0 | AI192: 0 | AJ192: 0 | AK192: 1 | AL192: 0 | AM192: =IFERROR(VLOOKUP(D192,tipo,1,FALSE),"NO") -> Contratos de prestación de servicios profesionales y de apoyo a la gestión | AN192: =IFERROR(VLOOKUP(E192,modal,1,FALSE),"NO") -> Contratación directa | AO192: =IFERROR(VLOOKUP(F192,[1]Tipo!$C$12:$C$27,1,FALSE),"NO") -> Prestación de servicios profesionales y de apoyo a la gestión, o para la ejecución de trabajos artísticos que sólo puedan encomendarse a determinadas personas naturales; | AP192: =IFERROR(VLOOKUP(H192,afectacion,1,FALSE),"NO") -> Inversión | AQ192: =IFERROR(VLOOKUP(I192,programa,1,FALSE),"NO") -> 45
A193: 138 | B193: 2019 | C193: FDLSUBA-CPS-138-2019 | D193: Contratos de prestación de servicios profesionales y de apoyo a la gestión | E193: Contratación directa | F193: Prestación de servicios profesionales y de apoyo a la gestión, o para la ejecución de trabajos artísticos que sólo puedan encomendarse a determinadas personas naturales; | G193: PRESTAR LOS SERVICIOS PROFESIONALES COMO ABOGADO EN LA ALCALDIA LOCAL DE SUBA, PRINCIPALMENTE EN LA REVISION DE LOS IMPULSOS Y PROYECTOS DE ACTOS ADMINISTRATIVOS QUE SE PRODUZCAN DENTRO DE LAS ACTUACIONES ADMINISTRATIVAS QUE CURSAN EN LA ALCALDIA LOCAL. NO HAY 14844. | H193: Inversión | I193: 45 | J193: =IF(ISERROR(VLOOKUP(I193,[1]Eje_Pilar!$C$2:$E$47,2,FALSE))," ",VLOOKUP(I193,[1]Eje_Pilar!$C$2:$E$47,2,FALSE)) -> Gobernanza e influencia local, regional e internacional | K193: =IF(ISERROR(VLOOKUP(I193,[1]Eje_Pilar!$C$2:$E$47,3,FALSE))," ",VLOOKUP(I193,[1]Eje_Pilar!$C$2:$E$47,3,FALSE)) -> Eje Transversal 4 Gobierno Legitimo, Fortalecimiento Local y Eficiencia | L193: 3-3-1-15-07-45-1481-000 | M193: 26421174 | N193: ANA MARIA CORTES CABRERA | O193: 50600000 | Q193: 0 | S193: 0 | T193: 50600000 | U193: 41553333 | V193: 2019-02-18 | W193: 2019-02-18 | X193: 2019-12-31 | Y193: 330 | AD193: X | AF193: 82.12121146 | AG193: =IF(SUMPRODUCT((A$14:A193=A193)*(B$14:B193=B193)*(C$14:C193=C193))>1,0,1) -> 1 | AH193: 0 | AI193: 0 | AJ193: 0 | AK193: 1 | AL193: 0 | AM193: Contratos de prestación de servicios profesionales y de apoyo a la gestión | AN193: Contratación directa | AO193: =IFERROR(VLOOKUP(F193,[1]Tipo!$C$12:$C$27,1,FALSE),"NO") -> Prestación de servicios profesionales y de apoyo a la gestión, o para la ejecución de trabajos artísticos que sólo puedan encomendarse a determinadas personas naturales; | AP193: Inversión | AQ193: 45
A194: 139 | B194: 2019 | C194: FDLSUBA-CPS-139-2019 | D194: Contratos de prestación de servicios profesionales y de apoyo a la gestión | E194: Contratación directa | F194: Prestación de servicios profesionales y de apoyo a la gestión, o para la ejecución de trabajos artísticos que sólo puedan encomendarse a determinadas personas naturales; | G194: ¿Prestar los servicios asistenciales en la Alcaldía Local de Suba, especialmente para apoyar la gestión documental del área de Gestión Policiva, acompañando al equipo jurídico de Depuración en las labores operativas que genera el proceso de impulso de las actuaciones administrativas existentes en la localidad.¿. NO HAY 14571. | H194: Inversión | I194: 45 | J194: =IF(ISERROR(VLOOKUP(I194,[1]Eje_Pilar!$C$2:$E$47,2,FALSE))," ",VLOOKUP(I194,[1]Eje_Pilar!$C$2:$E$47,2,FALSE)) -> Gobernanza e influencia local, regional e internacional | K194: =IF(ISERROR(VLOOKUP(I194,[1]Eje_Pilar!$C$2:$E$47,3,FALSE))," ",VLOOKUP(I194,[1]Eje_Pilar!$C$2:$E$47,3,FALSE)) -> Eje Transversal 4 Gobierno Legitimo, Fortalecimiento Local y Eficiencia | L194: 3-3-1-15-07-45-1481-000 | M194: 52258620 | N194: ADRIANA PATRICIA RODRIGUEZ MUNZA | O194: 24024000 | Q194: 0 | S194: 0 | T194: 24024000 | U194: 20893600 | V194: 2019-02-14 | W194: 2019-02-14 | X194: 2019-12-31 | Y194: 330 | AD194: X | AF194: 86.96969697 | AG194: =IF(SUMPRODUCT((A$14:A194=A194)*(B$14:B194=B194)*(C$14:C194=C194))>1,0,1) -> 1 | AH194: 0 | AI194: 0 | AJ194: 0 | AK194: 1 | AL194: 0 | AM194: Contratos de prestación de servicios profesionales y de apoyo a la gestión | AN194: Contratación directa | AO194: =IFERROR(VLOOKUP(F194,[1]Tipo!$C$12:$C$27,1,FALSE),"NO") -> Prestación de servicios profesionales y de apoyo a la gestión, o para la ejecución de trabajos artísticos que sólo puedan encomendarse a determinadas personas naturales; | AP194: Inversión | AQ194: 45
A195: 140 | B195: 2019 | C195: FDLSUBA-CPS-140-2019 | D195: Contratos de prestación de servicios profesionales y de apoyo a la gestión | E195: Contratación directa | F195: Prestación de servicios profesionales y de apoyo a la gestión, o para la ejecución de trabajos artísticos que sólo puedan encomendarse a determinadas personas naturales; | G195: ¿Prestar servicios profesionales en el Área de Gestión del Desarrollo Local de la Alcaldía Local de Suba, en el proceso de formulación, ejecución, seguimiento y evaluación de las políticas, planes, programas y proyectos de desarrollo local, para lograr el cumplimiento de las metas del plan de desarrollo local de la vigencia". NO HAY 15918. | H195: Inversión | I195: 45 | J195: =IF(ISERROR(VLOOKUP(I195,[1]Eje_Pilar!$C$2:$E$47,2,FALSE))," ",VLOOKUP(I195,[1]Eje_Pilar!$C$2:$E$47,2,FALSE)) -> Gobernanza e influencia local, regional e internacional | K195: =IF(ISERROR(VLOOKUP(I195,[1]Eje_Pilar!$C$2:$E$47,3,FALSE))," ",VLOOKUP(I195,[1]Eje_Pilar!$C$2:$E$47,3,FALSE)) -> Eje Transversal 4 Gobierno Legitimo, Fortalecimiento Local y Eficiencia | L195: 3-3-1-15-07-45-1478-000 | M195: 1030533128 | N195: ZAIRA LORENA CALDERON GARCES | O195: 50600000 | Q195: 0 | R195: 1 | S195: 766667 | T195: 51366667 | U195: 43086666 | V195: 2019-02-18 | W195: 2019-02-18 | X195: 2020-01-21 | Y195: 330 | Z195: 21 | AD195: X | AF195: 83.88059517 | AG195: =IF(SUMPRODUCT((A$14:A195=A195)*(B$14:B195=B195)*(C$14:C195=C195))>1,0,1) -> 1 | AH195: 0 | AI195: 0 | AJ195: 0 | AK195: 1 | AL195: 0 | AM195: Contratos de prestación de servicios profesionales y de apoyo a la gestión | AN195: Contratación directa | AO195: =IFERROR(VLOOKUP(F195,[1]Tipo!$C$12:$C$27,1,FALSE),"NO") -> Prestación de servicios profesionales y de apoyo a la gestión, o para la ejecución de trabajos artísticos que sólo puedan encomendarse a determinadas personas naturales; | AP195: Inversión | AQ195: 45
A196: 141 | B196: 2019 | C196: FDLSUBA-CPS-141-2019 | D196: Contratos de prestación de servicios profesionales y de apoyo a la gestión | E196: Contratación directa | F196: Prestación de servicios profesionales y de apoyo a la gestión, o para la ejecución de trabajos artísticos que sólo puedan encomendarse a determinadas personas naturales; | G196: Apoyar administrativa y asistencialmente las actividades de Seguridady convivencia ciudadana en la Alcaldía Local de Suba para el logro de las metas de gestión de la vigencia. NO HAY 14584. | H196: Inversión | I196: 19 | J196: =IF(ISERROR(VLOOKUP(I196,[1]Eje_Pilar!$C$2:$E$47,2,FALSE))," ",VLOOKUP(I196,[1]Eje_Pilar!$C$2:$E$47,2,FALSE)) -> Seguridad y convivencia para todos | K196: =IF(ISERROR(VLOOKUP(I196,[1]Eje_Pilar!$C$2:$E$47,3,FALSE))," ",VLOOKUP(I196,[1]Eje_Pilar!$C$2:$E$47,3,FALSE)) -> Pilar 3 Construcción de Comunidad y Cultura Ciudadana | L196: 3-3-1-15-03-19-1469-000 | M196: 80815289 | N196: CARLOS ALBERTO ANGEL PEÑA | O196: 24024000 | Q196: 0 | R196: 1 | S196: 509600 | T196: 24533600 | U196: 20602400 | V196: 2019-02-14 | W196: 2019-02-14 | X196: 2020-01-21 | Y196: 330 | Z196: 21 | AD196: X | AF196: 83.97626113 | AG196: =IF(SUMPRODUCT((A$14:A196=A196)*(B$14:B196=B196)*(C$14:C196=C196))>1,0,1) -> 1 | AH196: 0 | AI196: 0 | AJ196: 0 | AK196: 1 | AL196: 0 | AM196: Contratos de prestación de servicios profesionales y de apoyo a la gestión | AN196: Contratación directa | AO196: =IFERROR(VLOOKUP(F196,[1]Tipo!$C$12:$C$27,1,FALSE),"NO") -> Prestación de servicios profesionales y de apoyo a la gestión, o para la ejecución de trabajos artísticos que sólo puedan encomendarse a determinadas personas naturales; | AP196: Inversión | AQ196: 19
A197: 142 | B197: 2019 | C197: FDLSUBA-CPS-142-2019 | D197: Contratos de prestación de servicios profesionales y de apoyo a la gestión | E197: Contratación directa | F197: Prestación de servicios profesionales y de apoyo a la gestión, o para la ejecución de trabajos artísticos que sólo puedan encomendarse a determinadas personas naturales; | G197: PRESTAR SERVICIOS PROFESIONALES PARA PROMOVER LOS PROCESOS CULTURALES EN LA ALCALDIA LOCAL DE SUBA, PARA DAR CUMPLIMIENTO A LAS METAS DEL PLAN DE DESARROLLO EN EL EJE UNO DEL PLAN DE DESARROLLO. NO HAY 14989.|69300000|0|0|69300000|59010000|10290000 | H197: Inversión | I197: 11 | J197: =IF(ISERROR(VLOOKUP(I197,[1]Eje_Pilar!$C$2:$E$47,2,FALSE))," ",VLOOKUP(I197,[1]Eje_Pilar!$C$2:$E$47,2,FALSE)) -> Mejores oportunidades para el desarrollo a través de la cultura, la recreación y el deporte | K197: =IF(ISERROR(VLOOKUP(I197,[1]Eje_Pilar!$C$2:$E$47,3,FALSE))," ",VLOOKUP(I197,[1]Eje_Pilar!$C$2:$E$47,3,FALSE)) -> Pilar 1 Igualdad de Calidad de Vida | L197: 3-3-1-15-01-11-1459-000 | M197: 80276374 | N197: DANILO ALFREDO MORRIS MONCADA | O197: 69300000 | Q197: 0 | R197: 1 | S197: 4410000 | T197: 73710000 | U197: 59010000 | V197: 2019-02-20 | W197: 2019-02-20 | X197: 2020-01-21 | Y197: 330 | Z197: 21 | AD197: X | AF197: 80.05698006 | AG197: =IF(SUMPRODUCT((A$14:A197=A197)*(B$14:B197=B197)*(C$14:C197=C197))>1,0,1) -> 1 | AH197: 0 | AI197: 0 | AJ197: 0 | AK197: 1 | AL197: 0 | AM197: Contratos de prestación de servicios profesionales y de apoyo a la gestión | AN197: Contratación directa | AO197: =IFERROR(VLOOKUP(F197,[1]Tipo!$C$12:$C$27,1,FALSE),"NO") -> Prestación de servicios profesionales y de apoyo a la gestión, o para la ejecución de trabajos artísticos que sólo puedan encomendarse a determinadas personas naturales; | AP197: Inversión | AQ197: 11
A198: 143 | B198: 2019 | C198: FDLSUBA-CPS-143-2019 | D198: Contratos de prestación de servicios profesionales y de apoyo a la gestión | E198: Contratación directa | F198: Prestación de servicios profesionales y de apoyo a la gestión, o para la ejecución de trabajos artísticos que sólo puedan encomendarse a determinadas personas naturales; | G198: PRESTAR LOS SERVICIOS PROFESIONALES EN LA ALCALDIA LOCAL DE SUBA, PRINCIPALMENTE PARA REALIZAR ACCIONES PEDAGOGICAS PREVENTIVAS Y DE SENSIBILIZACION PARA EL ACATAMIENTO VOLUNTARIO DE LAS NORMAS EN LA LOCALIDAD. NO HAY 15412. | H198: Inversión | I198: 45 | J198: =IF(ISERROR(VLOOKUP(I198,[1]Eje_Pilar!$C$2:$E$47,2,FALSE))," ",VLOOKUP(I198,[1]Eje_Pilar!$C$2:$E$47,2,FALSE)) -> Gobernanza e influencia local, regional e internacional | K198: =IF(ISERROR(VLOOKUP(I198,[1]Eje_Pilar!$C$2:$E$47,3,FALSE))," ",VLOOKUP(I198,[1]Eje_Pilar!$C$2:$E$47,3,FALSE)) -> Eje Transversal 4 Gobierno Legitimo, Fortalecimiento Local y Eficiencia | L198: 3-3-1-15-07-45-1481-000 | M198: 1019070345 | N198: JOHANA CATERINE ROMERO MEDINA | O198: 48300000 | Q198: 0 | S198: 0 | T198: 48300000 | U198: 42933333 | V198: 2019-02-21 | W198: 2019-02-21 | X198: 2019-12-31 | Y198: 330 | AD198: X | AF198: 88.8888882 | AG198: =IF(SUMPRODUCT((A$14:A198=A198)*(B$14:B198=B198)*(C$14:C198=C198))>1,0,1) -> 1 | AH198: 0 | AI198: 0 | AJ198: 0 | AK198: 1 | AL198: 0 | AM198: Contratos de prestación de servicios profesionales y de apoyo a la gestión | AN198: Contratación directa | AO198: =IFERROR(VLOOKUP(F198,[1]Tipo!$C$12:$C$27,1,FALSE),"NO") -> Prestación de servicios profesionales y de apoyo a la gestión, o para la ejecución de trabajos artísticos que sólo puedan encomendarse a determinadas personas naturales; | AP198: Inversión | AQ198: 45
A199: 144 | B199: 2019 | C199: FDLSUBA-CPS-144-2019 | D199: Contratos de prestación de servicios profesionales y de apoyo a la gestión | E199: Contratación directa | F199: Prestación de servicios profesionales y de apoyo a la gestión, o para la ejecución de trabajos artísticos que sólo puedan encomendarse a determinadas personas naturales; | G199: APOYAR JURIDICAMENTE LA EJECUCION DE LAS ACCIONES REQUERIDAS PARA LA DEPURACION DE LAS ACTUACIONES ADMINISTRATIVAS QUE CURSAN EN LA ALCALDIA LOCAL. NO HAY 14565. | H199: Inversión | I199: 45 | J199: =IF(ISERROR(VLOOKUP(I199,[1]Eje_Pilar!$C$2:$E$47,2,FALSE))," ",VLOOKUP(I199,[1]Eje_Pilar!$C$2:$E$47,2,FALSE)) -> Gobernanza e influencia local, regional e internacional | K199: =IF(ISERROR(VLOOKUP(I199,[1]Eje_Pilar!$C$2:$E$47,3,FALSE))," ",VLOOKUP(I199,[1]Eje_Pilar!$C$2:$E$47,3,FALSE)) -> Eje Transversal 4 Gobierno Legitimo, Fortalecimiento Local y Eficiencia | L199: 3-3-1-15-07-45-1478-000 | M199: 1020787568 | N199: PAULA ANDREA BOHORQUEZ CALA | O199: 50600000 | Q199: 0 | R199: 1 | S199: 1073333 | T199: 51673333 | U199: 43393333 | V199: 2019-02-18 | W199: 2019-02-18 | X199: 2020-01-21 | Y199: 330 | Z199: 21 | AD199: X | AF199: 83.97626102 | AG199: =IF(SUMPRODUCT((A$14:A199=A199)*(B$14:B199=B199)*(C$14:C199=C199))>1,0,1) -> 1 | AH199: 0 | AI199: 0 | AJ199: 0 | AK199: 1 | AL199: 0 | AM199: Contratos de prestación de servicios profesionales y de apoyo a la gestión | AN199: Contratación directa | AO199: =IFERROR(VLOOKUP(F199,[1]Tipo!$C$12:$C$27,1,FALSE),"NO") -> Prestación de servicios profesionales y de apoyo a la gestión, o para la ejecución de trabajos artísticos que sólo puedan encomendarse a determinadas personas naturales; | AP199: Inversión | AQ199: 45
A200: 145 | B200: 2019 | C200: FDLSUBA-CPS-145-2019 | D200: Contratos de prestación de servicios profesionales y de apoyo a la gestión | E200: Contratación directa | F200: Prestación de servicios profesionales y de apoyo a la gestión, o para la ejecución de trabajos artísticos que sólo puedan encomendarse a determinadas personas naturales; | G200: APOYAR JURIDICAMENTE LA EJECUCION DE LAS ACCIONES REQUERIDAS PARA LA DEPURACION DE LAS ACTUACIONES ADMINISTRATIVAS QUE CURSAN EN LA ALCALDIA LOCAL. NO HAY 14565. | H200: Inversión | I200: 45 | J200: =IF(ISERROR(VLOOKUP(I200,[1]Eje_Pilar!$C$2:$E$47,2,FALSE))," ",VLOOKUP(I200,[1]Eje_Pilar!$C$2:$E$47,2,FALSE)) -> Gobernanza e influencia local, regional e internacional | K200: =IF(ISERROR(VLOOKUP(I200,[1]Eje_Pilar!$C$2:$E$47,3,FALSE))," ",VLOOKUP(I200,[1]Eje_Pilar!$C$2:$E$47,3,FALSE)) -> Eje Transversal 4 Gobierno Legitimo, Fortalecimiento Local y Eficiencia | L200: 3-3-1-15-07-45-1478-000 | M200: 51924901 | N200: SONIA PATRICIA RINCON FONSECA | O200: 50600000 | Q200: 0 | S200: 0 | T200: 50600000 | U200: 42320000 | V200: 2019-02-15 | W200: 2019-02-15 | X200: 2019-12-31 | Y200: 330 | AD200: X | AF200: 83.63636364 | AG200: =IF(SUMPRODUCT((A$14:A200=A200)*(B$14:B200=B200)*(C$14:C200=C200))>1,0,1) -> 1 | AH200: 0 | AI200: 0 | AJ200: 0 | AK200: 1 | AL200: 0 | AM200: Contratos de prestación de servicios profesionales y de apoyo a la gestión | AN200: Contratación directa | AO200: =IFERROR(VLOOKUP(F200,[1]Tipo!$C$12:$C$27,1,FALSE),"NO") -> Prestación de servicios profesionales y de apoyo a la gestión, o para la ejecución de trabajos artísticos que sólo puedan encomendarse a determinadas personas naturales; | AP200: Inversión | AQ200: 45
A201: 146 | B201: 2019 | C201: FDLSUBA-CPS-146-2019 | D201: Contratos de prestación de servicios profesionales y de apoyo a la gestión | E201: Contratación directa | F201: Prestación de servicios profesionales y de apoyo a la gestión, o para la ejecución de trabajos artísticos que sólo puedan encomendarse a determinadas personas naturales; | G201: ¿Apoyar jurídicamente a la Alcaldía Local de Suba, principalmente en la formulación, seguimiento e implementación de la estrategia local para la terminación jurídica de las actuaciones administrativas que cursan en la Alcaldía local¿. NO HAY 14612. | H201: Inversión | I201: 45 | J201: =IF(ISERROR(VLOOKUP(I201,[1]Eje_Pilar!$C$2:$E$47,2,FALSE))," ",VLOOKUP(I201,[1]Eje_Pilar!$C$2:$E$47,2,FALSE)) -> Gobernanza e influencia local, regional e internacional | K201: =IF(ISERROR(VLOOKUP(I201,[1]Eje_Pilar!$C$2:$E$47,3,FALSE))," ",VLOOKUP(I201,[1]Eje_Pilar!$C$2:$E$47,3,FALSE)) -> Eje Transversal 4 Gobierno Legitimo, Fortalecimiento Local y Eficiencia | L201: 3-3-1-15-07-45-1481-000 | M201: 52051059 | N201: OLGA LUCIA DORIA CASTRILLON | O201: 69300000 | Q201: 0 | R201: 1 | S201: 2100000 | T201: 71400000 | U201: 60060000 | V201: 2019-02-15 | W201: 2019-02-15 | X201: 2020-01-21 | Y201: 330 | Z201: 21 | AD201: X | AF201: 84.11764706 | AG201: =IF(SUMPRODUCT((A$14:A201=A201)*(B$14:B201=B201)*(C$14:C201=C201))>1,0,1) -> 1 | AH201: 0 | AI201: 0 | AJ201: 0 | AK201: 1 | AL201: 0 | AM201: Contratos de prestación de servicios profesionales y de apoyo a la gestión | AN201: Contratación directa | AO201: =IFERROR(VLOOKUP(F201,[1]Tipo!$C$12:$C$27,1,FALSE),"NO") -> Prestación de servicios profesionales y de apoyo a la gestión, o para la ejecución de trabajos artísticos que sólo puedan encomendarse a determinadas personas naturales; | AP201: Inversión | AQ201: 45
A202: 147 | B202: 2019 | C202: FDLSUBA-CPS-147-2019 | D202: Contratos de prestación de servicios profesionales y de apoyo a la gestión | E202: Contratación directa | F202: Prestación de servicios profesionales y de apoyo a la gestión, o para la ejecución de trabajos artísticos que sólo puedan encomendarse a determinadas personas naturales; | G202: ¿Prestar los servicios profesionales para apoyar jurídicamente la ejecución de las acciones requeridas para la depuración de las actuaciones administrativas que cursan en la Alcaldía Local.¿. NO HAY 14569. | H202: Inversión | I202: 45 | J202: =IF(ISERROR(VLOOKUP(I202,[1]Eje_Pilar!$C$2:$E$47,2,FALSE))," ",VLOOKUP(I202,[1]Eje_Pilar!$C$2:$E$47,2,FALSE)) -> Gobernanza e influencia local, regional e internacional | K202: =IF(ISERROR(VLOOKUP(I202,[1]Eje_Pilar!$C$2:$E$47,3,FALSE))," ",VLOOKUP(I202,[1]Eje_Pilar!$C$2:$E$47,3,FALSE)) -> Eje Transversal 4 Gobierno Legitimo, Fortalecimiento Local y Eficiencia | L202: 3-3-1-15-07-45-1478-000 | M202: 52390170 | N202: LUISA FERNANDA DURAN ROMERO | O202: 50600000 | Q202: 0 | R202: 1 | S202: 1533333 | T202: 52133333 | U202: 43853333 | V202: 2019-02-15 | W202: 2019-02-15 | X202: 2020-01-21 | Y202: 330 | Z202: 21 | AD202: X | AF202: 84.11764696 | AG202: =IF(SUMPRODUCT((A$14:A202=A202)*(B$14:B202=B202)*(C$14:C202=C202))>1,0,1) -> 1 | AH202: 0 | AI202: 0 | AJ202: 0 | AK202: 1 | AL202: 0 | AM202: Contratos de prestación de servicios profesionales y de apoyo a la gestión | AN202: Contratación directa | AO202: =IFERROR(VLOOKUP(F202,[1]Tipo!$C$12:$C$27,1,FALSE),"NO") -> Prestación de servicios profesionales y de apoyo a la gestión, o para la ejecución de trabajos artísticos que sólo puedan encomendarse a determinadas personas naturales; | AP202: Inversión | AQ202: 45
... 306 more rows
